Workbook

Sheet SafetySummary (hidden)
GL4: NLF_ID | GM4: BLOG | GN4: ELOG
GN5: -0.01
E7: Current File Name | F7: CAM Tool FS_1.14
E8: Current File Path | F8: C:\Temp\
E9: Run CAM Tool Crash Data for Desired Sections | F9: X
E10: Run Congestion Model Weighted Average Data for Desired Sections | GL10: NLF_ID | GM10: Min(BTRS_LOG_POINTS6.LOGPOINT_COUNTY_NBR) | GN10: Max(BTRS_LOG_POINTS6.LOGPOINT_COUNTY_NBR) | GO10: Avg(BTRS_CONGESTION_SEGMENTS6.TOTAL_VOLUME_NBR) | GP10: Avg(BTRS_CONGESTION_SEGMENTS6.TRUCK_VOLUME_NBR) | GQ10: Avg(BTRS_CONGESTION_SEGMENTS6.VOLUME_CAPACITY_RATIO_NBR) | GR10: Min(BTRS_LOG_POINTS6.FUNCTIONAL_CLASS_CD) | GS10: Max(BTRS_LOG_POINTS6.FUNCTIONAL_CLASS_CD) | GT10: SUM(BTRS_LOG_POINTS6.SECTION_LENGTH_NBR)
E11: Run Road Inventory Segment Data (State & Local) for Desired Sections
A12: 1 | H12: 8 | I12: 9 | J12: 10 | K12: 11 | L12: 12 | M12: 13 | N12: 14 | O12: 15 | P12: 16 | Q12: 17 | R12: 18 | S12: 19 | T12: 20 | U12: 21 | V12: 22 | W12: 23 | X12: 24 | Y12: 25 | Z12: 26 | AA12: 27 | AB12: 28 | AC12: 29 | AD12: 30 | AE12: 31 | AF12: 32 | AI12: 33 | AJ12: 34 | AK12: 35 | AN12: 36 | AO12: 37 | AP12: 38 | AQ12: 39 | AR12: 40 | AS12: 41 | AT12: 42 | AU12: 43 | AV12: 44 | AW12: 45 | AX12: 46 | AY12: 47 | AZ12: 48 | BA12: 49 | BB12: 50 | BC12: 51 | BD12: 52 | BE12: 53 | BF12: 54 | BG12: 55 | BH12: 56 | BI12: 57 | BJ12: 58 | BK12: 59 | BL12: 60 | BM12: 61 | BN12: 62 | BO12: 63 | BP12: 64 | BQ12: 65 | BR12: 66 | BS12: 67 | BT12: 68 | BU12: 69 | BV12: 70 | BW12: 71 | BY12: 72 | BZ12: 73 | CA12: 74 | CB12: 75 | CC12: 76 | EB12: 140 | EC12: 141 | EE12: 147 | EF12: 148 | EG12: 149 | EH12: 150 | EI12: 151 | EJ12: 152 | EK12: 153 | EL12: 154 | EM12: 155 | EN12: 156 | EO12: 157 | EP12: 158 | EQ12: 159 | ER12: 160 | ES12: 161 | ET12: 162 | EU12: 163 | EV12: 164 | EW12: 165 | EX12: 166 | EY12: 167 | EZ12: 168 | FA12: 169 | FB12: 170 | FC12: 171 | FD12: 172 | FE12: 173 | FF12: 174 | FG12: 175 | FH12: 176 | FI12: 177 | FJ12: 178 | FK12: 179 | FL12: 180 | FM12: 181 | FN12: 182 | FO12: 183 | FP12: 184 | FQ12: 185 | FR12: 186 | FS12: 187 | FT12: 188 | FU12: 189 | FV12: 190 | GI12: 191 | GJ12: 192 | GK12: 193 | GL12: 194 | GM12: 195 | GN12: 196 | GO12: 197 | GP12: 198 | GQ12: 199 | GR12: 200 | GS12: 201 | GT12: 202 | GU12: 203 | GV12: 204 | GW12: 205 | GX12: 206
E13: Run Ellis Project Info for Desired Sections | AK13: =SUM(AJ16:AK16)*AK14/$AN$14 -> 29.88577279 | AL13: =AL16*AL14/$AN$14 -> 12.1700245 | AM13: =AM16*AM14/$AN$14 -> 19.4894146 | AN13: 41
E14: Run Current Pavement Condition Data for Desired Sections | P14: =IF(GO14 = "","",GO14) ->  | Q14: =IF(GP14 = "","",GP14) ->  | R14: =IF(GQ14 = "","",GQ14) ->  | S14: =IF(GR14 = "","",GR14) ->  | T14: =IF(GS14 = "","",GS14) ->  | AK14: 408673 | AL14: 55473 | AM14: 48456 | AN14: 27349
E15: Run Current Bridge Condition Data for Desired Sections | AF15: People | AJ15: Crash Severity | AO15: Year | AY15: Day | BF15: Crash Type | BZ15: Road Condition | CH15: Road Contour | CM15: Light Condition | CS15: Location | DG15: Emphasis Area | DR15: Unit 1 Contributing Factor | EI15: =IF(K15="","",(EH15*1000000)/(#REF!*365*EM15*3)) ->  | GS15: =MID(GT15,(FIND("[",GT15)+1),(FIND("]",GT15)-1)-(FIND("[",GT15))) -> BUT-747@129 HSIP Application and Scoring Tool.xlsm | GT15: =CELL("filename") -> X:\Planning\Traffic_Safety\Safety\Safety Applications and Results\2023-03 Applications\202303D08-XX BUT SR-747 5.49 (SR-129 interchange)\[BUT-747@129 HSIP Application and Scoring Tool.xlsm]DSRTSignature
A16: 18 | B16: =IF(C16=C14,B14,B14+1) -> 0 | D16: Require User to Manually Select File Path and Name for Desired Sections Where a CAM Tool is "X"ed in Column B | K16: =IF(H16="","",IF(D16="I",1,H16-G16)) ->  | M16: =IF(GK16="","",HYPERLINK(GK16)) ->  | N16: Default is Blank - Logged | P16: =IF(GO16 = "","",GO16) ->  | Q16: =IF(GP16 = "","",GP16) ->  | R16: =IF(GQ16 = "","",GQ16) ->  | S16: =IF(GR16 = "","",GR16) ->  | T16: =IF(GS16 = "","",GS16) ->  | X16: =COUNT('Full Crash Data'!B:B) -> 62 | Y16: =IF(ISERROR((X16*1000000)/(K16*365*GO16*(J16-I16+1))),"",(X16*1000000)/(K16*365*GO16*(J16-I16+1))) ->  | Z16: =ROUND(X16/'Full Crash Data'!$E$10-'Full Crash Data'!$E$11,2) ->  | AA16: =ROUND(SUM($AK$13:$AN$13),0) -> 103 | AF16: =SUM('Full Crash Data'!U:U) -> 91 | AG16: =SUM('Full Crash Data'!U:U) -> 91 | AH16: =SUM('Full Crash Data'!V:V) -> 43 | AI16: =SUM('Full Crash Data'!W:W) -> 65 | AJ16: =COUNTIFS('Full Crash Data'!$F:$F,AJ$17) -> 0 | AK16: =COUNTIFS('Full Crash Data'!$F:$F,AK$17) -> 2 | AL16: =COUNTIFS('Full Crash Data'!$F:$F,AL$17) -> 6 | AM16: =COUNTIFS('Full Crash Data'!$F:$F,AM$17) -> 11 | AN16: =COUNTIFS('Full Crash Data'!$F:$F,AN$17) -> 41 | AO16: =COUNTIFS('Full Crash Data'!$C:$C,AO$17) -> 0 | AP16: =COUNTIFS('Full Crash Data'!$C:$C,AP$17) -> 0 | AQ16: =COUNTIFS('Full Crash Data'!$C:$C,AQ$17) -> 0 | AR16: =COUNTIFS('Full Crash Data'!$C:$C,AR$17) -> 0 | AS16: =COUNTIFS('Full Crash Data'!$C:$C,AS$17) -> 0 | AT16: =COUNTIFS('Full Crash Data'!$C:$C,AT$17) -> 0 | AU16: =COUNTIFS('Full Crash Data'!$C:$C,AU$17) -> 0 | AV16: =COUNTIFS('Full Crash Data'!$C:$C,AV$17) -> 25 | AW16: =COUNTIFS('Full Crash Data'!$C:$C,AW$17) -> 35 | AX16: =COUNTIFS('Full Crash Data'!$C:$C,AX$17) -> 0 | AY16: =COUNTIFS('Full Crash Data'!$AR:$AR,AY$17) -> 5 | AZ16: =COUNTIFS('Full Crash Data'!$AR:$AR,AZ$17) -> 7 | BA16: =COUNTIFS('Full Crash Data'!$AR:$AR,BA$17) -> 9 | BB16: =COUNTIFS('Full Crash Data'!$AR:$AR,BB$17) -> 11 | BC16: =COUNTIFS('Full Crash Data'!$AR:$AR,BC$17) -> 6 | BD16: =COUNTIFS('Full Crash Data'!$AR:$AR,BD$17) -> 13 | BE16: =COUNTIFS('Full Crash Data'!$AR:$AR,BE$17) -> 9 | BF16: =COUNTIFS('Full Crash Data'!$G:$G,BF$17) -> 0 | BG16: =COUNTIFS('Full Crash Data'!$G:$G,BG$17) -> 0 | BH16: =COUNTIFS('Full Crash Data'!$G:$G,BH$17) -> 27 | BI16: =COUNTIFS('Full Crash Data'!$G:$G,BI$17) -> 0 | BJ16: =COUNTIFS('Full Crash Data'!$G:$G,BJ$17) -> 0 | BK16: =COUNTIFS('Full Crash Data'!$G:$G,BK$17) -> 5 | BL16: =COUNTIFS('Full Crash Data'!$G:$G,BL$17) -> 6 | BM16: =COUNTIFS('Full Crash Data'!$G:$G,BM$17) -> 0 | BN16: =COUNTIFS('Full Crash Data'!$G:$G,BN$17) -> 0 | BO16: =COUNTIFS('Full Crash Data'!$G:$G,BO$17) -> 0 | BP16: =COUNTIFS('Full Crash Data'!$G:$G,BP$17) -> 0 | BQ16: =COUNTIFS('Full Crash Data'!$G:$G,BQ$17) -> 0 | BR16: =COUNTIFS('Full Crash Data'!$G:$G,BR$17) -> 0 | BS16: =COUNTIFS('Full Crash Data'!$G:$G,BS$17) -> 0 | BT16: =COUNTIFS('Full Crash Data'!$G:$G,BT$17) -> 0 | BU16: =COUNTIFS('Full Crash Data'!$G:$G,BU$17) -> 0 | BV16: =COUNTIFS('Full Crash Data'!$G:$G,BV$17) -> 0 | BW16: =COUNTIFS('Full Crash Data'!$G:$G,BW$17) -> 0 | BX16: =COUNTIFS('Full Crash Data'!$G:$G,BX$17) -> 18 | BY16: =COUNTIFS('Full Crash Data'!$G:$G,BY$17) -> 4 | BZ16: =COUNTIFS('Full Crash Data'!$AT:$AT,BZ$17) -> 46 | CA16: =COUNTIFS('Full Crash Data'!$AT:$AT,CA$17) -> 12 | CB16: =COUNTIFS('Full Crash Data'!$AT:$AT,CB$17) -> 2 | CC16: =COUNTIFS('Full Crash Data'!$AT:$AT,CC$17) -> 0 | CD16: =COUNTIFS('Full Crash Data'!$AT:$AT,CD$17) -> 0 | CE16: =COUNTIFS('Full Crash Data'!$AT:$AT,CE$17) -> 0 | CF16: =COUNTIFS('Full Crash Data'!$AT:$AT,CF$17) -> 0 | CG16: =COUNTIFS('Full Crash Data'!$AT:$AT,CG$17) -> 1 | CH16: =COUNTIFS('Full Crash Data'!$AV:$AV,CH$17) -> 33 | CI16: =COUNTIFS('Full Crash Data'!$AV:$AV,CI$17) -> 26 | CJ16: =COUNTIFS('Full Crash Data'!$AV:$AV,CJ$17) -> 0 | CK16: =COUNTIFS('Full Crash Data'!$AV:$AV,CK$17) -> 1 | CL16: =COUNTIFS('Full Crash Data'!$AV:$AV,CL$17) -> 0 | CM16: =COUNTIFS('Full Crash Data'!$AU:$AU,CM$17) -> 47 | CN16: =COUNTIFS('Full Crash Data'!$AU:$AU,CN$17) -> 5 | CO16: =COUNTIFS('Full Crash Data'!$AU:$AU,CO$17) -> 7 | CP16: =COUNTIFS('Full Crash Data'!$AU:$AU,CP$17) -> 1 | CQ16: =COUNTIFS('Full Crash Data'!$AU:$AU,CQ$17) -> 0 | CR16: =COUNTIFS('Full Crash Data'!$AU:$AU,CR$17) -> 0 | CS16: =COUNTIFS('Full Crash Data'!$J:$J,CS$17) -> 22 | CT16: =COUNTIFS('Full Crash Data'!$J:$J,CT$17) -> 8 | CU16: =COUNTIFS('Full Crash Data'!$J:$J,CU$17) -> 7 | CV16: =COUNTIFS('Full Crash Data'!$J:$J,CV$17) -> 17 | CW16: =COUNTIFS('Full Crash Data'!$J:$J,CW$17) -> 0 | CX16: =COUNTIFS('Full Crash Data'!$J:$J,CX$17) -> 0 | CY16: =COUNTIFS('Full Crash Data'!$J:$J,CY$17) -> 3 | CZ16: =COUNTIFS('Full Crash Data'!$J:$J,CZ$17) -> 0 | DA16: =COUNTIFS('Full Crash Data'!$J:$J,DA$17) -> 3 | DB16: =COUNTIFS('Full Crash Data'!$J:$J,DB$17) -> 0 | DC16: =COUNTIFS('Full Crash Data'!$J:$J,DC$17) -> 0 | DD16: =COUNTIFS('Full Crash Data'!$J:$J,DD$17) -> 0 | DE16: =COUNTIFS('Full Crash Data'!$J:$J,DE$17) -> 0 | DF16: =COUNTIFS('Full Crash Data'!$J:$J,DF$17) -> 0 | DG16: =COUNTIFS('Full Crash Data'!AV:AV,"Yes") -> 0 | DH16: =COUNTIFS('Full Crash Data'!AW:AW,"Yes") -> 2 | DI16: =COUNTIFS('Full Crash Data'!AX:AX,"Yes") -> 54 | DJ16: =COUNTIFS('Full Crash Data'!AY:AY,"Yes") -> 1 | DK16: =COUNTIFS('Full Crash Data'!AZ:AZ,"Yes") -> 0 | DL16: =COUNTIFS('Full Crash Data'!BA:BA,"Yes") -> 0 | DM16: =COUNTIFS('Full Crash Data'!BB:BB,"Yes") -> 0 | DN16: =COUNTIFS('Full Crash Data'!BC:BC,"Yes") -> 0 | DO16: =COUNTIFS('Full Crash Data'!BD:BD,"Yes") -> 1 | DP16: =COUNTIFS('Full Crash Data'!BE:BE,"Yes") -> 12 | DQ16: =COUNTIFS('Full Crash Data'!BF:BF,"Yes") -> 24 | DR16: =COUNTIFS('Full Crash Data'!$CN:$CN,DR$17) -> 25 | DS16: =COUNTIFS('Full Crash Data'!$CN:$CN,DS$17) -> 13 | DT16: =COUNTIFS('Full Crash Data'!$CN:$CN,DT$17) -> 2 | DU16: =COUNTIFS('Full Crash Data'!$CN:$CN,DU$17) -> 0 | DV16: =COUNTIFS('Full Crash Data'!$CN:$CN,DV$17) -> 2 | DW16: =COUNTIFS('Full Crash Data'!$CN:$CN,DW$17) -> 0 | DX16: =COUNTIFS('Full Crash Data'!$CN:$CN,DX$17) -> 0 | DY16: =COUNTIFS('Full Crash Data'!$CN:$CN,DY$17) -> 5 | DZ16: =COUNTIFS('Full Crash Data'!$CN:$CN,DZ$17) -> 4 | EA16: =COUNTIFS('Full Crash Data'!$CN:$CN,EA$17) -> 1 | EE16: =IF(C16=C15,"",C16) ->  | EF16: =IF(EE16="","",IF(D16="I","Intersection","Section")) ->  | EG16: =IF($EE16="","",SUMIF($C$18:$C$65536,$EE16,$K$18:$K$65536)) ->  | EH16: =IF($EE16="","",SUMIF($C$18:$C$65536,$EE16,$X$18:$X$65536)) ->  | EI16: =IF(EE16="","",IF(ISERROR((EH16*1000000)/(EG16*365*EM16*(J16-I16+1))),VALUE(0),(EH16*1000000)/(EG16*365*EM16*(J16-I16+1)))) ->  | EJ16: =IFERROR(IF($EE16="","",EH16/EG16/(J16-I16+1)),0) ->  | EK16: =IF($EE16="","",SUMIF($C$18:$C$65536,$EE16,$AA$18:$AA$65536)) ->  | EL16: =IF($EE16="","",IF(ISERROR((SUMIF($C$18:$C$65536,$EE16,$GU$18:$GU$65536)/EH16)),VALUE(0),(SUMIF($C$18:$C$65536,$EE16,$GU$18:$GU$65536)/EH16))) ->  | EM16: =IFERROR(IF($EE16="","",(SUMIF($C$18:$C$65536,$EE16,$GV$18:$GV$65536)/$EG16)),0) ->  | EN16: =IFERROR(IF($EE16="","",IF(ISERROR(EO16/EM16),VALUE(0),EO16/EM16)),0) ->  | EO16: =IFERROR(IF($EE16="","",(SUMIF($C$18:$C$65536,$EE16,$GW$18:$GW$65536)/$EG16)),0) ->  | EP16: =IFERROR(IF($EE16="","",(SUMIF($C$18:$C$65536,$EE16,$GX$18:$GX$65536)/$EG16)),0) ->  | GI16: =IF(ISERROR(GI15+1),VALUE(1),GI15+1) -> 1 | GJ16: =IF(A16="","",C16&"_"&MID(F16,2,3)&MID(F16,5,2)&MID(F16,9,3)&IF(MID(F16,13,1)="*","",MID(F16,13,1))&IF(MID(F16,12,1)="*","",MID(F16,12,1))&"; "&G16&"-"&H16&"_"&GI16) -> _; -_1 | GK16: =IF(C16="","",L16&GJ16&".xlsm") ->  | GL16: Do not modify cells below | GU16: =IF(ISERROR(AB16*X16),VALUE(0),AB16*X16) -> 0 | GV16: =IF(ISERROR(GO16*K16),VALUE(0),GO16*K16) -> 0 | GW16: =IF(ISERROR(GP16*K16),VALUE(0),GP16*K16) -> 0 | GX16: =IF(ISERROR(GQ16*K16),VALUE(0),GQ16*K16) -> 0
A17: RunNewData | B17: CreateCamTool | C17: Project_ID (Do Not Leave Blank) | D17: Default is S - Section Intersection (I) Or Section (S) | E17: Rural Non-Freeway Urban Non-Freeway Freeway Default is Rural Non-Freeway RSI_Location_Type | F17: Example: SFRAUS00040**C NLF_ID | G17: BEGIN_LOG | H17: END_LOG | I17: BEGIN_YEAR | J17: END_YEAR | K17: Length | L17: FilePath | M17: File Hyperlink | N17: Logged Crashes Only (Default - Leave Blank) For Logged and Unlogged Enter "U" in This Column | O17: Run All Crashes (Default - Leave Blank) To Exclude Animal Crashes Enter "A" in This Column To Exclude Work Zone Crashes Enter "W" in This Column To Exclude Both Animal & Work Zone Crashes Enter "B" in This Column | P17: WAADT | Q17: WATADT | R17: WA_VC | S17: MinFC | T17: MaxFC | X17: Total Crashes | Y17: Crash Rate | Z17: Crash Density (Crashes Per Mile Per Year) | AA17: EPDO | AB17: RSI | AF17: Fatalities | AG17: Serious Injury Supected | AH17: Minor Injury Suspected | AI17: Injury Possible | AJ17: (1) Fatal | AK17: (2) Serious Injury Suspected | AL17: (3) Minor Injury Suspected | AM17: (4) Injury Possible | AN17: (5) PDO/No Injury | AO17: =AP17-1 -> 2014 | AP17: 2015 | AQ17: 2016 | AR17: 2017 | AS17: 2018 | AT17: 2019 | AU17: 2020 | AV17: 2021 | AW17: =AX17-1 -> 2022 | AX17: =IF(MAX(J:J)=10,YEAR(NOW()),MAX(J:J)) -> 2023 | AY17: (1) Sunday | AZ17: (2) Monday | BA17: (3) Tuesday | BB17: (4) Wednesday | BC17: (5) Thursday | BD17: (6) Friday | BE17: (7) Saturday | BF17: Unknown | BG17: Head On | BH17: Rear End | BI17: Backing | BJ17: Sideswipe - Meeting | BK17: Sideswipe - Passing | BL17: Angle | BM17: Parked Vehicle | BN17: Pedestrian | BO17: Animal | BP17: Train | BQ17: Pedalcycles | BR17: Other Non-Vehicle | BS17: Fixed Object | BT17: Other Object | BU17: Falling From Or In Vehicle | BV17: Overturning | BW17: Other Non-Collision | BX17: Left Turn | BY17: Right Turn | BZ17: Dry | CA17: Wet | CB17: Snow | CC17: Ice | CD17: Sand, Mud, Dirt, Oil, Gravel | CE17: Water (Standing, Moving) | CF17: Slush | CG17: Other / Unknown | CH17: Straight Level | CI17: Straight Grade | CJ17: Curve Level | CK17: Curve Grade | CL17: Other / Unknown | CM17: Daylight | CN17: Dawn/Dusk | CO17: Dark - Lighted Roadway | CP17: Dark - Roadway Not Lighted | CQ17: Dark - Unknown Roadway Lighting | CR17: Other / Unknown | CS17: Data Not Valid or Not Provided | CT17: Not An Intersection | CU17: Four-Way Intersection | CV17: T-Intersection | CW17: Y-Intersection | CX17: Traffic Circle/Roundabout | CY17: 5 Or More Point Intersection | CZ17: On Ramp | DA17: Off Ramp | DB17: Crossover | DC17: Driveway/Alley Access | DD17: Railroad Grade Crossing | DE17: Shared-Use Paths Or Trails | DF17: Unknown | DG17: Roadway Departure | DH17: ODOT Intersection Related | DI17: Alcohol Related | DJ17: Marijuana Related | DK17: Drug Related | DL17: School Zone Related | DM17: Motorcycle Involved | DN17: Speed Related | DO17: Senior Driver Involved | DP17: ODOT Young Driver | DQ17: Work Zone Related | DR17: Following Too Closely/ACDA | DS17: Failure to Yield | DT17: Other Improper Action | DU17: Drove off Road | DV17: Improper Lane Change | DW17: Unsafe Speed | DX17: Improper Backing | DY17: Ran Red Light | DZ17: Improper Turn | EA17: Left of Center | EE17: PrjID | EF17: PrjType | EG17: SumPrjLen | EH17: SumPrjCrash | EI17: PrjCrRate | EJ17: PrjCrDensity (Crashes Per Mile Per Year) | EK17: PrjEPDO | EL17: PrjRSI | EM17: PrjADT | EN17: PrjPercentTruck | EO17: PrjTADT | EP17: PrjV/C | GI17: Row | GJ17: FileName | GK17: FileName_Path | GL17: NLF_ID | GM17: BLOG | GN17: ELOG | GO17: WAADT | GP17: WATADT | GQ17: WA_VC | GR17: MinFC | GS17: MaxFC | GT17: CongLen | GU17: RSI*Crashes | GV17: ADT*Miles | GW17: TADT*Miles | GX17: V/C*Miles

Sheet Query-CAMTOOL (hidden)
A4: ParameterTable
A5: PARAM | B5: VALUE
A6: NLFID | B6: SFRAUS00040**C | D6: Lookup Value | E6: B
A7: CTL_BEGIN_NBR | B7: 5 | D7: A | E7: AND CRASH_TYPE_CD NOT IN (9)
A8: CTL_END_NBR | B8: 10 | D8: W | E8: AND ODPS_WORK_ZONE_IND = 'N'
A9: BEGIN_YR | B9: 2015 | D9: B | E9: =E7 & E8 -> AND CRASH_TYPE_CD NOT IN (9) AND ODPS_WORK_ZONE_IND = 'N'
A10: END_YR | B10: 2019
A11: TYPE CODE | B11: A
A12: QUALIFIER | B12: =IFERROR(VLOOKUP($B$11,$D$7:$E$9,2,FALSE), "") -> AND CRASH_TYPE_CD NOT IN (9)
A20: DOCUMENT_NBR | B20: CRASH_YR | C20: LOCAL_REPORT_NUMBER_ID | D20: User_Defined | E20: SEVERITY_BY_TYPE_CD | F20: CRASH_TYPE_CD | G20: DISTRICT_NBR | H20: NLF_COUNTY_CD | I20: ODOT_CRASH_LOCATION_CD | J20: NLFID | K20: COUNTY_LOG_NBR | L20: STATE_TRUE_LOG_NBR | M20: ON_ROAD | N20: AT_ROAD | O20: ODOT_LATITUDE_NBR | P20: ODOT_LONGITUDE_NBR | Q20: ODOT_FIPS_CD | R20: ODOT_CITY_VILLAGE_TWP_NME | S20: ODOT_CITY_VILLAGE_TWP_CD | T20: ODPS_TOTAL_FATALITIES_NBR | U20: INCAPAC_INJURIES_NBR | V20: NON_INCAPAC_INJURIES_NBR | W20: POSSIBLE_INJURIES_NBR | X20: NO_INJURY_REPORTED_NBR | Y20: UNRESTRAIN_OCCUPANTS | Z20: NUMBER_OF_UNITS_NBR | AA20: NLF_JUR_CD | AB20: ODOT_LOC_ROUTE_PREFIX_CD | AC20: FACILITY_TYPE_CD | AD20: AREA_CODE | AE20: FUNCTIONAL_CLASS_CD | AF20: NHS_CD | AG20: ODOT_DIV_UNDIV_IND | AH20: ODOT_LANES_NBR | AI20: OPER_ACCESS_CONTROL_CD | AJ20: FREEWAY_IND | AK20: INTERSTATE_IND | AL20: ODOT_MAINTAINED_HWY_IND | AM20: MAINTENANCE_AUTHORITY_CD | AN20: CRASH_DATE | AO20: MONTH | AP20: HOUR_OF_CRASH | AQ20: DAY_IN_WEEK_CD | AR20: WEATHER_COND_CD | AS20: ROAD_COND_PRIMARY_CD | AT20: LIGHT_COND_PRIMARY_CD | AU20: ROAD_CONTOUR_CD | AV20: FHWA_RDWY_DEPARTURE_IND | AW20: ODOT_INTERSECTION_REL_IND | AX20: ODPS_ALCOHOL_IND | AY20: MARIJUANA_IND | AZ20: ODPS_DRUG_IND | BA20: ODPS_SCHOOL_ZONE_IND | BB20: ODPS_MOTORCYCLE_IND | BC20: ODPS_SPEED_IND | BD20: ODPS_SENIOR_DRIVER_IND | BE20: ODOT_YOUNG_DRIVER_IND | BF20: ODPS_WORK_ZONE_IND | BG20: ODPS_LOC_IN_WORK_ZONE_CD | BH20: ODPS_TYPE_OF_WORK_ZONE_CD | BI20: DISTRACTED_DRIVER_IND | BJ20: ODPS_CITY_VILLAGE_TWP_NME | BK20: ODPS_LOC_ROAD_DIRECTION_CD | BL20: ODPS_LOC_ROAD_NME | BM20: ODPS_LOC_ROAD_SUFFIX_CD | BN20: ODPS_LOC_DIR_SUFFIX_CD | BO20: ODPS_LOC_ROUTE_PREFIX_CD | BP20: ODPS_LOC_ROUTE_ID | BQ20: ODPS_LOC_ROUTE_SUFFIX_CD | BR20: ODPS_REF_DIRECTION_CD | BS20: ODPS_REF_GIVEN | BT20: ODPS_REF_SUFFIX_CD | BU20: ODPS_REF_DIR_SUFFIX_CD | BV20: ODPS_REF_ROUTE_PREFIX_CD | BW20: ODPS_REF_ROUTE_ID | BX20: ODPS_REF_ROUTE_SUFFIX_CD | BY20: ODPS_ADDRESS_REFERENCE | BZ20: ODPS_MILEPOST_REFERENCE | CA20: ODOT_REF_POINT_USED_CD | CB20: U1_AT_FAULT_IND | CC20: U1_ODPS_UNIT_NBR | CD20: U1_DIRECTION_FROM_CD | CE20: U1_DIRECTION_TO_CD | CF20: U1_TURN_CD | CG20: U1_TRAFFIC_CONTROL_CD | CH20: U1_TYPE_OF_UNIT_CD | CI20: U1_SPECIAL_FUNCTION_CD | CJ20: U1_UNIT_SPEED_NBR | CK20: U1_POSTED_SPEED_NBR | CL20: U1_PRECRASH_ACTION_CD | CM20: U1_CONT_CIR_PRIMARY_CD | CN20: U1_OBJECT_STRUCK | CO20: U1_SEQ_OF_EVENTS_1_CD | CP20: U1_SEQ_OF_EVENTS_2_CD | CQ20: U1_SEQ_OF_EVENTS_3_CD | CR20: U1_SEQ_OF_EVENTS_4_CD | CS20: U1_SEQ_OF_EVENTS_5_CD | CT20: U1_SEQ_OF_EVENTS_6_CD | CU20: U1_NON_MOTORIST_LOC_CD | CV20: U1_AGE_NBR | CW20: U1_GENDER_CD | CX20: U1_DISTRACTED_BY_1_CD | CY20: U2_ODPS_UNIT_NBR | CZ20: U2_DIRECTION_FROM_CD | DA20: U2_DIRECTION_TO_CD | DB20: U2_TURN_CD | DC20: U2_TRAFFIC_CONTROL_CD | DD20: U2_TYPE_OF_UNIT_CD | DE20: U2_SPECIAL_FUNCTION_CD | DF20: U2_UNIT_SPEED_NBR | DG20: U2_POSTED_SPEED_NBR | DH20: U2_PRECRASH_ACTION_CD | DI20: U2_CONT_CIR_PRIMARY_CD | DJ20: U2_SEQ_OF_EVENTS_1_CD | DK20: U2_SEQ_OF_EVENTS_2_CD | DL20: U2_SEQ_OF_EVENTS_3_CD | DM20: U2_SEQ_OF_EVENTS_4_CD | DN20: U2_SEQ_OF_EVENTS_5_CD | DO20: U2_SEQ_OF_EVENTS_6_CD | DP20: U2_NON_MOTORIST_LOC_CD | DQ20: U2_AGE_NBR | DR20: U2_GENDER_CD | DS20: U2_DISTRACTED_BY_1_CD | DT20: U3_ODPS_UNIT_NBR | DU20: U3_TRAFFIC_CONTROL_CD | DV20: U3_TYPE_OF_UNIT_CD | DW20: U3_SPECIAL_FUNCTION_CD | DX20: U3_PRECRASH_ACTION_CD | DY20: U3_CONT_CIR_PRIMARY_CD | DZ20: U3_SEQ_OF_EVENTS_1_CD | EA20: U3_SEQ_OF_EVENTS_2_CD | EB20: U3_SEQ_OF_EVENTS_3_CD | EC20: U3_SEQ_OF_EVENTS_4_CD | ED20: U3_SEQ_OF_EVENTS_5_CD | EE20: U3_SEQ_OF_EVENTS_6_CD | EF20: INTERSECTION_ID_CURRENT | EG20: INTERSECTION_LEG_ID | EH20: INTERCHANGE_ID | EI20: SA_RAMP_ID | EJ20: SA_SEGMENT_ID | EK20: Jurisdiction_Type | EL20: CRASH_REPORT_LINK | EM20: HistoricalImagePath
A21: 20194231263 | B21: 2019 | C21: 19149668 | E21: (4) Injury Possible | F21: Rear End | G21: 6 | H21: FRA | I21: 5 Or More Point Intersection | J21: SFRAUS00040**N | K21: 5.371 | L21: 93.191 | M21: US00040 | N21: STURBRIDGE RD | O21: 39.952003 | P21: -83.135304 | Q21: 64570 | R21: PRAIRIE TOWNSHIP | S21: 3 | T21: 0 | U21: 0 | V21: 0 | W21: 2 | X21: 1 | Y21: 0 | Z21: 2 | AA21: S | AB21: US | AC21: 2 | AD21: 19234 | AE21: Other Principal Arterial Roads | AG21: No | AH21: 4 | AI21: 3 | AJ21: No | AK21: No | AL21: Yes | AM21: ODOT Maintained | AN21: 2019-07-29T14:22:00 | AO21: (07) July | AP21: 14 | AQ21: (2) Monday | AR21: Cloudy | AS21: Dry | AT21: Daylight | AU21: Straight Level | AV21: No | AW21: Yes | AX21: No | AY21: No | AZ21: No | BA21: No | BB21: No | BC21: No | BD21: Yes | BE21: No | BF21: No | BG21: Unknown or Not in Work Zone | BH21: Unknown or Not in Work Zone | BI21: No | BJ21: PRAIRIE TOWNSHIP | BO21: US | BP21: 40 | BS21: STURBRIDGE | BT21: RD | CA21: Intersection | CB21: Yes | CC21: 1 | CD21: East | CE21: West | CF21: No Turn | CG21: Traffic Signal | CH21: Cargo Van | CI21: None | CJ21: 35 | CK21: 45 | CL21: Slowing Or Stopped In Traffic | CM21: Following Too Closely/ACDA | CN21: Nothing Struck | CO21: Motor Vehicle In Transport | CU21: Other/Unknown | CV21: 72 | CW21: Male | CX21: Not Distracted | CY21: 2 | CZ21: East | DA21: West | DB21: No Turn | DC21: Traffic Signal | DD21: Pickup | DE21: None | DF21: 0 | DG21: 45 | DH21: Slowing Or Stopped In Traffic | DI21: None | DJ21: Motor Vehicle In Transport | DP21: Other/Unknown | DQ21: 52 | DR21: Male | DS21: Not Distracted | EJ21: 307306 | EK21: State | EL21: https://hsip.dot.state.oh.us/report/?DOCNBR=20194231263

Sheet Query-RI (hidden)
A4: ParameterTable
A5: PARAM | B5: VALUE
A6: NLFID | B6: ='Query-CAMTOOL'!B6 -> SFRAUS00040**C | D6: Lookup Value | E6: B
A7: CTL_BEGIN_NBR | B7: ='Query-CAMTOOL'!B7 -> 5 | D7: A | E7: AND CRASH_TYPE_CD NOT IN (9)
A8: CTL_END_NBR | B8: ='Query-CAMTOOL'!B8 -> 10 | D8: W | E8: AND ODPS_WORK_ZONE_IND = 'N'
A9: BEGIN_YR | B9: ='Query-CAMTOOL'!B9 -> 2015 | D9: B | E9: =E7 & E8 -> AND CRASH_TYPE_CD NOT IN (9) AND ODPS_WORK_ZONE_IND = 'N'
A10: END_YR | B10: ='Query-CAMTOOL'!B10 -> 2019
A11: TYPE CODE | B11: ='Query-CAMTOOL'!B11 -> A
A12: QUALIFIER | B12: ='Query-CAMTOOL'!B12 -> AND CRASH_TYPE_CD NOT IN (9)
A20: NLF_ID | B20: CTL_BEGIN_NBR | C20: CTL_END_NBR | D20: SEGMENT_LENGTH_NBR | E20: SURFACE_TYPE_LEFT_CD | F20: SURFACE_TYPE_RIGHT_CD | G20: SURFACE_WIDTH | H20: ROADWAY_WIDTH_NBR | I20: SHOULDER_PVD_WIDTH_OUT_LT | J20: SURFACE_TYPE_LEFT_CD2 | K20: SURFACE_WIDTH_LEFT | L20: SHOULDER_PVD_WIDTH_IN_LT | M20: DIVIDED_HWY_IND | N20: MEDIAN_WIDTH_NBR | O20: HPMS_MEDIAN_WIDTH_NBR | P20: MEDIAN_TYPE_CD | Q20: SHOULDER_PVD_WIDTH_OUT_RT | R20: SURFACE_TYPE_RIGHT_CD2 | S20: SURFACE_WIDTH_RIGHT | T20: SHOULDER_PVD_WIDTH_IN_RT | U20: LANES_NBR | V20: LANE_WIDTH_NBR | W20: MILEAGE_CLASS | X20: FIPS_CD | Y20: STREET_PREFIX_DIR_CD | Z20: STREET_NAME | AA20: STREET_SUFFIX_CD | AB20: STREET_DIR_SUFFIX_CD | AC20: RT_NME_SPEC_SUFFIX_CD | AD20: MUNI_POPULATION | AE20: AREA_CODE_NBR | AF20: FUNCTION_CLASS_CD | AG20: PRIORITY_SYSTEM_CD | AH20: NHS_CD | AI20: NHS_INTERMODAL_FACILITY_CD | AJ20: FED_AID_PRIMARY_CD | AK20: ACCESS_CONTROL_CD | AL20: SPEED_LIMIT_NBR | AM20: ADT_PSNGR_CAR_NBR | AN20: ADT_TOTAL_NBR | AO20: ADT_YEAR_NBR
A21: SFRAUS00040**C | B21: 0 | C21: 0.46 | D21: 0.46 | E21: G | F21: G | G21: 48 | H21: 48 | I21: 3 | J21: G | K21: 24 | L21: 1 | M21: Y | N21: 4 | P21: 3 | Q21: 3 | R21: G | S21: 24 | T21: 1 | U21: 4 | V21: 12 | W21: 1 | X21: 64570 | Z21: NATIONAL | AA21: RD | AD21: 0 | AE21: 19234 | AF21: 3 | AG21: G | AK21: N | AL21: 55 | AM21: 9426 | AN21: 9616 | AO21: 2019

Sheet Query-Project (hidden)
A4: ParameterTable
A5: PARAM | B5: VALUE
A6: NLFID | B6: ='Query-CAMTOOL'!B6 -> SFRAUS00040**C | D6: Lookup Value | E6: B
A7: CTL_BEGIN_NBR | B7: ='Query-CAMTOOL'!B7 -> 5 | D7: A | E7: AND CRASH_TYPE_CD NOT IN (9)
A8: CTL_END_NBR | B8: ='Query-CAMTOOL'!B8 -> 10 | D8: W | E8: AND ODPS_WORK_ZONE_IND = 'N'
A9: BEGIN_YR | B9: ='Query-CAMTOOL'!B9 -> 2015 | D9: B | E9: =E7 & E8 -> AND CRASH_TYPE_CD NOT IN (9) AND ODPS_WORK_ZONE_IND = 'N'
A10: END_YR | B10: ='Query-CAMTOOL'!B10 -> 2019
A11: TYPE CODE | B11: ='Query-CAMTOOL'!B11 -> A
A12: QUALIFIER | B12: ='Query-CAMTOOL'!B12 -> AND CRASH_TYPE_CD NOT IN (9)
A20: NLF_ID | B20: LOGPOINT_COUNTY_BEGIN_NBR | C20: LOGPOINT_COUNTY_END_NBR | D20: LOCATION_TYPE | E20: PRIMARY_LOCATION_IND | F20: PID_NBR | G20: DISTRICT_NBR | H20: LOCALE_SHORT_NME | I20: PROJECT_NME | J20: PROJ_STATUS_TXT | K20: PROJ_LETTING_TYPE | L20: PRIMARY_WORK_CATEGORY | M20: TRAC_TIER_SHORT_NME | N20: PROGRAM_FAMILY_SHORT_NME | O20: PROJECT_MGR_NME | P20: ARRA_PROJECT_IND | Q20: MPO_STIMULUS_ALLOC | R20: ODOT_STIMULUS_PROJ | S20: RURAL_TRANSIT_STIMULUS_PROJ | T20: URBAN_TRANSIT_STIMULUS_PROJ | U20: AWARD_AMT | V20: COMMITTED_EST_AMT | W20: UNCOMMITTED_EST_AMT | X20: TOTAL_EST_AMT | Y20: TOTAL_AWARD_EST_AMT | Z20: COMMITTED_IND | AA20: ACT_CUR_AWARD_DT | AB20: PROJ_START_ACTUAL_DT | AC20: PROJ_START_EST_DT | AD20: PROJ_COMPL_ACTUAL_DT | AE20: PROJ_COMPL_EST_DT | AF20: LATITUDE_BEGIN_NBR | AG20: LOGPOINT_COUNTY_END_NBR2 | AH20: LONGITUDE_END_NBR | AI20: LATITUDE_END_NBR | AJ20: ACTUAL_PRIORITY_MILES | AK20: ACTUAL_URBAN_MILES | AL20: ACTUAL_GENERAL_MILES | AM20: TOTAL_LANE_MILES | AN20: SLM_MILES | AO20: IMPROVED_PCR | AP20: PVMNT_TRTMNT_CAT_LONG_NME | AQ20: STRUCTURE_FILE_NBR | AR20: BRG_STAT_DESC | AS20: MAJOR_BRG_SW | AT20: MAINT_RESP_DESC | AU20: MAIN_STRUC_TYPE | AV20: MAIN_SPAN_MATL_DESC | AW20: MAIN_SPAN_TYPE_DESC | AX20: MAIN_SPAN_DESC | AY20: DECK_AREA | AZ20: OVRL_STR_LEN | BA20: SUFF_RATING | BB20: DEF_FUNC_RATING_DESC | BC20: BRG_DEF_CD_IND | BD20: GENERAL_APPRAISAL_IND | BE20: FLOOR_CONDITION_IND | BF20: WEARING_SURFACE_IND | BG20: PAINT_IND | BH20: GENERAL_APPRAISAL_RATING | BI20: FLOOR_CONDITION_RATING | BJ20: WEARING_SURFACE_RATING | BK20: PAINT_CONDITION_RATING | BL20: SPOT_LOCATION_TYPE | BM20: SPOT_LOCATION_DESC | BN20: AWARD_ENC_REQ_SFY
A21: SFRAUS00040**C | B21: 0 | C21: 7.49 | D21: Road Segment | F21: 25882 | G21: 6 | H21: FRA | I21: FRA IR 70 0.00 | J21: Awarded | K21: ODOT Let | L21: Traffic Control (Safety) | O21: POLING, DAVID P | U21: 327295 | Y21: 327295 | Z21: Y | AA21: 2003-10-16 | AB21: 2004-01-20 | AC21: 2004-01-20 | AD21: 2004-07-02 | AE21: 2004-07-02 | AF21: 39.947366 | AG21: 7.49 | AH21: -83.095018 | AI21: 39.953949 | AJ21: 0 | AK21: 1.4 | AL21: 30.9 | AM21: 32.3 | AN21: 7.49 | BN21: 2004

Sheet Query-CMS (hidden)
A4: ParameterTable
A5: PARAM | B5: VALUE
A6: NLFID | B6: ='Query-CAMTOOL'!B6 -> SFRAUS00040**C | D6: Lookup Value | E6: B
A7: CTL_BEGIN_NBR | B7: ='Query-CAMTOOL'!B7 -> 5 | D7: A | E7: AND CRASH_TYPE_CD NOT IN (9)
A8: CTL_END_NBR | B8: ='Query-CAMTOOL'!B8 -> 10 | D8: W | E8: AND ODPS_WORK_ZONE_IND = 'N'
A9: BEGIN_YR | B9: ='Query-CAMTOOL'!B9 -> 2015 | D9: B | E9: =E7 & E8 -> AND CRASH_TYPE_CD NOT IN (9) AND ODPS_WORK_ZONE_IND = 'N'
A10: END_YR | B10: ='Query-CAMTOOL'!B10 -> 2019
A11: TYPE CODE | B11: ='Query-CAMTOOL'!B11 -> A
A12: QUALIFIER | B12: ='Query-CAMTOOL'!B12 -> AND CRASH_TYPE_CD NOT IN (9)
A20: NLF_ID | B20: CTL_BEGIN_NBR | C20: CTL_END_NBR | D20: TOTAL_VOLUME_NBR | E20: TRUCK_VOLUME_NBR | F20: VOLUME_CAPACITY_RATIO_NBR | G20: FUNCTIONAL_CLASS_CD | H20: SECTION_LENGTH_NBR
A21: SFRAUS00040**C | B21: 0 | C21: 0.46 | D21: 9616 | E21: 191 | F21: 0.13 | G21: 13 | H21: 0.46

Sheet Query-PMS (hidden)
A4: ParameterTable
A5: PARAM | B5: VALUE
A6: NLFID | B6: ='Query-CAMTOOL'!B6 -> SFRAUS00040**C | D6: Lookup Value | E6: B
A7: CTL_BEGIN_NBR | B7: ='Query-CAMTOOL'!B7 -> 5 | D7: A | E7: AND CRASH_TYPE_CD NOT IN (9)
A8: CTL_END_NBR | B8: ='Query-CAMTOOL'!B8 -> 10 | D8: W | E8: AND ODPS_WORK_ZONE_IND = 'N'
A9: BEGIN_YR | B9: ='Query-CAMTOOL'!B9 -> 2015 | D9: B | E9: =E7 & E8 -> AND CRASH_TYPE_CD NOT IN (9) AND ODPS_WORK_ZONE_IND = 'N'
A10: END_YR | B10: ='Query-CAMTOOL'!B10 -> 2019
A11: TYPE CODE | B11: ='Query-CAMTOOL'!B11 -> A
A12: QUALIFIER | B12: ='Query-CAMTOOL'!B12 -> AND CRASH_TYPE_CD NOT IN (9)
A20: NLF_ID | B20: LOGPOINT_COUNTY_BEGIN_NBR | C20: LOGPOINT_COUNTY_END_NBR | D20: SEGMENT_LENGTH_NBR | E20: PCR_NBR | F20: DEDUCT_TOTAL_NBR | G20: DEDUCT_STRUCTURAL_NBR | H20: DIVIDED_UNDIVIDED_IND | I20: DIRECTION_TXT | J20: PAVEMENT_TYPE_CD | K20: PAVEMENT_TYPE_TXT | L20: CODE_1 | M20: CODE_2 | N20: CODE_3 | O20: CODE_4 | P20: CODE_5 | Q20: CODE_6 | R20: CODE_7 | S20: CODE_8 | T20: CODE_9 | U20: CODE_10 | V20: CODE_11 | W20: CODE_12 | X20: CODE_13 | Y20: CODE_14 | Z20: CODE_15 | AA20: CODE_16 | AB20: CODE_17
A21: SFRAUS00040**C | B21: 0 | C21: 0.46 | D21: 0.46 | E21: 77 | F21: 22.8 | G21: 3.7 | H21: D | I21: UP | J21: 4 | K21: COMPOSITE | L21: HO | P21: LF | U21: MF | V21: LF | W21: MF | X21: LO | Y21: E

Sheet ImageQuery (hidden)
A3: =E12&"-"&E13&E14&" - ("&E15&"-"&E16&") "&"From "&E17&" to "&E18 -> - - (-) From to
A20: DocsFromData | B20: DOCUMENT_NBR | C20: FILENAME_NME

Sheet HistoricalImages (hidden)
A20: DocumentNbr | B20: FilePath

Sheet RefTables (hidden)
A1: Category Txt | B1: Code Id | C1: Code Txt | D1: Formatted Text | E1: Code Id | G1: ODOT Fips Cd | H1: Fips Nme | I1: Cvt Cd | M1: EPDO Values
A2: AREA_CODE | B2: 766 | C2: AKRON | D2: AKRON | E2: 766 | G2: 100 | H2: ABANAKA | I2: 3 | M2: Severity | N2: KA | O2: B | P2: C | Q2: O
A3: AREA_CODE | B3: 13375 | C3: CANTON | D3: CANTON | E3: 13375 | G3: 115 | H3: ABBEYVILLE | I3: 3 | M3: Multiplier | N3: 45.21 | O3: 6.55 | P3: 4.44 | Q3: 1
A4: AREA_CODE | B4: 16885 | C4: CINCINNATI | D4: CINCINNATI | E4: 16885 | G4: 128 | H4: ABBOTTSVILLE | I4: 3
A5: AREA_CODE | B5: 17668 | C5: CLEVELAND | D5: CLEVELAND | E5: 17668 | G5: 142 | H5: ABERDEEN | I5: 2
A6: AREA_CODE | B6: 19234 | C6: COLUMBUS | D6: COLUMBUS | E6: 19234 | G6: 156 | H6: ACADEMIA | I6: 3
A7: AREA_CODE | B7: 22528 | C7: DAYTON | D7: DAYTON | E7: 22528 | G7: 170 | H7: ACHOR | I7: 3
A8: AREA_CODE | B8: 40753 | C8: HUNTINGTON-ASHLAND | D8: HUNTINGTON-ASHLAND | E8: 40753 | G8: 184 | H8: ACME | I8: 3
A9: AREA_CODE | B9: 49852 | C9: LIMA | D9: LIMA | E9: 49852 | G9: 198 | H9: ADA | I9: 1
A10: AREA_CODE | B10: 51364 | C10: LORAIN-ELYRIA | D10: LORAIN-ELYRIA | E10: 51364 | G10: 205 | H10: ADAIR | I10: 3
A11: AREA_CODE | B11: 54091 | C11: MANSFIELD | D11: MANSFIELD | E11: 54091 | G11: 212 | H11: ADAMS TOWNSHIP | I11: 3
A12: AREA_CODE | B12: 56926 | C12: MIDDLETOWN | D12: MIDDLETOWN | E12: 56926 | G12: 226 | H12: ADAMS TOWNSHIP | I12: 3
A13: AREA_CODE | B13: 61705 | C13: NEWARK-HEATH | D13: NEWARK-HEATH | E13: 61705 | G13: 240 | H13: ADAMS TOWNSHIP | I13: 3
A14: AREA_CODE | B14: 67672 | C14: PARKERSBURG-BELPRE | D14: PARKERSBURG-BELPRE | E14: 67672 | G14: 254 | H14: ADAMS TOWNSHIP | I14: 3
A15: AREA_CODE | B15: 83980 | C15: SPRINGFIELD | D15: SPRINGFIELD | E15: 83980 | G15: 268 | H15: ADAMS TOWNSHIP | I15: 3
A16: AREA_CODE | B16: 87868 | C16: TOLEDO | D16: TOLEDO | E16: 87868 | G16: 282 | H16: ADAMS TOWNSHIP | I16: 3
A17: AREA_CODE | B17: 93592 | C17: STEUBENVILLE-WEIRTON | D17: STEUBENVILLE-WEIRTON | E17: 93592 | G17: 296 | H17: ADAMS TOWNSHIP | I17: 3
A18: AREA_CODE | B18: 94726 | C18: WHEELING-BRIDGEPORT | D18: WHEELING-BRIDGEPORT | E18: 94726 | G18: 310 | H18: ADAMS TOWNSHIP | I18: 3
A19: AREA_CODE | B19: 97831 | C19: YOUNGSTOWN-WARREN | D19: YOUNGSTOWN-WARREN | E19: 97831 | G19: 324 | H19: ADAMS TOWNSHIP | I19: 3
A20: AREA_CODE | B20: 99490 | C20: SANDUSKY | D20: SANDUSKY | E20: 99490 | G20: 338 | H20: ADAMS TOWNSHIP | I20: 3
A21: AREA_CODE | B21: 99701 | C21: ADA | D21: ADA | E21: 99701 | G21: 352 | H21: ADAMS MILLS | I21: 3
A22: AREA_CODE | B22: 99702 | C22: ALLIANCE | D22: ALLIANCE | E22: 99702 | G22: 366 | H22: ADAMSVILLE | I22: 3
A23: AREA_CODE | B23: 99703 | C23: ASHLAND | D23: ASHLAND | E23: 99703 | G23: 380 | H23: ADAMSVILLE | I23: 2
A24: AREA_CODE | B24: 99704 | C24: ASHTABULA | D24: ASHTABULA | E24: 99704 | G24: 394 | H24: ADARIO | I24: 3
A25: AREA_CODE | B25: 99705 | C25: ATHENS | D25: ATHENS | E25: 99705 | G25: 408 | H25: ADDISON | I25: 3
A26: AREA_CODE | B26: 99706 | C26: BELLEFONTAINE | D26: BELLEFONTAINE | E26: 99706 | G26: 422 | H26: ADDISON TOWNSHIP | I26: 3
A27: AREA_CODE | B27: 99707 | C27: BELLEVUE | D27: BELLEVUE | E27: 99707 | G27: 436 | H27: ADDYSTON | I27: 2
A28: AREA_CODE | B28: 99708 | C28: BOWLING GREEN | D28: BOWLING GREEN | E28: 99708 | G28: 450 | H28: ADELPHI | I28: 2
A29: AREA_CODE | B29: 99709 | C29: BRYAN | D29: BRYAN | E29: 99709 | G29: 464 | H29: ADENA | I29: 2
A30: AREA_CODE | B30: 99710 | C30: BUCYRUS | D30: BUCYRUS | E30: 99710 | G30: 478 | H30: ADRIAN | I30: 3
A31: AREA_CODE | B31: 99711 | C31: CAMBRIDGE | D31: CAMBRIDGE | E31: 99711 | G31: 485 | H31: ADVANCE | I31: 3
A32: AREA_CODE | B32: 99712 | C32: CELINA | D32: CELINA | E32: 99712 | G32: 492 | H32: AETNAVILLE | I32: 3
A33: AREA_CODE | B33: 99713 | C33: CHILLICOTHE | D33: CHILLICOTHE | E33: 99713 | G33: 506 | H33: AFRICA | I33: 3
A34: AREA_CODE | B34: 99714 | C34: CIRCLEVILLE | D34: CIRCLEVILLE | E34: 99714 | G34: 520 | H34: AFTON | I34: 3
A35: AREA_CODE | B35: 99715 | C35: CLYDE | D35: CLYDE | E35: 99715 | G35: 541 | H35: AI | I35: 3
A36: AREA_CODE | B36: 99718 | C36: COSHOCTON | D36: COSHOCTON | E36: 99718 | G36: 548 | H36: AID | I36: 3
A37: AREA_CODE | B37: 99720 | C37: DEFIANCE | D37: DEFIANCE | E37: 99720 | G37: 562 | H37: AID TOWNSHIP | I37: 3
A38: AREA_CODE | B38: 99722 | C38: DELPHOS | D38: DELPHOS | E38: 99722 | G38: 576 | H38: AINGER | I38: 3
A39: AREA_CODE | B39: 99723 | C39: DOVER-NEW PHILADELPHIA | D39: DOVER-NEW PHILADELPHIA | E39: 99723 | G39: 587 | H39: AIRHILL | I39: 3
A40: AREA_CODE | B40: 99724 | C40: EAST LIVERPOOL | D40: EAST LIVERPOOL | E40: 99724 | G40: 590 | H40: AIR LINE JUNCTION | I40: 3
A41: AREA_CODE | B41: 99726 | C41: EATON | D41: EATON | E41: 99726 | G41: 1000 | H41: AKRON | I41: 1
A42: AREA_CODE | B42: 99727 | C42: FINDLAY | D42: FINDLAY | E42: 99727 | G42: 1035 | H42: ALABAMA HILL | I42: 3
A43: AREA_CODE | B43: 99728 | C43: FOSTORIA | D43: FOSTORIA | E43: 99728 | G43: 1042 | H43: ALBANY | I43: 2
A44: AREA_CODE | B44: 99729 | C44: FREMONT | D44: FREMONT | E44: 99729 | G44: 1056 | H44: AL BAR MEADOWS | I44: 3
A45: AREA_CODE | B45: 99730 | C45: GALION | D45: GALION | E45: 99730 | G45: 1070 | H45: ALBION | I45: 3
A46: AREA_CODE | B46: 99731 | C46: GALLIPOLIS | D46: GALLIPOLIS | E46: 99731 | G46: 1084 | H46: ALCONY | I46: 3
A47: AREA_CODE | B47: 99734 | C47: GREENFIELD | D47: GREENFIELD | E47: 99734 | G47: 1098 | H47: ALDEN | I47: 3
A48: AREA_CODE | B48: 99735 | C48: GREENVILLE | D48: GREENVILLE | E48: 99735 | G48: 1105 | H48: ALERT | I48: 3
A49: AREA_CODE | B49: 99737 | C49: HILLSBORO | D49: HILLSBORO | E49: 99737 | G49: 1112 | H49: ALEXANDER TOWNSHIP | I49: 3
A50: AREA_CODE | B50: 99739 | C50: JACKSON | D50: JACKSON | E50: 99739 | G50: 1154 | H50: ALEXANDRIA | I50: 2
A51: AREA_CODE | B51: 99740 | C51: KENTON | D51: KENTON | E51: 99740 | G51: 1175 | H51: ALEXIS ADDITION | I51: 3
A52: AREA_CODE | B52: 99741 | C52: LANCASTER | D52: LANCASTER | E52: 99741 | G52: 1196 | H52: ALFRED | I52: 3
A53: AREA_CODE | B53: 99743 | C53: LOGAN | D53: LOGAN | E53: 99743 | G53: 1210 | H53: ALGER | I53: 2
A54: AREA_CODE | B54: 99744 | C54: LONDON | D54: LONDON | E54: 99744 | G54: 1230 | H54: ALICE | I54: 3
A55: AREA_CODE | B55: 99745 | C55: MARIETTA | D55: MARIETTA | E55: 99745 | G55: 1238 | H55: ALIKANNA | I55: 3
A56: AREA_CODE | B56: 99746 | C56: MARION | D56: MARION | E56: 99746 | G56: 1280 | H56: ALLEDONIA | I56: 3
A57: AREA_CODE | B57: 99747 | C57: MARYSVILLE | D57: MARYSVILLE | E57: 99747 | G57: 1294 | H57: ALLEN TOWNSHIP | I57: 3
A58: AREA_CODE | B58: 99749 | C58: MT VERNON | D58: MT VERNON | E58: 99749 | G58: 1308 | H58: ALLEN TOWNSHIP | I58: 3
A59: AREA_CODE | B59: 99750 | C59: NAPOLEON | D59: NAPOLEON | E59: 99750 | G59: 1322 | H59: ALLEN TOWNSHIP | I59: 3
A60: AREA_CODE | B60: 99754 | C60: NORWALK | D60: NORWALK | E60: 99754 | G60: 1336 | H60: ALLEN TOWNSHIP | I60: 3
A61: AREA_CODE | B61: 99756 | C61: ORRVILLE | D61: ORRVILLE | E61: 99756 | G61: 1350 | H61: ALLEN CENTER | I61: 3
A62: AREA_CODE | B62: 99757 | C62: OXFORD | D62: OXFORD | E62: 99757 | G62: 1364 | H62: ALLENSBURG | I62: 3
A63: AREA_CODE | B63: 99759 | C63: PIQUA | D63: PIQUA | E63: 99759 | G63: 1378 | H63: ALLENSVILLE | I63: 3
A64: AREA_CODE | B64: 99760 | C64: PORT CLINTON | D64: PORT CLINTON | E64: 99760 | G64: 1392 | H64: ALLENTOWN | I64: 3
A65: AREA_CODE | B65: 99761 | C65: PORTSMOUTH | D65: PORTSMOUTH | E65: 99761 | G65: 1406 | H65: ALLENTOWN | I65: 3
A66: AREA_CODE | B66: 99764 | C66: ST. MARYS | D66: ST. MARYS | E66: 99764 | G66: 1420 | H66: ALLIANCE | I66: 1
A67: AREA_CODE | B67: 99765 | C67: SALEM | D67: SALEM | E67: 99765 | G67: 1425 | H67: ALLIANCE JUNCTION | I67: 3
A68: AREA_CODE | B68: 99768 | C68: SHELBY | D68: SHELBY | E68: 99768 | G68: 1434 | H68: ALMA | I68: 3
A69: AREA_CODE | B69: 99769 | C69: SIDNEY | D69: SIDNEY | E69: 99769 | G69: 1448 | H69: ALPHA | I69: 3
A70: AREA_CODE | B70: 99770 | C70: TIFFIN | D70: TIFFIN | E70: 99770 | G70: 1462 | H70: ALPINE TERRACE | I70: 3
A71: AREA_CODE | B71: 99775 | C71: UPPER SANDUSKY | D71: UPPER SANDUSKY | E71: 99775 | G71: 1490 | H71: ALTA | I71: 3
A72: AREA_CODE | B72: 99776 | C72: URBANA | D72: URBANA | E72: 99776 | G72: 1495 | H72: ALTAMONT | I72: 3
A73: AREA_CODE | B73: 99777 | C73: VAN WERT | D73: VAN WERT | E73: 99777 | G73: 1525 | H73: ALTITUDE | I73: 3
A74: AREA_CODE | B74: 99778 | C74: WAPAKONETA | D74: WAPAKONETA | E74: 99778 | G74: 1532 | H74: ALTON | I74: 3
A75: AREA_CODE | B75: 99779 | C75: WASHINGTON C.H. | D75: WASHINGTON C.H. | E75: 99779 | G75: 1546 | H75: ALTOONA | I75: 3
A76: AREA_CODE | B76: 99780 | C76: WAUSEON | D76: WAUSEON | E76: 99780 | G76: 1560 | H76: ALVADA | I76: 3
A77: AREA_CODE | B77: 99783 | C77: WILLARD | D77: WILLARD | E77: 99783 | G77: 1588 | H77: ALVORDTON | I77: 2
A78: AREA_CODE | B78: 99784 | C78: WILMINGTON | D78: WILMINGTON | E78: 99784 | G78: 1602 | H78: AMANDA TOWNSHIP | I78: 3
A79: AREA_CODE | B79: 99785 | C79: WOOSTER | D79: WOOSTER | E79: 99785 | G79: 1630 | H79: AMANDA | I79: 2
A80: AREA_CODE | B80: 99786 | C80: ZANESVILLE | D80: ZANESVILLE | E80: 99786 | G80: 1637 | H80: AMANDA TOWNSHIP | I80: 3
A81: AREA_CODE | B81: 99787 | C81: ASHVILLE-S. BLOOMFIELD | D81: ASHVILLE-S. BLOOMFIELD | E81: 99787 | G81: 1644 | H81: AMANDA TOWNSHIP | I81: 3
A82: AREA_CODE | B82: 99789 | C82: COLUMBIANA | D82: COLUMBIANA | E82: 99789 | G82: 1672 | H82: AMBERLEY | I82: 2
A83: AREA_CODE | B83: 99791 | C83: LISBON | D83: LISBON | E83: 99791 | G83: 1705 | H83: AM-BETH ACRES | I83: 3
A84: AREA_CODE | B84: 99792 | C84: MAYSVILLE, KY | D84: MAYSVILLE, KY | E84: 99792 | G84: 1714 | H84: AMBOY | I84: 3
A85: AREA_CODE | B85: 99794 | C85: NELSONVILLE | D85: NELSONVILLE | E85: 99794 | G85: 1728 | H85: AMBOY TOWNSHIP | I85: 3
A86: AREA_CODE | B86: 99795 | C86: NEW BREMEN | D86: NEW BREMEN | E86: 99795 | G86: 1742 | H86: AMELIA | I86: 2
A87: AREA_CODE | B87: 99796 | C87: NEW MARTINSVILLE, WVA | D87: NEW MARTINSVILLE, WVA | E87: 99796 | G87: 1756 | H87: AMERICAN TOWNSHIP | I87: 3
A88: AREA_CODE | B88: 99797 | C88: OTTAWA-GLANDORF | D88: OTTAWA-GLANDORF | E88: 99797 | G88: 1770 | H88: AMES TOWNSHIP | I88: 3
A89: AREA_CODE | B89: 99798 | C89: RUSSELLS POINT | D89: RUSSELLS POINT | E89: 99798 | G89: 1784 | H89: AMESVILLE | I89: 2
A90: AREA_CODE | B90: 99800 | C90: UNION CITY | D90: UNION CITY | E90: 99800 | G90: 1798 | H90: AMHERST | I90: 1
A91: AREA_CODE | B91: 99801 | C91: WAVERLY | D91: WAVERLY | E91: 99801 | G91: 1812 | H91: AMHERST TOWNSHIP | I91: 3
A92: AREA_CODE | B92: 99802 | C92: GARRETTSVILLE | D92: GARRETTSVILLE | E92: 99802 | G92: 1826 | H92: AMHERST HEIGHTS | I92: 3
A93: AREA_CODE | B93: 99803 | C93: SEVILLE | D93: SEVILLE | E93: 99803 | G93: 1830 | H93: AMITY | I93: 3
A94: AREA_CODE | B94: 99804 | C94: CALDWELL | D94: CALDWELL | E94: 99804 | G94: 1840 | H94: AMITY | I94: 3
A95: AREA_CODE | B95: 99805 | C95: CONNEAUT | D95: CONNEAUT | E95: 99805 | G95: 1854 | H95: AMITY | I95: 3
A96: AREA_CODE | B96: 99806 | C96: DARBYDALE | D96: DARBYDALE | E96: 99806 | G96: 1868 | H96: AMITY | I96: 3
A97: AREA_CODE | B97: 99807 | C97: GENEVA | D97: GENEVA | E97: 99807 | G97: 1882 | H97: AMLIN | I97: 3
A98: AREA_CODE | B98: 99808 | C98: MIDDLEPORT | D98: MIDDLEPORT | E98: 99808 | G98: 1910 | H98: AMOY | I98: 3
A99: AREA_CODE | B99: 99809 | C99: POMEROY | D99: POMEROY | E99: 99809 | G99: 1924 | H99: AMSDEN | I99: 3
A100: AREA_CODE | B100: 99810 | C100: CHARDON | D100: CHARDON | E100: 99810 | G100: 1938 | H100: AMSTERDAM | I100: 2
A101: AREA_CODE | B101: 99811 | C101: RICHMOND, IN | D101: RICHMOND, IN | E101: 99811 | G101: 1952 | H101: AMSTERDAM | I101: 3
A102: AREA_CODE | B102: 99999 | C102: RURAL | D102: RURAL | E102: 99999 | G102: 1966 | H102: ANCOR | I102: 3
A103: CRASH_TYPE_CD | B103: 0 | C103: Unknown | D103: Unknown | E103: 0 | G103: 1980 | H103: ANDERSON TOWNSHIP | I103: 3
A104: CRASH_TYPE_CD | B104: 1 | C104: Head On | D104: Head On | E104: 1 | G104: 1990 | H104: ANDERSON | I104: 3
A105: CRASH_TYPE_CD | B105: 2 | C105: Rear End | D105: Rear End | E105: 2 | G105: 2008 | H105: ANDERSON FERRY | I105: 3
A106: CRASH_TYPE_CD | B106: 3 | C106: Backing | D106: Backing | E106: 3 | G106: 2022 | H106: ANDERSONVILLE | I106: 2
A107: CRASH_TYPE_CD | B107: 4 | C107: Sideswipe - Meeting | D107: Sideswipe - Meeting | E107: 4 | G107: 2036 | H107: ANDIS | I107: 3
A108: CRASH_TYPE_CD | B108: 5 | C108: Sideswipe - Passing | D108: Sideswipe - Passing | E108: 5 | G108: 2050 | H108: ANDOVER | I108: 2
A109: CRASH_TYPE_CD | B109: 6 | C109: Angle | D109: Angle | E109: 6 | G109: 2064 | H109: ANDOVER TOWNSHIP | I109: 3
A110: CRASH_TYPE_CD | B110: 7 | C110: Parked Vehicle | D110: Parked Vehicle | E110: 7 | G110: 2070 | H110: ANGEL | I110: 3
A111: CRASH_TYPE_CD | B111: 8 | C111: Pedestrian | D111: Pedestrian | E111: 8 | G111: 2074 | H111: ANGUS | I111: 3
A112: CRASH_TYPE_CD | B112: 9 | C112: Animal | D112: Animal | E112: 9 | G112: 2078 | H112: ANKENYTOWN | I112: 3
A113: CRASH_TYPE_CD | B113: 10 | C113: Train | D113: Train | E113: 10 | G113: 2085 | H113: ANLO | I113: 3
A114: CRASH_TYPE_CD | B114: 11 | C114: Pedalcycles | D114: Pedalcycles | E114: 11 | G114: 2092 | H114: ANNA | I114: 2
A115: CRASH_TYPE_CD | B115: 12 | C115: Other Non-Vehicle | D115: Other Non-Vehicle | E115: 12 | G115: 2106 | H115: ANNAPOLIS | I115: 3
A116: CRASH_TYPE_CD | B116: 13 | C116: Fixed Object | D116: Fixed Object | E116: 13 | G116: 2120 | H116: ANSONIA | I116: 2
A117: CRASH_TYPE_CD | B117: 14 | C117: Other Object | D117: Other Object | E117: 14 | G117: 2125 | H117: ANTHONY | I117: 3
A118: CRASH_TYPE_CD | B118: 15 | C118: Falling From Or In Vehicle | D118: Falling From Or In Vehicle | E118: 15 | G118: 2134 | H118: ANTIOCH | I118: 3
A119: CRASH_TYPE_CD | B119: 16 | C119: Overturning | D119: Overturning | E119: 16 | G119: 2148 | H119: ANTIOCH | I119: 2
A120: CRASH_TYPE_CD | B120: 17 | C120: Other Non-Collision | D120: Other Non-Collision | E120: 17 | G120: 2162 | H120: ANTIQUITY | I120: 3
A121: CRASH_TYPE_CD | B121: 18 | C121: Left Turn | D121: Left Turn | E121: 18 | G121: 2170 | H121: ANTONIS | I121: 3
A122: CRASH_TYPE_CD | B122: 19 | C122: Right Turn | D122: Right Turn | E122: 19 | G122: 2176 | H122: ANTRIM | I122: 3
A123: DAY_IN_WEEK_CD | B123: 1 | C123: (1) Sunday | D123: (1) Sunday | E123: 1 | G123: 2190 | H123: ANTRIM TOWNSHIP | I123: 3
A124: DAY_IN_WEEK_CD | B124: 2 | C124: (2) Monday | D124: (2) Monday | E124: 2 | G124: 2204 | H124: ANTWERP | I124: 2
A125: DAY_IN_WEEK_CD | B125: 3 | C125: (3) Tuesday | D125: (3) Tuesday | E125: 3 | G125: 2225 | H125: APEX | I125: 3
A126: DAY_IN_WEEK_CD | B126: 4 | C126: (4) Wednesday | D126: (4) Wednesday | E126: 4 | G126: 2228 | H126: APPLE | I126: 3
A127: DAY_IN_WEEK_CD | B127: 5 | C127: (5) Thursday | D127: (5) Thursday | E127: 5 | G127: 2232 | H127: APPLE CREEK | I127: 2
A128: DAY_IN_WEEK_CD | B128: 6 | C128: (6) Friday | D128: (6) Friday | E128: 6 | G128: 2246 | H128: APPLE GROVE | I128: 3
A129: DAY_IN_WEEK_CD | B129: 7 | C129: (7) Saturday | D129: (7) Saturday | E129: 7 | G129: 2260 | H129: APPLETON | I129: 3
A130: DAY_IN_WEEK_CD | G130: 2266 | H130: APPLE VALLEY | I130: 1
A131: DAY_IN_WEEK_CD | G131: 2274 | H131: AQUILLA | I131: 2
A132: DAY_IN_WEEK_CD | G132: 2288 | H132: ARABIA | I132: 3
A133: DAY_IN_WEEK_CD | G133: 2295 | H133: ARBAUGH | I133: 3
A134: DAY_IN_WEEK_CD | G134: 2302 | H134: ARBOCREST ACRES | I134: 3
A135: DAY_IN_WEEK_CD | G135: 2316 | H135: ARCADIA | I135: 2
A136: DAY_IN_WEEK_CD | G136: 2330 | H136: ARCANUM | I136: 2
A137: DISTRACTED_DRIVER_IND | B137: N | C137: No | D137: No | E137: N | G137: 2344 | H137: ARCHBOLD | I137: 2
A138: DISTRACTED_DRIVER_IND | B138: Y | C138: Yes | D138: Yes | E138: Y | G138: 2358 | H138: ARCHER TOWNSHIP | I138: 3
A139: FACILITY_TYPE_CD | B139: 1 | C139: One Way Roadway | D139: One Way Roadway | E139: 1 | G139: 2372 | H139: ARCHERS FORK | I139: 3
A140: FACILITY_TYPE_CD | B140: 2 | C140: Two Way Roadway | D140: Two Way Roadway | E140: 2 | G140: 2386 | H140: ARION | I140: 3
A141: FACILITY_TYPE_CD | B141: 3 | C141: Couplet | D141: Couplet | E141: 3 | G141: 2395 | H141: ARKOE | I141: 3
A142: FACILITY_TYPE_CD | B142: 4 | C142: Ramp | D142: Ramp | E142: 4 | G142: 2400 | H142: ARLINGTON | I142: 2
A143: FACILITY_TYPE_CD | B143: 5 | C143: Non-Mainline | D143: Non-Mainline | E143: 5 | G143: 2414 | H143: ARLINGTON | I143: 3
A144: FACILITY_TYPE_CD | B144: 6 | C144: Non-Inventory | D144: Non-Inventory | E144: 6 | G144: 2420 | H144: ARLINGTON | I144: 3
A145: FHWA_RDWY_DEPARTURE_IND | B145: N | C145: No | D145: No | E145: N | G145: 2428 | H145: ARLINGTON HEIGHTS | I145: 2
A146: FHWA_RDWY_DEPARTURE_IND | B146: Y | C146: Yes | D146: Yes | E146: Y | G146: 2460 | H146: ARMADALE | I146: 3
A147: FREEWAY_IND | B147: N | C147: No | D147: No | E147: N | G147: 2470 | H147: ARMITAGE | I147: 3
A148: FREEWAY_IND | B148: Y | C148: Yes | D148: Yes | E148: Y | G148: 2478 | H148: ARMSTRONG | I148: 3
A149: FUNCTIONAL_CLASS_CD | B149: 1 | C149: Interstate Route | D149: Interstate Route | E149: 1 | G149: 2484 | H149: ARMSTRONGS MILLS | I149: 3
A150: FUNCTIONAL_CLASS_CD | B150: 2 | C150: Other Freeways or Expressways | D150: Other Freeways or Expressways | E150: 2 | G150: 2498 | H150: ARNHEIM | I150: 3
A151: FUNCTIONAL_CLASS_CD | B151: 3 | C151: Other Principal Arterial Roads | D151: Other Principal Arterial Roads | E151: 3 | G151: 2512 | H151: ARNOLD | I151: 3
A152: FUNCTIONAL_CLASS_CD | B152: 4 | C152: Minor Arterial Roads | D152: Minor Arterial Roads | E152: 4 | G152: 2526 | H152: ARTANNA | I152: 3
A153: FUNCTIONAL_CLASS_CD | B153: 5 | C153: Major Collector Roads | D153: Major Collector Roads | E153: 5 | G153: 2540 | H153: ARTHUR | I153: 3
A154: FUNCTIONAL_CLASS_CD | B154: 6 | C154: Minor Collector Roads | D154: Minor Collector Roads | E154: 6 | G154: 2555 | H154: ASBURY | I154: 3
A155: FUNCTIONAL_CLASS_CD | B155: 7 | C155: Local Roads | D155: Local Roads | E155: 7 | G155: 2559 | H155: ASH | I155: 3
A156: INTERSTATE_IND | B156: N | C156: No | D156: No | E156: N | G156: 2568 | H156: ASHLAND | I156: 1
A157: INTERSTATE_IND | B157: Y | C157: Yes | D157: Yes | E157: Y | G157: 2582 | H157: ASHLEY | I157: 2
A158: LIGHT_COND_PRIMARY_CD | B158: 1 | C158: Daylight | D158: Daylight | E158: 1 | G158: 2596 | H158: ASHLEY CORNER | I158: 3
A159: LIGHT_COND_PRIMARY_CD | B159: 2 | C159: Dawn/Dusk | D159: Dawn/Dusk | E159: 2 | G159: 2624 | H159: ASH RIDGE | I159: 3
A160: LIGHT_COND_PRIMARY_CD | B160: 3 | C160: Dark - Lighted Roadway | D160: Dark - Lighted Roadway | E160: 3 | G160: 2638 | H160: ASHTABULA | I160: 1
A161: LIGHT_COND_PRIMARY_CD | B161: 4 | C161: Dark - Roadway Not Lighted | D161: Dark - Roadway Not Lighted | E161: 4 | G161: 2652 | H161: ASHTABULA TOWNSHIP | I161: 3
A162: LIGHT_COND_PRIMARY_CD | B162: 5 | C162: Dark - Unknown Roadway Lighting | D162: Dark - Unknown Roadway Lighting | E162: 5 | G162: 2675 | H162: ASHTON | I162: 3
A163: LIGHT_COND_PRIMARY_CD | B163: 9 | C163: Other / Unknown | D163: Other / Unknown | E163: 9 | G163: 2680 | H163: ASHVILLE | I163: 2
A164: LIGHT_COND_PRIMARY_CD | G164: 2708 | H164: ASSUMPTION | I164: 3
A165: LIGHT_COND_PRIMARY_CD | G165: 2715 | H165: ASTORIA | I165: 3
A166: LIGHT_COND_PRIMARY_CD | G166: 2722 | H166: ATHALIA | I166: 2
A167: NHS_CD | B167: 2 | C167: Major Airport | D167: Major Airport | E167: 2 | G167: 2736 | H167: ATHENS | I167: 1
A168: NHS_CD | B168: 3 | C168: Major Port Facility | D168: Major Port Facility | E168: 3 | G168: 2750 | H168: ATHENS TOWNSHIP | I168: 3
A169: NHS_CD | B169: 4 | C169: Major Amtrak Station | D169: Major Amtrak Station | E169: 4 | G169: 2764 | H169: ATHENS TOWNSHIP | I169: 3
A170: NHS_CD | B170: 5 | C170: Major Rail/Truck Terminal | D170: Major Rail/Truck Terminal | E170: 5 | G170: 2770 | H170: ATHERTON | I170: 3
A171: NHS_CD | B171: 6 | C171: Major Intercity Bus Terminal | D171: Major Intercity Bus Terminal | E171: 6 | G171: 2778 | H171: ATLANTA | I171: 3
A172: NHS_CD | B172: 7 | C172: Major Public Transit Terminal or Multi-modal Passenger Terminal | D172: Major Public Transit Terminal or Multi-modal Passenger Terminal | E172: 7 | G172: 2820 | H172: ATTICA | I172: 2
A173: NHS_CD | B173: 8 | C173: Major Pipeline Terminal | D173: Major Pipeline Terminal | E173: 8 | G173: 2834 | H173: ATTICA JUNCTION | I173: 3
A174: NHS_CD | B174: 9 | C174: Major Ferry Terminal | D174: Major Ferry Terminal | E174: 9 | G174: 2848 | H174: ATWATER | I174: 2
A175: NHS_CD | B175: C | C175: Strahnet Connectors | D175: Strahnet Connectors | E175: C | G175: 2862 | H175: ATWATER TOWNSHIP | I175: 3
A176: NHS_CD | B176: H | C176: Congressional Corridors | D176: Congressional Corridors | E176: H | G176: 2869 | H176: ATWATER CENTER | I176: 3
A177: NHS_CD | B177: N | C177: National Highway System (regular) | D177: National Highway System (regular) | E177: N | G177: 2876 | H177: AUBURN | I177: 3
A178: NHS_CD | B178: S | C178: Strahnet | D178: Strahnet | E178: S | G178: 2890 | H178: AUBURN TOWNSHIP | I178: 3
A179: ODOT_CRASH_LOCATION_CD | B179: 0 | C179: Data Not Valid or Not Provided | D179: Data Not Valid or Not Provided | E179: 0 | G179: 2904 | H179: AUBURN TOWNSHIP | I179: 3
A180: ODOT_CRASH_LOCATION_CD | B180: 1 | C180: Not An Intersection | D180: Not An Intersection | E180: 1 | G180: 2918 | H180: AUBURN TOWNSHIP | I180: 3
A181: ODOT_CRASH_LOCATION_CD | B181: 2 | C181: Four-Way Intersection | D181: Four-Way Intersection | E181: 2 | G181: 2932 | H181: AUBURN CENTER | I181: 3
A182: ODOT_CRASH_LOCATION_CD | B182: 3 | C182: T-Intersection | D182: T-Intersection | E182: 3 | G182: 2946 | H182: AUBURN CENTER | I182: 3
A183: ODOT_CRASH_LOCATION_CD | B183: 4 | C183: Y-Intersection | D183: Y-Intersection | E183: 4 | G183: 2960 | H183: AUBURN CORNERS | I183: 3
A184: ODOT_CRASH_LOCATION_CD | B184: 5 | C184: Traffic Circle/Roundabout | D184: Traffic Circle/Roundabout | E184: 5 | G184: 2970 | H184: AUGERBURG | I184: 3
A185: ODOT_CRASH_LOCATION_CD | B185: 6 | C185: 5 Or More Point Intersection | D185: 5 Or More Point Intersection | E185: 6 | G185: 2988 | H185: AUGLAIZE TOWNSHIP | I185: 3
A186: ODOT_CRASH_LOCATION_CD | B186: 7 | C186: On Ramp | D186: On Ramp | E186: 7 | G186: 3002 | H186: AUGLAIZE TOWNSHIP | I186: 3
A187: ODOT_CRASH_LOCATION_CD | B187: 8 | C187: Off Ramp | D187: Off Ramp | E187: 8 | G187: 3016 | H187: AUGUSTA | I187: 3
A188: ODOT_CRASH_LOCATION_CD | B188: 9 | C188: Crossover | D188: Crossover | E188: 9 | G188: 3030 | H188: AUGUSTA TOWNSHIP | I188: 3
A189: ODOT_CRASH_LOCATION_CD | B189: 10 | C189: Driveway/Alley Access | D189: Driveway/Alley Access | E189: 10 | G189: 3037 | H189: AUKERMAN | I189: 3
A190: ODOT_CRASH_LOCATION_CD | B190: 11 | C190: Railroad Grade Crossing | D190: Railroad Grade Crossing | E190: 11 | G190: 3058 | H190: AULTMAN | I190: 3
A191: ODOT_CRASH_LOCATION_CD | B191: 12 | C191: Shared-Use Paths Or Trails | D191: Shared-Use Paths Or Trails | E191: 12 | G191: 3072 | H191: AURELIUS TOWNSHIP | I191: 3
A192: ODOT_CRASH_LOCATION_CD | B192: 99 | C192: Unknown | D192: Unknown | E192: 99 | G192: 3086 | H192: AURORA | I192: 1
A193: ODOT_DIV_UNDIV_IND | B193: Y | C193: Divided | D193: Divided | E193: Y | G193: 3128 | H193: AUSTIN | I193: 3
A194: ODOT_DIV_UNDIV_IND | B194: N | C194: Undivided | D194: Undivided | E194: N | G194: 3142 | H194: AUSTINBURG | I194: 2
A195: ODOT_DIV_UNDIV_IND | B195: U | C195: Unknown/Missing | D195: Unknown/Missing | E195: U | G195: 3156 | H195: AUSTINBURG TOWNSHIP | I195: 3
A196: ODOT_INTERSECTION_REL_IND | B196: N | C196: No | D196: No | E196: N | G196: 3184 | H196: AUSTINTOWN | I196: 1
A197: ODOT_INTERSECTION_REL_IND | B197: Y | C197: Yes | D197: Yes | E197: Y | G197: 3198 | H197: AUSTINTOWN TOWNSHIP | I197: 3
A198: ODOT_MAINTAINED_HWY_IND | B198: N | C198: No | D198: No | E198: N | G198: 3220 | H198: AUSTIN VILLAGE | I198: 3
A199: ODOT_MAINTAINED_HWY_IND | B199: Y | C199: Yes | D199: Yes | E199: Y | G199: 3226 | H199: AUTUMN ACRES | I199: 3
A200: ODOT_YOUNG_DRIVER_IND | B200: N | C200: No | D200: No | E200: N | G200: 3240 | H200: AVA | I200: 3
... 5737 more rows

Sheet Data (hidden)
B11: 66
Q18: =P19+1 -> 17
A19: 1 | B19: =A19+1 -> 2 | C19: =B19+1 -> 3 | D19: 4 | E19: 5 | F19: 6 | G19: 7 | H19: 8 | I19: 9 | J19: 10 | K19: 11 | L19: 12 | M19: 13 | N19: 14 | O19: 15 | P19: 16 | Q19: 99 | R19: =Q18+1 -> 18 | S19: 19 | T19: 20 | U19: 21 | V19: 22 | W19: 23 | X19: 24 | Y19: =X19+1 -> 25 | Z19: =Y19+1 -> 26 | AA19: =Z19+1 -> 27 | AB19: =AA19+1 -> 28 | AC19: =AB19+1 -> 29 | AD19: =AC19+1 -> 30 | AE19: =AD19+1 -> 31 | AF19: =AE19+1 -> 32 | AG19: =AF19+1 -> 33 | AH19: =AG19+1 -> 34 | AI19: =AH19+1 -> 35 | AJ19: =AI19+1 -> 36 | AK19: =AJ19+1 -> 37 | AL19: =AK19+1 -> 38 | AM19: =AL19+1 -> 39 | AN19: =AM19+1 -> 40 | AO19: =AN19+1 -> 41 | AP19: =AO19+1 -> 42 | AQ19: =AP19+1 -> 43 | AR19: =AQ19+1 -> 44 | AS19: =AR19+1 -> 45 | AT19: =AS19+1 -> 46 | AU19: =AT19+1 -> 47 | AV19: =AU19+1 -> 48 | AW19: =AV19+1 -> 49 | AX19: =AW19+1 -> 50 | AY19: =AX19+1 -> 51 | AZ19: =AY19+1 -> 52 | BA19: =AZ19+1 -> 53 | BB19: =BA19+1 -> 54 | BC19: =BB19+1 -> 55 | BD19: =BC19+1 -> 56 | BE19: =BD19+1 -> 57 | BF19: =BE19+1 -> 58 | BG19: =BF19+1 -> 59 | BH19: =BG19+1 -> 60 | BI19: =BH19+1 -> 61 | BJ19: =BI19+1 -> 62 | BK19: =BJ19+1 -> 63 | BL19: =BK19+1 -> 64 | BM19: =BL19+1 -> 65 | BN19: =BM19+1 -> 66 | BO19: =BN19+1 -> 67 | BP19: =BO19+1 -> 68 | BQ19: =BP19+1 -> 69 | BR19: =BQ19+1 -> 70 | BS19: =BR19+1 -> 71 | BT19: =BS19+1 -> 72 | BU19: =BT19+1 -> 73 | BV19: =BU19+1 -> 74 | BW19: =BV19+1 -> 75 | BX19: =BW19+1 -> 76 | BY19: =BX19+1 -> 77 | BZ19: =BY19+1 -> 78 | CA19: =BZ19+1 -> 79 | CB19: =CA19+1 -> 80 | CC19: =CB19+1 -> 81 | CD19: =CC19+1 -> 82 | CE19: =CD19+1 -> 83 | CF19: =CE19+1 -> 84 | CG19: =CF19+1 -> 85 | CH19: =CG19+1 -> 86 | CI19: =CH19+1 -> 87 | CJ19: =CI19+1 -> 88 | CK19: =CJ19+1 -> 89 | CL19: =CK19+1 -> 90 | CM19: =CL19+1 -> 91 | CN19: =CM19+1 -> 92 | CO19: =CN19+1 -> 93 | CP19: =CO19+1 -> 94 | CQ19: =CP19+1 -> 95 | CR19: =CQ19+1 -> 96 | CS19: =CR19+1 -> 97 | CT19: =CS19+1 -> 98 | CU19: =CT19+1 -> 99 | CV19: =CU19+1 -> 100 | CW19: =CV19+1 -> 101 | CX19: =CW19+1 -> 102 | CY19: =CX19+1 -> 103 | CZ19: =CY19+1 -> 104 | DA19: =CZ19+1 -> 105 | DB19: =DA19+1 -> 106 | DC19: =DB19+1 -> 107 | DD19: =DC19+1 -> 108 | DE19: =DD19+1 -> 109 | DF19: =DE19+1 -> 110 | DG19: =DF19+1 -> 111 | DH19: =DG19+1 -> 112 | DI19: =DH19+1 -> 113 | DJ19: =DI19+1 -> 114 | DK19: =DJ19+1 -> 115 | DL19: =DK19+1 -> 116 | DM19: =DL19+1 -> 117 | DN19: =DM19+1 -> 118 | DO19: =DN19+1 -> 119 | DP19: =DO19+1 -> 120 | DQ19: =DP19+1 -> 121 | DR19: =DQ19+1 -> 122 | DS19: =DR19+1 -> 123 | DT19: =DS19+1 -> 124 | DU19: =DT19+1 -> 125 | DV19: =DU19+1 -> 126 | DW19: =DV19+1 -> 127 | DX19: =DW19+1 -> 128 | DY19: =DX19+1 -> 129 | DZ19: =DY19+1 -> 130 | EA19: =DZ19+1 -> 131 | EB19: =EA19+1 -> 132 | EC19: =EB19+1 -> 133 | ED19: =EC19+1 -> 134 | EE19: =ED19+1 -> 135 | EF19: =EE19+1 -> 136 | EG19: =EF19+1 -> 137 | EH19: =EG19+1 -> 138 | EI19: =EH19+1 -> 139 | EJ19: =EI19+1 -> 140 | EK19: =EJ19+1 -> 141 | EL19: =EK19+1 -> 142 | EM19: =EL19+1 -> 143 | EN19: =EM19+1 -> 144 | EO19: =EN19+1 -> 145 | EP19: =EO19+1 -> 146 | EQ19: =EP19+1 -> 147 | ER19: =EQ19+1 -> 148 | ES19: =ER19+1 -> 149
A20: HYPERLINK | B20: DOCUMENT_NBR | C20: CRASH_REPORT_LINK | D20: CRASH_YR | E20: CRASH_MONTH_YEAR | F20: DISTRICT_NBR | G20: NLFID | H20: NLF_JUR_CD | I20: NLF_COUNTY_CD | J20: COUNTY_LOG_NBR | K20: ODOT_LATITUDE_NBR | L20: ODOT_LONGITUDE_NBR | M20: ODOT_FIPS_CD | N20: AREA_CODE | O20: CRASH_DATE | P20: CRASH_SEVERITY_CD | Q20: CRASH_TYPE_CD | R20: DAY_IN_WEEK_CD | S20: DISTRACTED_DRIVER_IND | T20: FACILITY_TYPE_CD | U20: FHWA_RDWY_DEPARTURE_IND | V20: FREEWAY_IND | W20: FUNCTIONAL_CLASS_CD | X20: HOUR_OF_CRASH | Y20: INCAPAC_INJURIES_NBR | Z20: INTERCHANGE_ID | AA20: INTERSECTION_ID_CURRENT | AB20: INTERSECTION_LEG_ID | AC20: INTERSTATE_IND | AD20: INV_LOG_NBR | AE20: INV_NLFID | AF20: IS_COMMERCIAL_RELATED | AG20: LIGHT_COND_PRIMARY_CD | AH20: LOCAL_REPORT_NUMBER_ID | AI20: MAINTENANCE_AUTHORITY_CD | AJ20: MONTH_OF_CRASH | AK20: NHS_CD | AL20: NO_INJURY_REPORTED_NBR | AM20: NON_INCAPAC_INJURIES_NBR | AN20: NUMBER_OF_UNITS_NBR | AO20: ODOT_CITY_VILLAGE_TWP_NME | AP20: ODOT_CRASH_LOCATION_CD | AQ20: ODOT_DIR_FROM_REF_CD | AR20: ODOT_DIV_UNDIV_IND | AS20: ODOT_INTERSECTION_REL_IND | AT20: ODOT_LANES_NBR | AU20: ODOT_MAINTAINED_HWY_IND | AV20: ODOT_MILES_FROM_REF_NBR | AW20: ODOT_REF_ROUTE_PREFIX_CD | AX20: ODOT_YOUNG_DRIVER_IND | AY20: ODPS_ADDRESS_REFERENCE | AZ20: ODPS_ALCOHOL_IND | BA20: ODPS_CITY_VILLAGE_TWP_NME | BB20: ODPS_DRUG_IND | BC20: ODPS_LOC_DIR_SUFFIX_CD | BD20: ODPS_LOC_IN_WORK_ZONE_CD | BE20: ODPS_LOC_ROAD_DIRECTION_CD | BF20: ODPS_LOC_ROAD_NME | BG20: ODPS_LOC_ROAD_SUFFIX_CD | BH20: ODPS_LOC_ROUTE_ID | BI20: ODPS_LOC_ROUTE_PREFIX_CD | BJ20: ODPS_LOC_ROUTE_SUFFIX_CD | BK20: ODPS_MILEPOST_REFERENCE | BL20: ODPS_MOTORCYCLE_IND | BM20: ODPS_REF_DIR_SUFFIX_CD | BN20: ODPS_REF_DIRECTION_CD | BO20: ODPS_REF_GIVEN | BP20: ODPS_REF_POINT_USED_CD | BQ20: ODPS_REF_ROUTE_ID | BR20: ODPS_REF_ROUTE_PREFIX_CD | BS20: ODPS_REF_ROUTE_SUFFIX_CD | BT20: ODPS_REF_SUFFIX_CD | BU20: ODPS_SCHOOL_ZONE_IND | BV20: ODPS_SENIOR_DRIVER_IND | BW20: ODPS_SPEED_IND | BX20: ODPS_TOTAL_FATALITIES_NBR | BY20: ODPS_TYPE_OF_WORK_ZONE_CD | BZ20: ODPS_WORK_ZONE_IND | CA20: OPER_ACCESS_CONTROL_CD | CB20: POSSIBLE_INJURIES_NBR | CC20: ROAD_COND_PRIMARY_CD | CD20: ROAD_CONTOUR_CD | CE20: SA_RAMP_ID | CF20: SA_SEGMENT_ID | CG20: SECONDARY_CRASH | CH20: STATE_TRUE_LOG_NBR | CI20: U1_AGE_NBR | CJ20: U1_AT_FAULT_IND | CK20: U1_CONT_CIR_PRIMARY_CD | CL20: U1_DIRECTION_FROM_CD | CM20: U1_DIRECTION_TO_CD | CN20: U1_DISTRACTED_BY_1_CD | CO20: U1_GENDER_CD | CP20: U1_IS_ALCOHOL_SUSPECTED | CQ20: U1_IS_MARIJUANA_SUSPECTED | CR20: U1_IS_OTHER_DRUG_SUSPECTED | CS20: U1_NON_MOTORIST_LOC_CD | CT20: U1_NUMBER_OF_THRU_LANES | CU20: U1_OBJECT_STRUCK | CV20: U1_ODPS_UNIT_NBR | CW20: U1_OPERATINGIN_AUTONOMOUS_MODE | CX20: U1_POSTED_SPEED_NBR | CY20: U1_PRECRASH_ACTION_CD | CZ20: U1_SEQ_OF_EVENTS_1_CD | DA20: U1_SEQ_OF_EVENTS_2_CD | DB20: U1_SEQ_OF_EVENTS_3_CD | DC20: U1_SEQ_OF_EVENTS_4_CD | DD20: U1_SEQ_OF_EVENTS_5_CD | DE20: U1_SEQ_OF_EVENTS_6_CD | DF20: U1_SPECIAL_FUNCTION_CD | DG20: U1_TRAFFIC_CONTROL_CD | DH20: U1_TURN_CD | DI20: U1_TYPE_OF_UNIT_CD | DJ20: U1_UNIT_SPEED_NBR | DK20: U2_AGE_NBR | DL20: U2_CONT_CIR_PRIMARY_CD | DM20: U2_DIRECTION_FROM_CD | DN20: U2_DIRECTION_TO_CD | DO20: U2_DISTRACTED_BY_1_CD | DP20: U2_GENDER_CD | DQ20: U2_NON_MOTORIST_LOC_CD | DR20: U2_ODPS_UNIT_NBR | DS20: U2_POSTED_SPEED_NBR | DT20: U2_PRECRASH_ACTION_CD | DU20: U2_SEQ_OF_EVENTS_1_CD | DV20: U2_SEQ_OF_EVENTS_2_CD | DW20: U2_SEQ_OF_EVENTS_3_CD | DX20: U2_SEQ_OF_EVENTS_4_CD | DY20: U2_SEQ_OF_EVENTS_5_CD | DZ20: U2_SEQ_OF_EVENTS_6_CD | EA20: U2_SPECIAL_FUNCTION_CD | EB20: U2_TRAFFIC_CONTROL_CD | EC20: U2_TURN_CD | ED20: U2_TYPE_OF_UNIT_CD | EE20: U2_UNIT_SPEED_NBR | EF20: U3_CONT_CIR_PRIMARY_CD | EG20: U3_ODPS_UNIT_NBR | EH20: U3_PRECRASH_ACTION_CD | EI20: U3_SEQ_OF_EVENTS_1_CD | EJ20: U3_SEQ_OF_EVENTS_2_CD | EK20: U3_SEQ_OF_EVENTS_3_CD | EL20: U3_SEQ_OF_EVENTS_4_CD | EM20: U3_SEQ_OF_EVENTS_5_CD | EN20: U3_SEQ_OF_EVENTS_6_CD | EO20: U3_SPECIAL_FUNCTION_CD | EP20: U3_TRAFFIC_CONTROL_CD | EQ20: U3_TYPE_OF_UNIT_CD | ER20: UNRESTRAIN_OCCUPANTS | ES20: WEATHER_COND_CD

Sheet Metadata (hidden)
A1: Metadata
A2: 43907
A4: Column Name | B4: Definition
A5: Document Number | B5: Unique number assigned to each crash. It will be the same for the crash level record, unit level record and people level record. The first four numbers will designate the crash year.
A6: Year | B6: Year of Crash
A7: Local Report Number | B7: The unique identifier within a given year that identifies a given crash within a reporting agency.
A8: User Defined | B8: User Defined - Can be used to code crashes as necessary
A9: Severity | B9: Indicates the five-level severity of the crash
A10: Crash Type | B10: ODOT's calculated crash type similar to manner of collision but has been expanded for engineering purposes.
A11: ODOT District | B11: ODOT District
A12: County Cd | B12: County abbreviation for the section of roadway in which the crash occurred.
A13: ODOT Crash Location | B13: The type of location that best describes where the first event of the crash occurred.
A14: NLFID | B14: ODOT’s graphic roadway network geometric segments unique identifier upon which the crash occurred
A15: County True Log | B15: The county based straight line mileage of the route, at which the crash occurred based on three decimals.
A16: State True Log | B16: The state based straight line mileage of the route, at which the crash occurred based on three decimals.
A17: On Road | B17: The street name upon which the crash occurred
A18: At Road | B18: The street name upon which the crash occurred at
A19: ODOT Latitude | B19: The angular distance, measured in degrees, north or south from the equator at which the crash occurred and is directly related to ODOT's LRS.
A20: ODOT Longitude | B20: Distance East or West on the Earth's surface measured as an arc of the equator (in degrees up to 180 degrees) between the meridian passing through a particular place and a standard or prime meridian, usually the one passing through Greenwich, England, at which the crash occurred and is directly related to ODOT's LRS.
A21: ODOT FIPS | B21: Jurisdictional boundary code corresponding to a named place recognized by the U.S. Bureau of the Census based on information provided by State, county, and local governments.
A22: ODOT FIPS Name | B22: Jurisdiction Name Related to FIPS Code
A23: ODOT FIPS CVT Code | B23: Code related to type jurisdiction on the crash report form
A24: Fatalities | B24: Total Number of Fatalities
A25: Serious Injuries | B25: Total Number of Suspected Serious Injuries
A26: Non Serious Injuries | B26: Total Number of Suspected Minor Injuries
A27: Possible Injuries | B27: Total Number of Possible Injuries
A28: No Injuries | B28: Total Number of no Injuries reported
A29: Unrestrained Occupants | B29: Total number of unrestrained occupants in the crash
A30: Number of Units | B30: Total number of units involved in the crash
A31: NLFID Jurisdiction | B31: Jurisdiction of the section of roadway upon which the crash occurred.
A32: NLFID Route Type | B32: The route type associated with the route upon which the crash occurred.
A33: Facility Type | B33: The operational characteristics of the section of roadway (i.e. one way, two way, ramp).
A34: Urban Area | B34: U.S. Census Urban Area Code associated with the section of roadway where the crash occurred.
A35: Functional Class | B35: The roadway classes for the FHWA approved Functional Class system. This is based upon assignment of roads into systems according to the character of service they provide in relation to the total road network upon which the crash occurred.
A36: NHS | B36: Indicates the Roadway section that is part of the National Highway System upon which the crash occurred.
A37: Divided Hwy | B37: Indicates whether a roadway section is part of a divided highway upon which the crash occurred.
A38: ODOT Number of Lanes | B38: The number of lanes in both directions carrying through traffic upon which the crash occurred.
A39: Operational Access Control | B39: The control as it actually exists on the roadway where the crash occurred.
A40: Freeway | B40: Flag that indicates that the crash occurred on a freeway or freeway look a like facility
A41: Interstate | B41: Flag that indicates the crash occurred on an interstate route.
A42: ODOT Maintained | B42: Flag that indicates the crash occurred upon a segment of roadway maintained by ODOT.
A43: Maintenance Authority | B43: Maintenance Authority Code of the roadway segment on which the crash was located.
A44: Date | B44: Date of Crash
A45: Month | B45: Month of Crash
A46: Hour | B46: Hour of Crash
A47: Day in Week | B47: Number associated with the day of week the crash occurred.
A48: Weather Condition | B48: The prevailing atmospheric conditions at the time of the crash.
A49: Road Condition | B49: The roadway surface condition at the location of the first event.
A50: Light Condition | B50: The lighting conditions at the time of the crash
A51: Road Contour | B51: The alignment and grade characteristics that best describe the roadway at the location of the first event
A52: Roadway Departure | B52: Indicates when a vehicles leaves its lane of travel (left or right).
A53: ODOT Intersection Related | B53: ODOT's calculated intersection related based on ODPS's intersection related flag and if a unit had traffic control that occurs at intersections.
A54: Alcohol Related | B54: Flag indicating alcohol involved
A55: Marijuana Related | B55: Flag indicating marijuana involved
A56: Drug Related | B56: Flag indicating other drugs involved
A57: School Zone Related | B57: Flag indicating that the crash occurred in an active school zone
A58: Motorcycle Involved | B58: Flag indicating motorcycle involved
A59: Speed Related | B59: Flag indicating excessive speed involved
A60: Senior Driver Involved | B60: Flag indicating a senor driver (age 65 and older) was involved.
A61: ODOT Young Driver | B61: Flag indicating a youthful driver (age 15-25) was involved.
A62: Work Zone Related | B62: Flag indicating the crash occurred in a work zone.
A63: Location in Work Zone | B63: Codes indicating where in the work zone the crash occurred.
A64: Type of Work Zone | B64: Codes indicating what type of work zone was in place at the time of the crash.
A65: Distracted Driver | B65: Flag indicating the driver was distracted
A66: ODPS FIPS Name | B66: Jurisdictional boundary named place recognized by the U.S. Bureau of the Census based on information provided by State, county, and local governments.
A67: ODPS On Road Name Prefix | B67: The street name prefix or direction upon which the crash occurred
A68: ODPS On Road Name | B68: The street name upon which the crash occurred
A69: ODPS On Road Name Suffix | B69: The street name suffix upon which the crash occurred
A70: ODPS On Road Name Directional Suffix | B70: ODPS street name directional suffix (i.e. NW, SE) upon which the crash occurred.
A71: ODPS On Route Type | B71: The route prefix upon which the crash occurred
A72: ODPS On Route Number | B72: The route ID upon which the crash occurred
A73: ODPS On Route Suffix | B73: ODPS routes suffix upon which the crash occurred (state or local).
A74: ODPS At Road Name Prefix | B74: The street name prefix or direction at which the crash occurred
A75: ODPS At Road Name | B75: Street Name or House Number or Mile Post Number
A76: ODPS At Road Name Suffix | B76: The street name suffix at which the crash occurred.
A77: ODPS At Road Name Directional Suffix | B77: ODPS street name directional suffix (i.e. NW, SE) at which the crash occurred (intersection reference type).
A78: ODPS At Route Type | B78: The route prefix or type at which the crash occurred
A79: ODPS At Route Number | B79: The route ID at which the crash occurred.
A80: ODPS At Route Suffix | B80: ODPS routes suffix at which the crash occurred (state or local) (intersection reference type).
A81: ODPS Address Reference | B81: ODPS address box number at which crash occurred (address reference type)
A82: ODPS Mile Post Reference | B82: ODPS milepost sign number at which the crash occurred (milepost reference type)
A83: ODPS Reference Point Used | B83: Type of reference used (includes converted codes form the 2001 crash report form).
A84: Unit 1 At Fault Ind | B84: Flag indicating that ODO Unit 1 (U1) was identified as fault
A85: Unit 1 ODPS Unit Nbr | B85: ODPS Unit Number for ODOT Unit 1
A86: Unit 1 Direction From Cd | B86: Direction from which the vehicle/non-motorist was traveling.
A87: Unit 1 Direction To Cd | B87: Direction toward which the vehicle/non-motorist was traveling.
A88: Unit 1 Turn Cd | B88: ODOT's calculated Unit 1 derived action prior to the crash based on officer provided pre-crash actions or from/to directions.
A89: Unit 1 Traffic Control Cd | B89: Codes indicating the type of Roadway Traffic Control device for Unit 1.
A90: Unit 1 Type Of Unit Cd | B90: Codes indicating the general configuration or shape of Unit 1 distinguished by characteristics such as number of doors, rows of seats, windows, or roof line.
A91: Unit 1 Special Function Cd | B91: Codes indicating the special function served by Unit 1, whether or not the function is marked on the vehicle.
A92: Unit 1 Unit Speed Nbr | B92: Actual or estimated speed of Unit 1 at time of crash.
A93: Unit 1 Posted Speed Nbr | B93: Posted Speed for Unit 1 at the time of the crash.
A94: Unit 1 Precrash Action Cd | B94: Unit 1's activity immediately prior to the crash.
A95: Unit 1 Cont Cir Primary Cd | B95: Actions of Unit 1 that may have contributed to the crash.
A96: Unit 1 Object Struck | B96: Code indicating that Unit 1 struck an object as part of one of the six sequence of events. (codes relate solely to sequence of events)
A97: Unit 1 Seq Of Events 1 Cd | B97: Unit 1's sequence 1 of 6 for the events of the crash.
A98: Unit 1 Seq Of Events 2 Cd | B98: Unit 1's sequence 2 of 6 for the events of the crash.
A99: Unit 1 Seq Of Events 3 Cd | B99: Unit 1's sequence 3 of 6 for the events of the crash.
A100: Unit 1 Seq Of Events 4 Cd | B100: Unit 1's sequence 4 of 6 for the events of the crash.
A101: Unit 1 Seq Of Events 5 Cd | B101: Unit 1's sequence 5 of 6 for the events of the crash.
A102: Unit 1 Seq Of Events 6 Cd | B102: Unit 1's sequence 6 of 6 for the events of the crash.
A103: Unit 1 Non Motorist Loc Cd | B103: The location of the non-motorist with respect to the roadway prior to the time of the crash.
A104: Unit 1 Age Nbr | B104: Age of the Driver of Unit 1
A105: Unit 1 Gender Cd | B105: Codes indicating the gender of the Driver of Unit 1
A106: Unit 1 Distracted By 1 Cd | B106: Codes indicating the distractions which may have influenced the driver's performance of Unit 1.
A107: Unit 2 ODPS Unit Nbr | B107: ODPS number for ODOT Unit 2
A108: Unit 2 Direction From Cd | B108: Direction from which the vehicle/non-motorist was traveling.
A109: Unit 2 Direction To Cd | B109: Direction toward which the vehicle/non-motorist was traveling.
A110: Unit 2 Turn Cd | B110: ODOT's calculated Unit 2 derived action prior to the crash based on officer provided pre-crash actions or from/to directions.
A111: Unit 2 Traffic Control Cd | B111: Codes indicating the type of Roadway Traffic Control device for Unit 2.
A112: Unit 2 Type Of Unit Cd | B112: Codes indicating the general configuration or shape of Unit 2 distinguished by characteristics such as number of doors, rows of seats, windows, or roof line.
A113: Unit 2 Special Function Cd | B113: Codes indicating the special function served by Unit 2, whether or not the function is marked on the vehicle.
A114: Unit 2 Unit Speed Nbr | B114: Actual or estimated speed of Unit 2 at time of crash.
A115: Unit 2 Posted Speed Nbr | B115: Posted Speed for Unit 2 at the time of the crash.
A116: Unit 2 Precrash Action Cd | B116: Unit 2's activity immediately prior to the crash.
A117: Unit 2 Cont Cir Primary Cd | B117: Actions of Unit 2 that may have contributed to the crash.
A118: Unit 2 Seq Of Events 1 Cd | B118: Unit 2's sequence 1 of 6 for the events of the crash.
A119: Unit 2 Seq Of Events 2 Cd | B119: Unit 2's sequence 2 of 6 for the events of the crash.
A120: Unit 2 Seq Of Events 3 Cd | B120: Unit 2's sequence 3 of 6 for the events of the crash.
A121: Unit 2 Seq Of Events 4 Cd | B121: Unit 2's sequence 4 of 6 for the events of the crash.
A122: Unit 2 Seq Of Events 5 Cd | B122: Unit 2's sequence 5 of 6 for the events of the crash.
A123: Unit 2 Seq Of Events 6 Cd | B123: Unit 2's sequence 6 of 6 for the events of the crash.
A124: Unit 2 Non Motorist Loc Cd | B124: The location of the non-motorist with respect to the roadway prior to the time of the crash.
A125: Unit 2 Age Nbr | B125: Age of the Driver of Unit 2
A126: Unit 2 Gender Cd | B126: Codes indicating the gender of the Driver of Unit 2
A127: Unit 2 Distracted By 1 Cd | B127: Codes indicating the distractions which may have influenced the driver's performance of Unit 2.
A128: Unit 3 ODPS Unit Nbr | B128: ODPS number for ODOT Unit 3
A129: Unit 3 Traffic Control Cd | B129: Codes indicating the type of Roadway Traffic Control device for Unit 3.
A130: Unit 3 Type Of Unit Cd | B130: Codes indicating the general configuration or shape of Unit 3 distinguished by characteristics such as number of doors, rows of seats, windows, or roof line.
A131: Unit 3 Special Function Cd | B131: Codes indicating the special function served by Unit 3, whether or not the function is marked on the vehicle.
A132: Unit 3 Precrash Action Cd | B132: Unit 3's activity immediately prior to the crash.
A133: Unit 3 Cont Cir Primary Cd | B133: Actions of Unit 3 that may have contributed to the crash.
A134: Unit 3 Seq Of Events 1 Cd | B134: Unit 3's sequence 1 of 6 for the events of the crash.
A135: Unit 3 Seq Of Events 2 Cd | B135: Unit 3's sequence 2 of 6 for the events of the crash.
A136: Unit 3 Seq Of Events 3 Cd | B136: Unit 3's sequence 3 of 6 for the events of the crash.
A137: Unit 3 Seq Of Events 4 Cd | B137: Unit 3's sequence 4 of 6 for the events of the crash.
A138: Unit 3 Seq Of Events 5 Cd | B138: Unit 3's sequence 5 of 6 for the events of the crash.
A139: Unit 3 Seq Of Events 6 Cd | B139: Unit 3's sequence 6 of 6 for the events of the crash.
A140: Intersection ID | B140: Unique Intersection ID that associates the crash with the intersection referenced or by a spatial join of the crash to the intersection
A141: Intersection Leg | B141: Leg ID of the Intersection upon which the crash occurred (from Intersection Inventory)
A142: Interchange ID | B142: Unique Interchange ID that associates the crash with the intersection referenced or by a spatial join of the crash to the interchange.
A143: SA Ramp ID | B143: Ramp ID from SA Inventory
A144: SA Segment ID | B144: Segment ID from SA Inventory
A145: Jurisdiction Type | B145: Aggregated Jurisdiction
A146: Crash Report Link | B146: Calculated field to display the crash image
A147: HistoricalImagePath | B147: Historical path to display the crash image
A148: Roadview | B148: Link to Pathways Roadviewer
A149: Google | B149: Link to Google Maps
A150: Mashed Map | B150: Link to Mashed Map

Sheet Full Crash Data
H1: N | EO1: N
B2: version: 20221209
A3: Type 'Heading' Here
N16: =IF(RIGHT(K19,3)="**C","",IF(RIGHT(K19,2)="*C","",MID(K19,13,1))) -> 
A17: =IF(C17*1>2010,HYPERLINK(EM17,"Crash Report"),IF(EN17="","",HYPERLINK(EN17,"Crash Report"))) ->  | G17: HL | I17: HL | J17: HL | K17: HL | L17: HL | N17: =IF(K19<>"",MID(K19,5,2)&IFERROR(MID(K19,7,5)*1,MID(K19,7,5)),) ->  | P17: HL | Q17: HL | R17: HL | AW17: HL | AX17: HL | BL17: HL | BM17: HL | BN17: HL | BO17: HL | BP17: HL | BQ17: HL | BR17: HL | BS17: HL | BT17: HL | BU17: HL | BV17: HL | BW17: HL | BX17: HL | BY17: HL | BZ17: HL | CA17: HL | CB17: HL | EG17: HL | EH17: HL | EI17: HL | EJ17: HL | EK17: HL
A18: 1 | B18: =A18+1 -> 2 | C18: =EM18+1 -> 4 | D18: =CB18+1 -> 75 | F18: =R18+1 -> 14 | G18: =AA18+1 -> 22 | H18: =C18+1 -> 5 | I18: =AB18+1 -> 8 | J18: =AX18+1 -> 25 | K18: =H18+1 -> 6 | L18: =AC18+1 -> 10 | M18: =EK18+1 -> 137 | P18: =L18+1 -> 11 | Q18: =P18+1 -> 12 | R18: =Q18+1 -> 13 | S18: =AN18+1 -> 37 | U18: =F18+1 -> 15 | V18: =U18+1 -> 16 | W18: 17 | X18: 18 | Y18: 19 | Z18: 20 | AA18: 21 | AB18: =K18+1 -> 7 | AC18: =I18+1 -> 9 | AD18: =J18+1 -> 26 | AE18: =AD18+1 -> 27 | AF18: 28 | AG18: 29 | AH18: 30 | AI18: 31 | AJ18: 32 | AK18: 33 | AL18: 34 | AM18: 35 | AN18: 36 | AO18: =S18+1 -> 38 | AP18: =AO18+1 -> 39 | AQ18: 40 | AR18: 41 | AS18: 42 | AT18: 43 | AU18: =AT18+1 -> 44 | AV18: 45 | AW18: =G18+1 -> 23 | AX18: =AW18+1 -> 24 | AY18: =AV18+1 -> 46 | BA18: =AY18+1 -> 47 | BB18: =BA18+1 -> 48 | BC18: =BB18+1 -> 49 | BD18: =BC18+1 -> 50 | BE18: =BD18+1 -> 51 | BF18: =BI18+1 -> 55 | BG18: =BE18+1 -> 52 | BH18: =BG18+1 -> 53 | BI18: =BH18+1 -> 54 | BJ18: =BF18+1 -> 56 | BK18: =BJ18+1 -> 57 | BL18: 58 | BM18: 59 | BN18: 60 | BO18: 61 | BP18: 62 | BQ18: 63 | BR18: 64 | BS18: 65 | BT18: 66 | BU18: 67 | BV18: 68 | BW18: 69 | BX18: 70 | BY18: 71 | BZ18: 72 | CA18: 73 | CB18: 74 | CC18: =D18+1 -> 76 | CD18: =CC18+1 -> 77 | CE18: 78 | CF18: 79 | CG18: 80 | CH18: 81 | CI18: 82 | CJ18: 83 | CK18: 84 | CL18: 85 | CM18: 86 | CN18: 87 | CO18: 88 | CP18: 89 | CQ18: 90 | CR18: 91 | CS18: 92 | CT18: 93 | CU18: 94 | CV18: 95 | CW18: 96 | CX18: 97 | CY18: 98 | CZ18: 99 | DA18: 100 | DB18: 101 | DC18: 102 | DD18: 103 | DE18: 104 | DF18: 105 | DG18: =DF18+1 -> 106 | DH18: 107 | DI18: 108 | DJ18: 109 | DK18: 110 | DL18: 111 | DM18: 112 | DN18: 113 | DO18: 114 | DP18: 115 | DQ18: 116 | DR18: 117 | DS18: 118 | DT18: 119 | DU18: =DT18+1 -> 120 | DV18: =DU18+1 -> 121 | DW18: 122 | DX18: 123 | DY18: 124 | DZ18: 125 | EA18: 126 | EB18: 127 | EC18: 128 | ED18: 129 | EE18: 130 | EF18: 131 | EG18: 132 | EH18: 133 | EI18: 134 | EJ18: 135 | EK18: 136 | EM18: =B18+1 -> 3 | EO18: =M18+1 -> 138 | EP18: =EO18+1 -> 139 | EQ18: =EP18+1 -> 140 | ER18: =EQ18+1 -> 141 | ES18: 142 | ET18: 143
A19: =IF(C19*1>2010,HYPERLINK(EM19,"Crash Report"),IF(EM19="","","Restricted Access")) ->  | B19: =Data!B19*1 -> 2 | C19: =Data!D19 -> 4 | D19: =IF(Data!AH19="","",Data!AH19) -> 34 | F19: =IFERROR(VLOOKUP(Data!P19,RefTables!$B$274:$D$278,3,FALSE),"") ->  | G19: =IFERROR(VLOOKUP(Data!Q19,RefTables!$B$103:$D$122,3,FALSE),"") ->  | H19: =Data!F19 -> 6 | I19: =Data!I19 -> 9 | J19: =IFERROR(VLOOKUP(Data!AP19,RefTables!$B$179:$D$192,3,FALSE),"") ->  | K19: =IF(Data!G19="","",Data!G19) -> 7 | L19: =IF(Data!J19="","",Data!J19) -> 10 | M19: =IF(Data!CH19="","",Data!CH19) -> 86 | N19: =IFERROR(IF(K19<>"",MID(K19,5,2)&IFERROR(MID(K19,7,5)*1,MID(K19,7,5))&IF(LEFT(K19,1)="S",IF(OR(RIGHT(K19,2)="*C",RIGHT(K19,2)="*N"),"",MID(K19,13,1)),IF(OR(RIGHT(K19,3)="**C",RIGHT(K19,3)="**N"),"",MID(K19,12,1))),TRIM(IF('Full Crash Data'!BQ19<>"",'Full Crash Data'!BP19&'Full Crash Data'!BQ19&'Full Crash Data'!BR19,IF('Full Crash Data'!BL19="","",'Full Crash Data'!BL19&" ")&IF('Full Crash Data'!BM19="","",'Full Crash Data'!BM19&" ")&IF('Full Crash Data'!BN19="","",'Full Crash Data'!BN19&" ")&IF('Full Crash Data'!BO19="","",'Full Crash Data'!BO19)))),"") ->  | O19: =IFERROR(IF(CA19<>"","MP"&CA19,IF(BZ19<>"",BZ19,TRIM(IF('Full Crash Data'!BX19<>"",'Full Crash Data'!BW19&'Full Crash Data'!BX19&'Full Crash Data'!BY19,IF('Full Crash Data'!BS19="","",'Full Crash Data'!BS19&" ")&IF('Full Crash Data'!BT19="","",'Full Crash Data'!BT19&" ")&IF('Full Crash Data'!BU19="","",'Full Crash Data'!BU19&" ")&IF('Full Crash Data'!BV19="","",'Full Crash Data'!BV19))))),"") -> MP63 | P19: =IF(Data!K19="","",Data!K19) -> 11 | Q19: =IF(Data!L19="","",Data!L19) -> 12 | R19: =IF(Data!M19="","",Data!M19) -> 13 | S19: =IF(Data!AO19="","",Data!AO19) -> 41 | T19: =IFERROR(VLOOKUP(R19,RefTables!G:I,3,FALSE),3) -> 3 | U19: =IF(Data!BX19="","",Data!BX19) -> 76 | V19: =IF(Data!Y19="","",Data!Y19) -> 25 | W19: =IF(Data!AM19="","",Data!AM19) -> 39 | X19: =IF(Data!CB19="","",Data!CB19) -> 80 | Y19: =IF(Data!AL19="","",Data!AL19) -> 38 | Z19: =IF(Data!ER19="","",Data!ER19) -> 148 | AA19: =IF(Data!AN19="","",Data!AN19) -> 40 | AB19: =IF(K19="",Data!H19,LEFT(K19,1)) -> 7 | AC19: =IF(K19="",Data!BI19,MID(K19,5,2)) ->  | AD19: =IFERROR(VLOOKUP(Data!T19,RefTables!$B$139:$D$144,3,FALSE),"") ->  | AE19: =IFERROR(VLOOKUP(Data!N19,RefTables!$B$2:$D$102,3,FALSE),"") ->  | AF19: =IFERROR(VLOOKUP(Data!W19,RefTables!$B$149:$D$155,3,FALSE),"") ->  | AG19: =IFERROR(VLOOKUP(Data!AK19,RefTables!$B$167:$D$178,3,FALSE),"") ->  | AH19: =IF(Data!AR19="Y","Yes","No") -> No | AI19: =IF(Data!AT19="","",Data!AT19) -> 46 | AJ19: =IF(Data!CA19="","",IFERROR(VLOOKUP(Data!CA19,RefTables!$B$575:$D$577,3,FALSE),"")) ->  | AK19: =IF(Data!V19="Y","Yes","No") -> No | AL19: =IF(Data!AC19="Y","Yes","No") -> No | AM19: =IF(Data!AU19="Y","Yes","No") -> No | AN19: =IF(Data!AI19<>80,VLOOKUP(Data!AI19,RefTables!$B$578:$D$604,3,FALSE),IFERROR(VLOOKUP(IF(AND(T19=3,AB19="S"),1,IF(AC19="IR",1,IF(AND(T19=3,AB19="C"),2,IF(AND(T19=3,AB19="T"),3,IF(AB19="F",60,4))))),RefTables!$B$578:$D$604,3,FALSE),"Other")) ->  | AO19: =IF(Data!O19="","",Data!O19) -> 15 | AP19: =IF(Data!AJ19="","",Data!AJ19) -> 36 | AQ19: =Data!X19 -> 24 | AR19: =IFERROR(VLOOKUP(Data!R19,RefTables!$B$123:$D$136,3,FALSE),"") ->  | AS19: =IFERROR(VLOOKUP(Data!ES19,RefTables!$B$556:$D$574,3,FALSE),"Unknown") -> Unknown | AT19: =IFERROR(VLOOKUP(Data!CC19,RefTables!$B$242:$D$252,3,FALSE),"Other / Unknown") -> Other / Unknown | AU19: =IFERROR(VLOOKUP(Data!AG19,RefTables!$B$158:$D$166,3,FALSE),"") ->  | AV19: =IFERROR(VLOOKUP(Data!CD19,RefTables!$B$264:$D$273,3,FALSE),"") ->  | AW19: =IF(Data!U19="Y","Yes","No") -> No | AX19: =IF(Data!AS19="Y","Yes","No") -> No | AY19: =IF(Data!AZ19="Y","Yes","No") -> No | AZ19: =IF(Data!CQ19="Y","Yes","No") -> No | BA19: =IF(Data!BB19="Y","Yes","No") -> No | BB19: =IF(Data!BU19="Y","Yes","No") -> No | BC19: =IF(Data!BL19="Y","Yes","No") -> No | BD19: =IF(Data!BW19="Y","Yes","No") -> No | BE19: =IF(Data!BV19="Y","Yes","No") -> No | BF19: =IF(Data!AX19="Y","Yes","No") -> No | BG19: =IF(Data!BZ19="Y","Yes","No") -> No | BH19: =IFERROR(VLOOKUP(Data!BD19,RefTables!$B$206:$D$211,3,FALSE),"") ->  | BI19: =IFERROR(VLOOKUP(Data!BY19,RefTables!$B$230:$D$235,3,FALSE),"") ->  | BJ19: =IF(Data!S19="Y","Yes","No") -> No | BK19: =IF(Data!BA19="","",Data!BA19) -> 53 | BL19: =IF(Data!BE19="","",Data!BE19) -> 57 | BM19: =IF(Data!BF19="","",Data!BF19) -> 58 | BN19: =IF(Data!BG19="","",Data!BG19) -> 59 | BO19: =IF(Data!BC19="","",Data!BC19) -> 55 | BP19: =IF(Data!BI19="","",Data!BI19) -> 61 | BQ19: =IF(Data!BH19="","",Data!BH19) -> 60 | BR19: =IF(Data!BJ19="","",Data!BJ19) -> 62 | BS19: =IF(Data!BN19="","",Data!BN19) -> 66 | BT19: =IF(Data!BO19="","",Data!BO19) -> 67 | BU19: =IF(Data!BT19="","",Data!BT19) -> 72 | BV19: =IF(Data!BM19="","",Data!BM19) -> 65 | BW19: =IF(Data!BR19="","",Data!BR19) -> 70 | BX19: =IF(Data!BQ19="","",Data!BQ19) -> 69 | BY19: =IF(Data!BS19="","",Data!BS19) -> 71 | BZ19: =IF(Data!AY19="","",Data!AY19) -> 51 | CA19: =IF(Data!BK19="","",Data!BK19) -> 63 | CB19: =IFERROR(VLOOKUP(Data!BP19,RefTables!$B$214:$D$223,3,FALSE),"") ->  | CC19: =IF(Data!CJ19="Y","Yes","No") -> No | CD19: =IF(Data!CV19="","",Data!CV19) -> 100 | CE19: =IF(Data!CL19="","",IFERROR(VLOOKUP(Data!CL19*1,RefTables!$B$353:$D$361,3,FALSE),"")) ->  | CF19: =IF(Data!CM19="","",IFERROR(VLOOKUP(Data!CM19*1,RefTables!$B$362:$D$370,3,FALSE),"")) ->  | CG19: =IF(Data!DH19="","",IFERROR(VLOOKUP(Data!DH19,RefTables!$B$523:$D$526,3,FALSE),"")) ->  | CH19: =IF(Data!DG19="","",IFERROR(VLOOKUP(Data!DG19,RefTables!$B$507:$D$522,3,FALSE),"")) ->  | CI19: =IF(Data!DI19="","",IFERROR(VLOOKUP(Data!DI19,RefTables!$B$527:$D$604,3,FALSE),"")) ->  | CJ19: =IF(Data!DF19="","",IFERROR(VLOOKUP(Data!DF19,RefTables!$B$485:$D$506,3,FALSE),"")) ->  | CK19: =IF(Data!DJ19="","",Data!DJ19) -> 114 | CL19: =IF(Data!CX19="","",IF(Data!CX19*1>70,70,IF(OR(RIGHT(Data!CX19,1)*1=5,RIGHT(Data!CX19,1)*1=0),Data!CX19,IF(RIGHT(Data!CX19,1)*1>5,ROUNDDOWN(Data!CX19,-1)+5,ROUNDDOWN(Data!CX19,-1))))) -> 70 | CM19: =IF(Data!CY19="","",IFERROR(VLOOKUP(Data!CY19,RefTables!$B$406:$D$428,3,FALSE),"")) ->  | CN19: =IF(Data!CK19="","",IFERROR(VLOOKUP(Data!CK19,RefTables!$B$287:$D$319,3,FALSE),"")) ->  | CO19: =IF(Data!CU19="","",IFERROR(VLOOKUP(Data!CU19,RefTables!$B$605:$D$636,3,FALSE),"")) -> Other / Unknown | CP19: =IF(Data!CZ19="","",IFERROR(VLOOKUP(Data!CZ19,RefTables!$B$429:$D$484,3,FALSE),"")) ->  | CQ19: =IF(Data!DA19=0,"",IFERROR(VLOOKUP(Data!DA19,RefTables!$B$429:$D$484,3,FALSE),"")) ->  | CR19: =IF(Data!DB19=0,"",IFERROR(VLOOKUP(Data!DB19,RefTables!$B$429:$D$484,3,FALSE),"")) ->  | CS19: =IF(Data!DC19=0,"",IFERROR(VLOOKUP(Data!DC19,RefTables!$B$429:$D$484,3,FALSE),"")) ->  | CT19: =IF(Data!DD19=0,"",IFERROR(VLOOKUP(Data!DD19,RefTables!$B$429:$D$484,3,FALSE),"")) ->  | CU19: =IF(Data!DE19=0,"",IFERROR(VLOOKUP(Data!DE19,RefTables!$B$429:$D$484,3,FALSE),"")) ->  | CV19: =IF(Data!CS19="","",IFERROR(VLOOKUP(Data!CS19,RefTables!$B$392:$D$405,3,FALSE),"")) ->  | CW19: =IF(Data!CI19="",0,Data!CI19*1) -> 87 | CX19: =IF(Data!CO19="","",IFERROR(VLOOKUP(Data!CO19,RefTables!$B$389:$D$391,3,FALSE),"")) ->  | CY19: =IF(Data!CN19="","Other / Unknown",IFERROR(VLOOKUP(Data!CN19,RefTables!$B$371:$D$379,3,FALSE),"Other / Unknown")) -> Other / Unknown | CZ19: =IF(Data!DR19="","",Data!DR19) -> 122 | DA19: =IF(Data!DM19="","",IFERROR(VLOOKUP(Data!DM19*1,RefTables!$B$353:$D$361,3,FALSE),"")) ->  | DB19: =IF(Data!DN19="","",IFERROR(VLOOKUP(Data!DN19*1,RefTables!$B$362:$D$370,3,FALSE),"")) ->  | DC19: =IF(Data!EC19="","",IFERROR(VLOOKUP(Data!EC19*1,RefTables!$B$523:$D$526,3,FALSE),"")) ->  | DD19: =IF(Data!EB19="","",IFERROR(VLOOKUP(Data!EB19,RefTables!$B$507:$D$522,3,FALSE),"")) ->  | DE19: =IF(Data!ED19="","",IFERROR(VLOOKUP(Data!ED19,RefTables!$B$527:$D$604,3,FALSE),"")) ->  | DF19: =IF(Data!EA19="","",IFERROR(VLOOKUP(Data!EA19,RefTables!$B$485:$D$506,3,FALSE),"")) ->  | DG19: =IF(Data!EE19="","",Data!EE19) -> 135 | DH19: =IF(Data!DS19="","",Data!DS19) -> 123 | DI19: =IF(Data!DT19="","",IFERROR(VLOOKUP(Data!DT19,RefTables!$B$406:$D$428,3,FALSE),"")) ->  | DJ19: =IF(Data!DL19="","",IFERROR(VLOOKUP(Data!DL19,RefTables!$B$287:$D$319,3,FALSE),"")) ->  | DK19: =IF(Data!DU19="","",IFERROR(VLOOKUP(Data!DU19,RefTables!$B$429:$D$484,3,FALSE),"")) ->  | DL19: =IF(Data!DV19=0,"",IFERROR(VLOOKUP(Data!DV19,RefTables!$B$429:$D$484,3,FALSE),"")) ->  | DM19: =IF(Data!DW19=0,"",IFERROR(VLOOKUP(Data!DW19,RefTables!$B$429:$D$484,3,FALSE),"")) ->  | DN19: =IF(Data!DX19=0,"",IFERROR(VLOOKUP(Data!DX19,RefTables!$B$429:$D$484,3,FALSE),"")) ->  | DO19: =IF(Data!DY19=0,"",IFERROR(VLOOKUP(Data!DY19,RefTables!$B$429:$D$484,3,FALSE),"")) ->  | DP19: =IF(Data!DZ19=0,"",IFERROR(VLOOKUP(Data!DZ19,RefTables!$B$429:$D$484,3,FALSE),"")) ->  | DQ19: =IF(Data!DQ19="","",IFERROR(VLOOKUP(Data!DQ19,RefTables!$B$429:$D$484,3,FALSE),"")) ->  | DR19: =IF(Data!DK19="",0,Data!DK19*1) -> 115 | DS19: =IF(Data!DP19="","",IFERROR(VLOOKUP(Data!DP19,RefTables!$B$389:$D$391,3,FALSE),"")) ->  | DT19: =IF(Data!DO19="","",IFERROR(VLOOKUP(Data!DO19,RefTables!$B$371:$D$379,3,FALSE),"")) ->  | DU19: =IF(Data!EG19="","",Data!EG19) -> 137 | DV19: =IF(Data!EP19="","",IFERROR(VLOOKUP(Data!EP19,RefTables!$B$507:$D$522,3,FALSE),"")) ->  | DW19: =IF(Data!EQ19="","",IFERROR(VLOOKUP(Data!EQ19,RefTables!$B$527:$D$604,3,FALSE),"")) ->  | DX19: =IF(Data!EO19="","",IFERROR(VLOOKUP(Data!EO19,RefTables!$B$485:$D$506,3,FALSE),"")) ->  | DY19: =IF(Data!EH19="","",IFERROR(VLOOKUP(Data!EH19,RefTables!$B$406:$D$428,3,FALSE),"")) ->  | DZ19: =IF(Data!EF19="","",IFERROR(VLOOKUP(Data!EF19,RefTables!$B$287:$D$319,3,FALSE),"")) ->  | EA19: =IF(Data!EI19="","",IFERROR(VLOOKUP(Data!EI19,RefTables!$B$429:$D$484,3,FALSE),"")) ->  | EB19: =IF(Data!EJ19=0,"",IFERROR(VLOOKUP(Data!EJ19,RefTables!$B$429:$D$484,3,FALSE),"")) ->  | EC19: =IF(Data!EK19=0,"",IFERROR(VLOOKUP(Data!EK19,RefTables!$B$429:$D$484,3,FALSE),"")) ->  | ED19: =IF(Data!EL19=0,"",IFERROR(VLOOKUP(Data!EL19,RefTables!$B$429:$D$484,3,FALSE),"")) ->  | EE19: =IF(Data!EM19=0,"",IFERROR(VLOOKUP(Data!EM19,RefTables!$B$429:$D$484,3,FALSE),"")) ->  | EF19: =IF(Data!EN19=0,"",IFERROR(VLOOKUP(Data!EN19,RefTables!$B$429:$D$484,3,FALSE),"")) ->  | EG19: =IF(Data!AA19="","",Data!AA19) -> 27 | EH19: =IF(Data!AB19="","",Data!AB19) -> 28 | EI19: =IF(Data!Z19="","",Data!Z19) -> 26 | EJ19: =IF(Data!CE19="","",Data!CE19) -> 83 | EK19: =IF(Data!CF19="","",Data!CF19) -> 84 | EL19: =IF(OR(LEFT(AN19,1)="S",AN19="Other Federal Agency"),"State","Local") ->  | EM19: =IF(C19>2010,Data!C19,"") ->  | EN19: =IFERROR(VLOOKUP(B19,HistoricalImages!A:B,2,FALSE),"") ->  | EO19: =+HYPERLINK(CONCATENATE("http://pathweb.pathwayservices.com/ohiopublic/?nlfid='",+K19,"'&logpoint=",+L19),"Pathweb") -> Pathweb | EP19: =HYPERLINK(CONCATENATE("http://maps.google.com/maps?q=",+P19,",+",+Q19,"+(Crash+Location)&iwloc=A&hl=en"),"Google Maps") -> Google Maps | EQ19: =HYPERLINK(CONCATENATE("http://data.mashedworld.com/dualmaps/map.htm?x=",Q19,"&y=",P19,"&z=15&gm=0&ve=5&gc=0&bz=1&bd=0&mw=1&sv=1&svb=0&svp=0&svz=0&svm=2&svf=0"),"Mashed Map") -> Mashed Map | ER19: =IFERROR(IF(OR(Data!Q19=1,Data!Q19=2,Data!Q19=3,Data!Q19=4,Data!Q19=5,Data!Q19=6,Data!Q19=18,Data!Q19=19),"MV","SV"),"SV") -> SV | ES19: =IFERROR(IF(Data!P19*1<5,"FI","PDO"),"PDO") -> PDO | ET19: =IF(Data!AV19="","",Data!AV19) -> 48
A20: HYPERLINK | B20: Document Number | C20: Year | D20: Local Report Number | E20: User Defined | F20: Severity | G20: Crash Type | H20: ODOT District | I20: County Cd | J20: ODOT Crash Location | K20: NLFID | L20: County True Log | M20: State True Log | N20: On Road | O20: At Road | P20: ODOT Latitude | Q20: ODOT Longitude | R20: ODOT FIPS | S20: ODOT FIPS Name | T20: ODOT FIPS CVT Code | U20: Fatalities | V20: Serious Injuries | W20: Non Serious Injuries | X20: Possible Injuries | Y20: No Injuries | Z20: Unrestrained Occupants | AA20: Number of Units | AB20: NLFID Jurisdiction | AC20: NLFID Route Type | AD20: Facility Type | AE20: Urban Area | AF20: Functional Class | AG20: NHS | AH20: Divided Hwy | AI20: ODOT Number of Lanes | AJ20: Operational Access Control | AK20: Freeway | AL20: Interstate | AM20: ODOT Maintained | AN20: Maintenance Authority | AO20: Date | AP20: Month | AQ20: Hour | AR20: Day in Week | AS20: Weather Condition | AT20: Road Condition | AU20: Light Condition | AV20: Road Contour | AW20: Roadway Departure | AX20: ODOT Intersection Related | AY20: Alcohol Related | AZ20: Marijuana Related | BA20: Drug Related | BB20: School Zone Related | BC20: Motorcycle Involved | BD20: Speed Related | BE20: Senior Driver Involved | BF20: ODOT Young Driver | BG20: Work Zone Related | BH20: Location in Work Zone | BI20: Type of Work Zone | BJ20: Distracted Driver | BK20: ODPS FIPS Name | BL20: ODPS On Road Name Prefix | BM20: ODPS On Road Name | BN20: ODPS On Road Name Suffix | BO20: ODPS On Road Name Directional Suffix | BP20: ODPS On Route Type | BQ20: ODPS On Route Number | BR20: ODPS On Route Suffix | BS20: ODPS At Road Name Prefix | BT20: ODPS At Road Name | BU20: ODPS At Road Name Suffix | BV20: ODPS At Road Name Directional Suffix | BW20: ODPS At Route Type | BX20: ODPS At Route Number | BY20: ODPS At Route Suffix | BZ20: ODPS Address Reference | CA20: ODPS Mile Post Reference | CB20: ODPS Reference Point Used | CC20: Unit 1 At Fault Ind | CD20: Unit 1 ODPS Unit Nbr | CE20: Unit 1 Direction From Cd | CF20: Unit 1 Direction To Cd | CG20: Unit 1 Turn Cd | CH20: Unit 1 Traffic Control Cd | CI20: Unit 1 Type Of Unit Cd | CJ20: Unit 1 Special Function Cd | CK20: Unit 1 Unit Speed Nbr | CL20: Unit 1 Posted Speed Nbr | CM20: Unit 1 Precrash Action Cd | CN20: Unit 1 Cont Cir Primary Cd | CO20: Unit 1 Object Struck | CP20: Unit 1 Seq Of Events 1 Cd | CQ20: Unit 1 Seq Of Events 2 Cd | CR20: Unit 1 Seq Of Events 3 Cd | CS20: Unit 1 Seq Of Events 4 Cd | CT20: Unit 1 Seq Of Events 5 Cd | CU20: Unit 1 Seq Of Events 6 Cd | CV20: Unit 1 Non Motorist Loc Cd | CW20: Unit 1 Age Nbr | CX20: Unit 1 Gender Cd | CY20: Unit 1 Distracted By 1 Cd | CZ20: Unit 2 ODPS Unit Nbr | DA20: Unit 2 Direction From Cd | DB20: Unit 2 Direction To Cd | DC20: Unit 2 Turn Cd | DD20: Unit 2 Traffic Control Cd | DE20: Unit 2 Type Of Unit Cd | DF20: Unit 2 Special Function Cd | DG20: Unit 2 Unit Speed Nbr | DH20: Unit 2 Posted Speed Nbr | DI20: Unit 2 Precrash Action Cd | DJ20: Unit 2 Cont Cir Primary Cd | DK20: Unit 2 Seq Of Events 1 Cd | DL20: Unit 2 Seq Of Events 2 Cd | DM20: Unit 2 Seq Of Events 3 Cd | DN20: Unit 2 Seq Of Events 4 Cd | DO20: Unit 2 Seq Of Events 5 Cd | DP20: Unit 2 Seq Of Events 6 Cd | DQ20: Unit 2 Non Motorist Loc Cd | DR20: Unit 2 Age Nbr | DS20: Unit 2 Gender Cd | DT20: Unit 2 Distracted By 1 Cd | DU20: Unit 3 ODPS Unit Nbr | DV20: Unit 3 Traffic Control Cd | DW20: Unit 3 Type Of Unit Cd | DX20: Unit 3 Special Function Cd | DY20: Unit 3 Precrash Action Cd | DZ20: Unit 3 Cont Cir Primary Cd | EA20: Unit 3 Seq Of Events 1 Cd | EB20: Unit 3 Seq Of Events 2 Cd | EC20: Unit 3 Seq Of Events 3 Cd | ED20: Unit 3 Seq Of Events 4 Cd | EE20: Unit 3 Seq Of Events 5 Cd | EF20: Unit 3 Seq Of Events 6 Cd | EG20: Intersection ID | EH20: Intersection Leg | EI20: Interchange ID | EJ20: SA Ramp ID | EK20: SA Segment ID | EL20: Jurisdiction Type | EM20: CRASH_REPORT_LINK | EN20: HistoricalImagePath | EO20: Roadview | EP20: Google | EQ20: Mashed Map | ER20: HSM_MV_SV | ES20: HSM_Severity | ET20: Miles from Reference
A21: =IF(C21*1>2010,HYPERLINK(EM21,"Crash Report"),IF(EM21="","","Restricted Access")) -> Crash Report | B21: 20215225013 | C21: 2021 | D21: 09-0521-09 | E21: 2 | F21: (5) PDO/No Injury | G21: Left Turn | H21: 8 | I21: BUT | J21: T-Intersection | K21: SBUTSR00747**C | L21: 5.556 | M21: 8.227 | N21: SR747 | O21: SR129 | P21: 39.382352 | Q21: -84.454517 | R21: 43050 | S21: LIBERTY TOWNSHIP | T21: 3 | U21: 0 | V21: 0 | W21: 0 | X21: 0 | Y21: 4 | Z21: 0 | AA21: 2 | AB21: S | AC21: SR | AD21: Two Way Roadway | AF21: Other Principal Arterial Roads | AH21: No | AI21: 4 | AJ21: 3 | AK21: No | AL21: No | AM21: Yes | AN21: State Highway Agency | AO21: 44512 | AP21: 11 | AQ21: 11 | AR21: (6) Friday | AS21: Clear | AT21: Dry | AU21: Daylight | AV21: Straight Level | AW21: No | AX21: Yes | AY21: No | AZ21: No | BA21: No | BB21: No | BC21: No | BD21: Yes | BE21: No | BF21: Yes | BG21: No | BH21: Unknown or Not in Work Zone | BI21: Unknown or Not in Work Zone | BJ21: No | BK21: LIBERTY TOWNSHIP | BP21: SR | BQ21: 747 | BW21: SR | BX21: 129 | CB21: Intersection | CC21: Yes | CD21: 1 | CE21: South | CF21: West | CG21: Left Turn | CH21: Signal | CI21: Passenger Car | CJ21: None | CK21: 40 | CL21: 55 | CM21: Making Left Turn | CN21: Failure to Yield | CO21: Nothing Struck | CP21: Motor Vehicle In Transport | CV21: Data Not Valid or Not Provided | CW21: 38 | CX21: Female | CY21: Not Distracted | CZ21: 2 | DA21: North | DB21: South | DD21: Signal | DE21: Passenger Car | DF21: None | DG21: 56 | DH21: 55 | DI21: Straight Ahead | DJ21: None | DK21: Motor Vehicle In Transport | DR21: 21 | DS21: Female | DT21: Not Distracted | EG21: c62cf652-bfcd-4b55-91aa-5bbe405c1347 | EH21: 28876229-2e54-4476-ba5f-d60d2be78f07 | EI21: 8230 | EK21: 164944 | EL21: State | EM21: https://hsip.dot.state.oh.us/api/report/20215225013 | EO21: =+HYPERLINK(CONCATENATE("http://pathweb.pathwayservices.com/ohiopublic/?nlfid='",+K21,"'&logpoint=",+L21),"Pathweb") -> Pathweb | EP21: =HYPERLINK(CONCATENATE("http://maps.google.com/maps?q=",+P21,",+",+Q21,"+(Crash+Location)&iwloc=A&hl=en"),"Google Maps") -> Google Maps | EQ21: =HYPERLINK(CONCATENATE("http://data.mashedworld.com/dualmaps/map.htm?x=",Q21,"&y=",P21,"&z=15&gm=0&ve=5&gc=0&bz=1&bd=0&mw=1&sv=1&svb=0&svp=0&svz=0&svm=2&svf=0"),"Mashed Map") -> Mashed Map | ER21: MV | ES21: PDO | ET21: 0
A22: Crash Report | B22: 20216012957 | C22: 2021 | D22: 2021010522 | E22: 3 | F22: (5) PDO/No Injury | G22: Rear End | H22: 8 | I22: BUT | J22: T-Intersection | K22: SBUTSR00747**C | L22: 5.421 | M22: 8.092 | N22: SR747 | O22: SR129 | P22: 39.380407 | Q22: -84.454733 | R22: 43050 | S22: LIBERTY TOWNSHIP | T22: 3 | U22: 0 | V22: 0 | W22: 0 | X22: 0 | Y22: 2 | Z22: 0 | AA22: 2 | AB22: S | AC22: SR | AD22: Two Way Roadway | AF22: Other Principal Arterial Roads | AH22: No | AI22: 4 | AJ22: 3 | AK22: No | AL22: No | AM22: Yes | AN22: State Highway Agency | AO22: 44227 | AP22: 1 | AQ22: 15 | AR22: (1) Sunday | AS22: Rain | AT22: Wet | AU22: Daylight | AV22: Straight Level | AW22: No | AX22: Yes | AY22: No | AZ22: No | BA22: No | BB22: No | BC22: No | BD22: No | BE22: No | BF22: Yes | BG22: No | BH22: Unknown or Not in Work Zone | BI22: Unknown or Not in Work Zone | BJ22: No | BK22: LIBERTY TOWNSHIP | BP22: SR | BQ22: 747 | BW22: SR | BX22: 129 | CB22: Intersection | CC22: Yes | CD22: 1 | CE22: South | CF22: North | CG22: No Turn | CH22: Signal | CI22: Passenger Car | CJ22: None | CK22: 5 | CL22: 55 | CM22: Straight Ahead | CN22: Following Too Closely/ACDA | CO22: Nothing Struck | CP22: Motor Vehicle In Transport | CV22: Data Not Valid or Not Provided | CW22: 16 | CX22: Male | CY22: Not Distracted | CZ22: 2 | DA22: South | DB22: North | DD22: Signal | DE22: Pick up | DF22: None | DG22: 0 | DH22: 55 | DI22: Slowing or Stopped In Traffic | DJ22: None | DK22: Motor Vehicle In Transport | DR22: 39 | DS22: Male | DT22: Not Distracted | EG22: a90bb998-0db2-4c4e-8fd6-93dd1a799340 | EH22: 52bfbff7-f06f-42c7-abd4-ccd485446c98 | EK22: 298688 | EL22: State | EM22: https://hsip.dot.state.oh.us/api/report/20216012957 | EO22: Pathweb | EP22: Google Maps | EQ22: Mashed Map | ER22: MV | ES22: PDO | ET22: 0.003
A23: Crash Report | B23: 20216022871 | C23: 2021 | D23: 2021020273 | E23: 4 | F23: (5) PDO/No Injury | G23: Left Turn | H23: 8 | I23: BUT | J23: Four-Way Intersection | K23: SBUTSR00747**C | L23: 5.425 | M23: 8.096 | N23: SR747 | O23: SR129 | P23: 39.380461 | Q23: -84.454728 | R23: 43050 | S23: LIBERTY TOWNSHIP | T23: 3 | U23: 0 | V23: 0 | W23: 0 | X23: 0 | Y23: 2 | Z23: 0 | AA23: 2 | AB23: S | AC23: SR | AD23: Two Way Roadway | AF23: Other Principal Arterial Roads | AH23: No | AI23: 4 | AJ23: 3 | AK23: No | AL23: No | AM23: Yes | AN23: State Highway Agency | AO23: 44242 | AP23: 2 | AQ23: 17 | AR23: (2) Monday | AS23: Snow | AT23: Snow | AU23: Daylight | AV23: Straight Grade | AW23: No | AX23: Yes | AY23: No | AZ23: No | BA23: No | BB23: No | BC23: No | BD23: No | BE23: No | BF23: No | BG23: No | BH23: Unknown or Not in Work Zone | BI23: Unknown or Not in Work Zone | BJ23: No | BK23: LIBERTY TOWNSHIP | BP23: SR | BQ23: 747 | BW23: SR | BX23: 129 | CB23: Intersection | CC23: Yes | CD23: 1 | CE23: North | CF23: East | CG23: Left Turn | CH23: Signal | CI23: Passenger Van (minivan) | CJ23: None | CK23: 10 | CL23: 55 | CM23: Making Left Turn | CN23: Failure to Yield | CO23: Nothing Struck | CP23: Motor Vehicle In Transport | CV23: Data Not Valid or Not Provided | CW23: 53 | CX23: Male | CY23: Not Distracted | CZ23: 2 | DA23: South | DB23: North | DD23: Signal | DE23: Sport Utility Vehicle | DF23: None | DG23: 30 | DH23: 55 | DI23: Straight Ahead | DJ23: None | DK23: Motor Vehicle In Transport | DR23: 38 | DS23: Female | DT23: Not Distracted | EG23: a90bb998-0db2-4c4e-8fd6-93dd1a799340 | EH23: 52bfbff7-f06f-42c7-abd4-ccd485446c98 | EK23: 298688 | EL23: State | EM23: https://hsip.dot.state.oh.us/api/report/20216022871 | EO23: Pathweb | EP23: Google Maps | EQ23: Mashed Map | ER23: MV | ES23: PDO | ET23: 0
A24: Crash Report | B24: 20216026410 | C24: 2021 | D24: 2021020296 | E24: 5 | F24: (5) PDO/No Injury | G24: Right Turn | H24: 8 | I24: BUT | J24: Not An Intersection | K24: SBUTSR00747**C | L24: 5.573 | M24: 8.244 | N24: SR747 | O24: SR129 | P24: 39.382605 | Q24: -84.454494 | R24: 43050 | S24: LIBERTY TOWNSHIP | T24: 3 | U24: 0 | V24: 0 | W24: 0 | X24: 0 | Y24: 3 | Z24: 0 | AA24: 2 | AB24: S | AC24: SR | AD24: Two Way Roadway | AF24: Minor Arterial Roads | AH24: No | AI24: 4 | AJ24: 3 | AK24: No | AL24: No | AM24: Yes | AN24: State Highway Agency | AO24: 44244 | AP24: 2 | AQ24: 16 | AR24: (4) Wednesday | AS24: Cloudy | AT24: Dry | AU24: Daylight | AV24: Straight Level | AW24: No | AX24: Yes | AY24: No | AZ24: No | BA24: No | BB24: No | BC24: No | BD24: No | BE24: No | BF24: No | BG24: No | BH24: Unknown or Not in Work Zone | BI24: Unknown or Not in Work Zone | BJ24: No | BK24: LIBERTY TOWNSHIP | BP24: SR | BQ24: 747 | BW24: SR | BX24: 129 | CB24: Intersection | CC24: No | CD24: 1 | CE24: East | CF24: North | CG24: Right Turn | CH24: Signal | CI24: Passenger Car | CJ24: None | CK24: 15 | CL24: 55 | CM24: Making Right Turn | CN24: None | CO24: Nothing Struck | CP24: Motor Vehicle In Transport | CV24: Data Not Valid or Not Provided | CW24: 40 | CX24: Female | CY24: Not Distracted | CZ24: 2 | DA24: East | DB24: North | DD24: Signal | DE24: Passenger Car | DF24: None | DG24: 15 | DH24: 55 | DI24: Making Right Turn | DJ24: None | DK24: Motor Vehicle In Transport | DR24: 37 | DS24: Male | DT24: Not Distracted | EG24: c62cf652-bfcd-4b55-91aa-5bbe405c1347 | EH24: 2cfb984a-5fed-47a4-9d68-03d05d29fdfe | EK24: 195579 | EL24: State | EM24: https://hsip.dot.state.oh.us/api/report/20216026410 | EO24: Pathweb | EP24: Google Maps | EQ24: Mashed Map | ER24: MV | ES24: PDO | ET24: 0
A25: Crash Report | B25: 20216030170 | C25: 2021 | D25: 2021020456 | E25: 6 | F25: (2) Serious Injury Suspected | G25: Rear End | H25: 8 | I25: BUT | J25: Four-Way Intersection | K25: SBUTSR00747**C | L25: 5.569 | M25: 8.24 | N25: SR747 | O25: SR129 | P25: 39.382541 | Q25: -84.4545 | R25: 43050 | S25: LIBERTY TOWNSHIP | T25: 3 | U25: 0 | V25: 1 | W25: 0 | X25: 1 | Y25: 1 | Z25: 1 | AA25: 3 | AB25: S | AC25: SR | AD25: Two Way Roadway | AF25: Minor Arterial Roads | AH25: No | AI25: 4 | AJ25: 3 | AK25: No | AL25: No | AM25: Yes | AN25: State Highway Agency | AO25: 44252 | AP25: 2 | AQ25: 15 | AR25: (5) Thursday | AS25: Clear | AT25: Dry | AU25: Daylight | AV25: Straight Level | AW25: No | AX25: Yes | AY25: Yes | AZ25: No | BA25: No | BB25: No | BC25: No | BD25: No | BE25: No | BF25: No | BG25: No | BH25: Unknown or Not in Work Zone | BI25: Unknown or Not in Work Zone | BJ25: No | BK25: LIBERTY TOWNSHIP | BP25: SR | BQ25: 747 | BW25: SR | BX25: 129 | CB25: Intersection | CC25: Yes | CD25: 1 | CE25: South | CF25: North | CG25: No Turn | CH25: Signal | CI25: Passenger Car | CJ25: None | CK25: 55 | CL25: 55 | CM25: Straight Ahead | CN25: Following Too Closely/ACDA | CO25: Nothing Struck | CP25: Motor Vehicle In Transport | CQ25: Motor Vehicle In Transport | CV25: Data Not Valid or Not Provided | CW25: 55 | CX25: Male | CY25: Not Distracted | CZ25: 2 | DA25: South | DB25: North | DD25: Signal | DE25: Passenger Car | DF25: None | DG25: 0 | DH25: 55 | DI25: Slowing or Stopped In Traffic | DJ25: None | DK25: Motor Vehicle In Transport | DR25: 42 | DS25: Male | DT25: Not Distracted | DU25: 3 | DV25: Signal | DW25: Passenger Car | DX25: None | DY25: Slowing or Stopped In Traffic | DZ25: None | EA25: Motor Vehicle In Transport | EG25: c62cf652-bfcd-4b55-91aa-5bbe405c1347 | EH25: 2cfb984a-5fed-47a4-9d68-03d05d29fdfe | EK25: 195579 | EL25: State | EM25: https://hsip.dot.state.oh.us/api/report/20216030170 | EO25: Pathweb | EP25: Google Maps | EQ25: Mashed Map | ER25: MV | ES25: FI | ET25: 0.005
A26: Crash Report | B26: 20216056661 | C26: 2021 | D26: 2021040211 | E26: 7 | F26: (5) PDO/No Injury | G26: Rear End | H26: 8 | I26: BUT | J26: T-Intersection | K26: SBUTSR00747**C | L26: 5.578 | M26: 8.249 | N26: SR747 | O26: SR129 | P26: 39.382676 | Q26: -84.454487 | R26: 43050 | S26: LIBERTY TOWNSHIP | T26: 3 | U26: 0 | V26: 0 | W26: 0 | X26: 0 | Y26: 2 | Z26: 0 | AA26: 2 | AB26: S | AC26: SR | AD26: Two Way Roadway | AF26: Minor Arterial Roads | AH26: No | AI26: 4 | AJ26: 3 | AK26: No | AL26: No | AM26: Yes | AN26: State Highway Agency | AO26: 44296 | AP26: 4 | AQ26: 16 | AR26: (7) Saturday | AS26: Rain | AT26: Wet | AU26: Daylight | AV26: Straight Level | AW26: No | AX26: Yes | AY26: No | AZ26: No | BA26: No | BB26: No | BC26: No | BD26: No | BE26: No | BF26: No | BG26: No | BH26: Unknown or Not in Work Zone | BI26: Unknown or Not in Work Zone | BJ26: No | BK26: LIBERTY TOWNSHIP | BP26: SR | BQ26: 747 | BW26: SR | BX26: 129 | CB26: Intersection | CC26: Yes | CD26: 1 | CE26: North | CF26: South | CG26: No Turn | CH26: Signal | CI26: Passenger Car | CJ26: None | CK26: 0 | CL26: 0 | CM26: Straight Ahead | CN26: Following Too Closely/ACDA | CO26: Nothing Struck | CP26: Motor Vehicle In Transport | CV26: Data Not Valid or Not Provided | CW26: 64 | CX26: Female | CY26: Not Distracted | CZ26: 2 | DA26: North | DB26: South | DD26: Flasher | DE26: Passenger Car | DF26: None | DG26: 0 | DH26: 55 | DI26: Slowing or Stopped In Traffic | DJ26: None | DK26: Motor Vehicle In Transport | DR26: 51 | DS26: Female | DT26: Not Distracted | EG26: c62cf652-bfcd-4b55-91aa-5bbe405c1347 | EH26: 2cfb984a-5fed-47a4-9d68-03d05d29fdfe | EK26: 195579 | EL26: State | EM26: https://hsip.dot.state.oh.us/api/report/20216056661 | EO26: Pathweb | EP26: Google Maps | EQ26: Mashed Map | ER26: MV | ES26: PDO | ET26: 0.004
A27: Crash Report | B27: 20216066007 | C27: 2021 | D27: 2021040432 | E27: 8 | F27: (3) Minor Injury Suspected | G27: Rear End | H27: 8 | I27: BUT | J27: Not An Intersection | K27: SBUTSR00747**C | L27: 5.608 | M27: 8.279 | N27: SR747 | O27: SR129 | P27: 39.383106 | Q27: -84.454442 | R27: 43050 | S27: LIBERTY TOWNSHIP | T27: 3 | U27: 0 | V27: 0 | W27: 1 | X27: 0 | Y27: 3 | Z27: 1 | AA27: 4 | AB27: S | AC27: SR | AD27: Two Way Roadway | AF27: Minor Arterial Roads | AH27: No | AI27: 4 | AJ27: 3 | AK27: No | AL27: No | AM27: Yes | AN27: State Highway Agency | AO27: 44308 | AP27: 4 | AQ27: 5 | AR27: (5) Thursday | AS27: Clear | AT27: Dry | AU27: Dark - Roadway Not Lighted | AV27: Straight Grade | AW27: No | AX27: No | AY27: No | AZ27: No | BA27: No | BB27: No | BC27: No | BD27: No | BE27: No | BF27: No | BG27: No | BH27: Unknown or Not in Work Zone | BI27: Unknown or Not in Work Zone | BJ27: Yes | BK27: LIBERTY TOWNSHIP | BP27: SR | BQ27: 747 | BW27: SR | BX27: 129 | CB27: Intersection | CC27: Yes | CD27: 1 | CE27: North | CF27: South | CG27: No Turn | CH27: No Control | CI27: Passenger Car | CJ27: None | CK27: 55 | CL27: 55 | CM27: Straight Ahead | CN27: Following Too Closely/ACDA | CO27: Nothing Struck | CP27: Motor Vehicle In Transport | CV27: Data Not Valid or Not Provided | CW27: 31 | CX27: Male | CY27: Other distraction inside the vehicle | CZ27: 2 | DA27: North | DB27: South | DD27: No Control | DE27: Passenger Car | DF27: None | DG27: 0 | DH27: 55 | DI27: Slowing or Stopped In Traffic | DJ27: None | DK27: Motor Vehicle In Transport | DR27: 35 | DS27: Male | DT27: Not Distracted | DU27: 3 | DV27: No Control | DW27: Passenger Car | DX27: None | DY27: Slowing or Stopped In Traffic | DZ27: None | EA27: Motor Vehicle In Transport | EG27: 76a3769f-c08e-4fd7-acf3-d6868bcee370 | EH27: eb120a28-ed60-4ab6-a724-e2334775d271 | EK27: 195579 | EL27: State | EM27: https://hsip.dot.state.oh.us/api/report/20216066007 | EO27: Pathweb | EP27: Google Maps | EQ27: Mashed Map | ER27: MV | ES27: FI | ET27: 0.1
A28: Crash Report | B28: 20216066012 | C28: 2021 | D28: 2021040463 | E28: 9 | F28: (5) PDO/No Injury | G28: Rear End | H28: 8 | I28: BUT | J28: T-Intersection | K28: SBUTSR00747**C | L28: 5.589 | M28: 8.26 | N28: SR747 | O28: SR129 | P28: 39.382834 | Q28: -84.45447 | R28: 43050 | S28: LIBERTY TOWNSHIP | T28: 3 | U28: 0 | V28: 0 | W28: 0 | X28: 0 | Y28: 2 | Z28: 0 | AA28: 2 | AB28: S | AC28: SR | AD28: Two Way Roadway | AF28: Minor Arterial Roads | AH28: No | AI28: 4 | AJ28: 3 | AK28: No | AL28: No | AM28: Yes | AN28: State Highway Agency | AO28: 44309 | AP28: 4 | AQ28: 16 | AR28: (6) Friday | AS28: Clear | AT28: Dry | AU28: Daylight | AV28: Straight Level | AW28: No | AX28: Yes | AY28: No | AZ28: No | BA28: No | BB28: No | BC28: No | BD28: No | BE28: No | BF28: No | BG28: No | BH28: Unknown or Not in Work Zone | BI28: Unknown or Not in Work Zone | BJ28: No | BK28: LIBERTY TOWNSHIP | BP28: SR | BQ28: 747 | BW28: SR | BX28: 129 | CB28: Intersection | CC28: Yes | CD28: 1 | CE28: North | CF28: South | CG28: No Turn | CH28: Signal | CI28: Cargo Van | CJ28: None | CK28: 15 | CL28: 55 | CM28: Straight Ahead | CN28: Following Too Closely/ACDA | CO28: Nothing Struck | CP28: Motor Vehicle In Transport | CV28: Data Not Valid or Not Provided | CW28: 37 | CX28: Male | CY28: Not Distracted | CZ28: 2 | DA28: North | DB28: South | DD28: Signal | DE28: Passenger Van (minivan) | DF28: None | DG28: 0 | DH28: 55 | DI28: Slowing or Stopped In Traffic | DJ28: None | DK28: Motor Vehicle In Transport | DR28: 46 | DS28: Female | DT28: Not Distracted | EG28: c62cf652-bfcd-4b55-91aa-5bbe405c1347 | EH28: 2cfb984a-5fed-47a4-9d68-03d05d29fdfe | EK28: 195579 | EL28: State | EM28: https://hsip.dot.state.oh.us/api/report/20216066012 | EO28: Pathweb | EP28: Google Maps | EQ28: Mashed Map | ER28: MV | ES28: PDO | ET28: 0.019
A29: Crash Report | B29: 20216071020 | C29: 2021 | D29: 2021050008 | E29: 10 | F29: (5) PDO/No Injury | G29: Rear End | H29: 8 | I29: BUT | J29: T-Intersection | K29: SBUTSR00747**C | L29: 5.429 | M29: 8.1 | N29: SR747 | O29: SR129 | P29: 39.38051 | Q29: -84.454722 | R29: 43050 | S29: LIBERTY TOWNSHIP | T29: 3 | U29: 0 | V29: 0 | W29: 0 | X29: 0 | Y29: 3 | Z29: 0 | AA29: 2 | AB29: S | AC29: SR | AD29: Two Way Roadway | AF29: Other Principal Arterial Roads | AH29: No | AI29: 4 | AJ29: 3 | AK29: No | AL29: No | AM29: Yes | AN29: State Highway Agency | AO29: 44317 | AP29: 5 | AQ29: 17 | AR29: (7) Saturday | AS29: Clear | AT29: Dry | AU29: Daylight | AV29: Straight Grade | AW29: No | AX29: Yes | AY29: No | AZ29: No | BA29: No | BB29: No | BC29: No | BD29: No | BE29: No | BF29: Yes | BG29: No | BH29: Unknown or Not in Work Zone | BI29: Unknown or Not in Work Zone | BJ29: No | BK29: LIBERTY TOWNSHIP | BP29: SR | BQ29: 747 | BW29: SR | BX29: 129 | CB29: Intersection | CC29: Yes | CD29: 1 | CE29: North | CF29: South | CG29: No Turn | CH29: Signal | CI29: Passenger Van (minivan) | CJ29: None | CK29: 35 | CL29: 55 | CM29: Straight Ahead | CN29: Following Too Closely/ACDA | CO29: Nothing Struck | CP29: Motor Vehicle In Transport | CV29: Data Not Valid or Not Provided | CW29: 20 | CX29: Male | CY29: Not Distracted | CZ29: 2 | DA29: North | DB29: South | DD29: Signal | DE29: Passenger Car | DF29: None | DG29: 0 | DH29: 55 | DI29: Slowing or Stopped In Traffic | DJ29: None | DK29: Motor Vehicle In Transport | DR29: 36 | DS29: Male | DT29: Not Distracted | EG29: a90bb998-0db2-4c4e-8fd6-93dd1a799340 | EH29: 52bfbff7-f06f-42c7-abd4-ccd485446c98 | EK29: 298688 | EL29: State | EM29: https://hsip.dot.state.oh.us/api/report/20216071020 | EO29: Pathweb | EP29: Google Maps | EQ29: Mashed Map | ER29: MV | ES29: PDO | ET29: 0
A30: Crash Report | B30: 20216090973 | C30: 2021 | D30: 2021050434 | E30: 11 | F30: (5) PDO/No Injury | G30: Rear End | H30: 8 | I30: BUT | J30: Not An Intersection | K30: SBUTSR00747**C | L30: 5.516 | M30: 8.187 | N30: SR747 | O30: SR129 | P30: 39.381768 | Q30: -84.45457 | R30: 43050 | S30: LIBERTY TOWNSHIP | T30: 3 | U30: 0 | V30: 0 | W30: 0 | X30: 0 | Y30: 3 | Z30: 0 | AA30: 3 | AB30: S | AC30: SR | AD30: Two Way Roadway | AF30: Other Principal Arterial Roads | AH30: No | AI30: 4 | AJ30: 3 | AK30: No | AL30: No | AM30: Yes | AN30: State Highway Agency | AO30: 44342 | AP30: 5 | AQ30: 7 | AR30: (4) Wednesday | AS30: Clear | AT30: Dry | AU30: Daylight | AV30: Straight Level | AW30: No | AX30: Yes | AY30: No | AZ30: No | BA30: No | BB30: No | BC30: No | BD30: No | BE30: No | BF30: No | BG30: No | BH30: Unknown or Not in Work Zone | BI30: Unknown or Not in Work Zone | BJ30: No | BK30: LIBERTY TOWNSHIP | BP30: SR | BQ30: 747 | BW30: SR | BX30: 129 | CB30: Intersection | CC30: Yes | CD30: 1 | CE30: North | CF30: South | CG30: No Turn | CH30: No Control | CI30: Passenger Car | CJ30: None | CK30: 30 | CL30: 45 | CM30: Straight Ahead | CN30: Following Too Closely/ACDA | CO30: Nothing Struck | CP30: Motor Vehicle In Transport | CV30: Data Not Valid or Not Provided | CW30: 33 | CX30: Male | CY30: Not Distracted | CZ30: 2 | DA30: North | DB30: South | DD30: Signal | DE30: Passenger Car | DF30: None | DG30: 0 | DH30: 45 | DI30: Slowing or Stopped In Traffic | DJ30: None | DK30: Motor Vehicle In Transport | DR30: 37 | DS30: Female | DT30: Not Distracted | DU30: 3 | DV30: Signal | DW30: Pick up | DX30: None | DY30: Slowing or Stopped In Traffic | DZ30: None | EA30: Motor Vehicle In Transport | EI30: 8230 | EK30: 164944 | EL30: State | EM30: https://hsip.dot.state.oh.us/api/report/20216090973 | EO30: Pathweb | EP30: Google Maps | EQ30: Mashed Map | ER30: MV | ES30: PDO | ET30: 0
A31: Crash Report | B31: 20216092294 | C31: 2021 | D31: 2021050537 | E31: 12 | F31: (2) Serious Injury Suspected | G31: Left Turn | H31: 8 | I31: BUT | J31: T-Intersection | K31: SBUTSR00747**C | L31: 5.409 | M31: 8.08 | N31: SR747 | O31: SR129 | P31: 39.380227 | Q31: -84.454751 | R31: 43050 | S31: LIBERTY TOWNSHIP | T31: 3 | U31: 0 | V31: 1 | W31: 1 | X31: 0 | Y31: 0 | Z31: 0 | AA31: 2 | AB31: S | AC31: SR | AD31: Two Way Roadway | AF31: Other Principal Arterial Roads | AH31: No | AI31: 4 | AJ31: 3 | AK31: No | AL31: No | AM31: Yes | AN31: State Highway Agency | AO31: 44347 | AP31: 5 | AQ31: 12 | AR31: (2) Monday | AS31: Clear | AT31: Dry | AU31: Daylight | AV31: Straight Grade | AW31: No | AX31: Yes | AY31: No | AZ31: No | BA31: No | BB31: No | BC31: No | BD31: No | BE31: No | BF31: No | BG31: No | BH31: Unknown or Not in Work Zone | BI31: Unknown or Not in Work Zone | BJ31: No | BK31: LIBERTY TOWNSHIP | BP31: SR | BQ31: 747 | BW31: SR | BX31: 129 | CB31: Intersection | CC31: Yes | CD31: 1 | CE31: North | CF31: East | CG31: Left Turn | CH31: No Control | CI31: Sport Utility Vehicle | CJ31: None | CK31: 10 | CL31: 55 | CM31: Making Left Turn | CN31: Failure to Yield | CO31: Guardrail Face | CP31: Motor Vehicle In Transport | CQ31: Guardrail Face | CV31: Data Not Valid or Not Provided | CW31: 50 | CX31: Female | CY31: Not Distracted | CZ31: 2 | DA31: South | DB31: North | DD31: No Control | DE31: Sport Utility Vehicle | DF31: None | DG31: 45 | DH31: 55 | DI31: Straight Ahead | DJ31: None | DK31: Motor Vehicle In Transport | DR31: 43 | DS31: Female | DT31: Not Distracted | EG31: a90bb998-0db2-4c4e-8fd6-93dd1a799340 | EH31: 52bfbff7-f06f-42c7-abd4-ccd485446c98 | EK31: 298688 | EL31: State | EM31: https://hsip.dot.state.oh.us/api/report/20216092294 | EO31: Pathweb | EP31: Google Maps | EQ31: Mashed Map | ER31: MV | ES31: FI | ET31: 0
A32: Crash Report | B32: 20216096660 | C32: 2021 | D32: 2021060063 | E32: 13 | F32: (5) PDO/No Injury | G32: Rear End | H32: 8 | I32: BUT | J32: Not An Intersection | K32: SBUTSR00747**C | L32: 5.48 | M32: 8.151 | N32: SR747 | O32: MP6 | P32: 39.381254 | Q32: -84.454622 | R32: 43050 | S32: LIBERTY TOWNSHIP | T32: 3 | U32: 0 | V32: 0 | W32: 0 | X32: 0 | Y32: 3 | Z32: 0 | AA32: 2 | AB32: S | AC32: SR | AD32: Two Way Roadway | AF32: Other Principal Arterial Roads | AH32: No | AI32: 4 | AJ32: 3 | AK32: No | AL32: No | AM32: Yes | AN32: State Highway Agency | AO32: 44351 | AP32: 6 | AQ32: 17 | AR32: (6) Friday | AS32: Clear | AT32: Dry | AU32: Daylight | AV32: Straight Grade | AW32: No | AX32: No | AY32: No | AZ32: No | BA32: No | BB32: No | BC32: No | BD32: No | BE32: No | BF32: Yes | BG32: No | BH32: Unknown or Not in Work Zone | BI32: Unknown or Not in Work Zone | BJ32: No | BK32: LIBERTY TOWNSHIP | BP32: SR | BQ32: 747 | BT32: 6 | CA32: 6 | CB32: Mile Post | CC32: Yes | CD32: 1 | CE32: North | CF32: South | CG32: No Turn | CH32: No Control | CI32: Passenger Car | CJ32: None | CK32: 35 | CL32: 55 | CM32: Straight Ahead | CN32: Following Too Closely/ACDA | CO32: Nothing Struck | CP32: Motor Vehicle In Transport | CV32: Data Not Valid or Not Provided | CW32: 17 | CX32: Male | CY32: Not Distracted | CZ32: 2 | DA32: North | DB32: South | DD32: No Control | DE32: Sport Utility Vehicle | DF32: None | DG32: 5 | DH32: 55 | DI32: Slowing or Stopped In Traffic | DJ32: None | DK32: Motor Vehicle In Transport | DR32: 54 | DS32: Female | DT32: Not Distracted | EI32: 8230 | EK32: 164944 | EL32: State | EM32: https://hsip.dot.state.oh.us/api/report/20216096660 | EO32: Pathweb | EP32: Google Maps | EQ32: Mashed Map | ER32: MV | ES32: PDO | ET32: 0.5
A33: Crash Report | B33: 20216103201 | C33: 2021 | D33: 2021060233 | E33: 14 | F33: (5) PDO/No Injury | G33: Angle | H33: 8 | I33: BUT | J33: 5 Or More Point Intersection | K33: SBUTSR00747**C | L33: 5.564 | M33: 8.235 | N33: SR747 | O33: SR129 | P33: 39.382474 | Q33: -84.454506 | R33: 43050 | S33: LIBERTY TOWNSHIP | T33: 3 | U33: 0 | V33: 0 | W33: 0 | X33: 0 | Y33: 2 | Z33: 0 | AA33: 2 | AB33: S | AC33: SR | AD33: Two Way Roadway | AF33: Minor Arterial Roads | AH33: No | AI33: 4 | AJ33: 3 | AK33: No | AL33: No | AM33: Yes | AN33: State Highway Agency | AO33: 44361 | AP33: 6 | AQ33: 16 | AR33: (2) Monday | AS33: Clear | AT33: Dry | AU33: Daylight | AV33: Straight Level | AW33: No | AX33: Yes | AY33: No | AZ33: No | BA33: No | BB33: No | BC33: No | BD33: No | BE33: No | BF33: No | BG33: No | BH33: Unknown or Not in Work Zone | BI33: Unknown or Not in Work Zone | BJ33: No | BK33: LIBERTY TOWNSHIP | BP33: SR | BQ33: 747 | BW33: SR | BX33: 129 | CB33: Intersection | CC33: Yes | CD33: 1 | CE33: East | CF33: South | CG33: Left Turn | CH33: Signal | CI33: Semi-Tractor | CJ33: None | CK33: 5 | CL33: 55 | CM33: Making Left Turn | CN33: Improper Turn | CO33: Nothing Struck | CP33: Motor Vehicle In Transport | CV33: Data Not Valid or Not Provided | CW33: 48 | CX33: Female | CY33: Not Distracted | CZ33: 2 | DA33: South | DB33: North | DD33: Signal | DE33: Pick up | DF33: None | DG33: 1 | DH33: 55 | DI33: Slowing or Stopped In Traffic | DJ33: None | DK33: Motor Vehicle In Transport | DR33: 50 | DS33: Male | DT33: Not Distracted | EG33: c62cf652-bfcd-4b55-91aa-5bbe405c1347 | EH33: 2cfb984a-5fed-47a4-9d68-03d05d29fdfe | EK33: 195579 | EL33: State | EM33: https://hsip.dot.state.oh.us/api/report/20216103201 | EO33: Pathweb | EP33: Google Maps | EQ33: Mashed Map | ER33: MV | ES33: PDO | ET33: 0.001
A34: Crash Report | B34: 20216120888 | C34: 2021 | D34: 2021070128 | E34: 15 | F34: (5) PDO/No Injury | G34: Rear End | H34: 8 | I34: BUT | J34: T-Intersection | K34: SBUTSR00747**C | L34: 5.442 | M34: 8.113 | N34: SR747 | O34: SR129 | P34: 39.380711 | Q34: -84.454695 | R34: 43050 | S34: LIBERTY TOWNSHIP | T34: 3 | U34: 0 | V34: 0 | W34: 0 | X34: 0 | Y34: 3 | Z34: 0 | AA34: 2 | AB34: S | AC34: SR | AD34: Two Way Roadway | AF34: Other Principal Arterial Roads | AH34: No | AI34: 4 | AJ34: 3 | AK34: No | AL34: No | AM34: Yes | AN34: State Highway Agency | AO34: 44384 | AP34: 7 | AQ34: 18 | AR34: (4) Wednesday | AS34: Rain | AT34: Wet | AU34: Daylight | AV34: Straight Grade | AW34: No | AX34: Yes | AY34: No | AZ34: No | BA34: No | BB34: No | BC34: No | BD34: No | BE34: No | BF34: Yes | BG34: No | BH34: Unknown or Not in Work Zone | BI34: Unknown or Not in Work Zone | BJ34: No | BK34: LIBERTY TOWNSHIP | BP34: SR | BQ34: 747 | BW34: SR | BX34: 129 | CB34: Intersection | CC34: Yes | CD34: 1 | CE34: North | CF34: South | CG34: No Turn | CH34: Signal | CI34: Pick up | CJ34: None | CK34: 5 | CL34: 55 | CM34: Straight Ahead | CN34: Following Too Closely/ACDA | CO34: Nothing Struck | CP34: Motor Vehicle In Transport | CV34: Data Not Valid or Not Provided | CW34: 58 | CX34: Male | CY34: Not Distracted | CZ34: 2 | DA34: North | DB34: South | DD34: Signal | DE34: Passenger Car | DF34: None | DG34: 5 | DH34: 55 | DI34: Slowing or Stopped In Traffic | DJ34: None | DK34: Motor Vehicle In Transport | DR34: 21 | DS34: Female | DT34: Not Distracted | EG34: a90bb998-0db2-4c4e-8fd6-93dd1a799340 | EH34: bd72f685-a0c5-4ca3-bf07-ec48c1e8d7a8 | EI34: 8230 | EK34: 164944 | EL34: State | EM34: https://hsip.dot.state.oh.us/api/report/20216120888 | EO34: Pathweb | EP34: Google Maps | EQ34: Mashed Map | ER34: MV | ES34: PDO | ET34: 0.009
A35: Crash Report | B35: 20216141754 | C35: 2021 | D35: 2021080118 | E35: 17 | F35: (4) Injury Possible | G35: Left Turn | H35: 8 | I35: BUT | J35: Four-Way Intersection | K35: SBUTSR00747**C | L35: 5.57 | M35: 8.241 | N35: SR747 | O35: SR129 | P35: 39.382564 | Q35: -84.454498 | R35: 43050 | S35: LIBERTY TOWNSHIP | T35: 3 | U35: 0 | V35: 0 | W35: 0 | X35: 3 | Y35: 0 | Z35: 0 | AA35: 2 | AB35: S | AC35: SR | AD35: Two Way Roadway | AF35: Minor Arterial Roads | AH35: No | AI35: 4 | AJ35: 3 | AK35: No | AL35: No | AM35: Yes | AN35: State Highway Agency | AO35: 44415 | AP35: 8 | AQ35: 12 | AR35: (7) Saturday | AS35: Cloudy | AT35: Dry | AU35: Daylight | AV35: Straight Level | AW35: No | AX35: Yes | AY35: No | AZ35: No | BA35: No | BB35: No | BC35: No | BD35: No | BE35: No | BF35: Yes | BG35: No | BH35: Unknown or Not in Work Zone | BI35: Unknown or Not in Work Zone | BJ35: No | BK35: HAMILTON | BP35: SR | BQ35: 747 | BW35: SR | BX35: 129 | CB35: Intersection | CC35: Yes | CD35: 1 | CE35: South | CF35: West | CG35: Left Turn | CH35: Signal | CI35: Passenger Car | CJ35: None | CK35: 10 | CL35: 55 | CM35: Making Left Turn | CN35: Failure to Yield | CO35: Nothing Struck | CP35: Motor Vehicle In Transport | CV35: Data Not Valid or Not Provided | CW35: 23 | CX35: Female | CY35: Not Distracted | CZ35: 2 | DA35: North | DB35: South | DD35: Signal | DE35: Passenger Car | DF35: None | DG35: 55 | DH35: 55 | DI35: Straight Ahead | DJ35: None | DK35: Motor Vehicle In Transport | DR35: 61 | DS35: Male | DT35: Not Distracted | EG35: c62cf652-bfcd-4b55-91aa-5bbe405c1347 | EH35: 2cfb984a-5fed-47a4-9d68-03d05d29fdfe | EK35: 195579 | EL35: State | EM35: https://hsip.dot.state.oh.us/api/report/20216141754 | EO35: Pathweb | EP35: Google Maps | EQ35: Mashed Map | ER35: MV | ES35: FI | ET35: 0
A36: Crash Report | B36: 20216145957 | C36: 2021 | D36: 2021080221 | E36: 18 | F36: (4) Injury Possible | G36: Left Turn | H36: 8 | I36: BUT | J36: Four-Way Intersection | K36: SBUTSR00747**C | L36: 5.444 | M36: 8.115 | N36: SR747 | O36: SR129 | P36: 39.38074 | Q36: -84.454691 | R36: 43050 | S36: LIBERTY TOWNSHIP | T36: 3 | U36: 0 | V36: 0 | W36: 0 | X36: 1 | Y36: 1 | Z36: 0 | AA36: 2 | AB36: S | AC36: SR | AD36: Two Way Roadway | AF36: Other Principal Arterial Roads | AH36: No | AI36: 4 | AJ36: 3 | AK36: No | AL36: No | AM36: Yes | AN36: State Highway Agency | AO36: 44420 | AP36: 8 | AQ36: 9 | AR36: (5) Thursday | AS36: Clear | AT36: Dry | AU36: Daylight | AV36: Straight Grade | AW36: No | AX36: Yes | AY36: No | AZ36: No | BA36: No | BB36: No | BC36: No | BD36: No | BE36: No | BF36: No | BG36: No | BH36: Unknown or Not in Work Zone | BI36: Unknown or Not in Work Zone | BJ36: No | BK36: LIBERTY TOWNSHIP | BP36: SR | BQ36: 747 | BW36: SR | BX36: 129 | CB36: Intersection | CC36: No | CD36: 1 | CE36: South | CF36: North | CG36: No Turn | CH36: Signal | CI36: Passenger Car | CJ36: None | CK36: 55 | CL36: 55 | CM36: Straight Ahead | CN36: Not Discernible | CO36: Nothing Struck | CP36: Motor Vehicle In Transport | CV36: Data Not Valid or Not Provided | CW36: 28 | CX36: Male | CY36: Not Distracted | CZ36: 2 | DA36: North | DB36: East | DD36: Signal | DE36: Passenger Car | DF36: None | DG36: 15 | DH36: 55 | DI36: Making Left Turn | DJ36: Not Discernible | DK36: Motor Vehicle In Transport | DR36: 61 | DS36: Male | DT36: Not Distracted | EG36: a90bb998-0db2-4c4e-8fd6-93dd1a799340 | EH36: bd72f685-a0c5-4ca3-bf07-ec48c1e8d7a8 | EI36: 8230 | EK36: 164944 | EL36: State | EM36: https://hsip.dot.state.oh.us/api/report/20216145957 | EO36: Pathweb | EP36: Google Maps | EQ36: Mashed Map | ER36: MV | ES36: FI | ET36: 0
A37: Crash Report | B37: 20216166894 | C37: 2021 | D37: 2021090127 | E37: 19 | F37: (4) Injury Possible | G37: Left Turn | H37: 8 | I37: BUT | J37: T-Intersection | K37: SBUTSR00747**C | L37: 5.573 | M37: 8.244 | N37: SR747 | O37: SR129 | P37: 39.382599 | Q37: -84.454495 | R37: 43050 | S37: LIBERTY TOWNSHIP | T37: 3 | U37: 0 | V37: 0 | W37: 0 | X37: 1 | Y37: 1 | Z37: 0 | AA37: 2 | AB37: S | AC37: SR | AD37: Two Way Roadway | AF37: Minor Arterial Roads | AH37: No | AI37: 4 | AJ37: 3 | AK37: No | AL37: No | AM37: Yes | AN37: State Highway Agency | AO37: 44448 | AP37: 9 | AQ37: 8 | AR37: (5) Thursday | AS37: Clear | AT37: Dry | AU37: Daylight | AV37: Straight Level | AW37: No | AX37: Yes | AY37: No | AZ37: No | BA37: No | BB37: No | BC37: No | BD37: No | BE37: Yes | BF37: No | BG37: No | BH37: Unknown or Not in Work Zone | BI37: Unknown or Not in Work Zone | BJ37: No | BK37: LIBERTY TOWNSHIP | BP37: SR | BQ37: 747 | BW37: SR | BX37: 129 | CB37: Intersection | CC37: Yes | CD37: 1 | CE37: South | CF37: West | CG37: Left Turn | CH37: Signal | CI37: Pick up | CJ37: None | CK37: 20 | CL37: 55 | CM37: Making Left Turn | CN37: Improper Turn | CO37: Nothing Struck | CP37: Motor Vehicle In Transport | CV37: Data Not Valid or Not Provided | CW37: 36 | CX37: Female | CY37: Not Distracted | CZ37: 2 | DA37: North | DB37: South | DD37: Signal | DE37: Sport Utility Vehicle | DF37: None | DG37: 45 | DH37: 55 | DI37: Straight Ahead | DJ37: None | DK37: Motor Vehicle In Transport | DR37: 75 | DS37: Male | DT37: Not Distracted | EG37: c62cf652-bfcd-4b55-91aa-5bbe405c1347 | EH37: 2cfb984a-5fed-47a4-9d68-03d05d29fdfe | EK37: 195579 | EL37: State | EM37: https://hsip.dot.state.oh.us/api/report/20216166894 | EO37: Pathweb | EP37: Google Maps | EQ37: Mashed Map | ER37: MV | ES37: FI | ET37: 0
A38: Crash Report | B38: 20216177296 | C38: 2021 | D38: 2021090352 | E38: 20 | F38: (4) Injury Possible | G38: Sideswipe - Passing | H38: 8 | I38: BUT | J38: T-Intersection | K38: SBUTSR00747**C | L38: 5.557 | M38: 8.228 | N38: SR747 | O38: SR129 | P38: 39.38237 | Q38: -84.454516 | R38: 43050 | S38: LIBERTY TOWNSHIP | T38: 3 | U38: 0 | V38: 0 | W38: 0 | X38: 1 | Y38: 1 | Z38: 0 | AA38: 2 | AB38: S | AC38: SR | AD38: Two Way Roadway | AF38: Other Principal Arterial Roads | AH38: No | AI38: 4 | AJ38: 3 | AK38: No | AL38: No | AM38: Yes | AN38: State Highway Agency | AO38: 44460 | AP38: 9 | AQ38: 17 | AR38: (3) Tuesday | AS38: Cloudy | AT38: Wet | AU38: Daylight | AV38: Straight Level | AW38: No | AX38: Yes | AY38: No | AZ38: No | BA38: No | BB38: No | BC38: No | BD38: No | BE38: No | BF38: No | BG38: No | BH38: Unknown or Not in Work Zone | BI38: Unknown or Not in Work Zone | BJ38: No | BK38: LIBERTY TOWNSHIP | BP38: SR | BQ38: 747 | BW38: SR | BX38: 129 | CB38: Intersection | CC38: Yes | CD38: 1 | CE38: South | CF38: North | CG38: No Turn | CH38: No Control | CI38: Passenger Car | CJ38: None | CK38: 10 | CL38: 55 | CM38: Slowing or Stopped In Traffic | CN38: Following Too Closely/ACDA | CO38: Nothing Struck | CP38: Motor Vehicle In Transport | CV38: Data Not Valid or Not Provided | CW38: 31 | CX38: Female | CY38: Not Distracted | CZ38: 2 | DA38: South | DB38: North | DD38: No Control | DE38: Passenger Car | DF38: None | DG38: 1 | DH38: 55 | DI38: Slowing or Stopped In Traffic | DJ38: None | DK38: Motor Vehicle In Transport | DR38: 44 | DS38: Male | DT38: Not Distracted | EG38: c62cf652-bfcd-4b55-91aa-5bbe405c1347 | EH38: 28876229-2e54-4476-ba5f-d60d2be78f07 | EI38: 8230 | EK38: 164944 | EL38: State | EM38: https://hsip.dot.state.oh.us/api/report/20216177296 | EO38: Pathweb | EP38: Google Maps | EQ38: Mashed Map | ER38: MV | ES38: FI | ET38: 0.01
A39: Crash Report | B39: 20216179997 | C39: 2021 | D39: 2021090443 | E39: 21 | F39: (3) Minor Injury Suspected | G39: Right Turn | H39: 8 | I39: BUT | J39: T-Intersection | K39: SBUTSR00747**C | L39: 5.577 | M39: 8.248 | N39: SR747 | O39: SR129 | P39: 39.382663 | Q39: -84.454488 | R39: 43050 | S39: LIBERTY TOWNSHIP | T39: 3 | U39: 0 | V39: 0 | W39: 1 | X39: 0 | Y39: 1 | Z39: 0 | AA39: 2 | AB39: S | AC39: SR | AD39: Two Way Roadway | AF39: Minor Arterial Roads | AH39: No | AI39: 4 | AJ39: 3 | AK39: No | AL39: No | AM39: Yes | AN39: State Highway Agency | AO39: 44465 | AP39: 9 | AQ39: 17 | AR39: (1) Sunday | AS39: Clear | AT39: Dry | AU39: Daylight | AV39: Curve Grade | AW39: No | AX39: Yes | AY39: No | AZ39: No | BA39: No | BB39: No | BC39: No | BD39: No | BE39: No | BF39: No | BG39: No | BH39: Unknown or Not in Work Zone | BI39: Unknown or Not in Work Zone | BJ39: No | BK39: LIBERTY TOWNSHIP | BP39: SR | BQ39: 747 | BW39: SR | BX39: 129 | CB39: Intersection | CC39: Yes | CD39: 1 | CE39: East | CF39: North | CG39: Right Turn | CH39: Signal | CI39: Passenger Van (minivan) | CJ39: None | CK39: 5 | CL39: 55 | CM39: Making Right Turn | CN39: Improper Lane Change | CO39: Nothing Struck | CP39: Motor Vehicle In Transport | CV39: Data Not Valid or Not Provided | CW39: 58 | CX39: Female | CY39: Not Distracted | CZ39: 2 | DA39: East | DB39: North | DD39: Signal | DE39: Pick up | DF39: None | DG39: 5 | DH39: 55 | DI39: Making Right Turn | DJ39: None | DK39: Motor Vehicle In Transport | DR39: 43 | DS39: Male | DT39: Not Distracted | EG39: c62cf652-bfcd-4b55-91aa-5bbe405c1347 | EH39: 2cfb984a-5fed-47a4-9d68-03d05d29fdfe | EK39: 195579 | EL39: State | EM39: https://hsip.dot.state.oh.us/api/report/20216179997 | EO39: Pathweb | EP39: Google Maps | EQ39: Mashed Map | ER39: MV | ES39: FI | ET39: 0
A40: Crash Report | B40: 20216200747 | C40: 2021 | D40: 2021100384 | E40: 22 | F40: (5) PDO/No Injury | G40: Right Turn | H40: 8 | I40: BUT | J40: Not An Intersection | K40: SBUTSR00747**C | L40: 5.576 | M40: 8.247 | N40: SR747 | O40: SR129 | P40: 39.38264 | Q40: -84.45449 | R40: 43050 | S40: LIBERTY TOWNSHIP | T40: 3 | U40: 0 | V40: 0 | W40: 0 | X40: 0 | Y40: 3 | Z40: 0 | AA40: 2 | AB40: S | AC40: SR | AD40: Two Way Roadway | AF40: Minor Arterial Roads | AH40: No | AI40: 4 | AJ40: 3 | AK40: No | AL40: No | AM40: Yes | AN40: State Highway Agency | AO40: 44489 | AP40: 10 | AQ40: 16 | AR40: (4) Wednesday | AS40: Clear | AT40: Dry | AU40: Daylight | AV40: Straight Level | AW40: No | AX40: Yes | AY40: No | AZ40: No | BA40: No | BB40: No | BC40: No | BD40: No | BE40: No | BF40: No | BG40: No | BH40: Unknown or Not in Work Zone | BI40: Unknown or Not in Work Zone | BJ40: No | BK40: LIBERTY TOWNSHIP | BP40: SR | BQ40: 747 | BW40: SR | BX40: 129 | CB40: Intersection | CC40: Yes | CD40: 1 | CE40: East | CF40: North | CG40: Right Turn | CH40: Signal | CI40: Pick up | CJ40: None | CK40: 15 | CL40: 55 | CM40: Making Right Turn | CN40: Left of Center | CO40: Nothing Struck | CP40: Motor Vehicle In Transport | CV40: Data Not Valid or Not Provided | CW40: 31 | CX40: Male | CY40: Not Distracted | CZ40: 2 | DA40: East | DB40: North | DD40: Signal | DE40: Cargo Van | DF40: None | DG40: 15 | DH40: 55 | DI40: Making Right Turn | DJ40: None | DK40: Motor Vehicle In Transport | DR40: 37 | DS40: Male | DT40: Not Distracted | EG40: c62cf652-bfcd-4b55-91aa-5bbe405c1347 | EH40: 2cfb984a-5fed-47a4-9d68-03d05d29fdfe | EK40: 195579 | EL40: State | EM40: https://hsip.dot.state.oh.us/api/report/20216200747 | EO40: Pathweb | EP40: Google Maps | EQ40: Mashed Map | ER40: MV | ES40: PDO | ET40: 0
A41: Crash Report | B41: 20216203901 | C41: 2021 | D41: 2021100427 | E41: 23 | F41: (5) PDO/No Injury | G41: Angle | H41: 8 | I41: BUT | J41: Four-Way Intersection | K41: SBUTSR00747**C | L41: 5.567 | M41: 8.238 | N41: SR747 | O41: SR129 | P41: 39.382516 | Q41: -84.454502 | R41: 43050 | S41: LIBERTY TOWNSHIP | T41: 3 | U41: 0 | V41: 0 | W41: 0 | X41: 0 | Y41: 4 | Z41: 0 | AA41: 2 | AB41: S | AC41: SR | AD41: Two Way Roadway | AF41: Minor Arterial Roads | AH41: No | AI41: 4 | AJ41: 3 | AK41: No | AL41: No | AM41: Yes | AN41: State Highway Agency | AO41: 44491 | AP41: 10 | AQ41: 18 | AR41: (6) Friday | AS41: Rain | AT41: Wet | AU41: Dawn/Dusk | AV41: Straight Level | AW41: No | AX41: Yes | AY41: No | AZ41: No | BA41: No | BB41: No | BC41: No | BD41: No | BE41: Yes | BF41: No | BG41: No | BH41: Unknown or Not in Work Zone | BI41: Unknown or Not in Work Zone | BJ41: No | BK41: LIBERTY TOWNSHIP | BP41: SR | BQ41: 747 | BW41: SR | BX41: 129 | CB41: Intersection | CC41: No | CD41: 1 | CE41: East | CF41: South | CG41: Left Turn | CH41: Signal | CI41: Passenger Car | CJ41: None | CK41: 15 | CL41: 55 | CM41: Making Left Turn | CN41: None | CO41: Nothing Struck | CP41: Motor Vehicle In Transport | CV41: Data Not Valid or Not Provided | CW41: 72 | CX41: Male | CY41: Not Distracted | CZ41: 2 | DA41: South | DB41: North | DD41: Signal | DE41: Van (9-15 Seats) | DF41: None | DG41: 20 | DH41: 55 | DI41: Straight Ahead | DJ41: None | DK41: Motor Vehicle In Transport | DR41: 36 | DS41: Female | DT41: Not Distracted | EG41: c62cf652-bfcd-4b55-91aa-5bbe405c1347 | EH41: 2cfb984a-5fed-47a4-9d68-03d05d29fdfe | EK41: 195579 | EL41: State | EM41: https://hsip.dot.state.oh.us/api/report/20216203901 | EO41: Pathweb | EP41: Google Maps | EQ41: Mashed Map | ER41: MV | ES41: PDO | ET41: 0
A42: Crash Report | B42: 20216209543 | C42: 2021 | D42: 2021100579 | E42: 24 | F42: (5) PDO/No Injury | G42: Left Turn | H42: 8 | I42: BUT | J42: Four-Way Intersection | K42: SBUTSR00747**C | L42: 5.428 | M42: 8.099 | N42: SR747 | O42: SR129 | P42: 39.380506 | Q42: -84.454722 | R42: 43050 | S42: LIBERTY TOWNSHIP | T42: 3 | U42: 0 | V42: 0 | W42: 0 | X42: 0 | Y42: 2 | Z42: 0 | AA42: 2 | AB42: S | AC42: SR | AD42: Two Way Roadway | AF42: Other Principal Arterial Roads | AH42: No | AI42: 4 | AJ42: 3 | AK42: No | AL42: No | AM42: Yes | AN42: State Highway Agency | AO42: 44499 | AP42: 10 | AQ42: 12 | AR42: (7) Saturday | AS42: Rain | AT42: Wet | AU42: Daylight | AV42: Straight Grade | AW42: No | AX42: Yes | AY42: No | AZ42: No | BA42: No | BB42: No | BC42: No | BD42: No | BE42: No | BF42: Yes | BG42: No | BH42: Unknown or Not in Work Zone | BI42: Unknown or Not in Work Zone | BJ42: No | BK42: LIBERTY TOWNSHIP | BP42: SR | BQ42: 747 | BW42: SR | BX42: 129 | CB42: Intersection | CC42: Yes | CD42: 1 | CE42: North | CF42: East | CG42: Left Turn | CH42: Signal | CI42: Passenger Car | CJ42: Other / Unknown | CK42: 10 | CL42: 55 | CM42: Making Left Turn | CN42: Failure to Yield | CO42: Nothing Struck | CP42: Motor Vehicle In Transport | CV42: Data Not Valid or Not Provided | CW42: 25 | CX42: Male | CY42: Not Distracted | CZ42: 2 | DA42: South | DB42: North | DD42: Signal | DE42: Passenger Car | DG42: 55 | DH42: 55 | DI42: Straight Ahead | DJ42: None | DK42: Motor Vehicle In Transport | DR42: 0 | EG42: a90bb998-0db2-4c4e-8fd6-93dd1a799340 | EH42: 52bfbff7-f06f-42c7-abd4-ccd485446c98 | EK42: 298688 | EL42: State | EM42: https://hsip.dot.state.oh.us/api/report/20216209543 | EO42: Pathweb | EP42: Google Maps | EQ42: Mashed Map | ER42: MV | ES42: PDO | ET42: 0
A43: Crash Report | B43: 20216211605 | C43: 2021 | D43: 2021110017 | E43: 25 | F43: (5) PDO/No Injury | G43: Angle | H43: 8 | I43: BUT | J43: Four-Way Intersection | K43: SBUTSR00747**C | L43: 5.57 | M43: 8.241 | N43: SR747 | O43: SR129 | P43: 39.382552 | Q43: -84.454499 | R43: 43050 | S43: LIBERTY TOWNSHIP | T43: 3 | U43: 0 | V43: 0 | W43: 0 | X43: 0 | Y43: 3 | Z43: 0 | AA43: 2 | AB43: S | AC43: SR | AD43: Two Way Roadway | AF43: Minor Arterial Roads | AH43: No | AI43: 4 | AJ43: 3 | AK43: No | AL43: No | AM43: Yes | AN43: State Highway Agency | AO43: 44501 | AP43: 11 | AQ43: 22 | AR43: (2) Monday | AS43: Clear | AT43: Dry | AU43: Dark - Lighted Roadway | AV43: Straight Level | AW43: No | AX43: Yes | AY43: No | AZ43: No | BA43: No | BB43: No | BC43: No | BD43: No | BE43: No | BF43: Yes | BG43: No | BH43: Unknown or Not in Work Zone | BI43: Unknown or Not in Work Zone | BJ43: No | BK43: LIBERTY TOWNSHIP | BP43: SR | BQ43: 747 | BW43: SR | BX43: 129 | CB43: Intersection | CC43: Yes | CD43: 1 | CE43: South | CF43: North | CG43: No Turn | CH43: Signal | CI43: Sport Utility Vehicle | CJ43: None | CK43: 45 | CL43: 55 | CM43: Straight Ahead | CN43: Ran Red Light | CO43: Nothing Struck | CP43: Motor Vehicle In Transport | CV43: Data Not Valid or Not Provided | CW43: 18 | CX43: Male | CY43: Not Distracted | CZ43: 2 | DA43: East | DB43: South | DD43: Signal | DE43: Passenger Car | DF43: None | DG43: 15 | DH43: 55 | DI43: Making Left Turn | DJ43: None | DK43: Motor Vehicle In Transport | DR43: 56 | DS43: Male | DT43: Not Distracted | EG43: c62cf652-bfcd-4b55-91aa-5bbe405c1347 | EH43: 2cfb984a-5fed-47a4-9d68-03d05d29fdfe | EK43: 195579 | EL43: State | EM43: https://hsip.dot.state.oh.us/api/report/20216211605 | EO43: Pathweb | EP43: Google Maps | EQ43: Mashed Map | ER43: MV | ES43: PDO | ET43: 0
A44: Crash Report | B44: 20216214440 | C44: 2021 | D44: 2021110050 | E44: 26 | F44: (3) Minor Injury Suspected | G44: Angle | H44: 8 | I44: BUT | J44: 5 Or More Point Intersection | K44: SBUTSR00747**C | L44: 5.583 | M44: 8.254 | N44: SR747 | O44: SR129 | P44: 39.382743 | Q44: -84.45448 | R44: 43050 | S44: LIBERTY TOWNSHIP | T44: 3 | U44: 0 | V44: 0 | W44: 1 | X44: 0 | Y44: 3 | Z44: 0 | AA44: 2 | AB44: S | AC44: SR | AD44: Two Way Roadway | AF44: Minor Arterial Roads | AH44: No | AI44: 4 | AJ44: 3 | AK44: No | AL44: No | AM44: Yes | AN44: State Highway Agency | AO44: 44503 | AP44: 11 | AQ44: 14 | AR44: (4) Wednesday | AS44: Clear | AT44: Dry | AU44: Daylight | AV44: Straight Level | AW44: No | AX44: Yes | AY44: No | AZ44: No | BA44: No | BB44: No | BC44: No | BD44: No | BE44: No | BF44: No | BG44: No | BH44: Unknown or Not in Work Zone | BI44: Unknown or Not in Work Zone | BJ44: No | BK44: LIBERTY TOWNSHIP | BP44: SR | BQ44: 747 | BW44: SR | BX44: 129 | CB44: Intersection | CC44: Yes | CD44: 1 | CE44: South | CF44: North | CG44: No Turn | CH44: Signal | CI44: Passenger Car | CJ44: None | CK44: 55 | CL44: 55 | CM44: Straight Ahead | CN44: Ran Red Light | CO44: Nothing Struck | CP44: Motor Vehicle In Transport | CV44: Data Not Valid or Not Provided | CW44: 46 | CX44: Female | CY44: Not Distracted | CZ44: 2 | DA44: East | DB44: South | DD44: Signal | DE44: Sport Utility Vehicle | DF44: None | DG44: 15 | DH44: 65 | DI44: Making Left Turn | DJ44: None | DK44: Motor Vehicle In Transport | DR44: 37 | DS44: Female | DT44: Not Distracted | EG44: c62cf652-bfcd-4b55-91aa-5bbe405c1347 | EH44: 2cfb984a-5fed-47a4-9d68-03d05d29fdfe | EK44: 195579 | EL44: State | EM44: https://hsip.dot.state.oh.us/api/report/20216214440 | EO44: Pathweb | EP44: Google Maps | EQ44: Mashed Map | ER44: MV | ES44: FI | ET44: 0
A45: Crash Report | B45: 20216230740 | C45: 2021 | D45: 2021110459 | E45: 27 | F45: (4) Injury Possible | G45: Angle | H45: 8 | I45: BUT | J45: 5 Or More Point Intersection | K45: SBUTSR00747**C | L45: 5.399 | M45: 8.07 | N45: SR747 | O45: SR129 | P45: 39.380085 | Q45: -84.454765 | R45: 43050 | S45: LIBERTY TOWNSHIP | T45: 3 | U45: 0 | V45: 0 | W45: 0 | X45: 1 | Y45: 1 | Z45: 0 | AA45: 2 | AB45: S | AC45: SR | AD45: Two Way Roadway | AF45: Other Principal Arterial Roads | AH45: No | AI45: 4 | AJ45: 3 | AK45: No | AL45: No | AM45: Yes | AN45: State Highway Agency | AO45: 44523 | AP45: 11 | AQ45: 9 | AR45: (3) Tuesday | AS45: Clear | AT45: Dry | AU45: Daylight | AV45: Straight Grade | AW45: No | AX45: Yes | AY45: No | AZ45: No | BA45: No | BB45: No | BC45: No | BD45: No | BE45: Yes | BF45: No | BG45: No | BH45: Unknown or Not in Work Zone | BI45: Unknown or Not in Work Zone | BJ45: No | BK45: LIBERTY TOWNSHIP | BP45: SR | BQ45: 747 | BW45: SR | BX45: 129 | CB45: Intersection | CC45: Yes | CD45: 1 | CE45: North | CF45: South | CG45: No Turn | CH45: Signal | CI45: Pick up | CJ45: None | CK45: 25 | CL45: 55 | CM45: Slowing or Stopped In Traffic | CN45: Ran Red Light | CO45: Nothing Struck | CP45: Motor Vehicle In Transport | CV45: Data Not Valid or Not Provided | CW45: 27 | CX45: Male | CY45: Not Distracted | CZ45: 2 | DA45: West | DB45: North | DD45: Signal | DE45: Passenger Car | DF45: None | DG45: 10 | DH45: 55 | DI45: Making Left Turn | DJ45: None | DK45: Motor Vehicle In Transport | DR45: 67 | DS45: Male | DT45: Not Distracted | EG45: a90bb998-0db2-4c4e-8fd6-93dd1a799340 | EH45: 52bfbff7-f06f-42c7-abd4-ccd485446c98 | EK45: 298688 | EL45: State | EM45: https://hsip.dot.state.oh.us/api/report/20216230740 | EO45: Pathweb | EP45: Google Maps | EQ45: Mashed Map | ER45: MV | ES45: FI | ET45: 0
A46: Crash Report | B46: 20225018971 | C46: 2022 | D46: 09-0022-09 | E46: 31 | F46: (5) PDO/No Injury | G46: Rear End | H46: 8 | I46: BUT | J46: Not An Intersection | K46: SBUTSR00747**C | L46: 5.549 | M46: 8.22 | N46: SR747 | O46: SR129 | P46: 39.382253 | Q46: -84.454526 | R46: 43050 | S46: LIBERTY TOWNSHIP | T46: 3 | U46: 0 | V46: 0 | W46: 0 | X46: 0 | Y46: 2 | Z46: 0 | AA46: 2 | AB46: S | AC46: SR | AD46: Two Way Roadway | AF46: Other Principal Arterial Roads | AH46: No | AI46: 4 | AJ46: 3 | AK46: No | AL46: No | AM46: Yes | AN46: State Highway Agency | AO46: 44588 | AP46: 1 | AQ46: 7 | AR46: (5) Thursday | AS46: Clear | AT46: Dry | AU46: Dawn/Dusk | AV46: Straight Level | AW46: No | AX46: Yes | AY46: No | AZ46: No | BA46: No | BB46: No | BC46: No | BD46: No | BE46: No | BF46: Yes | BG46: No | BH46: Unknown or Not in Work Zone | BI46: Unknown or Not in Work Zone | BJ46: No | BK46: LIBERTY TOWNSHIP | BP46: SR | BQ46: 747 | BW46: SR | BX46: 129 | CB46: Intersection | CC46: Yes | CD46: 1 | CE46: North | CF46: South | CG46: No Turn | CH46: No Control | CI46: Pick up | CJ46: None | CK46: 15 | CL46: 55 | CM46: Straight Ahead | CN46: Following Too Closely/ACDA | CO46: Nothing Struck | CP46: Motor Vehicle In Transport | CV46: Data Not Valid or Not Provided | CW46: 59 | CX46: Male | CY46: Not Distracted | CZ46: 2 | DA46: North | DB46: South | DD46: No Control | DE46: Sport Utility Vehicle | DF46: None | DG46: 0 | DH46: 55 | DI46: Slowing or Stopped In Traffic | DJ46: None | DK46: Motor Vehicle In Transport | DR46: 20 | DS46: Male | DT46: Not Distracted | EG46: c62cf652-bfcd-4b55-91aa-5bbe405c1347 | EH46: 28876229-2e54-4476-ba5f-d60d2be78f07 | EI46: 8230 | EK46: 164944 | EL46: State | EM46: https://hsip.dot.state.oh.us/api/report/20225018971 | EO46: Pathweb | EP46: Google Maps | EQ46: Mashed Map | ER46: MV | ES46: PDO | ET46: 0.019
A47: Crash Report | B47: 20226001505 | C47: 2022 | D47: 2022010079 | E47: 32 | F47: (5) PDO/No Injury | G47: Rear End | H47: 8 | I47: BUT | J47: T-Intersection | K47: SBUTSR00747**C | L47: 5.443 | M47: 8.114 | N47: SR747 | O47: SR129 | P47: 39.380726 | Q47: -84.454693 | R47: 43050 | S47: LIBERTY TOWNSHIP | T47: 3 | U47: 0 | V47: 0 | W47: 0 | X47: 0 | Y47: 5 | Z47: 0 | AA47: 2 | AB47: S | AC47: SR | AD47: Two Way Roadway | AF47: Other Principal Arterial Roads | AH47: No | AI47: 4 | AJ47: 3 | AK47: No | AL47: No | AM47: Yes | AN47: State Highway Agency | AO47: 44566 | AP47: 1 | AQ47: 15 | AR47: (4) Wednesday | AS47: Clear | AT47: Dry | AU47: Daylight | AV47: Straight Level | AW47: No | AX47: Yes | AY47: No | AZ47: No | BA47: No | BB47: No | BC47: No | BD47: No | BE47: No | BF47: Yes | BG47: No | BH47: Unknown or Not in Work Zone | BI47: Unknown or Not in Work Zone | BJ47: No | BK47: LIBERTY TOWNSHIP | BP47: SR | BQ47: 747 | BW47: SR | BX47: 129 | CB47: Intersection | CC47: Yes | CD47: 1 | CE47: South | CF47: North | CG47: No Turn | CH47: Signal | CI47: Sport Utility Vehicle | CJ47: None | CK47: 15 | CL47: 55 | CM47: Straight Ahead | CN47: None | CO47: Nothing Struck | CP47: Motor Vehicle In Transport | CV47: Data Not Valid or Not Provided | CW47: 16 | CX47: Female | CY47: Not Distracted | CZ47: 2 | DA47: South | DB47: North | DD47: Signal | DE47: Sport Utility Vehicle | DF47: None | DG47: 0 | DH47: 55 | DI47: Slowing or Stopped In Traffic | DJ47: None | DK47: Motor Vehicle In Transport | DR47: 52 | DS47: Male | DT47: Not Distracted | EG47: a90bb998-0db2-4c4e-8fd6-93dd1a799340 | EH47: bd72f685-a0c5-4ca3-bf07-ec48c1e8d7a8 | EI47: 8230 | EK47: 164944 | EL47: State | EM47: https://hsip.dot.state.oh.us/api/report/20226001505 | EO47: Pathweb | EP47: Google Maps | EQ47: Mashed Map | ER47: MV | ES47: PDO | ET47: 0
A48: Crash Report | B48: 20226008488 | C48: 2022 | D48: 2022010308 | E48: 33 | F48: (3) Minor Injury Suspected | G48: Rear End | H48: 8 | I48: BUT | J48: T-Intersection | K48: SBUTSR00747**C | L48: 5.437 | M48: 8.108 | N48: SR747 | O48: SR129 | P48: 39.380627 | Q48: -84.454706 | R48: 43050 | S48: LIBERTY TOWNSHIP | T48: 3 | U48: 0 | V48: 0 | W48: 1 | X48: 0 | Y48: 1 | Z48: 0 | AA48: 2 | AB48: S | AC48: SR | AD48: Two Way Roadway | AF48: Other Principal Arterial Roads | AH48: No | AI48: 4 | AJ48: 3 | AK48: No | AL48: No | AM48: Yes | AN48: State Highway Agency | AO48: 44580 | AP48: 1 | AQ48: 9 | AR48: (4) Wednesday | AS48: Cloudy | AT48: Dry | AU48: Daylight | AV48: Straight Grade | AW48: No | AX48: Yes | AY48: No | AZ48: No | BA48: No | BB48: No | BC48: No | BD48: No | BE48: No | BF48: No | BG48: No | BH48: Unknown or Not in Work Zone | BI48: Unknown or Not in Work Zone | BJ48: No | BK48: LIBERTY TOWNSHIP | BP48: SR | BQ48: 747 | BW48: SR | BX48: 129 | CB48: Intersection | CC48: Yes | CD48: 1 | CE48: North | CF48: South | CG48: No Turn | CH48: Signal | CI48: Sport Utility Vehicle | CJ48: None | CK48: 10 | CL48: 55 | CM48: Straight Ahead | CN48: Following Too Closely/ACDA | CO48: Nothing Struck | CP48: Motor Vehicle In Transport | CV48: Data Not Valid or Not Provided | CW48: 54 | CX48: Male | CY48: Not Distracted | CZ48: 2 | DA48: North | DB48: South | DD48: Signal | DE48: Passenger Car | DF48: None | DG48: 0 | DH48: 55 | DI48: Slowing or Stopped In Traffic | DJ48: None | DK48: Motor Vehicle In Transport | DR48: 42 | DS48: Female | DT48: Not Distracted | EG48: a90bb998-0db2-4c4e-8fd6-93dd1a799340 | EH48: bd72f685-a0c5-4ca3-bf07-ec48c1e8d7a8 | EI48: 8230 | EK48: 164944 | EL48: State | EM48: https://hsip.dot.state.oh.us/api/report/20226008488 | EO48: Pathweb | EP48: Google Maps | EQ48: Mashed Map | ER48: MV | ES48: FI | ET48: 0.005
A49: Crash Report | B49: 20226009477 | C49: 2022 | D49: 2022010339 | E49: 34 | F49: (5) PDO/No Injury | G49: Rear End | H49: 8 | I49: BUT | J49: T-Intersection | K49: SBUTSR00747**C | L49: 5.539 | M49: 8.21 | N49: SR747 | O49: SR129 | P49: 39.382107 | Q49: -84.45454 | R49: 43050 | S49: LIBERTY TOWNSHIP | T49: 3 | U49: 0 | V49: 0 | W49: 0 | X49: 0 | Y49: 2 | Z49: 0 | AA49: 2 | AB49: S | AC49: SR | AD49: Two Way Roadway | AF49: Other Principal Arterial Roads | AH49: No | AI49: 4 | AJ49: 3 | AK49: No | AL49: No | AM49: Yes | AN49: State Highway Agency | AO49: 44582 | AP49: 1 | AQ49: 7 | AR49: (6) Friday | AS49: Cloudy | AT49: Dry | AU49: Dawn/Dusk | AV49: Straight Grade | AW49: No | AX49: Yes | AY49: No | AZ49: No | BA49: No | BB49: No | BC49: No | BD49: No | BE49: Yes | BF49: No | BG49: No | BH49: Unknown or Not in Work Zone | BI49: Unknown or Not in Work Zone | BJ49: No | BK49: LIBERTY TOWNSHIP | BP49: SR | BQ49: 747 | BW49: SR | BX49: 129 | CB49: Intersection | CC49: Yes | CD49: 1 | CE49: North | CF49: South | CG49: No Turn | CH49: No Control | CI49: Passenger Car | CJ49: None | CK49: 40 | CL49: 55 | CM49: Straight Ahead | CN49: Following Too Closely/ACDA | CO49: Nothing Struck | CP49: Motor Vehicle In Transport | CV49: Data Not Valid or Not Provided | CW49: 70 | CX49: Male | CY49: Not Distracted | CZ49: 2 | DA49: North | DB49: South | DD49: No Control | DE49: Sport Utility Vehicle | DF49: None | DG49: 0 | DH49: 55 | DI49: Slowing or Stopped In Traffic | DJ49: None | DK49: Motor Vehicle In Transport | DR49: 43 | DS49: Male | DT49: Not Distracted | EG49: c62cf652-bfcd-4b55-91aa-5bbe405c1347 | EH49: 28876229-2e54-4476-ba5f-d60d2be78f07 | EI49: 8230 | EK49: 164944 | EL49: State | EM49: https://hsip.dot.state.oh.us/api/report/20226009477 | EO49: Pathweb | EP49: Google Maps | EQ49: Mashed Map | ER49: MV | ES49: PDO | ET49: 0
A50: Crash Report | B50: 20226024947 | C50: 2022 | D50: 2022020183 | E50: 35 | F50: (5) PDO/No Injury | G50: Rear End | H50: 8 | I50: BUT | J50: Not An Intersection | K50: SBUTSR00747**C | L50: 5.48 | M50: 8.151 | N50: SR747 | O50: MP6 | P50: 39.381254 | Q50: -84.454622 | R50: 43050 | S50: LIBERTY TOWNSHIP | T50: 3 | U50: 0 | V50: 0 | W50: 0 | X50: 0 | Y50: 2 | Z50: 0 | AA50: 2 | AB50: S | AC50: SR | AD50: Two Way Roadway | AF50: Other Principal Arterial Roads | AH50: No | AI50: 4 | AJ50: 3 | AK50: No | AL50: No | AM50: Yes | AN50: State Highway Agency | AO50: 44603 | AP50: 2 | AQ50: 7 | AR50: (6) Friday | AS50: Cloudy | AT50: Dry | AU50: Dark - Lighted Roadway | AV50: Straight Level | AW50: No | AX50: No | AY50: No | AZ50: No | BA50: No | BB50: No | BC50: No | BD50: No | BE50: No | BF50: No | BG50: No | BH50: Unknown or Not in Work Zone | BI50: Unknown or Not in Work Zone | BJ50: No | BK50: LIBERTY TOWNSHIP | BP50: SR | BQ50: 747 | BT50: 6 | CA50: 6 | CB50: Mile Post | CC50: Yes | CD50: 1 | CE50: North | CF50: South | CG50: No Turn | CH50: No Control | CI50: Sport Utility Vehicle | CJ50: Other / Unknown | CK50: 0 | CL50: 55 | CM50: Straight Ahead | CN50: Not Discernible | CO50: Nothing Struck | CP50: Motor Vehicle In Transport | CV50: Data Not Valid or Not Provided | CW50: 0 | CX50: Unknown | CY50: Other / Unknown | CZ50: 2 | DA50: North | DB50: South | DD50: No Control | DE50: Pick up | DF50: None | DG50: 1 | DH50: 55 | DI50: Slowing or Stopped In Traffic | DJ50: None | DK50: Motor Vehicle In Transport | DR50: 54 | DS50: Male | DT50: Not Distracted | EI50: 8230 | EK50: 164944 | EL50: State | EM50: https://hsip.dot.state.oh.us/api/report/20226024947 | EO50: Pathweb | EP50: Google Maps | EQ50: Mashed Map | ER50: MV | ES50: PDO | ET50: 0.5
A51: Crash Report | B51: 20226033717 | C51: 2022 | D51: 2022020294 | E51: 36 | F51: (5) PDO/No Injury | G51: Rear End | H51: 8 | I51: BUT | J51: Off Ramp | K51: SBUTRA09035**C | L51: 0.158 | M51: 0.158 | N51: RA9035 | O51: SR747 | P51: 39.380549 | Q51: -84.454958 | R51: 43050 | S51: LIBERTY TOWNSHIP | T51: 3 | U51: 0 | V51: 0 | W51: 0 | X51: 0 | Y51: 2 | Z51: 0 | AA51: 2 | AB51: S | AC51: RA | AD51: Ramp | AF51: Interstate Route | AH51: No | AJ51: 1 | AK51: Yes | AL51: Yes | AM51: Yes | AN51: State Highway Agency | AO51: 44610 | AP51: 2 | AQ51: 19 | AR51: (6) Friday | AS51: Clear | AT51: Dry | AU51: Dark - Lighted Roadway | AV51: Straight Grade | AW51: No | AX51: Yes | AY51: No | AZ51: No | BA51: No | BB51: No | BC51: No | BD51: No | BE51: No | BF51: Yes | BG51: No | BH51: Unknown or Not in Work Zone | BI51: Unknown or Not in Work Zone | BJ51: No | BK51: LIBERTY TOWNSHIP | BP51: SR | BQ51: 129 | BW51: SR | BX51: 747 | CB51: Intersection | CC51: Yes | CD51: 1 | CE51: East | CF51: West | CG51: No Turn | CH51: No Control | CI51: Passenger Car | CJ51: None | CK51: 35 | CL51: 35 | CM51: Straight Ahead | CN51: Following Too Closely/ACDA | CO51: Nothing Struck | CP51: Motor Vehicle In Transport | CV51: Data Not Valid or Not Provided | CW51: 18 | CX51: Female | CY51: Not Distracted | CZ51: 2 | DA51: East | DB51: West | DD51: No Control | DE51: Passenger Car | DF51: None | DG51: 30 | DH51: 35 | DI51: Straight Ahead | DJ51: None | DK51: Motor Vehicle In Transport | DR51: 62 | DS51: Male | DT51: Not Distracted | EG51: a90bb998-0db2-4c4e-8fd6-93dd1a799340 | EH51: c49baa4a-ba3e-49e3-b14b-654b34bb77ac | EI51: 8230 | EL51: State | EM51: https://hsip.dot.state.oh.us/api/report/20226033717 | EO51: Pathweb | EP51: Google Maps | EQ51: Mashed Map | ER51: MV | ES51: PDO | ET51: 0.011
A52: Crash Report | B52: 20226055630 | C52: 2022 | D52: 2022040023 | E52: 37 | F52: (5) PDO/No Injury | G52: Sideswipe - Passing | H52: 8 | I52: BUT | J52: T-Intersection | K52: SBUTSR00747**C | L52: 5.575 | M52: 8.246 | N52: SR747 | O52: SR129 | P52: 39.382625 | Q52: -84.454492 | R52: 43050 | S52: LIBERTY TOWNSHIP | T52: 3 | U52: 0 | V52: 0 | W52: 0 | X52: 0 | Y52: 2 | Z52: 0 | AA52: 2 | AB52: S | AC52: SR | AD52: Two Way Roadway | AF52: Minor Arterial Roads | AH52: No | AI52: 4 | AJ52: 3 | AK52: No | AL52: No | AM52: Yes | AN52: State Highway Agency | AO52: 44653 | AP52: 4 | AQ52: 9 | AR52: (7) Saturday | AS52: Clear | AT52: Dry | AU52: Daylight | AV52: Straight Grade | AW52: No | AX52: Yes | AY52: No | AZ52: No | BA52: No | BB52: No | BC52: No | BD52: No | BE52: No | BF52: No | BG52: No | BH52: Unknown or Not in Work Zone | BI52: Unknown or Not in Work Zone | BJ52: No | BK52: LIBERTY TOWNSHIP | BP52: SR | BQ52: 747 | BW52: SR | BX52: 129 | CB52: Intersection | CC52: Yes | CD52: 1 | CE52: South | CF52: North | CG52: No Turn | CH52: Signal | CI52: Sport Utility Vehicle | CJ52: Other / Unknown | CK52: 0 | CL52: 55 | CM52: Straight Ahead | CN52: Other Improper Action | CO52: Nothing Struck | CP52: Motor Vehicle In Transport | CV52: Data Not Valid or Not Provided | CW52: 0 | CX52: Unknown | CY52: Other / Unknown | CZ52: 2 | DA52: South | DB52: West | DD52: Signal | DE52: Sport Utility Vehicle | DF52: None | DG52: 0 | DH52: 55 | DI52: Slowing or Stopped In Traffic | DJ52: None | DK52: Motor Vehicle In Transport | DR52: 52 | DS52: Female | DT52: Not Distracted | EG52: c62cf652-bfcd-4b55-91aa-5bbe405c1347 | EH52: 2cfb984a-5fed-47a4-9d68-03d05d29fdfe | EK52: 195579 | EL52: State | EM52: https://hsip.dot.state.oh.us/api/report/20226055630 | EO52: Pathweb | EP52: Google Maps | EQ52: Mashed Map | ER52: MV | ES52: PDO | ET52: 0.002
A53: Crash Report | B53: 20226064741 | C53: 2022 | D53: 2022040244 | E53: 38 | F53: (4) Injury Possible | G53: Left Turn | H53: 8 | I53: BUT | J53: Data Not Valid or Not Provided | K53: SBUTSR00747**C | L53: 5.431 | M53: 8.102 | N53: SR747 | O53: SR129 | P53: 39.380547 | Q53: -84.454717 | R53: 43050 | S53: LIBERTY TOWNSHIP | T53: 3 | U53: 0 | V53: 0 | W53: 0 | X53: 1 | Y53: 1 | Z53: 0 | AA53: 2 | AB53: S | AC53: SR | AD53: Two Way Roadway | AF53: Other Principal Arterial Roads | AH53: No | AI53: 4 | AJ53: 3 | AK53: No | AL53: No | AM53: Yes | AN53: State Highway Agency | AO53: 44664 | AP53: 4 | AQ53: 6 | AR53: (4) Wednesday | AS53: Clear | AT53: Dry | AU53: Dark - Lighted Roadway | AV53: Straight Level | AW53: No | AX53: Yes | AY53: No | AZ53: No | BA53: No | BB53: No | BC53: No | BD53: No | BE53: No | BF53: Yes | BG53: No | BH53: Unknown or Not in Work Zone | BI53: Unknown or Not in Work Zone | BJ53: No | BK53: LIBERTY TOWNSHIP | BP53: SR | BQ53: 747 | BW53: SR | BX53: 129 | CB53: Intersection | CC53: Yes | CD53: 1 | CE53: North | CF53: East | CG53: Left Turn | CH53: Signal | CI53: Sport Utility Vehicle | CJ53: None | CK53: 5 | CL53: 55 | CM53: Making Left Turn | CN53: Failure to Yield | CO53: Nothing Struck | CP53: Motor Vehicle In Transport | CV53: Data Not Valid or Not Provided | CW53: 23 | CX53: Female | CY53: Not Distracted | CZ53: 2 | DA53: South | DB53: North | DD53: Signal | DE53: Passenger Car | DF53: None | DG53: 45 | DH53: 55 | DI53: Straight Ahead | DJ53: None | DK53: Motor Vehicle In Transport | DR53: 32 | DS53: Male | DT53: Not Distracted | EG53: a90bb998-0db2-4c4e-8fd6-93dd1a799340 | EH53: bd72f685-a0c5-4ca3-bf07-ec48c1e8d7a8 | EI53: 8230 | EK53: 164944 | EL53: State | EM53: https://hsip.dot.state.oh.us/api/report/20226064741 | EO53: Pathweb | EP53: Google Maps | EQ53: Mashed Map | ER53: MV | ES53: FI | ET53: 0
A54: Crash Report | B54: 20226070165 | C54: 2022 | D54: 2022040430 | E54: 39 | F54: (5) PDO/No Injury | G54: Rear End | H54: 8 | I54: BUT | J54: Data Not Valid or Not Provided | K54: SBUTRA09034**C | L54: 0.173 | M54: 0.173 | N54: RA9034 | O54: SR747 | P54: 39.382576 | Q54: -84.454344 | R54: 43050 | S54: LIBERTY TOWNSHIP | T54: 3 | U54: 0 | V54: 0 | W54: 0 | X54: 0 | Y54: 4 | Z54: 0 | AA54: 2 | AB54: S | AC54: RA | AD54: Ramp | AF54: Interstate Route | AH54: No | AJ54: 1 | AK54: Yes | AL54: Yes | AM54: Yes | AN54: State Highway Agency | AO54: 44675 | AP54: 4 | AQ54: 15 | AR54: (1) Sunday | AS54: Clear | AT54: Dry | AU54: Daylight | AV54: Straight Level | AW54: No | AX54: Yes | AY54: No | AZ54: No | BA54: No | BB54: No | BC54: No | BD54: No | BE54: No | BF54: No | BG54: No | BH54: Unknown or Not in Work Zone | BI54: Unknown or Not in Work Zone | BJ54: No | BK54: LIBERTY TOWNSHIP | BM54: STATE ROUTE 129 W | BP54: SR | BQ54: 129 | BT54: STATE ROUTE 747 W | BW54: SR | BX54: 747 | CB54: Intersection | CC54: Yes | CD54: 1 | CE54: East | CF54: West | CG54: No Turn | CH54: Signal | CI54: Sport Utility Vehicle | CJ54: None | CK54: 10 | CL54: 65 | CM54: Straight Ahead | CN54: Following Too Closely/ACDA | CO54: Nothing Struck | CP54: Motor Vehicle In Transport | CV54: Data Not Valid or Not Provided | CW54: 54 | CX54: Male | CY54: Not Distracted | CZ54: 2 | DA54: East | DB54: West | DD54: Signal | DE54: Passenger Van (minivan) | DF54: None | DG54: 0 | DH54: 65 | DI54: Slowing or Stopped In Traffic | DJ54: None | DK54: Motor Vehicle In Transport | DR54: 60 | DS54: Male | DT54: Not Distracted | EG54: c62cf652-bfcd-4b55-91aa-5bbe405c1347 | EH54: eeb459fb-f4ff-411e-a1d7-1eb1467e714d | EI54: 8230 | EL54: State | EM54: https://hsip.dot.state.oh.us/api/report/20226070165 | EO54: Pathweb | EP54: Google Maps | EQ54: Mashed Map | ER54: MV | ES54: PDO | ET54: 0.002
A55: Crash Report | B55: 20226074830 | C55: 2022 | D55: 2022040523 | E55: 40 | F55: (5) PDO/No Injury | G55: Rear End | H55: 8 | I55: BUT | J55: Data Not Valid or Not Provided | K55: SBUTSR00747**C | L55: 5.376 | M55: 8.047 | N55: SR747 | O55: SR129 | P55: 39.379752 | Q55: -84.454798 | R55: 43050 | S55: LIBERTY TOWNSHIP | T55: 3 | U55: 0 | V55: 0 | W55: 0 | X55: 0 | Y55: 3 | Z55: 0 | AA55: 2 | AB55: S | AC55: SR | AD55: Two Way Roadway | AF55: Other Principal Arterial Roads | AH55: No | AI55: 4 | AJ55: 3 | AK55: No | AL55: No | AM55: Yes | AN55: State Highway Agency | AO55: 44681 | AP55: 4 | AQ55: 8 | AR55: (7) Saturday | AS55: Cloudy | AT55: Wet | AU55: Daylight | AV55: Straight Grade | AW55: No | AX55: Yes | AY55: No | AZ55: No | BA55: No | BB55: No | BC55: No | BD55: No | BE55: No | BF55: Yes | BG55: No | BH55: Unknown or Not in Work Zone | BI55: Unknown or Not in Work Zone | BJ55: No | BK55: LIBERTY TOWNSHIP | BP55: SR | BQ55: 747 | BW55: SR | BX55: 129 | CB55: Intersection | CC55: Yes | CD55: 1 | CE55: North | CF55: South | CG55: No Turn | CH55: Signal | CI55: Sport Utility Vehicle | CJ55: None | CK55: 25 | CL55: 45 | CM55: Straight Ahead | CN55: Following Too Closely/ACDA | CO55: Nothing Struck | CP55: Motor Vehicle In Transport | CV55: Data Not Valid or Not Provided | CW55: 16 | CX55: Male | CY55: Other / Unknown | CZ55: 2 | DA55: North | DB55: South | DD55: Signal | DE55: Sport Utility Vehicle | DF55: None | DG55: 0 | DH55: 45 | DI55: Slowing or Stopped In Traffic | DJ55: None | DK55: Motor Vehicle In Transport | DR55: 42 | DS55: Male | DT55: Not Distracted | EK55: 298688 | EL55: State | EM55: https://hsip.dot.state.oh.us/api/report/20226074830 | EO55: Pathweb | EP55: Google Maps | EQ55: Mashed Map | ER55: MV | ES55: PDO | ET55: 0.005
A56: Crash Report | B56: 20226077192 | C56: 2022 | D56: 2022050026 | E56: 41 | F56: (5) PDO/No Injury | G56: Rear End | H56: 8 | I56: BUT | J56: Not An Intersection | K56: SBUTSR00747**C | L56: 5.58 | M56: 8.251 | N56: SR747 | O56: MP6 | P56: 39.382703 | Q56: -84.454484 | R56: 43050 | S56: LIBERTY TOWNSHIP | T56: 3 | U56: 0 | V56: 0 | W56: 0 | X56: 0 | Y56: 2 | Z56: 0 | AA56: 2 | AB56: S | AC56: SR | AD56: Two Way Roadway | AF56: Minor Arterial Roads | AH56: No | AI56: 4 | AJ56: 3 | AK56: No | AL56: No | AM56: Yes | AN56: State Highway Agency | AO56: 44683 | AP56: 5 | AQ56: 15 | AR56: (2) Monday | AS56: Clear | AT56: Dry | AU56: Daylight | AV56: Straight Grade | AW56: No | AX56: No | AY56: No | AZ56: No | BA56: No | BB56: No | BC56: No | BD56: No | BE56: No | BF56: No | BG56: No | BH56: Unknown or Not in Work Zone | BI56: Unknown or Not in Work Zone | BJ56: No | BK56: LIBERTY TOWNSHIP | BP56: SR | BQ56: 747 | BT56: 6 | CA56: 6 | CB56: Mile Post | CC56: Yes | CD56: 1 | CE56: North | CF56: South | CG56: No Turn | CH56: No Control | CI56: Passenger Car | CJ56: None | CK56: 5 | CL56: 55 | CM56: Straight Ahead | CN56: None | CO56: Nothing Struck | CP56: Motor Vehicle In Transport | CV56: Data Not Valid or Not Provided | CW56: 53 | CX56: Female | CY56: Not Distracted | CZ56: 2 | DA56: North | DB56: South | DD56: No Control | DE56: Passenger Car | DF56: None | DG56: 1 | DH56: 55 | DI56: Straight Ahead | DJ56: None | DK56: Motor Vehicle In Transport | DR56: 44 | DS56: Male | DT56: Not Distracted | EG56: c62cf652-bfcd-4b55-91aa-5bbe405c1347 | EH56: 2cfb984a-5fed-47a4-9d68-03d05d29fdfe | EK56: 195579 | EL56: State | EM56: https://hsip.dot.state.oh.us/api/report/20226077192 | EO56: Pathweb | EP56: Google Maps | EQ56: Mashed Map | ER56: MV | ES56: PDO | ET56: 0.4
A57: Crash Report | B57: 20226080844 | C57: 2022 | D57: 2022050110 | E57: 42 | F57: (4) Injury Possible | G57: Left Turn | H57: 8 | I57: BUT | J57: Data Not Valid or Not Provided | K57: SBUTSR00747**C | L57: 5.431 | M57: 8.102 | N57: SR747 | O57: SR129 | P57: 39.380547 | Q57: -84.454717 | R57: 43050 | S57: LIBERTY TOWNSHIP | T57: 3 | U57: 0 | V57: 0 | W57: 0 | X57: 3 | Y57: 0 | Z57: 0 | AA57: 2 | AB57: S | AC57: SR | AD57: Two Way Roadway | AF57: Other Principal Arterial Roads | AH57: No | AI57: 4 | AJ57: 3 | AK57: No | AL57: No | AM57: Yes | AN57: State Highway Agency | AO57: 44687 | AP57: 5 | AQ57: 14 | AR57: (6) Friday | AS57: Cloudy | AT57: Dry | AU57: Daylight | AV57: Straight Grade | AW57: No | AX57: Yes | AY57: No | AZ57: No | BA57: No | BB57: No | BC57: No | BD57: No | BE57: Yes | BF57: No | BG57: No | BH57: Unknown or Not in Work Zone | BI57: Unknown or Not in Work Zone | BJ57: No | BK57: LIBERTY TOWNSHIP | BP57: SR | BQ57: 747 | BW57: SR | BX57: 129 | CB57: Intersection | CC57: No | CD57: 1 | CE57: South | CF57: North | CG57: No Turn | CH57: Signal | CI57: Pick up | CJ57: None | CK57: 55 | CL57: 55 | CM57: Straight Ahead | CN57: None | CO57: Nothing Struck | CP57: Motor Vehicle In Transport | CV57: Data Not Valid or Not Provided | CW57: 67 | CX57: Male | CY57: Not Distracted | CZ57: 2 | DA57: North | DB57: East | DD57: Signal | DE57: Sport Utility Vehicle | DF57: None | DG57: 7 | DH57: 55 | DI57: Making Left Turn | DJ57: None | DK57: Motor Vehicle In Transport | DR57: 31 | DS57: Female | DT57: Not Distracted | EG57: a90bb998-0db2-4c4e-8fd6-93dd1a799340 | EH57: bd72f685-a0c5-4ca3-bf07-ec48c1e8d7a8 | EI57: 8230 | EK57: 164944 | EL57: State | EM57: https://hsip.dot.state.oh.us/api/report/20226080844 | EO57: Pathweb | EP57: Google Maps | EQ57: Mashed Map | ER57: MV | ES57: FI | ET57: 0
A58: Crash Report | B58: 20226091896 | C58: 2022 | D58: 2022050435 | E58: 43 | F58: (5) PDO/No Injury | G58: Left Turn | H58: 8 | I58: BUT | J58: Data Not Valid or Not Provided | K58: SBUTSR00747**C | L58: 5.571 | M58: 8.242 | N58: SR747 | O58: SR4 | P58: 39.382567 | Q58: -84.454498 | R58: 43050 | S58: LIBERTY TOWNSHIP | T58: 3 | U58: 0 | V58: 0 | W58: 0 | X58: 0 | Y58: 6 | Z58: 0 | AA58: 2 | AB58: S | AC58: SR | AD58: Two Way Roadway | AF58: Minor Arterial Roads | AH58: No | AI58: 4 | AJ58: 3 | AK58: No | AL58: No | AM58: Yes | AN58: State Highway Agency | AO58: 44703 | AP58: 5 | AQ58: 15 | AR58: (1) Sunday | AS58: Clear | AT58: Dry | AU58: Daylight | AV58: Straight Level | AW58: Yes | AX58: Yes | AY58: No | AZ58: No | BA58: No | BB58: No | BC58: No | BD58: No | BE58: No | BF58: No | BG58: No | BH58: Unknown or Not in Work Zone | BI58: Unknown or Not in Work Zone | BJ58: No | BK58: LIBERTY TOWNSHIP | BP58: SR | BQ58: 747 | BW58: SR | BX58: 4 | CB58: Intersection | CC58: Yes | CD58: 1 | CE58: North | CF58: East | CG58: Left Turn | CH58: Signal | CI58: Passenger Car | CJ58: None | CK58: 10 | CL58: 55 | CM58: Making Left Turn | CN58: Failure to Yield | CO58: Nothing Struck | CP58: Other / Unknown | CV58: Data Not Valid or Not Provided | CW58: 27 | CX58: Female | CY58: Not Distracted | CZ58: 2 | DA58: South | DB58: North | DD58: Signal | DE58: Passenger Car | DF58: None | DG58: 55 | DH58: 55 | DI58: Straight Ahead | DJ58: Swerving to Avoid | DK58: Guardrail Face | DR58: 32 | DS58: Female | DT58: Not Distracted | EG58: c62cf652-bfcd-4b55-91aa-5bbe405c1347 | EH58: 2cfb984a-5fed-47a4-9d68-03d05d29fdfe | EK58: 195579 | EL58: State | EM58: https://hsip.dot.state.oh.us/api/report/20226091896 | EO58: Pathweb | EP58: Google Maps | EQ58: Mashed Map | ER58: MV | ES58: PDO | ET58: 0
A59: Crash Report | B59: 20226108152 | C59: 2022 | D59: 2022060231 | E59: 44 | F59: (5) PDO/No Injury | G59: Rear End | H59: 8 | I59: BUT | J59: T-Intersection | K59: SBUTSR00747**C | L59: 5.48 | M59: 8.151 | N59: SR747 | O59: MP6 | P59: 39.381254 | Q59: -84.454622 | R59: 43050 | S59: LIBERTY TOWNSHIP | T59: 3 | U59: 0 | V59: 0 | W59: 0 | X59: 0 | Y59: 4 | Z59: 0 | AA59: 3 | AB59: S | AC59: SR | AD59: Two Way Roadway | AF59: Other Principal Arterial Roads | AH59: No | AI59: 4 | AJ59: 3 | AK59: No | AL59: No | AM59: Yes | AN59: State Highway Agency | AO59: 44725 | AP59: 6 | AQ59: 15 | AR59: (2) Monday | AS59: Cloudy | AT59: Dry | AU59: Daylight | AV59: Straight Level | AW59: No | AX59: Yes | AY59: No | AZ59: No | BA59: No | BB59: No | BC59: No | BD59: No | BE59: Yes | BF59: No | BG59: No | BH59: Unknown or Not in Work Zone | BI59: Unknown or Not in Work Zone | BJ59: No | BK59: LIBERTY TOWNSHIP | BP59: SR | BQ59: 747 | BT59: 6 | CA59: 6 | CB59: Mile Post | CC59: Yes | CD59: 1 | CE59: North | CF59: South | CG59: No Turn | CH59: No Control | CI59: Sport Utility Vehicle | CJ59: None | CK59: 10 | CL59: 55 | CM59: Straight Ahead | CN59: Following Too Closely/ACDA | CO59: Nothing Struck | CP59: Motor Vehicle In Transport | CV59: Data Not Valid or Not Provided | CW59: 50 | CX59: Male | CY59: Not Distracted | CZ59: 2 | DA59: North | DB59: South | DD59: No Control | DE59: Passenger Car | DF59: None | DG59: 1 | DH59: 55 | DI59: Slowing or Stopped In Traffic | DJ59: None | DK59: Motor Vehicle In Transport | DL59: Motor Vehicle In Transport | DR59: 66 | DS59: Male | DT59: Not Distracted | DU59: 3 | DV59: No Control | DW59: Sport Utility Vehicle | DX59: None | DY59: Slowing or Stopped In Traffic | DZ59: None | EA59: Motor Vehicle In Transport | EI59: 8230 | EK59: 164944 | EL59: State | EM59: https://hsip.dot.state.oh.us/api/report/20226108152 | EO59: Pathweb | EP59: Google Maps | EQ59: Mashed Map | ER59: MV | ES59: PDO | ET59: 0.5
A60: Crash Report | B60: 20226121845 | C60: 2022 | D60: 2022060384 | E60: 45 | F60: (4) Injury Possible | G60: Left Turn | H60: 8 | I60: BUT | J60: Data Not Valid or Not Provided | K60: SBUTSR00747**C | L60: 5.429 | M60: 8.1 | N60: SR747 | O60: SR129 | P60: 39.38051 | Q60: -84.454722 | R60: 43050 | S60: LIBERTY TOWNSHIP | T60: 3 | U60: 0 | V60: 0 | W60: 0 | X60: 1 | Y60: 1 | Z60: 0 | AA60: 2 | AB60: S | AC60: SR | AD60: Two Way Roadway | AF60: Other Principal Arterial Roads | AH60: No | AI60: 4 | AJ60: 3 | AK60: No | AL60: No | AM60: Yes | AN60: State Highway Agency | AO60: 44733 | AP60: 6 | AQ60: 10 | AR60: (3) Tuesday | AS60: Clear | AT60: Dry | AU60: Daylight | AV60: Straight Grade | AW60: No | AX60: Yes | AY60: No | AZ60: No | BA60: No | BB60: No | BC60: No | BD60: No | BE60: No | BF60: Yes | BG60: No | BH60: Unknown or Not in Work Zone | BI60: Unknown or Not in Work Zone | BJ60: No | BK60: LIBERTY TOWNSHIP | BP60: SR | BQ60: 747 | BW60: SR | BX60: 129 | CB60: Intersection | CC60: Yes | CD60: 1 | CE60: North | CF60: East | CG60: Left Turn | CH60: Signal | CI60: Pick up | CJ60: None | CK60: 8 | CL60: 45 | CM60: Making Left Turn | CN60: Failure to Yield | CO60: Nothing Struck | CP60: Motor Vehicle In Transport | CV60: Data Not Valid or Not Provided | CW60: 45 | CX60: Male | CY60: Other / Unknown | CZ60: 2 | DA60: South | DB60: North | DD60: Signal | DE60: Passenger Car | DF60: None | DG60: 35 | DH60: 45 | DI60: Straight Ahead | DJ60: None | DK60: Motor Vehicle In Transport | DR60: 16 | DS60: Female | DT60: Not Distracted | EG60: a90bb998-0db2-4c4e-8fd6-93dd1a799340 | EH60: 52bfbff7-f06f-42c7-abd4-ccd485446c98 | EK60: 298688 | EL60: State | EM60: https://hsip.dot.state.oh.us/api/report/20226121845 | EO60: Pathweb | EP60: Google Maps | EQ60: Mashed Map | ER60: MV | ES60: FI | ET60: 0.001
A61: Crash Report | B61: 20226121870 | C61: 2022 | D61: 2022060540 | E61: 46 | F61: (4) Injury Possible | G61: Left Turn | H61: 8 | I61: BUT | J61: Data Not Valid or Not Provided | K61: SBUTSR00747**C | L61: 5.432 | M61: 8.103 | N61: SR747 | O61: SR129 | P61: 39.380564 | Q61: -84.454715 | R61: 43050 | S61: LIBERTY TOWNSHIP | T61: 3 | U61: 0 | V61: 0 | W61: 0 | X61: 1 | Y61: 1 | Z61: 0 | AA61: 2 | AB61: S | AC61: SR | AD61: Two Way Roadway | AF61: Other Principal Arterial Roads | AH61: No | AI61: 4 | AJ61: 3 | AK61: No | AL61: No | AM61: Yes | AN61: State Highway Agency | AO61: 44741 | AP61: 6 | AQ61: 17 | AR61: (4) Wednesday | AS61: Clear | AT61: Dry | AU61: Daylight | AV61: Straight Grade | AW61: No | AX61: Yes | AY61: No | AZ61: No | BA61: No | BB61: No | BC61: No | BD61: No | BE61: No | BF61: Yes | BG61: No | BH61: Unknown or Not in Work Zone | BI61: Unknown or Not in Work Zone | BJ61: No | BK61: LIBERTY TOWNSHIP | BP61: SR | BQ61: 747 | BW61: SR | BX61: 129 | CB61: Intersection | CC61: Yes | CD61: 1 | CE61: South | CF61: West | CG61: Left Turn | CH61: Signal | CI61: Cargo Van | CJ61: None | CK61: 25 | CL61: 45 | CM61: Making Left Turn | CN61: Failure to Yield | CO61: Nothing Struck | CP61: Motor Vehicle In Transport | CV61: Data Not Valid or Not Provided | CW61: 49 | CX61: Male | CY61: Not Distracted | CZ61: 2 | DA61: North | DB61: South | DD61: Signal | DE61: Sport Utility Vehicle | DF61: None | DG61: 45 | DH61: 45 | DI61: Straight Ahead | DJ61: None | DK61: Motor Vehicle In Transport | DR61: 20 | DS61: Female | DT61: Not Distracted | EG61: a90bb998-0db2-4c4e-8fd6-93dd1a799340 | EH61: bd72f685-a0c5-4ca3-bf07-ec48c1e8d7a8 | EI61: 8230 | EK61: 164944 | EL61: State | EM61: https://hsip.dot.state.oh.us/api/report/20226121870 | EO61: Pathweb | EP61: Google Maps | EQ61: Mashed Map | ER61: MV | ES61: FI | ET61: 0
A62: Crash Report | B62: 20226162517 | C62: 2022 | D62: 2022080574 | E62: 47 | F62: (5) PDO/No Injury | G62: Left Turn | H62: 8 | I62: BUT | J62: T-Intersection | K62: SBUTSR00747**C | L62: 5.38 | M62: 8.051 | N62: SR747 | O62: MP5 | P62: 39.379807 | Q62: -84.454792 | R62: 43050 | S62: LIBERTY TOWNSHIP | T62: 3 | U62: 0 | V62: 0 | W62: 0 | X62: 0 | Y62: 5 | Z62: 0 | AA62: 2 | AB62: S | AC62: SR | AD62: Two Way Roadway | AF62: Other Principal Arterial Roads | AH62: No | AI62: 4 | AJ62: 3 | AK62: No | AL62: No | AM62: Yes | AN62: State Highway Agency | AO62: 44804 | AP62: 8 | AQ62: 11 | AR62: (4) Wednesday | AS62: Clear | AT62: Dry | AU62: Daylight | AV62: Straight Level | AW62: No | AX62: Yes | AY62: No | AZ62: No | BA62: No | BB62: No | BC62: No | BD62: No | BE62: Yes | BF62: No | BG62: No | BH62: Unknown or Not in Work Zone | BI62: Unknown or Not in Work Zone | BJ62: No | BK62: LIBERTY TOWNSHIP | BP62: SR | BQ62: 747 | BT62: 5 | CA62: 5 | CB62: Mile Post | CC62: Yes | CD62: 1 | CE62: North | CF62: East | CG62: Left Turn | CH62: Signal | CI62: Sport Utility Vehicle | CJ62: None | CK62: 20 | CL62: 55 | CM62: Making Left Turn | CN62: Failure to Yield | CO62: Nothing Struck | CP62: Motor Vehicle In Transport | CV62: Data Not Valid or Not Provided | CW62: 68 | CX62: Female | CY62: Not Distracted | CZ62: 2 | DA62: South | DB62: North | DD62: Signal | DE62: Sport Utility Vehicle | DF62: None | DG62: 40 | DH62: 55 | DI62: Straight Ahead | DJ62: None | DK62: Motor Vehicle In Transport | DR62: 58 | DS62: Female | DT62: Not Distracted | EK62: 298688 | EL62: State | EM62: https://hsip.dot.state.oh.us/api/report/20226162517 | EO62: Pathweb | EP62: Google Maps | EQ62: Mashed Map | ER62: MV | ES62: PDO | ET62: 0.4
A63: Crash Report | B63: 20226162520 | C63: 2022 | D63: 2022080581 | E63: 48 | F63: (5) PDO/No Injury | G63: Rear End | H63: 8 | I63: BUT | J63: Off Ramp | K63: SBUTRA09034**C | L63: 0.171 | M63: 0.171 | N63: RA9034 | O63: SR747 | P63: 39.382568 | Q63: -84.454303 | R63: 43050 | S63: LIBERTY TOWNSHIP | T63: 3 | U63: 0 | V63: 0 | W63: 0 | X63: 0 | Y63: 3 | Z63: 0 | AA63: 2 | AB63: S | AC63: RA | AD63: Ramp | AF63: Interstate Route | AH63: No | AJ63: 1 | AK63: Yes | AL63: Yes | AM63: Yes | AN63: State Highway Agency | AO63: 44803 | AP63: 8 | AQ63: 20 | AR63: (3) Tuesday | AS63: Clear | AT63: Dry | AU63: Dark - Lighted Roadway | AV63: Straight Grade | AW63: No | AX63: Yes | AY63: No | AZ63: No | BA63: No | BB63: No | BC63: No | BD63: No | BE63: No | BF63: Yes | BG63: No | BH63: Unknown or Not in Work Zone | BI63: Unknown or Not in Work Zone | BJ63: No | BK63: LIBERTY TOWNSHIP | BP63: SR | BQ63: 129 | BW63: SR | BX63: 747 | CB63: Intersection | CC63: Yes | CD63: 1 | CE63: East | CF63: West | CG63: No Turn | CH63: No Control | CI63: Sport Utility Vehicle | CJ63: None | CK63: 2 | CL63: 65 | CM63: Straight Ahead | CN63: Following Too Closely/ACDA | CO63: Nothing Struck | CP63: Motor Vehicle In Transport | CV63: Data Not Valid or Not Provided | CW63: 55 | CX63: Female | CY63: Not Distracted | CZ63: 2 | DA63: East | DB63: West | DD63: Signal | DE63: Sport Utility Vehicle | DF63: None | DG63: 1 | DH63: 65 | DI63: Slowing or Stopped In Traffic | DJ63: None | DK63: Motor Vehicle In Transport | DR63: 16 | DS63: Female | DT63: Not Distracted | EG63: c62cf652-bfcd-4b55-91aa-5bbe405c1347 | EH63: eeb459fb-f4ff-411e-a1d7-1eb1467e714d | EI63: 8230 | EL63: State | EM63: https://hsip.dot.state.oh.us/api/report/20226162520 | EO63: Pathweb | EP63: Google Maps | EQ63: Mashed Map | ER63: MV | ES63: PDO | ET63: 0.005
A64: Crash Report | B64: 20226168458 | C64: 2022 | D64: 2022090141 | E64: 49 | F64: (3) Minor Injury Suspected | G64: Left Turn | H64: 8 | I64: BUT | J64: Data Not Valid or Not Provided | K64: SBUTSR00747**C | L64: 5.569 | M64: 8.24 | N64: SR747 | O64: SR129 | P64: 39.382547 | Q64: -84.4545 | R64: 43050 | S64: LIBERTY TOWNSHIP | T64: 3 | U64: 0 | V64: 0 | W64: 3 | X64: 0 | Y64: 0 | Z64: 0 | AA64: 2 | AB64: S | AC64: SR | AD64: Two Way Roadway | AF64: Minor Arterial Roads | AH64: No | AI64: 4 | AJ64: 3 | AK64: No | AL64: No | AM64: Yes | AN64: State Highway Agency | AO64: 44813 | AP64: 9 | AQ64: 10 | AR64: (6) Friday | AS64: Clear | AT64: Dry | AU64: Daylight | AV64: Straight Level | AW64: No | AX64: Yes | AY64: No | AZ64: No | BA64: No | BB64: No | BC64: No | BD64: No | BE64: Yes | BF64: No | BG64: No | BH64: Unknown or Not in Work Zone | BI64: Unknown or Not in Work Zone | BJ64: No | BK64: LIBERTY TOWNSHIP | BP64: SR | BQ64: 747 | BW64: SR | BX64: 129 | CB64: Intersection | CC64: Yes | CD64: 1 | CE64: South | CF64: West | CG64: Left Turn | CH64: Signal | CI64: Passenger Van (minivan) | CJ64: None | CK64: 6 | CL64: 55 | CM64: Making Left Turn | CN64: Improper Turn | CO64: Nothing Struck | CP64: Motor Vehicle In Transport | CV64: Data Not Valid or Not Provided | CW64: 37 | CX64: Female | CY64: Not Distracted | CZ64: 2 | DA64: North | DB64: South | DD64: Signal | DE64: Pick up | DF64: None | DG64: 40 | DH64: 55 | DI64: Straight Ahead | DJ64: None | DK64: Motor Vehicle In Transport | DR64: 71 | DS64: Male | DT64: Not Distracted | EG64: c62cf652-bfcd-4b55-91aa-5bbe405c1347 | EH64: 2cfb984a-5fed-47a4-9d68-03d05d29fdfe | EK64: 195579 | EL64: State | EM64: https://hsip.dot.state.oh.us/api/report/20226168458 | EO64: Pathweb | EP64: Google Maps | EQ64: Mashed Map | ER64: MV | ES64: FI | ET64: 0
A65: Crash Report | B65: 20226168482 | C65: 2022 | D65: 2022090166 | E65: 50 | F65: (5) PDO/No Injury | G65: Rear End | H65: 8 | I65: BUT | J65: Data Not Valid or Not Provided | K65: SBUTSR00747**C | L65: 5.58 | M65: 8.251 | N65: SR747 | O65: SR129 | P65: 39.382702 | Q65: -84.454484 | R65: 43050 | S65: LIBERTY TOWNSHIP | T65: 3 | U65: 0 | V65: 0 | W65: 0 | X65: 0 | Y65: 3 | Z65: 0 | AA65: 2 | AB65: S | AC65: SR | AD65: Two Way Roadway | AF65: Minor Arterial Roads | AH65: No | AI65: 4 | AJ65: 3 | AK65: No | AL65: No | AM65: Yes | AN65: State Highway Agency | AO65: 44814 | AP65: 9 | AQ65: 14 | AR65: (7) Saturday | AS65: Cloudy | AT65: Dry | AU65: Daylight | AV65: Straight Grade | AW65: No | AX65: Yes | AY65: No | AZ65: No | BA65: No | BB65: No | BC65: No | BD65: No | BE65: Yes | BF65: Yes | BG65: No | BH65: Unknown or Not in Work Zone | BI65: Unknown or Not in Work Zone | BJ65: No | BK65: LIBERTY TOWNSHIP | BM65: STATE ROUTE 747 S | BP65: SR | BQ65: 747 | BT65: STATE ROUTE 129 S | BW65: SR | BX65: 129 | CB65: Intersection | CC65: Yes | CD65: 1 | CE65: North | CF65: South | CG65: No Turn | CH65: Signal | CI65: Pick up | CJ65: None | CK65: 10 | CL65: 55 | CM65: Straight Ahead | CN65: Following Too Closely/ACDA | CO65: Nothing Struck | CP65: Motor Vehicle In Transport | CV65: Data Not Valid or Not Provided | CW65: 22 | CX65: Male | CY65: Not Distracted | CZ65: 2 | DA65: North | DB65: South | DD65: Signal | DE65: Sport Utility Vehicle | DF65: None | DG65: 0 | DH65: 55 | DI65: Slowing or Stopped In Traffic | DJ65: None | DK65: Motor Vehicle In Transport | DR65: 66 | DS65: Male | DT65: Not Distracted | EG65: c62cf652-bfcd-4b55-91aa-5bbe405c1347 | EH65: 2cfb984a-5fed-47a4-9d68-03d05d29fdfe | EK65: 195579 | EL65: State | EM65: https://hsip.dot.state.oh.us/api/report/20226168482 | EO65: Pathweb | EP65: Google Maps | EQ65: Mashed Map | ER65: MV | ES65: PDO | ET65: 0.014
A66: Crash Report | B66: 20226169837 | C66: 2022 | D66: 2022090222 | E66: 51 | F66: (5) PDO/No Injury | G66: Rear End | H66: 8 | I66: BUT | J66: Data Not Valid or Not Provided | K66: SBUTSR00747**C | L66: 5.413 | M66: 8.084 | N66: SR747 | O66: SR129 | P66: 39.380291 | Q66: -84.454745 | R66: 43050 | S66: LIBERTY TOWNSHIP | T66: 3 | U66: 0 | V66: 0 | W66: 0 | X66: 0 | Y66: 2 | Z66: 0 | AA66: 2 | AB66: S | AC66: SR | AD66: Two Way Roadway | AF66: Other Principal Arterial Roads | AH66: No | AI66: 4 | AJ66: 3 | AK66: No | AL66: No | AM66: Yes | AN66: State Highway Agency | AO66: 44817 | AP66: 9 | AQ66: 13 | AR66: (3) Tuesday | AS66: Clear | AT66: Dry | AU66: Daylight | AV66: Straight Grade | AW66: No | AX66: Yes | AY66: No | AZ66: No | BA66: No | BB66: No | BC66: No | BD66: No | BE66: No | BF66: Yes | BG66: No | BH66: Unknown or Not in Work Zone | BI66: Unknown or Not in Work Zone | BJ66: No | BK66: LIBERTY TOWNSHIP | BP66: SR | BQ66: 747 | BW66: SR | BX66: 129 | CB66: Intersection | CC66: Yes | CD66: 1 | CE66: South | CF66: North | CG66: No Turn | CH66: Signal | CI66: Pick up | CJ66: None | CK66: 15 | CL66: 55 | CM66: Straight Ahead | CN66: Following Too Closely/ACDA | CO66: Nothing Struck | CP66: Motor Vehicle In Transport | CV66: Data Not Valid or Not Provided | CW66: 23 | CX66: Male | CY66: Not Distracted | CZ66: 2 | DA66: South | DB66: North | DD66: Signal | DE66: Passenger Car | DF66: None | DG66: 0 | DH66: 55 | DI66: Slowing or Stopped In Traffic | DJ66: None | DK66: Motor Vehicle In Transport | DR66: 18 | DS66: Female | DT66: Not Distracted | EG66: a90bb998-0db2-4c4e-8fd6-93dd1a799340 | EH66: 52bfbff7-f06f-42c7-abd4-ccd485446c98 | EK66: 298688 | EL66: State | EM66: https://hsip.dot.state.oh.us/api/report/20226169837 | EO66: Pathweb | EP66: Google Maps | EQ66: Mashed Map | ER66: MV | ES66: PDO | ET66: 0.009
A67: Crash Report | B67: 20226173155 | C67: 2022 | D67: 2022090300 | E67: 52 | F67: (4) Injury Possible | G67: Rear End | H67: 8 | I67: BUT | J67: Data Not Valid or Not Provided | K67: SBUTSR00747**C | L67: 5.401 | M67: 8.072 | N67: SR747 | O67: SR129 | P67: 39.380118 | Q67: -84.454762 | R67: 43050 | S67: LIBERTY TOWNSHIP | T67: 3 | U67: 0 | V67: 0 | W67: 0 | X67: 2 | Y67: 3 | Z67: 1 | AA67: 3 | AB67: S | AC67: SR | AD67: Two Way Roadway | AF67: Other Principal Arterial Roads | AH67: No | AI67: 4 | AJ67: 3 | AK67: No | AL67: No | AM67: Yes | AN67: State Highway Agency | AO67: 44821 | AP67: 9 | AQ67: 13 | AR67: (7) Saturday | AS67: Clear | AT67: Dry | AU67: Daylight | AV67: Straight Grade | AW67: No | AX67: Yes | AY67: No | AZ67: No | BA67: No | BB67: No | BC67: No | BD67: No | BE67: Yes | BF67: Yes | BG67: No | BH67: Unknown or Not in Work Zone | BI67: Unknown or Not in Work Zone | BJ67: Yes | BK67: LIBERTY TOWNSHIP | BP67: SR | BQ67: 747 | BW67: SR | BX67: 129 | CB67: Intersection | CC67: Yes | CD67: 1 | CE67: South | CF67: North | CG67: No Turn | CH67: Signal | CI67: Passenger Car | CJ67: None | CK67: 40 | CL67: 45 | CM67: Straight Ahead | CN67: Following Too Closely/ACDA | CO67: Nothing Struck | CP67: Motor Vehicle In Transport | CV67: Data Not Valid or Not Provided | CW67: 21 | CX67: Male | CY67: Manually operating an electronic communication device (testing, typing, dialing) | CZ67: 2 | DA67: South | DB67: North | DD67: Signal | DE67: Passenger Car | DF67: None | DG67: 0 | DH67: 45 | DI67: Slowing or Stopped In Traffic | DJ67: None | DK67: Motor Vehicle In Transport | DL67: Motor Vehicle In Transport | DR67: 69 | DS67: Male | DT67: Not Distracted | DU67: 3 | DV67: Signal | DW67: Passenger Car | DX67: None | DY67: Slowing or Stopped In Traffic | DZ67: None | EA67: Motor Vehicle In Transport | EG67: a90bb998-0db2-4c4e-8fd6-93dd1a799340 | EH67: 52bfbff7-f06f-42c7-abd4-ccd485446c98 | EK67: 298688 | EL67: State | EM67: https://hsip.dot.state.oh.us/api/report/20226173155 | EO67: Pathweb | EP67: Google Maps | EQ67: Mashed Map | ER67: MV | ES67: FI | ET67: 0.005
A68: Crash Report | B68: 20226189141 | C68: 2022 | D68: 2022100142 | E68: 53 | F68: (5) PDO/No Injury | G68: Rear End | H68: 8 | I68: BUT | J68: Data Not Valid or Not Provided | K68: SBUTRA09034**C | L68: 0.171 | M68: 0.171 | N68: RA9034 | O68: SR747 | P68: 39.382566 | Q68: -84.45429 | R68: 43050 | S68: LIBERTY TOWNSHIP | T68: 3 | U68: 0 | V68: 0 | W68: 0 | X68: 0 | Y68: 3 | Z68: 0 | AA68: 2 | AB68: S | AC68: RA | AD68: Ramp | AF68: Interstate Route | AH68: No | AJ68: 1 | AK68: Yes | AL68: Yes | AM68: Yes | AN68: State Highway Agency | AO68: 44841 | AP68: 10 | AQ68: 18 | AR68: (6) Friday | AS68: Cloudy | AT68: Dry | AU68: Dawn/Dusk | AV68: Straight Grade | AW68: No | AX68: Yes | AY68: No | AZ68: No | BA68: No | BB68: No | BC68: No | BD68: No | BE68: No | BF68: No | BG68: No | BH68: Unknown or Not in Work Zone | BI68: Unknown or Not in Work Zone | BJ68: No | BK68: LIBERTY TOWNSHIP | BP68: SR | BQ68: 129 | BW68: SR | BX68: 747 | CB68: Intersection | CC68: Yes | CD68: 1 | CE68: East | CF68: West | CG68: No Turn | CH68: Signal | CI68: Pick up | CJ68: None | CK68: 5 | CL68: 35 | CM68: Straight Ahead | CN68: Following Too Closely/ACDA | CO68: Nothing Struck | CP68: Motor Vehicle In Transport | CV68: Data Not Valid or Not Provided | CW68: 43 | CX68: Female | CY68: Not Distracted | CZ68: 2 | DA68: East | DB68: West | DD68: Signal | DE68: Passenger Car | DF68: None | DG68: 0 | DH68: 35 | DI68: Slowing or Stopped In Traffic | DJ68: None | DK68: Motor Vehicle In Transport | DR68: 57 | DS68: Male | DT68: Not Distracted | EG68: c62cf652-bfcd-4b55-91aa-5bbe405c1347 | EH68: eeb459fb-f4ff-411e-a1d7-1eb1467e714d | EI68: 8230 | EL68: State | EM68: https://hsip.dot.state.oh.us/api/report/20226189141 | EO68: Pathweb | EP68: Google Maps | EQ68: Mashed Map | ER68: MV | ES68: PDO | ET68: 0.009
A69: Crash Report | B69: 20226210662 | C69: 2022 | D69: 2022110018 | E69: 54 | F69: (5) PDO/No Injury | G69: Right Turn | H69: 8 | I69: BUT | J69: Data Not Valid or Not Provided | K69: SBUTSR00747**C | L69: 5.429 | M69: 8.1 | N69: SR747 | O69: SR129 | P69: 39.38051 | Q69: -84.454722 | R69: 43050 | S69: LIBERTY TOWNSHIP | T69: 3 | U69: 0 | V69: 0 | W69: 0 | X69: 0 | Y69: 3 | Z69: 0 | AA69: 2 | AB69: S | AC69: SR | AD69: Two Way Roadway | AF69: Other Principal Arterial Roads | AH69: No | AI69: 4 | AJ69: 3 | AK69: No | AL69: No | AM69: Yes | AN69: State Highway Agency | AO69: 44866 | AP69: 11 | AQ69: 17 | AR69: (3) Tuesday | AS69: Clear | AT69: Dry | AU69: Daylight | AV69: Straight Level | AW69: No | AX69: Yes | AY69: No | AZ69: No | BA69: No | BB69: No | BC69: No | BD69: No | BE69: Yes | BF69: No | BG69: No | BH69: Unknown or Not in Work Zone | BI69: Unknown or Not in Work Zone | BJ69: No | BK69: LIBERTY TOWNSHIP | BP69: SR | BQ69: 747 | BW69: SR | BX69: 129 | CB69: Intersection | CC69: No | CD69: 1 | CE69: East | CF69: North | CG69: Right Turn | CH69: Signal | CI69: Passenger Car | CJ69: None | CK69: 15 | CL69: 55 | CM69: Making Right Turn | CN69: Not Discernible | CO69: Nothing Struck | CP69: Motor Vehicle In Transport | CV69: Data Not Valid or Not Provided | CW69: 35 | CX69: Male | CY69: Not Distracted | CZ69: 2 | DA69: East | DB69: North | DD69: Signal | DE69: Pick up | DF69: None | DG69: 15 | DH69: 55 | DI69: Making Right Turn | DJ69: Not Discernible | DK69: Motor Vehicle In Transport | DR69: 72 | DS69: Male | DT69: Not Distracted | EG69: a90bb998-0db2-4c4e-8fd6-93dd1a799340 | EH69: 52bfbff7-f06f-42c7-abd4-ccd485446c98 | EK69: 298688 | EL69: State | EM69: https://hsip.dot.state.oh.us/api/report/20226210662 | EO69: Pathweb | EP69: Google Maps | EQ69: Mashed Map | ER69: MV | ES69: PDO | ET69: 0
A70: Crash Report | B70: 20226214513 | C70: 2022 | D70: 2022110140 | E70: 55 | F70: (5) PDO/No Injury | G70: Left Turn | H70: 8 | I70: BUT | J70: Data Not Valid or Not Provided | K70: SBUTSR00747**C | L70: 5.57 | M70: 8.241 | N70: SR747 | O70: SR129 | P70: 39.38256 | Q70: -84.454498 | R70: 43050 | S70: LIBERTY TOWNSHIP | T70: 3 | U70: 0 | V70: 0 | W70: 0 | X70: 0 | Y70: 2 | Z70: 0 | AA70: 2 | AB70: S | AC70: SR | AD70: Two Way Roadway | AF70: Minor Arterial Roads | AH70: No | AI70: 4 | AJ70: 3 | AK70: No | AL70: No | AM70: Yes | AN70: State Highway Agency | AO70: 44873 | AP70: 11 | AQ70: 8 | AR70: (3) Tuesday | AS70: Clear | AT70: Dry | AU70: Daylight | AV70: Straight Level | AW70: No | AX70: No | AY70: No | AZ70: No | BA70: No | BB70: No | BC70: No | BD70: No | BE70: No | BF70: No | BG70: No | BH70: Unknown or Not in Work Zone | BI70: Unknown or Not in Work Zone | BJ70: No | BK70: LIBERTY TOWNSHIP | BP70: SR | BQ70: 747 | BW70: SR | BX70: 129 | CB70: Intersection | CC70: Yes | CD70: 1 | CE70: South | CF70: West | CG70: Left Turn | CH70: No Control | CI70: Pick up | CJ70: None | CK70: 25 | CL70: 45 | CM70: Making Left Turn | CN70: Failure to Yield | CO70: Nothing Struck | CP70: Motor Vehicle In Transport | CV70: Data Not Valid or Not Provided | CW70: 59 | CX70: Male | CY70: Not Distracted | CZ70: 2 | DA70: North | DB70: South | DD70: No Control | DE70: Passenger Car | DF70: None | DG70: 45 | DH70: 45 | DI70: Straight Ahead | DJ70: None | DK70: Motor Vehicle In Transport | DR70: 33 | DS70: Male | DT70: Not Distracted | EG70: c62cf652-bfcd-4b55-91aa-5bbe405c1347 | EH70: 2cfb984a-5fed-47a4-9d68-03d05d29fdfe | EK70: 195579 | EL70: State | EM70: https://hsip.dot.state.oh.us/api/report/20226214513 | EO70: Pathweb | EP70: Google Maps | EQ70: Mashed Map | ER70: MV | ES70: PDO | ET70: 0
A71: Crash Report | B71: 20226215841 | C71: 2022 | D71: 2022110160 | E71: 56 | F71: (5) PDO/No Injury | G71: Sideswipe - Passing | H71: 8 | I71: BUT | J71: Data Not Valid or Not Provided | K71: SBUTSR00747**C | L71: 5.624 | M71: 8.295 | N71: SR747 | O71: GRANDIN RIDGE DR | P71: 39.383344 | Q71: -84.454417 | R71: 43050 | S71: LIBERTY TOWNSHIP | T71: 3 | U71: 0 | V71: 0 | W71: 0 | X71: 0 | Y71: 3 | Z71: 0 | AA71: 2 | AB71: S | AC71: SR | AD71: Two Way Roadway | AF71: Minor Arterial Roads | AH71: No | AI71: 4 | AJ71: 3 | AK71: No | AL71: No | AM71: Yes | AN71: State Highway Agency | AO71: 44874 | AP71: 11 | AQ71: 14 | AR71: (4) Wednesday | AS71: Clear | AT71: Dry | AU71: Daylight | AV71: Straight Level | AW71: No | AX71: No | AY71: No | AZ71: No | BA71: No | BB71: No | BC71: No | BD71: No | BE71: Yes | BF71: No | BG71: No | BH71: Unknown or Not in Work Zone | BI71: Unknown or Not in Work Zone | BJ71: No | BK71: LIBERTY TOWNSHIP | BP71: SR | BQ71: 747 | BT71: GRANDIN RIDGE | BU71: DR | CB71: Intersection | CC71: Yes | CD71: 1 | CE71: South | CF71: North | CG71: No Turn | CH71: No Control | CI71: Single Unit Truck | CJ71: None | CK71: 35 | CL71: 55 | CM71: Changing Lanes | CN71: Improper Lane Change | CO71: Nothing Struck | CP71: Motor Vehicle In Transport | CV71: Data Not Valid or Not Provided | CW71: 44 | CX71: Male | CY71: Not Distracted | CZ71: 2 | DA71: South | DB71: North | DD71: No Control | DE71: Passenger Car | DF71: Taxi | DG71: 35 | DH71: 55 | DI71: Straight Ahead | DJ71: None | DK71: Motor Vehicle In Transport | DR71: 74 | DS71: Male | DT71: Not Distracted | EG71: 76a3769f-c08e-4fd7-acf3-d6868bcee370 | EH71: eb120a28-ed60-4ab6-a724-e2334775d271 | EK71: 195579 | EL71: State | EM71: https://hsip.dot.state.oh.us/api/report/20226215841 | EO71: Pathweb | EP71: Google Maps | EQ71: Mashed Map | ER71: MV | ES71: PDO | ET71: 0.02
A72: Crash Report | B72: 20226219864 | C72: 2022 | D72: 2022110205 | E72: 57 | F72: (5) PDO/No Injury | G72: Sideswipe - Passing | H72: 8 | I72: BUT | J72: Data Not Valid or Not Provided | K72: SBUTSR00747**C | L72: 5.452 | M72: 8.123 | N72: SR747 | O72: SR129 | P72: 39.380852 | Q72: -84.454676 | R72: 43050 | S72: LIBERTY TOWNSHIP | T72: 3 | U72: 0 | V72: 0 | W72: 0 | X72: 0 | Y72: 3 | Z72: 0 | AA72: 2 | AB72: S | AC72: SR | AD72: Two Way Roadway | AF72: Other Principal Arterial Roads | AH72: No | AI72: 4 | AJ72: 3 | AK72: No | AL72: No | AM72: Yes | AN72: State Highway Agency | AO72: 44876 | AP72: 11 | AQ72: 10 | AR72: (6) Friday | AS72: Rain | AT72: Wet | AU72: Daylight | AV72: Straight Level | AW72: No | AX72: Yes | AY72: No | AZ72: No | BA72: No | BB72: No | BC72: No | BD72: No | BE72: No | BF72: No | BG72: No | BH72: Unknown or Not in Work Zone | BI72: Unknown or Not in Work Zone | BJ72: No | BK72: LIBERTY TOWNSHIP | BP72: SR | BQ72: 747 | BW72: SR | BX72: 129 | CB72: Intersection | CC72: Yes | CD72: 1 | CE72: North | CF72: South | CG72: No Turn | CH72: No Control | CI72: Sport Utility Vehicle | CJ72: None | CK72: 0 | CL72: 55 | CM72: Changing Lanes | CN72: Failure to Yield | CO72: Nothing Struck | CP72: Motor Vehicle In Transport | CV72: Data Not Valid or Not Provided | CW72: 0 | CX72: Unknown | CY72: Other / Unknown | CZ72: 2 | DA72: North | DB72: South | DD72: No Control | DE72: Passenger Van (minivan) | DF72: None | DG72: 35 | DH72: 55 | DI72: Straight Ahead | DJ72: None | DK72: Motor Vehicle In Transport | DR72: 48 | DS72: Female | DT72: Not Distracted | EG72: a90bb998-0db2-4c4e-8fd6-93dd1a799340 | EH72: bd72f685-a0c5-4ca3-bf07-ec48c1e8d7a8 | EI72: 8230 | EK72: 164944 | EL72: State | EM72: https://hsip.dot.state.oh.us/api/report/20226219864 | EO72: Pathweb | EP72: Google Maps | EQ72: Mashed Map | ER72: MV | ES72: PDO | ET72: 0
A73: Crash Report | B73: 20226221244 | C73: 2022 | D73: 2022110255 | E73: 58 | F73: (3) Minor Injury Suspected | G73: Left Turn | H73: 8 | I73: BUT | J73: Data Not Valid or Not Provided | K73: SBUTSR00747**C | L73: 5.57 | M73: 8.241 | N73: SR747 | O73: SR129 | P73: 39.382561 | Q73: -84.454498 | R73: 43050 | S73: LIBERTY TOWNSHIP | T73: 3 | U73: 0 | V73: 0 | W73: 1 | X73: 1 | Y73: 2 | Z73: 0 | AA73: 4 | AB73: S | AC73: SR | AD73: Two Way Roadway | AF73: Minor Arterial Roads | AH73: No | AI73: 4 | AJ73: 3 | AK73: No | AL73: No | AM73: Yes | AN73: State Highway Agency | AO73: 44879 | AP73: 11 | AQ73: 7 | AR73: (2) Monday | AS73: Clear | AT73: Dry | AU73: Daylight | AV73: Straight Grade | AW73: No | AX73: Yes | AY73: No | AZ73: No | BA73: No | BB73: No | BC73: No | BD73: No | BE73: No | BF73: Yes | BG73: No | BH73: Unknown or Not in Work Zone | BI73: Unknown or Not in Work Zone | BJ73: No | BK73: LIBERTY TOWNSHIP | BP73: SR | BQ73: 747 | BW73: SR | BX73: 129 | CB73: Intersection | CC73: Yes | CD73: 1 | CE73: North | CF73: South | CG73: No Turn | CH73: Signal | CI73: Sport Utility Vehicle | CJ73: None | CK73: 55 | CL73: 55 | CM73: Straight Ahead | CN73: Ran Red Light | CO73: Guardrail Face | CP73: Motor Vehicle In Transport | CQ73: Ran Off Road Right | CR73: Guardrail Face | CS73: Cross Centerline – Opposite direction of travel | CT73: Motor Vehicle In Transport | CV73: Data Not Valid or Not Provided | CW73: 16 | CX73: Female | CY73: Not Distracted | CZ73: 2 | DA73: South | DB73: West | DD73: Signal | DE73: Sport Utility Vehicle | DF73: None | DG73: 55 | DH73: 55 | DI73: Making Left Turn | DJ73: None | DK73: Motor Vehicle In Transport | DL73: Motor Vehicle In Transport | DR73: 28 | DS73: Female | DT73: Not Distracted | DU73: 3 | DV73: Signal | DW73: Pick up | DX73: None | DY73: Slowing or Stopped In Traffic | DZ73: None | EA73: Motor Vehicle In Transport | EG73: c62cf652-bfcd-4b55-91aa-5bbe405c1347 | EH73: 2cfb984a-5fed-47a4-9d68-03d05d29fdfe | EK73: 195579 | EL73: State | EM73: https://hsip.dot.state.oh.us/api/report/20226221244 | EO73: Pathweb | EP73: Google Maps | EQ73: Mashed Map | ER73: MV | ES73: FI | ET73: 0
A74: Crash Report | B74: 20226224233 | C74: 2022 | D74: 2022110355 | E74: 59 | F74: (5) PDO/No Injury | G74: Rear End | H74: 8 | I74: BUT | J74: Off Ramp | K74: SBUTRA09035**C | L74: 0.161 | M74: 0.161 | N74: RA9035 | O74: SR747 | P74: 39.380531 | Q74: -84.454895 | R74: 43050 | S74: LIBERTY TOWNSHIP | T74: 3 | U74: 0 | V74: 0 | W74: 0 | X74: 0 | Y74: 2 | Z74: 0 | AA74: 2 | AB74: S | AC74: RA | AD74: Ramp | AF74: Interstate Route | AH74: No | AJ74: 1 | AK74: Yes | AL74: Yes | AM74: Yes | AN74: State Highway Agency | AO74: 44883 | AP74: 11 | AQ74: 16 | AR74: (6) Friday | AS74: Clear | AT74: Dry | AU74: Daylight | AV74: Straight Level | AW74: No | AX74: Yes | AY74: No | AZ74: No | BA74: No | BB74: No | BC74: No | BD74: No | BE74: No | BF74: No | BG74: No | BH74: Unknown or Not in Work Zone | BI74: Unknown or Not in Work Zone | BJ74: No | BK74: LIBERTY TOWNSHIP | BP74: SR | BQ74: 129 | BW74: SR | BX74: 747 | CB74: Intersection | CC74: Yes | CD74: 1 | CE74: West | CF74: East | CG74: No Turn | CH74: No Control | CI74: Passenger Car | CJ74: None | CK74: 0 | CL74: 0 | CM74: Straight Ahead | CN74: Following Too Closely/ACDA | CO74: Nothing Struck | CP74: Motor Vehicle In Transport | CV74: Data Not Valid or Not Provided | CW74: 0 | CX74: Unknown | CY74: Other / Unknown | CZ74: 2 | DA74: West | DB74: East | DD74: Signal | DE74: Sport Utility Vehicle | DF74: None | DG74: 0 | DH74: 65 | DI74: Slowing or Stopped In Traffic | DJ74: None | DK74: Motor Vehicle In Transport | DR74: 40 | DS74: Female | DT74: Not Distracted | EG74: a90bb998-0db2-4c4e-8fd6-93dd1a799340 | EH74: c49baa4a-ba3e-49e3-b14b-654b34bb77ac | EI74: 8230 | EL74: State | EM74: https://hsip.dot.state.oh.us/api/report/20226224233 | EO74: Pathweb | EP74: Google Maps | EQ74: Mashed Map | ER74: MV | ES74: PDO | ET74: 0.006
A75: Crash Report | B75: 20226228111 | C75: 2022 | D75: 2022110468 | E75: 60 | F75: (5) PDO/No Injury | G75: Rear End | H75: 8 | I75: BUT | J75: Data Not Valid or Not Provided | K75: SBUTSR00747**C | L75: 5.429 | M75: 8.1 | N75: SR747 | O75: SR129 | P75: 39.38051 | Q75: -84.454722 | R75: 43050 | S75: LIBERTY TOWNSHIP | T75: 3 | U75: 0 | V75: 0 | W75: 0 | X75: 0 | Y75: 2 | Z75: 0 | AA75: 2 | AB75: S | AC75: SR | AD75: Two Way Roadway | AF75: Other Principal Arterial Roads | AH75: No | AI75: 4 | AJ75: 3 | AK75: No | AL75: No | AM75: Yes | AN75: State Highway Agency | AO75: 44890 | AP75: 11 | AQ75: 7 | AR75: (6) Friday | AS75: Rain | AT75: Wet | AU75: Dawn/Dusk | AV75: Straight Grade | AW75: No | AX75: Yes | AY75: No | AZ75: No | BA75: No | BB75: No | BC75: No | BD75: No | BE75: No | BF75: No | BG75: No | BH75: Unknown or Not in Work Zone | BI75: Unknown or Not in Work Zone | BJ75: No | BK75: LIBERTY TOWNSHIP | BP75: SR | BQ75: 747 | BW75: SR | BX75: 129 | CB75: Intersection | CC75: Yes | CD75: 1 | CE75: North | CF75: East | CG75: Left Turn | CH75: Signal | CI75: Passenger Car | CJ75: None | CK75: 15 | CL75: 45 | CM75: Making Left Turn | CN75: Following Too Closely/ACDA | CO75: Nothing Struck | CP75: Motor Vehicle In Transport | CV75: Data Not Valid or Not Provided | CW75: 33 | CX75: Female | CY75: Other / Unknown | CZ75: 2 | DA75: North | DB75: East | DD75: Signal | DE75: Pick up | DF75: None | DG75: 0 | DH75: 45 | DI75: Making Left Turn | DJ75: None | DK75: Motor Vehicle In Transport | DR75: 52 | DS75: Male | DT75: Not Distracted | EG75: a90bb998-0db2-4c4e-8fd6-93dd1a799340 | EH75: 52bfbff7-f06f-42c7-abd4-ccd485446c98 | EK75: 298688 | EL75: State | EM75: https://hsip.dot.state.oh.us/api/report/20226228111 | EO75: Pathweb | EP75: Google Maps | EQ75: Mashed Map | ER75: MV | ES75: PDO | ET75: 0.003
A76: Crash Report | B76: 20226229761 | C76: 2022 | D76: 2022110503 | E76: 61 | F76: (5) PDO/No Injury | G76: Sideswipe - Passing | H76: 8 | I76: BUT | J76: Data Not Valid or Not Provided | K76: SBUTSR00747**C | L76: 5.447 | M76: 8.118 | N76: SR747 | O76: SR129 | P76: 39.380783 | Q76: -84.454685 | R76: 43050 | S76: LIBERTY TOWNSHIP | T76: 3 | U76: 0 | V76: 0 | W76: 0 | X76: 0 | Y76: 2 | Z76: 0 | AA76: 2 | AB76: S | AC76: SR | AD76: Two Way Roadway | AF76: Other Principal Arterial Roads | AH76: No | AI76: 4 | AJ76: 3 | AK76: No | AL76: No | AM76: Yes | AN76: State Highway Agency | AO76: 44892 | AP76: 11 | AQ76: 20 | AR76: (1) Sunday | AS76: Rain | AT76: Wet | AU76: Dark - Lighted Roadway | AV76: Straight Level | AW76: Yes | AX76: Yes | AY76: No | AZ76: No | BA76: No | BB76: No | BC76: No | BD76: No | BE76: No | BF76: Yes | BG76: No | BH76: Unknown or Not in Work Zone | BI76: Unknown or Not in Work Zone | BJ76: No | BK76: LIBERTY TOWNSHIP | BP76: SR | BQ76: 747 | BW76: SR | BX76: 129 | CB76: Intersection | CC76: Yes | CD76: 1 | CE76: South | CF76: North | CG76: No Turn | CH76: Signal | CI76: Unknown or Hit/Skip | CJ76: None | CK76: 55 | CL76: 55 | CM76: Changing Lanes | CN76: Other Improper Action | CO76: Nothing Struck | CP76: Other Non-Collision | CV76: Data Not Valid or Not Provided | CW76: 0 | CX76: Unknown | CY76: Other / Unknown | CZ76: 2 | DA76: South | DB76: North | DD76: Signal | DE76: Passenger Car | DF76: None | DG76: 55 | DH76: 55 | DI76: Straight Ahead | DJ76: None | DK76: Guardrail Face | DR76: 18 | DS76: Male | DT76: Not Distracted | EG76: a90bb998-0db2-4c4e-8fd6-93dd1a799340 | EH76: bd72f685-a0c5-4ca3-bf07-ec48c1e8d7a8 | EI76: 8230 | EK76: 164944 | EL76: State | EM76: https://hsip.dot.state.oh.us/api/report/20226229761 | EO76: Pathweb | EP76: Google Maps | EQ76: Mashed Map | ER76: MV | ES76: PDO | ET76: 0
A77: Crash Report | B77: 20226242375 | C77: 2022 | D77: 2022120106 | E77: 63 | F77: (5) PDO/No Injury | G77: Left Turn | H77: 8 | I77: BUT | J77: Data Not Valid or Not Provided | K77: SBUTSR00747**C | L77: 5.57 | M77: 8.241 | N77: SR747 | O77: SR129 | P77: 39.38256 | Q77: -84.454498 | R77: 43050 | S77: LIBERTY TOWNSHIP | T77: 3 | U77: 0 | V77: 0 | W77: 0 | X77: 0 | Y77: 3 | Z77: 0 | AA77: 2 | AB77: S | AC77: SR | AD77: Two Way Roadway | AF77: Minor Arterial Roads | AH77: No | AI77: 4 | AJ77: 3 | AK77: No | AL77: No | AM77: Yes | AN77: State Highway Agency | AO77: 44901 | AP77: 12 | AQ77: 15 | AR77: (3) Tuesday | AS77: Rain | AT77: Wet | AU77: Daylight | AV77: Straight Level | AW77: No | AX77: Yes | AY77: No | AZ77: No | BA77: No | BB77: No | BC77: No | BD77: No | BE77: No | BF77: Yes | BG77: No | BH77: Unknown or Not in Work Zone | BI77: Unknown or Not in Work Zone | BJ77: No | BK77: LIBERTY TOWNSHIP | BP77: SR | BQ77: 747 | BW77: SR | BX77: 129 | CB77: Intersection | CC77: Yes | CD77: 1 | CE77: North | CF77: South | CG77: No Turn | CH77: Signal | CI77: Passenger Car | CJ77: None | CK77: 0 | CL77: 45 | CM77: Straight Ahead | CN77: Ran Red Light | CO77: Nothing Struck | CP77: Motor Vehicle In Transport | CV77: Data Not Valid or Not Provided | CW77: 0 | CX77: Unknown | CY77: Other / Unknown | CZ77: 2 | DA77: South | DB77: West | DD77: Signal | DE77: Passenger Car | DF77: None | DG77: 25 | DH77: 45 | DI77: Making Left Turn | DJ77: None | DK77: Motor Vehicle In Transport | DR77: 24 | DS77: Female | DT77: Not Distracted | EG77: c62cf652-bfcd-4b55-91aa-5bbe405c1347 | EH77: 2cfb984a-5fed-47a4-9d68-03d05d29fdfe | EK77: 195579 | EL77: State | EM77: https://hsip.dot.state.oh.us/api/report/20226242375 | EO77: Pathweb | EP77: Google Maps | EQ77: Mashed Map | ER77: MV | ES77: PDO | ET77: 0
A78: Crash Report | B78: 20226248292 | C78: 2022 | D78: 2022120341 | E78: 64 | F78: (4) Injury Possible | G78: Left Turn | H78: 8 | I78: BUT | J78: Data Not Valid or Not Provided | K78: SBUTSR00747**C | L78: 5.429 | M78: 8.1 | N78: SR747 | O78: SR129 | P78: 39.38051 | Q78: -84.454722 | R78: 43050 | S78: LIBERTY TOWNSHIP | T78: 3 | U78: 0 | V78: 0 | W78: 0 | X78: 1 | Y78: 2 | Z78: 0 | AA78: 2 | AB78: S | AC78: SR | AD78: Two Way Roadway | AF78: Other Principal Arterial Roads | AH78: No | AI78: 4 | AJ78: 3 | AK78: No | AL78: No | AM78: Yes | AN78: State Highway Agency | AO78: 44915 | AP78: 12 | AQ78: 12 | AR78: (3) Tuesday | AS78: Clear | AT78: Dry | AU78: Daylight | AV78: Straight Grade | AW78: No | AX78: Yes | AY78: No | AZ78: No | BA78: No | BB78: No | BC78: No | BD78: No | BE78: No | BF78: Yes | BG78: No | BH78: Unknown or Not in Work Zone | BI78: Unknown or Not in Work Zone | BJ78: No | BK78: LIBERTY TOWNSHIP | BP78: SR | BQ78: 747 | BW78: SR | BX78: 129 | CB78: Intersection | CC78: Yes | CD78: 1 | CE78: North | CF78: East | CG78: Left Turn | CH78: Signal | CI78: Sport Utility Vehicle | CJ78: None | CK78: 25 | CL78: 55 | CM78: Making Left Turn | CN78: Failure to Yield | CO78: Guardrail Face | CP78: Motor Vehicle In Transport | CQ78: Guardrail Face | CV78: Data Not Valid or Not Provided | CW78: 20 | CX78: Male | CY78: Other / Unknown | CZ78: 2 | DA78: South | DB78: North | DD78: Signal | DE78: Passenger Van (minivan) | DF78: None | DG78: 55 | DH78: 55 | DI78: Straight Ahead | DJ78: None | DK78: Motor Vehicle In Transport | DL78: Guardrail Face | DR78: 41 | DS78: Female | DT78: Not Distracted | EG78: a90bb998-0db2-4c4e-8fd6-93dd1a799340 | EH78: 52bfbff7-f06f-42c7-abd4-ccd485446c98 | EK78: 298688 | EL78: State | EM78: https://hsip.dot.state.oh.us/api/report/20226248292 | EO78: Pathweb | EP78: Google Maps | EQ78: Mashed Map | ER78: MV | ES78: FI | ET78: 0
A79: =IF(C79*1>2010,HYPERLINK(EM79,"Crash Report"),IF(EM79="","","Restricted Access")) -> Crash Report | B79: 20226251815 | C79: 2022 | D79: 2022120394 | E79: 65 | F79: (5) PDO/No Injury | G79: Rear End | H79: 8 | I79: BUT | J79: Data Not Valid or Not Provided | K79: SBUTSR00747**C | L79: 5.421 | M79: 8.092 | N79: SR747 | O79: SR129 | P79: 39.380399 | Q79: -84.454734 | R79: 43050 | S79: LIBERTY TOWNSHIP | T79: 3 | U79: 0 | V79: 0 | W79: 0 | X79: 0 | Y79: 3 | Z79: 0 | AA79: 2 | AB79: S | AC79: SR | AD79: Two Way Roadway | AF79: Other Principal Arterial Roads | AH79: No | AI79: 4 | AJ79: 3 | AK79: No | AL79: No | AM79: Yes | AN79: State Highway Agency | AO79: 44917 | AP79: 12 | AQ79: 20 | AR79: (5) Thursday | AS79: Snow | AT79: Snow | AU79: Dark - Lighted Roadway | AV79: Straight Level | AW79: No | AX79: Yes | AY79: No | AZ79: No | BA79: No | BB79: No | BC79: No | BD79: No | BE79: No | BF79: Yes | BG79: No | BH79: Unknown or Not in Work Zone | BI79: Unknown or Not in Work Zone | BJ79: No | BK79: LIBERTY TOWNSHIP | BP79: SR | BQ79: 747 | BW79: SR | BX79: 129 | CB79: Intersection | CC79: Yes | CD79: 1 | CE79: South | CF79: North | CG79: No Turn | CH79: Signal | CI79: Unknown or Hit/Skip | CJ79: None | CK79: 0 | CL79: 0 | CM79: Straight Ahead | CN79: Following Too Closely/ACDA | CO79: Nothing Struck | CP79: Motor Vehicle In Transport | CV79: Data Not Valid or Not Provided | CW79: 0 | CX79: Unknown | CY79: Other / Unknown | CZ79: 2 | DA79: South | DB79: North | DD79: Signal | DE79: Passenger Car | DF79: None | DG79: 0 | DH79: 55 | DI79: Straight Ahead | DJ79: None | DK79: Motor Vehicle In Transport | DR79: 25 | DS79: Male | DT79: Not Distracted | EG79: a90bb998-0db2-4c4e-8fd6-93dd1a799340 | EH79: 52bfbff7-f06f-42c7-abd4-ccd485446c98 | EK79: 298688 | EL79: State | EM79: https://hsip.dot.state.oh.us/api/report/20226251815 | EO79: =+HYPERLINK(CONCATENATE("http://pathweb.pathwayservices.com/ohiopublic/?nlfid='",+K79,"'&logpoint=",+L79),"Pathweb") -> Pathweb | EP79: =HYPERLINK(CONCATENATE("http://maps.google.com/maps?q=",+P79,",+",+Q79,"+(Crash+Location)&iwloc=A&hl=en"),"Google Maps") -> Google Maps | EQ79: =HYPERLINK(CONCATENATE("http://data.mashedworld.com/dualmaps/map.htm?x=",Q79,"&y=",P79,"&z=15&gm=0&ve=5&gc=0&bz=1&bd=0&mw=1&sv=1&svb=0&svp=0&svz=0&svm=2&svf=0"),"Mashed Map") -> Mashed Map | ER79: MV | ES79: PDO | ET79: 0.005
A80: Crash Report | B80: 20226256783 | C80: 2022 | D80: 2022120537 | E80: 66 | F80: (5) PDO/No Injury | G80: Angle | H80: 8 | I80: BUT | J80: T-Intersection | K80: SBUTSR00747**C | L80: 5.38 | M80: 8.051 | N80: SR747 | O80: MP5 | P80: 39.379807 | Q80: -84.454792 | R80: 43050 | S80: LIBERTY TOWNSHIP | T80: 3 | U80: 0 | V80: 0 | W80: 0 | X80: 0 | Y80: 3 | Z80: 0 | AA80: 2 | AB80: S | AC80: SR | AD80: Two Way Roadway | AF80: Other Principal Arterial Roads | AH80: No | AI80: 4 | AJ80: 3 | AK80: No | AL80: No | AM80: Yes | AN80: State Highway Agency | AO80: 44926 | AP80: 12 | AQ80: 12 | AR80: (7) Saturday | AS80: Rain | AT80: Wet | AU80: Daylight | AV80: Straight Level | AW80: No | AX80: Yes | AY80: No | AZ80: No | BA80: No | BB80: No | BC80: No | BD80: No | BE80: No | BF80: No | BG80: No | BH80: Unknown or Not in Work Zone | BI80: Unknown or Not in Work Zone | BJ80: No | BK80: LIBERTY TOWNSHIP | BP80: SR | BQ80: 747 | BT80: 5 | CA80: 5 | CB80: Mile Post | CC80: Yes | CD80: 1 | CE80: West | CF80: North | CG80: Left Turn | CH80: Signal | CI80: Sport Utility Vehicle | CJ80: None | CK80: 10 | CL80: 55 | CM80: Making Left Turn | CN80: Improper Turn | CO80: Nothing Struck | CP80: Motor Vehicle In Transport | CV80: Data Not Valid or Not Provided | CW80: 36 | CX80: Female | CY80: Not Distracted | CZ80: 2 | DA80: North | DB80: South | DD80: Signal | DE80: Passenger Car | DF80: None | DG80: 1 | DH80: 55 | DI80: Slowing or Stopped In Traffic | DJ80: None | DK80: Motor Vehicle In Transport | DR80: 56 | DS80: Male | DT80: Not Distracted | EK80: 298688 | EL80: State | EM80: https://hsip.dot.state.oh.us/api/report/20226256783 | EO80: Pathweb | EP80: Google Maps | EQ80: Mashed Map | ER80: MV | ES80: PDO | ET80: 0.4

Sheet Quick Summary
B1: ='Full Crash Data'!A3 -> Type 'Heading' Here
B2: Crash Summary Sheet
F3: Crashes Per Year | G3: =ROUND(COUNT('Full Crash Data'!$B$21:$B$999994) / (MAX('Full Crash Data'!$C$21:$C$999994)-MIN('Full Crash Data'!$C$21:$C$999994)+1),2) -> 30
B4: Fatalities | C4: =SUM('Full Crash Data'!$U$21:$U$999994) -> 0 | F4: Fatal and All Injury Crashes | G4: =COUNT('Full Crash Data'!$B$21:$B$999994)-COUNTIFS('Full Crash Data'!$F:$F,"(5) PDO/No Injury") -> 19
B5: Serious Injuries | C5: =SUM('Full Crash Data'!$V$21:$V$999994) -> 2 | F5: Percent Injury | G5: =1-(COUNTIFS('Full Crash Data'!$F:$F,"(5) PDO/No Injury")/COUNT('Full Crash Data'!$B$21:$B$999994)) -> 0.3166666667
B6: Other Injuries | C6: =SUM('Full Crash Data'!$W$21:$W$999994)+SUM('Full Crash Data'!$X$21:$X$999994) -> 27 | F6: Equivalent PDO Index Value | G6: =IFERROR(ROUND(((COUNTIFS('Full Crash Data'!$F:$F,"(1) Fatal")+COUNTIFS('Full Crash Data'!$F:$F,"(2) Serious Injury Suspected"))*RefTables!$N$3+COUNTIFS('Full Crash Data'!$F:$F,"(3) Minor Injury Suspected")*RefTables!O3+COUNTIFS('Full Crash Data'!$F:$F,"(4) Injury Possible")*RefTables!$P$3+COUNTIFS('Full Crash Data'!$F:$F,"(5) PDO/No Injury")*RefTables!$Q$3)/COUNT('Full Crash Data'!$B$21:$B$999994),2),0) -> 3.66
B8: Crash Severity | C8: Crashes | D8: % | F8: Year | G8: Crashes | H8: %
B9: (2) Serious Injury Suspected | C9: 2 | D9: 0.03333333333 | F9: 2021 | G9: 25 | H9: 0.4166666667
B10: (3) Minor Injury Suspected | C10: 6 | D10: 0.1 | F10: 2022 | G10: 35 | H10: 0.5833333333
B11: (4) Injury Possible | C11: 11 | D11: 0.1833333333 | F11: Grand Total | G11: 60 | H11: 1
B12: (5) PDO/No Injury | C12: 41 | D12: 0.6833333333
B13: Grand Total | C13: 60 | D13: 1
B17: Day of Week | C17: Crashes | D17: %
B18: (1) Sunday | C18: 5 | D18: 0.08333333333
B19: (2) Monday | C19: 7 | D19: 0.1166666667
B20: (3) Tuesday | C20: 9 | D20: 0.15
B21: (4) Wednesday | C21: 11 | D21: 0.1833333333
B22: (5) Thursday | C22: 6 | D22: 0.1
B23: (6) Friday | C23: 13 | D23: 0.2166666667
B24: (7) Saturday | C24: 9 | D24: 0.15
B25: Grand Total | C25: 60 | D25: 1
F27: Crash Type | G27: Crashes | H27: %
B28: Hour of Day | C28: Crashes | D28: % | F28: Rear End | G28: 27 | H28: 0.45
B29: 5 | C29: 1 | D29: 0.01666666667 | F29: Left Turn | G29: 18 | H29: 0.3
B30: 6 | C30: 1 | D30: 0.01666666667 | F30: Angle | G30: 6 | H30: 0.1
B31: 7 | C31: 6 | D31: 0.1 | F31: Sideswipe - Passing | G31: 5 | H31: 0.08333333333
B32: 8 | C32: 3 | D32: 0.05 | F32: Right Turn | G32: 4 | H32: 0.06666666667
B33: 9 | C33: 4 | D33: 0.06666666667 | F33: Grand Total | G33: 60 | H33: 1
B34: 10 | C34: 3 | D34: 0.05
B35: 11 | C35: 2 | D35: 0.03333333333
B36: 12 | C36: 5 | D36: 0.08333333333
B37: 13 | C37: 2 | D37: 0.03333333333
B38: 14 | C38: 4 | D38: 0.06666666667
B39: 15 | C39: 8 | D39: 0.1333333333
B40: 16 | C40: 6 | D40: 0.1
B41: 17 | C41: 7 | D41: 0.1166666667
B42: 18 | C42: 3 | D42: 0.05
B43: 19 | C43: 1 | D43: 0.01666666667
B44: 20 | C44: 3 | D44: 0.05
B45: 22 | C45: 1 | D45: 0.01666666667
B46: Grand Total | C46: 60 | D46: 1
F50: Month | G50: Crashes | H50: %
F51: 1 | G51: 5 | H51: 0.08333333333
F52: 2 | G52: 5 | H52: 0.08333333333
F53: 4 | G53: 7 | H53: 0.1166666667
F54: 5 | G54: 6 | H54: 0.1
F55: 6 | G55: 5 | H55: 0.08333333333
F56: 7 | G56: 1 | H56: 0.01666666667
F57: 8 | G57: 4 | H57: 0.06666666667
F58: 9 | G58: 7 | H58: 0.1166666667
F59: 10 | G59: 4 | H59: 0.06666666667
F60: 11 | G60: 12 | H60: 0.2
F61: 12 | G61: 4 | H61: 0.06666666667
F62: Grand Total | G62: 60 | H62: 1
B65: Weather Condition | C65: Crashes | D65: % | F65: Road Condition | G65: Crashes | H65: %
B66: Clear | C66: 37 | D66: 0.6166666667 | F66: Dry | G66: 46 | H66: 0.7666666667
B67: Cloudy | C67: 11 | D67: 0.1833333333 | F67: Wet | G67: 12 | H67: 0.2
B68: Rain | C68: 10 | D68: 0.1666666667 | F68: Snow | G68: 2 | H68: 0.03333333333
B69: Snow | C69: 2 | D69: 0.03333333333 | F69: Grand Total | G69: 60 | H69: 1
B70: Grand Total | C70: 60 | D70: 1
B79: Light Condition | C79: Crashes | D79: % | F79: Number of Units | G79: Crashes | H79: %
B80: Daylight | C80: 47 | D80: 0.7833333333 | F80: 2 | G80: 54 | H80: 0.9
B81: Dark - Lighted Roadway | C81: 7 | D81: 0.1166666667 | F81: 3 | G81: 4 | H81: 0.06666666667
B82: Dawn/Dusk | C82: 5 | D82: 0.08333333333 | F82: 4 | G82: 2 | H82: 0.03333333333
B83: Dark - Roadway Not Lighted | C83: 1 | D83: 0.01666666667 | F83: Grand Total | G83: 60 | H83: 1
B84: Grand Total | C84: 60 | D84: 1
B89: ODOT Location | C89: Crashes | D89: %
B90: Data Not Valid or Not Provided | C90: 22 | D90: 0.3666666667
B91: T-Intersection | C91: 17 | D91: 0.2833333333
B92: Not An Intersection | C92: 8 | D92: 0.1333333333
B93: Four-Way Intersection | C93: 7 | D93: 0.1166666667
B94: 5 Or More Point Intersection | C94: 3 | D94: 0.05 | F94: Work Zone Related | G94: Crashes | H94: %
B95: Off Ramp | C95: 3 | D95: 0.05 | F95: No | G95: 60 | H95: 1
B96: Grand Total | C96: 60 | D96: 1 | F96: Grand Total | G96: 60 | H96: 1
F99: Alcohol Related | G99: Crashes | H99: %
F100: No | G100: 59 | H100: 0.9833333333
F101: Yes | G101: 1 | H101: 0.01666666667
F102: Grand Total | G102: 60 | H102: 1
F104: Drug Related (Inc. Marijuana) | G104: Crashes | H104: %
F105: No | G105: 60 | H105: 1
B106: Contour | C106: Crashes | D106: % | F106: Grand Total | G106: 60 | H106: 1
B107: Curve Grade | C107: 1 | D107: 0.01666666667
B108: Straight Grade | C108: 26 | D108: 0.4333333333
B109: Straight Level | C109: 33 | D109: 0.55 | F109: Marijuana Related | G109: Crashes | H109: %
B110: Grand Total | C110: 60 | D110: 1 | F110: No | G110: 60 | H110: 1
F111: Grand Total | G111: 60 | H111: 1
B114: Roadway Departure | C114: Crashes | D114: % | F114: Older Driver (65+) | G114: Crashes | H114: %
B115: No | C115: 58 | D115: 0.9666666667 | F115: No | G115: 48 | H115: 0.8
B116: Yes | C116: 2 | D116: 0.03333333333 | F116: Yes | G116: 12 | H116: 0.2
B117: Grand Total | C117: 60 | D117: 1 | F117: Grand Total | G117: 60 | H117: 1
B119: Intersection Related | C119: Crashes | D119: % | F119: Young Driver (15-25) | G119: Crashes | H119: %
B120: Yes | C120: 54 | D120: 0.9 | F120: No | G120: 36 | H120: 0.6
B121: No | C121: 6 | D121: 0.1 | F121: Yes | G121: 24 | H121: 0.4
B122: Grand Total | C122: 60 | D122: 1 | F122: Grand Total | G122: 60 | H122: 1
B124: Speed Related | C124: Crashes | D124: % | F124: Motorcycle Involved | G124: Crashes | H124: %
B125: No | C125: 59 | D125: 0.9833333333 | F125: No | G125: 60 | H125: 1
B126: Yes | C126: 1 | D126: 0.01666666667 | F126: Grand Total | G126: 60 | H126: 1
B127: Grand Total | C127: 60 | D127: 1
B132: Unit 1 Summary
B134: Unit 1 Pre-Crash Action | C134: Crashes | D134: % | F134: Unit 1 Contributing Factor | G134: Crashes | H134: %
B135: Straight Ahead | C135: 33 | D135: 0.55 | F135: Following Too Closely/ACDA | G135: 25 | H135: 0.4166666667
B136: Making Left Turn | C136: 18 | D136: 0.3 | F136: Failure to Yield | G136: 13 | H136: 0.2166666667
B137: Making Right Turn | C137: 4 | D137: 0.06666666667 | F137: Ran Red Light | G137: 5 | H137: 0.08333333333
B138: Changing Lanes | C138: 3 | D138: 0.05 | F138: None | G138: 5 | H138: 0.08333333333
B139: Slowing or Stopped In Traffic | C139: 2 | D139: 0.03333333333 | F139: Improper Turn | G139: 4 | H139: 0.06666666667
B140: Grand Total | C140: 60 | D140: 1 | F140: Not Discernible | G140: 3 | H140: 0.05
F141: Improper Lane Change | G141: 2 | H141: 0.03333333333
F142: Other Improper Action | G142: 2 | H142: 0.03333333333
F143: Left of Center | G143: 1 | H143: 0.01666666667
F144: Grand Total | G144: 60 | H144: 1
B158: Unit 1 Object Struck | C158: Crashes | D158: %
B159: Nothing Struck | C159: 57 | D159: 0.95
B160: Guardrail Face | C160: 3 | D160: 0.05
B161: Grand Total | C161: 60 | D161: 1
F162: Unit 1 Traffic Control | G162: Crashes | H162: %
F163: Signal | G163: 44 | H163: 0.7333333333
F164: No Control | G164: 16 | H164: 0.2666666667
F165: Grand Total | G165: 60 | H165: 1
F172: Unit 1 Posted Speed | G172: Crashes | H172: % | K172: Unit 1 Estimated Speed | L172: Crashes | M172: %
F173: 0 | G173: 3 | H173: 0.05 | K173: <15 | L173: 28 | M173: 0.4666666667
F174: 35 | G174: 2 | H174: 0.03333333333 | K174: 15-19 | L174: 9 | M174: 0.15
F175: 45 | G175: 8 | H175: 0.1333333333 | K175: 20-24 | L175: 2 | M175: 0.03333333333
F176: 55 | G176: 45 | H176: 0.75 | K176: 25-29 | L176: 5 | M176: 0.08333333333
F177: 65 | G177: 2 | H177: 0.03333333333 | K177: 30-34 | L177: 1 | M177: 0.01666666667
F178: Grand Total | G178: 60 | H178: 1 | K178: 35-39 | L178: 4 | M178: 0.06666666667
K179: 40-44 | L179: 3 | M179: 0.05
K180: 45-49 | L180: 1 | M180: 0.01666666667
K181: 55-59 | L181: 7 | M181: 0.1166666667
K182: Grand Total | L182: 60 | M182: 1
B191: Unit 1 Direction From | C191: Crashes | D191: % | F191: Unit 1 Direction To | G191: Crashes | H191: %
B192: North | C192: 28 | D192: 0.4666666667 | F192: South | G192: 21 | H192: 0.35
B193: South | C193: 20 | D193: 0.3333333333 | F193: North | G193: 19 | H193: 0.3166666667
B194: East | C194: 10 | D194: 0.1666666667 | F194: West | G194: 10 | H194: 0.1666666667
B195: West | C195: 2 | D195: 0.03333333333 | F195: East | G195: 10 | H195: 0.1666666667
B196: Grand Total | C196: 60 | D196: 1 | F196: Grand Total | G196: 60 | H196: 1
B203: Unit 1 Summary
B205: Unit 1 Type | C205: Crashes | D205: % | F205: Unit 1 Special Function | G205: Crashes | H205: %
B206: Passenger Car | C206: 23 | D206: 0.3833333333 | F206: None | G206: 57 | H206: 0.95
B207: Sport Utility Vehicle | C207: 16 | D207: 0.2666666667 | F207: Other / Unknown | G207: 3 | H207: 0.05
B208: Pick up | C208: 11 | D208: 0.1833333333 | F208: Grand Total | G208: 60 | H208: 1
B209: Passenger Van (minivan) | C209: 4 | D209: 0.06666666667
B210: Cargo Van | C210: 2 | D210: 0.03333333333
B211: Unknown or Hit/Skip | C211: 2 | D211: 0.03333333333
B212: Semi-Tractor | C212: 1 | D212: 0.01666666667
B213: Single Unit Truck | C213: 1 | D213: 0.01666666667
B214: Grand Total | C214: 60 | D214: 1
B230: Unit 2 Summary
B232: Unit 2 Pre-Crash Action | C232: Crashes | D232: % | F232: Unit 2 Contributing Factor | G232: Crashes | H232: %
B233: Slowing or Stopped In Traffic | C233: 27 | D233: 0.45 | F233: None | G233: 57 | H233: 0.95
B234: Straight Ahead | C234: 21 | D234: 0.35 | F234: Not Discernible | G234: 2 | H234: 0.03333333333
B235: Making Left Turn | C235: 8 | D235: 0.1333333333 | F235: Swerving to Avoid | G235: 1 | H235: 0.01666666667
B236: Making Right Turn | C236: 4 | D236: 0.06666666667 | F236: Grand Total | G236: 60 | H236: 1
B237: Grand Total | C237: 60 | D237: 1
B261: Unit 2 Direction From | C261: Crashes | D261: % | F261: Unit 2 Direction To | G261: Crashes | H261: %
B262: East | C262: 10 | D262: 0.1666666667 | F262: East | G262: 4 | H262: 0.06666666667
B263: North | C263: 26 | D263: 0.4333333333 | F263: North | G263: 24 | H263: 0.4
B264: South | C264: 22 | D264: 0.3666666667 | F264: South | G264: 25 | H264: 0.4166666667
B265: West | C265: 2 | D265: 0.03333333333 | F265: West | G265: 7 | H265: 0.1166666667
B266: Grand Total | C266: 60 | D266: 1 | F266: Grand Total | G266: 60 | H266: 1
B275: Unit 2 Type | C275: Crashes | D275: % | F275: Unit 2 Special Function | G275: Crashes | H275: %
B276: Passenger Car | C276: 30 | D276: 0.5 | F276: None | G276: 58 | H276: 0.9666666667
B277: Sport Utility Vehicle | C277: 17 | D277: 0.2833333333 | F277: Taxi | G277: 1 | H277: 0.01666666667
B278: Pick up | C278: 7 | D278: 0.1166666667 | G278: 1 | H278: 0.01666666667
B279: Passenger Van (minivan) | C279: 4 | D279: 0.06666666667 | F279: Grand Total | G279: 60 | H279: 1
B280: Van (9-15 Seats) | C280: 1 | D280: 0.01666666667
B281: Cargo Van | C281: 1 | D281: 0.01666666667
B282: Grand Total | C282: 60 | D282: 1

Sheet Crash Analysis
B1: ='Full Crash Data'!A3 -> Type 'Heading' Here
B2: Crash Summary Sheet | D2: Crashes Per Year | F2: =ROUND(COUNT('Full Crash Data'!$B$21:$B$999994) / (MAX('Full Crash Data'!$C$21:$C$999994)-MIN('Full Crash Data'!$C$21:$C$999994)+1),2) -> 30 | G2: Percent Injury | I2: =1-(COUNTIFS('Full Crash Data'!$F:$F,"(5) PDO/No Injury")/COUNT('Full Crash Data'!$B$21:$B$999994)) -> 0.3166666667 | J2: EPDO | L2: =IFERROR(ROUND(((COUNTIFS('Full Crash Data'!$F:$F,"(1) Fatal")+COUNTIFS('Full Crash Data'!$F:$F,"(2) Serious Injury Suspected"))*RefTables!$N$3+COUNTIFS('Full Crash Data'!$F:$F,"(3) Minor Injury Suspected")*RefTables!O3+COUNTIFS('Full Crash Data'!$F:$F,"(4) Injury Possible")*RefTables!$P$3+COUNTIFS('Full Crash Data'!$F:$F,"(5) PDO/No Injury")*RefTables!$Q$3)/COUNT('Full Crash Data'!$B$21:$B$999994),2),0) -> 3.66
P3: Year | Q3: Fatalities | R3: Serious Injuries | U3: Year | V3: Count of Document Number | AA3: Total Crashes | AB3: Column Labels
B4: Year | C4: Total Crashes | D4: Fatalities | E4: Serious Injuries | P4: 2021 | Q4: 0 | R4: 2 | U4: 2021 | V4: 25 | AB4: MV | AD4: Grand Total
B5: 2021 | C5: 25 | D5: 0 | E5: 2 | P5: 2022 | Q5: 0 | R5: 0 | U5: 2022 | V5: 35 | AA5: Year | AB5: FI | AC5: PDO
B6: 2022 | C6: 35 | D6: 0 | E6: 0 | P6: Grand Total | Q6: 0 | R6: 2 | U6: Grand Total | V6: 60 | AA6: 2021 | AB6: 10 | AC6: 15 | AD6: 25
B7: Grand Total | C7: 60 | D7: 0 | E7: 2 | AA7: 2022 | AB7: 9 | AC7: 26 | AD7: 35
AA8: Grand Total | AB8: 19 | AC8: 41 | AD8: 60
B24: Total Crashes | C24: Injury Level | P24: Count of Document Number | Q24: Column Labels
B25: Crash Type | C25: (2) Serious Injury Suspected | D25: (3) Minor Injury Suspected | E25: (4) Injury Possible | F25: (5) PDO/No Injury | G25: Grand Total | P25: Crash Type | Q25: (5) PDO/No Injury | R25: (3) Minor Injury Suspected | S25: (4) Injury Possible | T25: (2) Serious Injury Suspected | U25: Grand Total
B26: Rear End | C26: 1 | D26: 2 | E26: 1 | F26: 23 | G26: 27 | P26: Angle | Q26: 4 | R26: 1 | S26: 1 | T26: 0 | U26: 6
B27: Left Turn | C27: 1 | D27: 2 | E27: 8 | F27: 7 | G27: 18 | P27: Left Turn | Q27: 7 | R27: 2 | S27: 8 | T27: 1 | U27: 18
B28: Angle | C28: 0 | D28: 1 | E28: 1 | F28: 4 | G28: 6 | P28: Rear End | Q28: 23 | R28: 2 | S28: 1 | T28: 1 | U28: 27
B29: Sideswipe - Passing | C29: 0 | D29: 0 | E29: 1 | F29: 4 | G29: 5 | P29: Right Turn | Q29: 3 | R29: 1 | S29: 0 | T29: 0 | U29: 4
B30: Right Turn | C30: 0 | D30: 1 | E30: 0 | F30: 3 | G30: 4 | P30: Sideswipe - Passing | Q30: 4 | R30: 0 | S30: 1 | T30: 0 | U30: 5
B31: Grand Total | C31: 2 | D31: 6 | E31: 11 | F31: 41 | G31: 60 | P31: Grand Total | Q31: 41 | R31: 6 | S31: 11 | T31: 2 | U31: 60
B48: Road Condition | C48: Total Crashes | D48: Fatalities | E48: Serious Injuries | G48: Hour of Day | H48: Total Crashes | J48: Month | K48: Total Crashes
B49: Dry | C49: 46 | D49: 0 | E49: 2 | G49: 5 | H49: 1 | J49: January | K49: 5
B50: Snow | C50: 2 | D50: 0 | E50: 0 | G50: 6 | H50: 1 | J50: February | K50: 5
B51: Wet | C51: 12 | D51: 0 | E51: 0 | G51: 7 | H51: 6 | J51: April | K51: 7
B52: Grand Total | C52: 60 | D52: 0 | E52: 2 | G52: 8 | H52: 3 | J52: May | K52: 6
G53: 9 | H53: 4 | J53: June | K53: 5
G54: 10 | H54: 3 | J54: July | K54: 1
G55: 11 | H55: 2 | J55: August | K55: 4
G56: 12 | H56: 5 | J56: September | K56: 7
G57: 13 | H57: 2 | J57: October | K57: 4
G58: 14 | H58: 4 | J58: November | K58: 12
G59: 15 | H59: 8 | J59: December | K59: 4
G60: 16 | H60: 6 | J60: Grand Total | K60: 60
G61: 17 | H61: 7
B62: Weather | C62: Total Crashes | D62: Fatalities | E62: Serious Injuries | G62: 18 | H62: 3
B63: Clear | C63: 37 | D63: 0 | E63: 2 | G63: 19 | H63: 1 | J63: Day in Week | K63: Total Crashes
B64: Cloudy | C64: 11 | D64: 0 | E64: 0 | G64: 20 | H64: 3 | J64: (1) Sunday | K64: 5
B65: Rain | C65: 10 | D65: 0 | E65: 0 | G65: 22 | H65: 1 | J65: (2) Monday | K65: 7
B66: Snow | C66: 2 | D66: 0 | E66: 0 | G66: Grand Total | H66: 60 | J66: (3) Tuesday | K66: 9
B67: Grand Total | C67: 60 | D67: 0 | E67: 2 | J67: (4) Wednesday | K67: 11
J68: (5) Thursday | K68: 6
J69: (6) Friday | K69: 13
J70: (7) Saturday | K70: 9
J71: Grand Total | K71: 60
B75: Crash Location | C75: Total Crashes | D75: Fatalities | E75: Serious Injuries
B76: 5 Or More Point Intersection | C76: 3 | D76: 0 | E76: 0
B77: Four-Way Intersection | C77: 7 | D77: 0 | E77: 1
B78: Not An Intersection | C78: 8 | D78: 0 | E78: 0
B79: T-Intersection | C79: 17 | D79: 0 | E79: 1
B80: Off Ramp | C80: 3 | D80: 0 | E80: 0
B81: Data Not Valid or Not Provided | C81: 22 | D81: 0 | E81: 0
B82: Grand Total | C82: 60 | D82: 0 | E82: 2
B92: Roadway Contour | C92: Total Crashes | D92: Fatalities | E92: Serious Injuries
B93: Straight Level | C93: 33 | D93: 0 | E93: 1
B94: Straight Grade | C94: 26 | D94: 0 | E94: 1
B95: Curve Grade | C95: 1 | D95: 0 | E95: 0
B96: Grand Total | C96: 60 | D96: 0 | E96: 2

Sheet Unit 1 Analysis
B1: ='Crash Analysis'!B1 -> Type 'Heading' Here | G1: =B1 -> Type 'Heading' Here
B2: Unit 1 Crash Summary | G2: Unit 1 Crash Summary
B4: Type of Unit | C4: Total Crashes | D4: Fatalities | E4: Serious Injuries | G4: Traffic Control | H4: Total Crashes | I4: Fatalities | J4: Serious Injuries
B5: Passenger Car | C5: 23 | D5: 0 | E5: 1 | G5: Signal | H5: 44 | I5: 0 | J5: 1
B6: Sport Utility Vehicle | C6: 16 | D6: 0 | E6: 1 | G6: No Control | H6: 16 | I6: 0 | J6: 1
B7: Pick up | C7: 11 | D7: 0 | E7: 0 | G7: Grand Total | H7: 60 | I7: 0 | J7: 2
B8: Passenger Van (minivan) | C8: 4 | D8: 0 | E8: 0
B9: Cargo Van | C9: 2 | D9: 0 | E9: 0
B10: Unknown or Hit/Skip | C10: 2 | D10: 0 | E10: 0
B11: Single Unit Truck | C11: 1 | D11: 0 | E11: 0
B12: Semi-Tractor | C12: 1 | D12: 0 | E12: 0
B13: Grand Total | C13: 60 | D13: 0 | E13: 2
G23: Object Struck | H23: Total Crashes | I23: Fatalities | J23: Serious Injuries
G24: Guardrail Face | H24: 3 | I24: 0 | J24: 1
G25: Grand Total | H25: 3 | I25: 0 | J25: 1
B34: Special Function | C34: Total Crashes | D34: Fatalities | E34: Serious Injuries
B35: None | C35: 57 | D35: 0 | E35: 2
B36: Other / Unknown | C36: 3 | D36: 0 | E36: 0
B37: Grand Total | C37: 60 | D37: 0 | E37: 2
G47: Contributing Circumstances | H47: Total Crashes | I47: Fatalities | J47: Serious Injuries
G48: Following Too Closely/ACDA | H48: 25 | I48: 0 | J48: 1
G49: Failure to Yield | H49: 13 | I49: 0 | J49: 1
G50: None | H50: 5 | I50: 0 | J50: 0
G51: Ran Red Light | H51: 5 | I51: 0 | J51: 0
G52: Improper Turn | H52: 4 | I52: 0 | J52: 0
G53: Not Discernible | H53: 3 | I53: 0 | J53: 0
G54: Other Improper Action | H54: 2 | I54: 0 | J54: 0
G55: Improper Lane Change | H55: 2 | I55: 0 | J55: 0
G56: Left of Center | H56: 1 | I56: 0 | J56: 0
G57: Grand Total | H57: 60 | I57: 0 | J57: 2
B58: Pre-Crash Action | C58: Total Crashes | D58: Fatalities | E58: Serious Injuries
B59: Straight Ahead | C59: 33 | D59: 0 | E59: 1
B60: Making Left Turn | C60: 18 | D60: 0 | E60: 1
B61: Making Right Turn | C61: 4 | D61: 0 | E61: 0
B62: Changing Lanes | C62: 3 | D62: 0 | E62: 0
B63: Slowing or Stopped In Traffic | C63: 2 | D63: 0 | E63: 0
B64: Grand Total | C64: 60 | D64: 0 | E64: 2
B87: Gender | C87: Total Crashes | D87: Fatalities | E87: Serious Injuries
B88: Male | C88: 31 | D88: 0 | E88: 1 | G88: Alcohol Involved | H88: Total Crashes | I88: Fatalities | J88: Serious Injuries | L88: Marijuana Involved | M88: Total Crashes | N88: Fatalities | O88: Serious Injuries
B89: Female | C89: 22 | D89: 0 | E89: 1 | G89: No | H89: 59 | I89: 0 | J89: 1 | L89: No | M89: 60 | N89: 0 | O89: 2
B90: Unknown | C90: 7 | D90: 0 | E90: 0 | G90: Yes | H90: 1 | I90: 0 | J90: 1 | L90: Grand Total | M90: 60 | N90: 0 | O90: 2
B91: Grand Total | C91: 60 | D91: 0 | E91: 2 | G91: Grand Total | H91: 60 | I91: 0 | J91: 2
B94: Driver Age | C94: Total Crashes | D94: Fatalities | E94: Serious Injuries | L94: Other Drugs Involved | M94: Total Crashes | N94: Fatalities | O94: Serious Injuries
B95: <15 | C95: 7 | D95: 0 | E95: 0 | L95: No | M95: 60 | N95: 0 | O95: 2
B96: 15-19 | C96: 7 | D96: 0 | E96: 0 | L96: Grand Total | M96: 60 | N96: 0 | O96: 2
B97: 20-24 | C97: 7 | D97: 0 | E97: 0
B98: 25-29 | C98: 4 | D98: 0 | E98: 0 | G98: Distracted By | H98: Total Crashes | I98: Fatalities | J98: Serious Injuries
B99: 30-34 | C99: 5 | D99: 0 | E99: 0 | G99: Not Distracted | H99: 47 | I99: 0 | J99: 2
B100: 35-39 | C100: 6 | D100: 0 | E100: 0 | G100: Other / Unknown | H100: 11 | I100: 0 | J100: 0
B101: 40-44 | C101: 3 | D101: 0 | E101: 0 | G101: Other distraction inside the vehicle | H101: 1 | I101: 0 | J101: 0
B102: 45-49 | C102: 4 | D102: 0 | E102: 0 | G102: Manually operating an electronic communication device (testing, typing, dialing) | H102: 1 | I102: 0 | J102: 0
B103: 50-54 | C103: 6 | D103: 0 | E103: 1 | G103: Grand Total | H103: 60 | I103: 0 | J103: 2
B104: 55-59 | C104: 6 | D104: 0 | E104: 1
B105: 60-64 | C105: 1 | D105: 0 | E105: 0
B106: 65-69 | C106: 2 | D106: 0 | E106: 0
B107: 70-74 | C107: 2 | D107: 0 | E107: 0
B108: Grand Total | C108: 60 | D108: 0 | E108: 2
G111: Non-Motorist Location | H111: Total Crashes | I111: Fatalities | J111: Serious Injuries
G112: Grand Total | H112: 0 | I112: 0 | J112: 0
G127: Estimated Speed | H127: Total Crashes | I127: Fatalities | J127: Serious Injuries | L127: Posted Speed | M127: Total Crashes | N127: Fatalities | O127: Serious Injuries
G128: <15 | H128: 28 | I128: 0 | J128: 1 | L128: 0 | M128: 3 | N128: 0 | O128: 0
G129: 15-19 | H129: 9 | I129: 0 | J129: 0 | L129: 35 | M129: 2 | N129: 0 | O129: 0
G130: 20-24 | H130: 2 | I130: 0 | J130: 0 | L130: 45 | M130: 8 | N130: 0 | O130: 0
G131: 25-29 | H131: 5 | I131: 0 | J131: 0 | L131: 55 | M131: 45 | N131: 0 | O131: 2
G132: 30-34 | H132: 1 | I132: 0 | J132: 0 | L132: 65 | M132: 2 | N132: 0 | O132: 0
G133: 35-39 | H133: 4 | I133: 0 | J133: 0 | L133: Grand Total | M133: 60 | N133: 0 | O133: 2
G134: 40-44 | H134: 3 | I134: 0 | J134: 0
G135: 45-49 | H135: 1 | I135: 0 | J135: 0
G136: 55-59 | H136: 7 | I136: 0 | J136: 1
G137: Grand Total | H137: 60 | I137: 0 | J137: 2

Sheet RelativeSeverityIndex
A1: Relative Severity Index Calculation | AI1: All Sites
A2: ODOT District | AA2: NLFID: | AE2: FindTruck | AF2: 0 | AI2: HSM Elements Only | BA2: Crash Costs (2020)
A3: Urban Area | AA3: Blog: | AE3: FindVC | AF3: 0 | AI3: Observed Elements Only | BA3: KA | BB3: B | BC3: C | BD3: O
A4: Freeway | AA4: Elog: | BA4: 422724.5966 | BB4: 54138.59844 | BC4: 47325.15774 | BD4: 8080.348351
AA5: WAADT: | BA5: =ROUND(BA4/$BD$4,2) -> 52.32 | BB5: =ROUND(BB4/$BD$4,2) -> 6.7 | BC5: =ROUND(BC4/$BD$4,2) -> 5.86 | BD5: =ROUND(BD4/$BD$4,2) -> 1
A6: Fill in the Number of Crashes by Crash Type | AA6: WAADTT:
A7: Crash Type | B7: Number of Crashes | C7: Crash Type Severity Calc | D7: RSI Multiplier | AA7: WVCRatio:
A8: Unknown | B8: =IF('Full Crash Data'!#REF!="","",COUNTIFS('Full Crash Data'!$G:$G,$A8)) ->  | C8: =IF(OR($B$2="",$B$3="",$B$4=""),"",B8*D8) ->  | D8: =IFERROR(ROUND(IF($B$2="STW",SUMIFS(RSI_Data!$F:$F,RSI_Data!$C:$C,$B$3,RSI_Data!$D:$D,$B$4,RSI_Data!$E:$E,$A8)/SUMIFS(RSI_Data!$G:$G,RSI_Data!$C:$C,$B$3,RSI_Data!$D:$D,$B$4,RSI_Data!$E:$E,$A8),SUMIFS(RSI_Data!$F:$F,RSI_Data!$C:$C,$B$3,RSI_Data!$D:$D,$B$4,RSI_Data!$A:$A,$B$2,RSI_Data!$E:$E,$A8)/SUMIFS(RSI_Data!$G:$G,RSI_Data!$C:$C,$B$3,RSI_Data!$D:$D,$B$4,RSI_Data!$A:$A,$B$2,RSI_Data!$E:$E,$A8)),0),0) -> 0 | AA8: TotalLength:
A9: Head On | B9: =IF('Full Crash Data'!#REF!="","",COUNTIFS('Full Crash Data'!$G:$G,$A9)) ->  | C9: =IF(OR($B$2="",$B$3="",$B$4=""),"",B9*D9) ->  | D9: =IFERROR(ROUND(IF($B$2="STW",SUMIFS(RSI_Data!$F:$F,RSI_Data!$C:$C,$B$3,RSI_Data!$D:$D,$B$4,RSI_Data!$E:$E,$A9)/SUMIFS(RSI_Data!$G:$G,RSI_Data!$C:$C,$B$3,RSI_Data!$D:$D,$B$4,RSI_Data!$E:$E,$A9),SUMIFS(RSI_Data!$F:$F,RSI_Data!$C:$C,$B$3,RSI_Data!$D:$D,$B$4,RSI_Data!$A:$A,$B$2,RSI_Data!$E:$E,$A9)/SUMIFS(RSI_Data!$G:$G,RSI_Data!$C:$C,$B$3,RSI_Data!$D:$D,$B$4,RSI_Data!$A:$A,$B$2,RSI_Data!$E:$E,$A9)),0),0) -> 0 | AA9: Functional Class:
A10: Rear End | B10: =IF('Full Crash Data'!#REF!="","",COUNTIFS('Full Crash Data'!$G:$G,$A10)) ->  | D10: =IFERROR(ROUND(IF($B$2="STW",SUMIFS(RSI_Data!$F:$F,RSI_Data!$C:$C,$B$3,RSI_Data!$D:$D,$B$4,RSI_Data!$E:$E,$A10)/SUMIFS(RSI_Data!$G:$G,RSI_Data!$C:$C,$B$3,RSI_Data!$D:$D,$B$4,RSI_Data!$E:$E,$A10),SUMIFS(RSI_Data!$F:$F,RSI_Data!$C:$C,$B$3,RSI_Data!$D:$D,$B$4,RSI_Data!$A:$A,$B$2,RSI_Data!$E:$E,$A10)/SUMIFS(RSI_Data!$G:$G,RSI_Data!$C:$C,$B$3,RSI_Data!$D:$D,$B$4,RSI_Data!$A:$A,$B$2,RSI_Data!$E:$E,$A10)),0),0) -> 0 | AA10: Truck %: | AB10: =IFERROR(ROUND(AB6/AB5,4),"") -> 
A11: Backing | B11: =IF('Full Crash Data'!#REF!="","",COUNTIFS('Full Crash Data'!$G:$G,$A11)) ->  | D11: =IFERROR(ROUND(IF($B$2="STW",SUMIFS(RSI_Data!$F:$F,RSI_Data!$C:$C,$B$3,RSI_Data!$D:$D,$B$4,RSI_Data!$E:$E,$A11)/SUMIFS(RSI_Data!$G:$G,RSI_Data!$C:$C,$B$3,RSI_Data!$D:$D,$B$4,RSI_Data!$E:$E,$A11),SUMIFS(RSI_Data!$F:$F,RSI_Data!$C:$C,$B$3,RSI_Data!$D:$D,$B$4,RSI_Data!$A:$A,$B$2,RSI_Data!$E:$E,$A11)/SUMIFS(RSI_Data!$G:$G,RSI_Data!$C:$C,$B$3,RSI_Data!$D:$D,$B$4,RSI_Data!$A:$A,$B$2,RSI_Data!$E:$E,$A11)),0),0) -> 0
A12: Sideswipe - Meeting | B12: =IF('Full Crash Data'!#REF!="","",COUNTIFS('Full Crash Data'!$G:$G,$A12)) ->  | D12: =IFERROR(ROUND(IF($B$2="STW",SUMIFS(RSI_Data!$F:$F,RSI_Data!$C:$C,$B$3,RSI_Data!$D:$D,$B$4,RSI_Data!$E:$E,$A12)/SUMIFS(RSI_Data!$G:$G,RSI_Data!$C:$C,$B$3,RSI_Data!$D:$D,$B$4,RSI_Data!$E:$E,$A12),SUMIFS(RSI_Data!$F:$F,RSI_Data!$C:$C,$B$3,RSI_Data!$D:$D,$B$4,RSI_Data!$A:$A,$B$2,RSI_Data!$E:$E,$A12)/SUMIFS(RSI_Data!$G:$G,RSI_Data!$C:$C,$B$3,RSI_Data!$D:$D,$B$4,RSI_Data!$A:$A,$B$2,RSI_Data!$E:$E,$A12)),0),0) -> 0
A13: Sideswipe - Passing | B13: =IF('Full Crash Data'!#REF!="","",COUNTIFS('Full Crash Data'!$G:$G,$A13)) ->  | D13: =IFERROR(ROUND(IF($B$2="STW",SUMIFS(RSI_Data!$F:$F,RSI_Data!$C:$C,$B$3,RSI_Data!$D:$D,$B$4,RSI_Data!$E:$E,$A13)/SUMIFS(RSI_Data!$G:$G,RSI_Data!$C:$C,$B$3,RSI_Data!$D:$D,$B$4,RSI_Data!$E:$E,$A13),SUMIFS(RSI_Data!$F:$F,RSI_Data!$C:$C,$B$3,RSI_Data!$D:$D,$B$4,RSI_Data!$A:$A,$B$2,RSI_Data!$E:$E,$A13)/SUMIFS(RSI_Data!$G:$G,RSI_Data!$C:$C,$B$3,RSI_Data!$D:$D,$B$4,RSI_Data!$A:$A,$B$2,RSI_Data!$E:$E,$A13)),0),0) -> 0
A14: Angle | B14: =IF('Full Crash Data'!#REF!="","",COUNTIFS('Full Crash Data'!$G:$G,$A14)) ->  | D14: =IFERROR(ROUND(IF($B$2="STW",SUMIFS(RSI_Data!$F:$F,RSI_Data!$C:$C,$B$3,RSI_Data!$D:$D,$B$4,RSI_Data!$E:$E,$A14)/SUMIFS(RSI_Data!$G:$G,RSI_Data!$C:$C,$B$3,RSI_Data!$D:$D,$B$4,RSI_Data!$E:$E,$A14),SUMIFS(RSI_Data!$F:$F,RSI_Data!$C:$C,$B$3,RSI_Data!$D:$D,$B$4,RSI_Data!$A:$A,$B$2,RSI_Data!$E:$E,$A14)/SUMIFS(RSI_Data!$G:$G,RSI_Data!$C:$C,$B$3,RSI_Data!$D:$D,$B$4,RSI_Data!$A:$A,$B$2,RSI_Data!$E:$E,$A14)),0),0) -> 0
A15: Parked Vehicle | B15: =IF('Full Crash Data'!#REF!="","",COUNTIFS('Full Crash Data'!$G:$G,$A15)) ->  | D15: =IFERROR(ROUND(IF($B$2="STW",SUMIFS(RSI_Data!$F:$F,RSI_Data!$C:$C,$B$3,RSI_Data!$D:$D,$B$4,RSI_Data!$E:$E,$A15)/SUMIFS(RSI_Data!$G:$G,RSI_Data!$C:$C,$B$3,RSI_Data!$D:$D,$B$4,RSI_Data!$E:$E,$A15),SUMIFS(RSI_Data!$F:$F,RSI_Data!$C:$C,$B$3,RSI_Data!$D:$D,$B$4,RSI_Data!$A:$A,$B$2,RSI_Data!$E:$E,$A15)/SUMIFS(RSI_Data!$G:$G,RSI_Data!$C:$C,$B$3,RSI_Data!$D:$D,$B$4,RSI_Data!$A:$A,$B$2,RSI_Data!$E:$E,$A15)),0),0) -> 0
A16: Pedestrian | B16: =IF('Full Crash Data'!#REF!="","",COUNTIFS('Full Crash Data'!$G:$G,$A16)) ->  | D16: =IFERROR(ROUND(IF($B$2="STW",SUMIFS(RSI_Data!$F:$F,RSI_Data!$C:$C,$B$3,RSI_Data!$D:$D,$B$4,RSI_Data!$E:$E,$A16)/SUMIFS(RSI_Data!$G:$G,RSI_Data!$C:$C,$B$3,RSI_Data!$D:$D,$B$4,RSI_Data!$E:$E,$A16),SUMIFS(RSI_Data!$F:$F,RSI_Data!$C:$C,$B$3,RSI_Data!$D:$D,$B$4,RSI_Data!$A:$A,$B$2,RSI_Data!$E:$E,$A16)/SUMIFS(RSI_Data!$G:$G,RSI_Data!$C:$C,$B$3,RSI_Data!$D:$D,$B$4,RSI_Data!$A:$A,$B$2,RSI_Data!$E:$E,$A16)),0),0) -> 0
A17: Animal | B17: =IF('Full Crash Data'!#REF!="","",COUNTIFS('Full Crash Data'!$G:$G,$A17)) ->  | D17: =IFERROR(ROUND(IF($B$2="STW",SUMIFS(RSI_Data!$F:$F,RSI_Data!$C:$C,$B$3,RSI_Data!$D:$D,$B$4,RSI_Data!$E:$E,$A17)/SUMIFS(RSI_Data!$G:$G,RSI_Data!$C:$C,$B$3,RSI_Data!$D:$D,$B$4,RSI_Data!$E:$E,$A17),SUMIFS(RSI_Data!$F:$F,RSI_Data!$C:$C,$B$3,RSI_Data!$D:$D,$B$4,RSI_Data!$A:$A,$B$2,RSI_Data!$E:$E,$A17)/SUMIFS(RSI_Data!$G:$G,RSI_Data!$C:$C,$B$3,RSI_Data!$D:$D,$B$4,RSI_Data!$A:$A,$B$2,RSI_Data!$E:$E,$A17)),0),0) -> 0
A18: Train | B18: =IF('Full Crash Data'!#REF!="","",COUNTIFS('Full Crash Data'!$G:$G,$A18)) ->  | D18: =IFERROR(ROUND(IF($B$2="STW",SUMIFS(RSI_Data!$F:$F,RSI_Data!$C:$C,$B$3,RSI_Data!$D:$D,$B$4,RSI_Data!$E:$E,$A18)/SUMIFS(RSI_Data!$G:$G,RSI_Data!$C:$C,$B$3,RSI_Data!$D:$D,$B$4,RSI_Data!$E:$E,$A18),SUMIFS(RSI_Data!$F:$F,RSI_Data!$C:$C,$B$3,RSI_Data!$D:$D,$B$4,RSI_Data!$A:$A,$B$2,RSI_Data!$E:$E,$A18)/SUMIFS(RSI_Data!$G:$G,RSI_Data!$C:$C,$B$3,RSI_Data!$D:$D,$B$4,RSI_Data!$A:$A,$B$2,RSI_Data!$E:$E,$A18)),0),0) -> 0
A19: Pedalcycles | B19: =IF('Full Crash Data'!#REF!="","",COUNTIFS('Full Crash Data'!$G:$G,$A19)) ->  | D19: =IFERROR(ROUND(IF($B$2="STW",SUMIFS(RSI_Data!$F:$F,RSI_Data!$C:$C,$B$3,RSI_Data!$D:$D,$B$4,RSI_Data!$E:$E,$A19)/SUMIFS(RSI_Data!$G:$G,RSI_Data!$C:$C,$B$3,RSI_Data!$D:$D,$B$4,RSI_Data!$E:$E,$A19),SUMIFS(RSI_Data!$F:$F,RSI_Data!$C:$C,$B$3,RSI_Data!$D:$D,$B$4,RSI_Data!$A:$A,$B$2,RSI_Data!$E:$E,$A19)/SUMIFS(RSI_Data!$G:$G,RSI_Data!$C:$C,$B$3,RSI_Data!$D:$D,$B$4,RSI_Data!$A:$A,$B$2,RSI_Data!$E:$E,$A19)),0),0) -> 0
A20: Other Non-Vehicle | B20: =IF('Full Crash Data'!#REF!="","",COUNTIFS('Full Crash Data'!$G:$G,$A20)) ->  | D20: =IFERROR(ROUND(IF($B$2="STW",SUMIFS(RSI_Data!$F:$F,RSI_Data!$C:$C,$B$3,RSI_Data!$D:$D,$B$4,RSI_Data!$E:$E,$A20)/SUMIFS(RSI_Data!$G:$G,RSI_Data!$C:$C,$B$3,RSI_Data!$D:$D,$B$4,RSI_Data!$E:$E,$A20),SUMIFS(RSI_Data!$F:$F,RSI_Data!$C:$C,$B$3,RSI_Data!$D:$D,$B$4,RSI_Data!$A:$A,$B$2,RSI_Data!$E:$E,$A20)/SUMIFS(RSI_Data!$G:$G,RSI_Data!$C:$C,$B$3,RSI_Data!$D:$D,$B$4,RSI_Data!$A:$A,$B$2,RSI_Data!$E:$E,$A20)),0),0) -> 0
A21: Fixed Object | B21: =IF('Full Crash Data'!#REF!="","",COUNTIFS('Full Crash Data'!$G:$G,$A21)) ->  | D21: =IFERROR(ROUND(IF($B$2="STW",SUMIFS(RSI_Data!$F:$F,RSI_Data!$C:$C,$B$3,RSI_Data!$D:$D,$B$4,RSI_Data!$E:$E,$A21)/SUMIFS(RSI_Data!$G:$G,RSI_Data!$C:$C,$B$3,RSI_Data!$D:$D,$B$4,RSI_Data!$E:$E,$A21),SUMIFS(RSI_Data!$F:$F,RSI_Data!$C:$C,$B$3,RSI_Data!$D:$D,$B$4,RSI_Data!$A:$A,$B$2,RSI_Data!$E:$E,$A21)/SUMIFS(RSI_Data!$G:$G,RSI_Data!$C:$C,$B$3,RSI_Data!$D:$D,$B$4,RSI_Data!$A:$A,$B$2,RSI_Data!$E:$E,$A21)),0),0) -> 0
A22: Other Object | B22: =IF('Full Crash Data'!#REF!="","",COUNTIFS('Full Crash Data'!$G:$G,$A22)) ->  | D22: =IFERROR(ROUND(IF($B$2="STW",SUMIFS(RSI_Data!$F:$F,RSI_Data!$C:$C,$B$3,RSI_Data!$D:$D,$B$4,RSI_Data!$E:$E,$A22)/SUMIFS(RSI_Data!$G:$G,RSI_Data!$C:$C,$B$3,RSI_Data!$D:$D,$B$4,RSI_Data!$E:$E,$A22),SUMIFS(RSI_Data!$F:$F,RSI_Data!$C:$C,$B$3,RSI_Data!$D:$D,$B$4,RSI_Data!$A:$A,$B$2,RSI_Data!$E:$E,$A22)/SUMIFS(RSI_Data!$G:$G,RSI_Data!$C:$C,$B$3,RSI_Data!$D:$D,$B$4,RSI_Data!$A:$A,$B$2,RSI_Data!$E:$E,$A22)),0),0) -> 0
A23: Overturning | B23: =IF('Full Crash Data'!#REF!="","",COUNTIFS('Full Crash Data'!$G:$G,$A23)) ->  | D23: =IFERROR(ROUND(IF($B$2="STW",SUMIFS(RSI_Data!$F:$F,RSI_Data!$C:$C,$B$3,RSI_Data!$D:$D,$B$4,RSI_Data!$E:$E,$A23)/SUMIFS(RSI_Data!$G:$G,RSI_Data!$C:$C,$B$3,RSI_Data!$D:$D,$B$4,RSI_Data!$E:$E,$A23),SUMIFS(RSI_Data!$F:$F,RSI_Data!$C:$C,$B$3,RSI_Data!$D:$D,$B$4,RSI_Data!$A:$A,$B$2,RSI_Data!$E:$E,$A23)/SUMIFS(RSI_Data!$G:$G,RSI_Data!$C:$C,$B$3,RSI_Data!$D:$D,$B$4,RSI_Data!$A:$A,$B$2,RSI_Data!$E:$E,$A23)),0),0) -> 0
A24: Other Non-Collision | B24: =IF('Full Crash Data'!#REF!="","",COUNTIFS('Full Crash Data'!$G:$G,$A24)) ->  | D24: =IFERROR(ROUND(IF($B$2="STW",SUMIFS(RSI_Data!$F:$F,RSI_Data!$C:$C,$B$3,RSI_Data!$D:$D,$B$4,RSI_Data!$E:$E,$A24)/SUMIFS(RSI_Data!$G:$G,RSI_Data!$C:$C,$B$3,RSI_Data!$D:$D,$B$4,RSI_Data!$E:$E,$A24),SUMIFS(RSI_Data!$F:$F,RSI_Data!$C:$C,$B$3,RSI_Data!$D:$D,$B$4,RSI_Data!$A:$A,$B$2,RSI_Data!$E:$E,$A24)/SUMIFS(RSI_Data!$G:$G,RSI_Data!$C:$C,$B$3,RSI_Data!$D:$D,$B$4,RSI_Data!$A:$A,$B$2,RSI_Data!$E:$E,$A24)),0),0) -> 0
A25: Left Turn | B25: =IF('Full Crash Data'!#REF!="","",COUNTIFS('Full Crash Data'!$G:$G,$A25)) ->  | D25: =IFERROR(ROUND(IF($B$2="STW",SUMIFS(RSI_Data!$F:$F,RSI_Data!$C:$C,$B$3,RSI_Data!$D:$D,$B$4,RSI_Data!$E:$E,$A25)/SUMIFS(RSI_Data!$G:$G,RSI_Data!$C:$C,$B$3,RSI_Data!$D:$D,$B$4,RSI_Data!$E:$E,$A25),SUMIFS(RSI_Data!$F:$F,RSI_Data!$C:$C,$B$3,RSI_Data!$D:$D,$B$4,RSI_Data!$A:$A,$B$2,RSI_Data!$E:$E,$A25)/SUMIFS(RSI_Data!$G:$G,RSI_Data!$C:$C,$B$3,RSI_Data!$D:$D,$B$4,RSI_Data!$A:$A,$B$2,RSI_Data!$E:$E,$A25)),0),0) -> 0
A26: Right Turn | B26: =IF('Full Crash Data'!#REF!="","",COUNTIFS('Full Crash Data'!$G:$G,$A26)) ->  | D26: =IFERROR(ROUND(IF($B$2="STW",SUMIFS(RSI_Data!$F:$F,RSI_Data!$C:$C,$B$3,RSI_Data!$D:$D,$B$4,RSI_Data!$E:$E,$A26)/SUMIFS(RSI_Data!$G:$G,RSI_Data!$C:$C,$B$3,RSI_Data!$D:$D,$B$4,RSI_Data!$E:$E,$A26),SUMIFS(RSI_Data!$F:$F,RSI_Data!$C:$C,$B$3,RSI_Data!$D:$D,$B$4,RSI_Data!$A:$A,$B$2,RSI_Data!$E:$E,$A26)/SUMIFS(RSI_Data!$G:$G,RSI_Data!$C:$C,$B$3,RSI_Data!$D:$D,$B$4,RSI_Data!$A:$A,$B$2,RSI_Data!$E:$E,$A26)),0),0) -> 0
A27: Totals | B27: =SUM(B8:B26) ->  | C27: =SUM(C8:C26) -> 0
A29: RSI Value = | B29: =IFERROR(ROUND(C27/B27,2),0) -> 0

Sheet Emphasis Area
A1: ='Crash Analysis'!B1 -> Type 'Heading' Here
A2: Select Authority: | B2: All
A4: OHIO SHSP EMPHASIS AREAS (Fatalities) | B4: =B5 -> 2022 | D4: =D5 -> 2021 | F4: =F5 -> 2020 | H4: =H5 -> 2019 | J4: =J5 -> 2018 | L4: =L5 -> 2017 | N4: =N5 -> 2016 | P4: =P5 -> 2015 | R4: =R5 -> 2014 | T4: =T5 -> 2013 | V4: =V5 -> 2012 | AA4: All | AE4: 1
B5: =MAX('Full Crash Data'!C:C) -> 2022 | C5: =B5 -> 2022 | D5: =B5-1 -> 2021 | E5: =D5 -> 2021 | F5: =D5-1 -> 2020 | G5: =F5 -> 2020 | H5: =F5-1 -> 2019 | I5: =H5 -> 2019 | J5: =H5-1 -> 2018 | K5: =J5 -> 2018 | L5: =J5-1 -> 2017 | M5: =L5 -> 2017 | N5: =L5-1 -> 2016 | O5: =N5 -> 2016 | P5: =N5-1 -> 2015 | Q5: =P5 -> 2015 | R5: =P5-1 -> 2014 | S5: =R5 -> 2014 | T5: =R5-1 -> 2013 | U5: =T5 -> 2013 | V5: =T5-1 -> 2012 | W5: =V5 -> 2012 | AA5: State Highway Agency | AE5: 2
A6: Target Group | B6: Fatalities | C6: % of Total Fatalities | D6: Fatalities | E6: % of Total Fatalities | F6: Fatalities | G6: % of Total Fatalities | H6: Fatalities | I6: % of Total Fatalities | J6: Fatalities | K6: % of Total Fatalities | L6: Fatalities | M6: % of Total Fatalities | N6: Fatalities | O6: % of Total Fatalities | P6: Fatalities | Q6: % of Total Fatalities | R6: Fatalities | S6: % of Total Fatalities | T6: Fatalities | U6: % of Total Fatalities | V6: Fatalities | W6: % of Total Fatalities | AA6: County Highway Agency | AE6: 3
AA7: Township Highway Agency | AE7: 4
A8: Total Fatalities by Year | B8: =IF($B$2="All",SUMIFS('Full Crash Data'!$U:$U,'Full Crash Data'!$C:$C,B$5),IF($B$2="State Highway Agency",SUMIFS('Full Crash Data'!$U:$U,'Full Crash Data'!$C:$C,B$5,'Full Crash Data'!$AN:$AN,"State Highway Agency"),IF($B$2="County Highway Agency",SUMIFS('Full Crash Data'!$U:$U,'Full Crash Data'!$C:$C,B$5,'Full Crash Data'!$AN:$AN,"County Highway Agency"),IF($B$2="Township Highway Agency",SUMIFS('Full Crash Data'!$U:$U,'Full Crash Data'!$C:$C,B$5,'Full Crash Data'!$AN:$AN,"Township Highway Agency"),IF($B$2="City or Village Highway Agency",SUMIFS('Full Crash Data'!$U:$U,'Full Crash Data'!$C:$C,B$5,'Full Crash Data'!$AN:$AN,"City or Village Highway Agency")))))) -> 0 | D8: =IF($B$2="All",SUMIFS('Full Crash Data'!$U:$U,'Full Crash Data'!$C:$C,D$5),IF($B$2="State Highway Agency",SUMIFS('Full Crash Data'!$U:$U,'Full Crash Data'!$C:$C,D$5,'Full Crash Data'!$AN:$AN,"State Highway Agency"),IF($B$2="County Highway Agency",SUMIFS('Full Crash Data'!$U:$U,'Full Crash Data'!$C:$C,D$5,'Full Crash Data'!$AN:$AN,"County Highway Agency"),IF($B$2="Township Highway Agency",SUMIFS('Full Crash Data'!$U:$U,'Full Crash Data'!$C:$C,D$5,'Full Crash Data'!$AN:$AN,"Township Highway Agency"),IF($B$2="City or Village Highway Agency",SUMIFS('Full Crash Data'!$U:$U,'Full Crash Data'!$C:$C,D$5,'Full Crash Data'!$AN:$AN,"City or Village Highway Agency")))))) -> 0 | F8: =IF($B$2="All",SUMIFS('Full Crash Data'!$U:$U,'Full Crash Data'!$C:$C,F$5),IF($B$2="State Highway Agency",SUMIFS('Full Crash Data'!$U:$U,'Full Crash Data'!$C:$C,F$5,'Full Crash Data'!$AN:$AN,"State Highway Agency"),IF($B$2="County Highway Agency",SUMIFS('Full Crash Data'!$U:$U,'Full Crash Data'!$C:$C,F$5,'Full Crash Data'!$AN:$AN,"County Highway Agency"),IF($B$2="Township Highway Agency",SUMIFS('Full Crash Data'!$U:$U,'Full Crash Data'!$C:$C,F$5,'Full Crash Data'!$AN:$AN,"Township Highway Agency"),IF($B$2="City or Village Highway Agency",SUMIFS('Full Crash Data'!$U:$U,'Full Crash Data'!$C:$C,F$5,'Full Crash Data'!$AN:$AN,"City or Village Highway Agency")))))) -> 0 | H8: =IF($B$2="All",SUMIFS('Full Crash Data'!$U:$U,'Full Crash Data'!$C:$C,H$5),IF($B$2="State Highway Agency",SUMIFS('Full Crash Data'!$U:$U,'Full Crash Data'!$C:$C,H$5,'Full Crash Data'!$AN:$AN,"State Highway Agency"),IF($B$2="County Highway Agency",SUMIFS('Full Crash Data'!$U:$U,'Full Crash Data'!$C:$C,H$5,'Full Crash Data'!$AN:$AN,"County Highway Agency"),IF($B$2="Township Highway Agency",SUMIFS('Full Crash Data'!$U:$U,'Full Crash Data'!$C:$C,H$5,'Full Crash Data'!$AN:$AN,"Township Highway Agency"),IF($B$2="City or Village Highway Agency",SUMIFS('Full Crash Data'!$U:$U,'Full Crash Data'!$C:$C,H$5,'Full Crash Data'!$AN:$AN,"City or Village Highway Agency")))))) -> 0 | J8: =IF($B$2="All",SUMIFS('Full Crash Data'!$U:$U,'Full Crash Data'!$C:$C,J$5),IF($B$2="State Highway Agency",SUMIFS('Full Crash Data'!$U:$U,'Full Crash Data'!$C:$C,J$5,'Full Crash Data'!$AN:$AN,"State Highway Agency"),IF($B$2="County Highway Agency",SUMIFS('Full Crash Data'!$U:$U,'Full Crash Data'!$C:$C,J$5,'Full Crash Data'!$AN:$AN,"County Highway Agency"),IF($B$2="Township Highway Agency",SUMIFS('Full Crash Data'!$U:$U,'Full Crash Data'!$C:$C,J$5,'Full Crash Data'!$AN:$AN,"Township Highway Agency"),IF($B$2="City or Village Highway Agency",SUMIFS('Full Crash Data'!$U:$U,'Full Crash Data'!$C:$C,J$5,'Full Crash Data'!$AN:$AN,"City or Village Highway Agency")))))) -> 0 | L8: =IF($B$2="All",SUMIFS('Full Crash Data'!$U:$U,'Full Crash Data'!$C:$C,L$5),IF($B$2="State Highway Agency",SUMIFS('Full Crash Data'!$U:$U,'Full Crash Data'!$C:$C,L$5,'Full Crash Data'!$AN:$AN,"State Highway Agency"),IF($B$2="County Highway Agency",SUMIFS('Full Crash Data'!$U:$U,'Full Crash Data'!$C:$C,L$5,'Full Crash Data'!$AN:$AN,"County Highway Agency"),IF($B$2="Township Highway Agency",SUMIFS('Full Crash Data'!$U:$U,'Full Crash Data'!$C:$C,L$5,'Full Crash Data'!$AN:$AN,"Township Highway Agency"),IF($B$2="City or Village Highway Agency",SUMIFS('Full Crash Data'!$U:$U,'Full Crash Data'!$C:$C,L$5,'Full Crash Data'!$AN:$AN,"City or Village Highway Agency")))))) -> 0 | N8: =IF($B$2="All",SUMIFS('Full Crash Data'!$U:$U,'Full Crash Data'!$C:$C,N$5),IF($B$2="State Highway Agency",SUMIFS('Full Crash Data'!$U:$U,'Full Crash Data'!$C:$C,N$5,'Full Crash Data'!$AN:$AN,"State Highway Agency"),IF($B$2="County Highway Agency",SUMIFS('Full Crash Data'!$U:$U,'Full Crash Data'!$C:$C,N$5,'Full Crash Data'!$AN:$AN,"County Highway Agency"),IF($B$2="Township Highway Agency",SUMIFS('Full Crash Data'!$U:$U,'Full Crash Data'!$C:$C,N$5,'Full Crash Data'!$AN:$AN,"Township Highway Agency"),IF($B$2="City or Village Highway Agency",SUMIFS('Full Crash Data'!$U:$U,'Full Crash Data'!$C:$C,N$5,'Full Crash Data'!$AN:$AN,"City or Village Highway Agency")))))) -> 0 | P8: =IF($B$2="All",SUMIFS('Full Crash Data'!$U:$U,'Full Crash Data'!$C:$C,P$5),IF($B$2="State Highway Agency",SUMIFS('Full Crash Data'!$U:$U,'Full Crash Data'!$C:$C,P$5,'Full Crash Data'!$AN:$AN,"State Highway Agency"),IF($B$2="County Highway Agency",SUMIFS('Full Crash Data'!$U:$U,'Full Crash Data'!$C:$C,P$5,'Full Crash Data'!$AN:$AN,"County Highway Agency"),IF($B$2="Township Highway Agency",SUMIFS('Full Crash Data'!$U:$U,'Full Crash Data'!$C:$C,P$5,'Full Crash Data'!$AN:$AN,"Township Highway Agency"),IF($B$2="City or Village Highway Agency",SUMIFS('Full Crash Data'!$U:$U,'Full Crash Data'!$C:$C,P$5,'Full Crash Data'!$AN:$AN,"City or Village Highway Agency")))))) -> 0 | R8: =IF($B$2="All",SUMIFS('Full Crash Data'!$U:$U,'Full Crash Data'!$C:$C,R$5),IF($B$2="State Highway Agency",SUMIFS('Full Crash Data'!$U:$U,'Full Crash Data'!$C:$C,R$5,'Full Crash Data'!$AN:$AN,"State Highway Agency"),IF($B$2="County Highway Agency",SUMIFS('Full Crash Data'!$U:$U,'Full Crash Data'!$C:$C,R$5,'Full Crash Data'!$AN:$AN,"County Highway Agency"),IF($B$2="Township Highway Agency",SUMIFS('Full Crash Data'!$U:$U,'Full Crash Data'!$C:$C,R$5,'Full Crash Data'!$AN:$AN,"Township Highway Agency"),IF($B$2="City or Village Highway Agency",SUMIFS('Full Crash Data'!$U:$U,'Full Crash Data'!$C:$C,R$5,'Full Crash Data'!$AN:$AN,"City or Village Highway Agency")))))) -> 0 | T8: =IF($B$2="All",SUMIFS('Full Crash Data'!$U:$U,'Full Crash Data'!$C:$C,T$5),IF($B$2="State Highway Agency",SUMIFS('Full Crash Data'!$U:$U,'Full Crash Data'!$C:$C,T$5,'Full Crash Data'!$AN:$AN,"State Highway Agency"),IF($B$2="County Highway Agency",SUMIFS('Full Crash Data'!$U:$U,'Full Crash Data'!$C:$C,T$5,'Full Crash Data'!$AN:$AN,"County Highway Agency"),IF($B$2="Township Highway Agency",SUMIFS('Full Crash Data'!$U:$U,'Full Crash Data'!$C:$C,T$5,'Full Crash Data'!$AN:$AN,"Township Highway Agency"),IF($B$2="City or Village Highway Agency",SUMIFS('Full Crash Data'!$U:$U,'Full Crash Data'!$C:$C,T$5,'Full Crash Data'!$AN:$AN,"City or Village Highway Agency")))))) -> 0 | V8: =IF($B$2="All",SUMIFS('Full Crash Data'!$U:$U,'Full Crash Data'!$C:$C,V$5),IF($B$2="State Highway Agency",SUMIFS('Full Crash Data'!$U:$U,'Full Crash Data'!$C:$C,V$5,'Full Crash Data'!$AN:$AN,"State Highway Agency"),IF($B$2="County Highway Agency",SUMIFS('Full Crash Data'!$U:$U,'Full Crash Data'!$C:$C,V$5,'Full Crash Data'!$AN:$AN,"County Highway Agency"),IF($B$2="Township Highway Agency",SUMIFS('Full Crash Data'!$U:$U,'Full Crash Data'!$C:$C,V$5,'Full Crash Data'!$AN:$AN,"Township Highway Agency"),IF($B$2="City or Village Highway Agency",SUMIFS('Full Crash Data'!$U:$U,'Full Crash Data'!$C:$C,V$5,'Full Crash Data'!$AN:$AN,"City or Village Highway Agency")))))) -> 0 | AA8: City or Village Highway Agency | AE8: 5
A9: Roadway Departure | B9: =IF($B$2="All",SUMIFS('Full Crash Data'!$U:$U,'Full Crash Data'!$C:$C,B$5,'Full Crash Data'!$AW:$AW,"Yes"),IF($B$2="State Highway Agency",SUMIFS('Full Crash Data'!$U:$U,'Full Crash Data'!$C:$C,B$5,'Full Crash Data'!$AN:$AN,"State Highway Agency",'Full Crash Data'!$AW:$AW,"Yes"),IF($B$2="County Highway Agency",SUMIFS('Full Crash Data'!$U:$U,'Full Crash Data'!$C:$C,B$5,'Full Crash Data'!$AN:$AN,"County Highway Agency",'Full Crash Data'!$AW:$AW,"Yes"),IF($B$2="Township Highway Agency",SUMIFS('Full Crash Data'!$U:$U,'Full Crash Data'!$C:$C,B$5,'Full Crash Data'!$AN:$AN,"Township Highway Agency",'Full Crash Data'!$AW:$AW,"Yes"),IF($B$2="City or Village Highway Agency",SUMIFS('Full Crash Data'!$U:$U,'Full Crash Data'!$C:$C,B$5,'Full Crash Data'!$AN:$AN,"City or Village Highway Agency",'Full Crash Data'!$AW:$AW,"Yes")))))) -> 0 | C9: =IFERROR(ROUND(B9/B$8,2),0) -> 0 | D9: =IF($B$2="All",SUMIFS('Full Crash Data'!$U:$U,'Full Crash Data'!$C:$C,D$5,'Full Crash Data'!$AW:$AW,"Yes"),IF($B$2="State Highway Agency",SUMIFS('Full Crash Data'!$U:$U,'Full Crash Data'!$C:$C,D$5,'Full Crash Data'!$AN:$AN,"State Highway Agency",'Full Crash Data'!$AW:$AW,"Yes"),IF($B$2="County Highway Agency",SUMIFS('Full Crash Data'!$U:$U,'Full Crash Data'!$C:$C,D$5,'Full Crash Data'!$AN:$AN,"County Highway Agency",'Full Crash Data'!$AW:$AW,"Yes"),IF($B$2="Township Highway Agency",SUMIFS('Full Crash Data'!$U:$U,'Full Crash Data'!$C:$C,D$5,'Full Crash Data'!$AN:$AN,"Township Highway Agency",'Full Crash Data'!$AW:$AW,"Yes"),IF($B$2="City or Village Highway Agency",SUMIFS('Full Crash Data'!$U:$U,'Full Crash Data'!$C:$C,D$5,'Full Crash Data'!$AN:$AN,"City or Village Highway Agency",'Full Crash Data'!$AW:$AW,"Yes")))))) -> 0 | E9: =IFERROR(ROUND(D9/D$8,2),0) -> 0 | F9: =IF($B$2="All",SUMIFS('Full Crash Data'!$U:$U,'Full Crash Data'!$C:$C,F$5,'Full Crash Data'!$AW:$AW,"Yes"),IF($B$2="State Highway Agency",SUMIFS('Full Crash Data'!$U:$U,'Full Crash Data'!$C:$C,F$5,'Full Crash Data'!$AN:$AN,"State Highway Agency",'Full Crash Data'!$AW:$AW,"Yes"),IF($B$2="County Highway Agency",SUMIFS('Full Crash Data'!$U:$U,'Full Crash Data'!$C:$C,F$5,'Full Crash Data'!$AN:$AN,"County Highway Agency",'Full Crash Data'!$AW:$AW,"Yes"),IF($B$2="Township Highway Agency",SUMIFS('Full Crash Data'!$U:$U,'Full Crash Data'!$C:$C,F$5,'Full Crash Data'!$AN:$AN,"Township Highway Agency",'Full Crash Data'!$AW:$AW,"Yes"),IF($B$2="City or Village Highway Agency",SUMIFS('Full Crash Data'!$U:$U,'Full Crash Data'!$C:$C,F$5,'Full Crash Data'!$AN:$AN,"City or Village Highway Agency",'Full Crash Data'!$AW:$AW,"Yes")))))) -> 0 | G9: =IFERROR(ROUND(F9/F$8,2),0) -> 0 | H9: =IF($B$2="All",SUMIFS('Full Crash Data'!$U:$U,'Full Crash Data'!$C:$C,H$5,'Full Crash Data'!$AW:$AW,"Yes"),IF($B$2="State Highway Agency",SUMIFS('Full Crash Data'!$U:$U,'Full Crash Data'!$C:$C,H$5,'Full Crash Data'!$AN:$AN,"State Highway Agency",'Full Crash Data'!$AW:$AW,"Yes"),IF($B$2="County Highway Agency",SUMIFS('Full Crash Data'!$U:$U,'Full Crash Data'!$C:$C,H$5,'Full Crash Data'!$AN:$AN,"County Highway Agency",'Full Crash Data'!$AW:$AW,"Yes"),IF($B$2="Township Highway Agency",SUMIFS('Full Crash Data'!$U:$U,'Full Crash Data'!$C:$C,H$5,'Full Crash Data'!$AN:$AN,"Township Highway Agency",'Full Crash Data'!$AW:$AW,"Yes"),IF($B$2="City or Village Highway Agency",SUMIFS('Full Crash Data'!$U:$U,'Full Crash Data'!$C:$C,H$5,'Full Crash Data'!$AN:$AN,"City or Village Highway Agency",'Full Crash Data'!$AW:$AW,"Yes")))))) -> 0 | I9: =IFERROR(ROUND(H9/H$8,2),0) -> 0 | J9: =IF($B$2="All",SUMIFS('Full Crash Data'!$U:$U,'Full Crash Data'!$C:$C,J$5,'Full Crash Data'!$AW:$AW,"Yes"),IF($B$2="State Highway Agency",SUMIFS('Full Crash Data'!$U:$U,'Full Crash Data'!$C:$C,J$5,'Full Crash Data'!$AN:$AN,"State Highway Agency",'Full Crash Data'!$AW:$AW,"Yes"),IF($B$2="County Highway Agency",SUMIFS('Full Crash Data'!$U:$U,'Full Crash Data'!$C:$C,J$5,'Full Crash Data'!$AN:$AN,"County Highway Agency",'Full Crash Data'!$AW:$AW,"Yes"),IF($B$2="Township Highway Agency",SUMIFS('Full Crash Data'!$U:$U,'Full Crash Data'!$C:$C,J$5,'Full Crash Data'!$AN:$AN,"Township Highway Agency",'Full Crash Data'!$AW:$AW,"Yes"),IF($B$2="City or Village Highway Agency",SUMIFS('Full Crash Data'!$U:$U,'Full Crash Data'!$C:$C,J$5,'Full Crash Data'!$AN:$AN,"City or Village Highway Agency",'Full Crash Data'!$AW:$AW,"Yes")))))) -> 0 | K9: =IFERROR(ROUND(J9/J$8,2),0) -> 0 | L9: =IF($B$2="All",SUMIFS('Full Crash Data'!$U:$U,'Full Crash Data'!$C:$C,L$5,'Full Crash Data'!$AW:$AW,"Yes"),IF($B$2="State Highway Agency",SUMIFS('Full Crash Data'!$U:$U,'Full Crash Data'!$C:$C,L$5,'Full Crash Data'!$AN:$AN,"State Highway Agency",'Full Crash Data'!$AW:$AW,"Yes"),IF($B$2="County Highway Agency",SUMIFS('Full Crash Data'!$U:$U,'Full Crash Data'!$C:$C,L$5,'Full Crash Data'!$AN:$AN,"County Highway Agency",'Full Crash Data'!$AW:$AW,"Yes"),IF($B$2="Township Highway Agency",SUMIFS('Full Crash Data'!$U:$U,'Full Crash Data'!$C:$C,L$5,'Full Crash Data'!$AN:$AN,"Township Highway Agency",'Full Crash Data'!$AW:$AW,"Yes"),IF($B$2="City or Village Highway Agency",SUMIFS('Full Crash Data'!$U:$U,'Full Crash Data'!$C:$C,L$5,'Full Crash Data'!$AN:$AN,"City or Village Highway Agency",'Full Crash Data'!$AW:$AW,"Yes")))))) -> 0 | M9: =IFERROR(ROUND(L9/L$8,2),0) -> 0 | N9: =IF($B$2="All",SUMIFS('Full Crash Data'!$U:$U,'Full Crash Data'!$C:$C,N$5,'Full Crash Data'!$AW:$AW,"Yes"),IF($B$2="State Highway Agency",SUMIFS('Full Crash Data'!$U:$U,'Full Crash Data'!$C:$C,N$5,'Full Crash Data'!$AN:$AN,"State Highway Agency",'Full Crash Data'!$AW:$AW,"Yes"),IF($B$2="County Highway Agency",SUMIFS('Full Crash Data'!$U:$U,'Full Crash Data'!$C:$C,N$5,'Full Crash Data'!$AN:$AN,"County Highway Agency",'Full Crash Data'!$AW:$AW,"Yes"),IF($B$2="Township Highway Agency",SUMIFS('Full Crash Data'!$U:$U,'Full Crash Data'!$C:$C,N$5,'Full Crash Data'!$AN:$AN,"Township Highway Agency",'Full Crash Data'!$AW:$AW,"Yes"),IF($B$2="City or Village Highway Agency",SUMIFS('Full Crash Data'!$U:$U,'Full Crash Data'!$C:$C,N$5,'Full Crash Data'!$AN:$AN,"City or Village Highway Agency",'Full Crash Data'!$AW:$AW,"Yes")))))) -> 0 | O9: =IFERROR(ROUND(N9/N$8,2),0) -> 0 | P9: =IF($B$2="All",SUMIFS('Full Crash Data'!$U:$U,'Full Crash Data'!$C:$C,P$5,'Full Crash Data'!$AW:$AW,"Yes"),IF($B$2="State Highway Agency",SUMIFS('Full Crash Data'!$U:$U,'Full Crash Data'!$C:$C,P$5,'Full Crash Data'!$AN:$AN,"State Highway Agency",'Full Crash Data'!$AW:$AW,"Yes"),IF($B$2="County Highway Agency",SUMIFS('Full Crash Data'!$U:$U,'Full Crash Data'!$C:$C,P$5,'Full Crash Data'!$AN:$AN,"County Highway Agency",'Full Crash Data'!$AW:$AW,"Yes"),IF($B$2="Township Highway Agency",SUMIFS('Full Crash Data'!$U:$U,'Full Crash Data'!$C:$C,P$5,'Full Crash Data'!$AN:$AN,"Township Highway Agency",'Full Crash Data'!$AW:$AW,"Yes"),IF($B$2="City or Village Highway Agency",SUMIFS('Full Crash Data'!$U:$U,'Full Crash Data'!$C:$C,P$5,'Full Crash Data'!$AN:$AN,"City or Village Highway Agency",'Full Crash Data'!$AW:$AW,"Yes")))))) -> 0 | Q9: =IFERROR(ROUND(P9/P$8,2),0) -> 0 | R9: =IF($B$2="All",SUMIFS('Full Crash Data'!$U:$U,'Full Crash Data'!$C:$C,R$5,'Full Crash Data'!$AW:$AW,"Yes"),IF($B$2="State Highway Agency",SUMIFS('Full Crash Data'!$U:$U,'Full Crash Data'!$C:$C,R$5,'Full Crash Data'!$AN:$AN,"State Highway Agency",'Full Crash Data'!$AW:$AW,"Yes"),IF($B$2="County Highway Agency",SUMIFS('Full Crash Data'!$U:$U,'Full Crash Data'!$C:$C,R$5,'Full Crash Data'!$AN:$AN,"County Highway Agency",'Full Crash Data'!$AW:$AW,"Yes"),IF($B$2="Township Highway Agency",SUMIFS('Full Crash Data'!$U:$U,'Full Crash Data'!$C:$C,R$5,'Full Crash Data'!$AN:$AN,"Township Highway Agency",'Full Crash Data'!$AW:$AW,"Yes"),IF($B$2="City or Village Highway Agency",SUMIFS('Full Crash Data'!$U:$U,'Full Crash Data'!$C:$C,R$5,'Full Crash Data'!$AN:$AN,"City or Village Highway Agency",'Full Crash Data'!$AW:$AW,"Yes")))))) -> 0 | S9: =IFERROR(ROUND(R9/R$8,2),0) -> 0 | T9: =IF($B$2="All",SUMIFS('Full Crash Data'!$U:$U,'Full Crash Data'!$C:$C,T$5,'Full Crash Data'!$AW:$AW,"Yes"),IF($B$2="State Highway Agency",SUMIFS('Full Crash Data'!$U:$U,'Full Crash Data'!$C:$C,T$5,'Full Crash Data'!$AN:$AN,"State Highway Agency",'Full Crash Data'!$AW:$AW,"Yes"),IF($B$2="County Highway Agency",SUMIFS('Full Crash Data'!$U:$U,'Full Crash Data'!$C:$C,T$5,'Full Crash Data'!$AN:$AN,"County Highway Agency",'Full Crash Data'!$AW:$AW,"Yes"),IF($B$2="Township Highway Agency",SUMIFS('Full Crash Data'!$U:$U,'Full Crash Data'!$C:$C,T$5,'Full Crash Data'!$AN:$AN,"Township Highway Agency",'Full Crash Data'!$AW:$AW,"Yes"),IF($B$2="City or Village Highway Agency",SUMIFS('Full Crash Data'!$U:$U,'Full Crash Data'!$C:$C,T$5,'Full Crash Data'!$AN:$AN,"City or Village Highway Agency",'Full Crash Data'!$AW:$AW,"Yes")))))) -> 0 | U9: =IFERROR(ROUND(T9/T$8,2),0) -> 0 | V9: =IF($B$2="All",SUMIFS('Full Crash Data'!$U:$U,'Full Crash Data'!$C:$C,V$5,'Full Crash Data'!$AW:$AW,"Yes"),IF($B$2="State Highway Agency",SUMIFS('Full Crash Data'!$U:$U,'Full Crash Data'!$C:$C,V$5,'Full Crash Data'!$AN:$AN,"State Highway Agency",'Full Crash Data'!$AW:$AW,"Yes"),IF($B$2="County Highway Agency",SUMIFS('Full Crash Data'!$U:$U,'Full Crash Data'!$C:$C,V$5,'Full Crash Data'!$AN:$AN,"County Highway Agency",'Full Crash Data'!$AW:$AW,"Yes"),IF($B$2="Township Highway Agency",SUMIFS('Full Crash Data'!$U:$U,'Full Crash Data'!$C:$C,V$5,'Full Crash Data'!$AN:$AN,"Township Highway Agency",'Full Crash Data'!$AW:$AW,"Yes"),IF($B$2="City or Village Highway Agency",SUMIFS('Full Crash Data'!$U:$U,'Full Crash Data'!$C:$C,V$5,'Full Crash Data'!$AN:$AN,"City or Village Highway Agency",'Full Crash Data'!$AW:$AW,"Yes")))))) -> 0 | W9: =IFERROR(ROUND(V9/V$8,2),0) -> 0 | AE9: 6
A10: Intersection | B10: =IF($B$2="All",SUMIFS('Full Crash Data'!$U:$U,'Full Crash Data'!$C:$C,B$5,'Full Crash Data'!$AX:$AX,"Yes"),IF($B$2="State Highway Agency",SUMIFS('Full Crash Data'!$U:$U,'Full Crash Data'!$C:$C,B$5,'Full Crash Data'!$AN:$AN,"State Highway Agency",'Full Crash Data'!$AX:$AX,"Yes"),IF($B$2="County Highway Agency",SUMIFS('Full Crash Data'!$U:$U,'Full Crash Data'!$C:$C,B$5,'Full Crash Data'!$AN:$AN,"County Highway Agency",'Full Crash Data'!$AX:$AX,"Yes"),IF($B$2="Township Highway Agency",SUMIFS('Full Crash Data'!$U:$U,'Full Crash Data'!$C:$C,B$5,'Full Crash Data'!$AN:$AN,"Township Highway Agency",'Full Crash Data'!$AX:$AX,"Yes"),IF($B$2="City or Village Highway Agency",SUMIFS('Full Crash Data'!$U:$U,'Full Crash Data'!$C:$C,B$5,'Full Crash Data'!$AN:$AN,"City or Village Highway Agency",'Full Crash Data'!$AX:$AX,"Yes")))))) -> 0 | C10: =IFERROR(ROUND(B10/B$8,2),0) -> 0 | D10: =IF($B$2="All",SUMIFS('Full Crash Data'!$U:$U,'Full Crash Data'!$C:$C,D$5,'Full Crash Data'!$AX:$AX,"Yes"),IF($B$2="State Highway Agency",SUMIFS('Full Crash Data'!$U:$U,'Full Crash Data'!$C:$C,D$5,'Full Crash Data'!$AN:$AN,"State Highway Agency",'Full Crash Data'!$AX:$AX,"Yes"),IF($B$2="County Highway Agency",SUMIFS('Full Crash Data'!$U:$U,'Full Crash Data'!$C:$C,D$5,'Full Crash Data'!$AN:$AN,"County Highway Agency",'Full Crash Data'!$AX:$AX,"Yes"),IF($B$2="Township Highway Agency",SUMIFS('Full Crash Data'!$U:$U,'Full Crash Data'!$C:$C,D$5,'Full Crash Data'!$AN:$AN,"Township Highway Agency",'Full Crash Data'!$AX:$AX,"Yes"),IF($B$2="City or Village Highway Agency",SUMIFS('Full Crash Data'!$U:$U,'Full Crash Data'!$C:$C,D$5,'Full Crash Data'!$AN:$AN,"City or Village Highway Agency",'Full Crash Data'!$AX:$AX,"Yes")))))) -> 0 | E10: 0 | F10: =IF($B$2="All",SUMIFS('Full Crash Data'!$U:$U,'Full Crash Data'!$C:$C,F$5,'Full Crash Data'!$AX:$AX,"Yes"),IF($B$2="State Highway Agency",SUMIFS('Full Crash Data'!$U:$U,'Full Crash Data'!$C:$C,F$5,'Full Crash Data'!$AN:$AN,"State Highway Agency",'Full Crash Data'!$AX:$AX,"Yes"),IF($B$2="County Highway Agency",SUMIFS('Full Crash Data'!$U:$U,'Full Crash Data'!$C:$C,F$5,'Full Crash Data'!$AN:$AN,"County Highway Agency",'Full Crash Data'!$AX:$AX,"Yes"),IF($B$2="Township Highway Agency",SUMIFS('Full Crash Data'!$U:$U,'Full Crash Data'!$C:$C,F$5,'Full Crash Data'!$AN:$AN,"Township Highway Agency",'Full Crash Data'!$AX:$AX,"Yes"),IF($B$2="City or Village Highway Agency",SUMIFS('Full Crash Data'!$U:$U,'Full Crash Data'!$C:$C,F$5,'Full Crash Data'!$AN:$AN,"City or Village Highway Agency",'Full Crash Data'!$AX:$AX,"Yes")))))) -> 0 | G10: =IFERROR(ROUND(F10/F$8,2),0) -> 0 | H10: =IF($B$2="All",SUMIFS('Full Crash Data'!$U:$U,'Full Crash Data'!$C:$C,H$5,'Full Crash Data'!$AX:$AX,"Yes"),IF($B$2="State Highway Agency",SUMIFS('Full Crash Data'!$U:$U,'Full Crash Data'!$C:$C,H$5,'Full Crash Data'!$AN:$AN,"State Highway Agency",'Full Crash Data'!$AX:$AX,"Yes"),IF($B$2="County Highway Agency",SUMIFS('Full Crash Data'!$U:$U,'Full Crash Data'!$C:$C,H$5,'Full Crash Data'!$AN:$AN,"County Highway Agency",'Full Crash Data'!$AX:$AX,"Yes"),IF($B$2="Township Highway Agency",SUMIFS('Full Crash Data'!$U:$U,'Full Crash Data'!$C:$C,H$5,'Full Crash Data'!$AN:$AN,"Township Highway Agency",'Full Crash Data'!$AX:$AX,"Yes"),IF($B$2="City or Village Highway Agency",SUMIFS('Full Crash Data'!$U:$U,'Full Crash Data'!$C:$C,H$5,'Full Crash Data'!$AN:$AN,"City or Village Highway Agency",'Full Crash Data'!$AX:$AX,"Yes")))))) -> 0 | I10: =IFERROR(ROUND(H10/H$8,2),0) -> 0 | J10: =IF($B$2="All",SUMIFS('Full Crash Data'!$U:$U,'Full Crash Data'!$C:$C,J$5,'Full Crash Data'!$AX:$AX,"Yes"),IF($B$2="State Highway Agency",SUMIFS('Full Crash Data'!$U:$U,'Full Crash Data'!$C:$C,J$5,'Full Crash Data'!$AN:$AN,"State Highway Agency",'Full Crash Data'!$AX:$AX,"Yes"),IF($B$2="County Highway Agency",SUMIFS('Full Crash Data'!$U:$U,'Full Crash Data'!$C:$C,J$5,'Full Crash Data'!$AN:$AN,"County Highway Agency",'Full Crash Data'!$AX:$AX,"Yes"),IF($B$2="Township Highway Agency",SUMIFS('Full Crash Data'!$U:$U,'Full Crash Data'!$C:$C,J$5,'Full Crash Data'!$AN:$AN,"Township Highway Agency",'Full Crash Data'!$AX:$AX,"Yes"),IF($B$2="City or Village Highway Agency",SUMIFS('Full Crash Data'!$U:$U,'Full Crash Data'!$C:$C,J$5,'Full Crash Data'!$AN:$AN,"City or Village Highway Agency",'Full Crash Data'!$AX:$AX,"Yes")))))) -> 0 | K10: =IFERROR(ROUND(J10/J$8,2),0) -> 0 | L10: =IF($B$2="All",SUMIFS('Full Crash Data'!$U:$U,'Full Crash Data'!$C:$C,L$5,'Full Crash Data'!$AX:$AX,"Yes"),IF($B$2="State Highway Agency",SUMIFS('Full Crash Data'!$U:$U,'Full Crash Data'!$C:$C,L$5,'Full Crash Data'!$AN:$AN,"State Highway Agency",'Full Crash Data'!$AX:$AX,"Yes"),IF($B$2="County Highway Agency",SUMIFS('Full Crash Data'!$U:$U,'Full Crash Data'!$C:$C,L$5,'Full Crash Data'!$AN:$AN,"County Highway Agency",'Full Crash Data'!$AX:$AX,"Yes"),IF($B$2="Township Highway Agency",SUMIFS('Full Crash Data'!$U:$U,'Full Crash Data'!$C:$C,L$5,'Full Crash Data'!$AN:$AN,"Township Highway Agency",'Full Crash Data'!$AX:$AX,"Yes"),IF($B$2="City or Village Highway Agency",SUMIFS('Full Crash Data'!$U:$U,'Full Crash Data'!$C:$C,L$5,'Full Crash Data'!$AN:$AN,"City or Village Highway Agency",'Full Crash Data'!$AX:$AX,"Yes")))))) -> 0 | M10: =IFERROR(ROUND(L10/L$8,2),0) -> 0 | N10: =IF($B$2="All",SUMIFS('Full Crash Data'!$U:$U,'Full Crash Data'!$C:$C,N$5,'Full Crash Data'!$AX:$AX,"Yes"),IF($B$2="State Highway Agency",SUMIFS('Full Crash Data'!$U:$U,'Full Crash Data'!$C:$C,N$5,'Full Crash Data'!$AN:$AN,"State Highway Agency",'Full Crash Data'!$AX:$AX,"Yes"),IF($B$2="County Highway Agency",SUMIFS('Full Crash Data'!$U:$U,'Full Crash Data'!$C:$C,N$5,'Full Crash Data'!$AN:$AN,"County Highway Agency",'Full Crash Data'!$AX:$AX,"Yes"),IF($B$2="Township Highway Agency",SUMIFS('Full Crash Data'!$U:$U,'Full Crash Data'!$C:$C,N$5,'Full Crash Data'!$AN:$AN,"Township Highway Agency",'Full Crash Data'!$AX:$AX,"Yes"),IF($B$2="City or Village Highway Agency",SUMIFS('Full Crash Data'!$U:$U,'Full Crash Data'!$C:$C,N$5,'Full Crash Data'!$AN:$AN,"City or Village Highway Agency",'Full Crash Data'!$AX:$AX,"Yes")))))) -> 0 | O10: =IFERROR(ROUND(N10/N$8,2),0) -> 0 | P10: =IF($B$2="All",SUMIFS('Full Crash Data'!$U:$U,'Full Crash Data'!$C:$C,P$5,'Full Crash Data'!$AX:$AX,"Yes"),IF($B$2="State Highway Agency",SUMIFS('Full Crash Data'!$U:$U,'Full Crash Data'!$C:$C,P$5,'Full Crash Data'!$AN:$AN,"State Highway Agency",'Full Crash Data'!$AX:$AX,"Yes"),IF($B$2="County Highway Agency",SUMIFS('Full Crash Data'!$U:$U,'Full Crash Data'!$C:$C,P$5,'Full Crash Data'!$AN:$AN,"County Highway Agency",'Full Crash Data'!$AX:$AX,"Yes"),IF($B$2="Township Highway Agency",SUMIFS('Full Crash Data'!$U:$U,'Full Crash Data'!$C:$C,P$5,'Full Crash Data'!$AN:$AN,"Township Highway Agency",'Full Crash Data'!$AX:$AX,"Yes"),IF($B$2="City or Village Highway Agency",SUMIFS('Full Crash Data'!$U:$U,'Full Crash Data'!$C:$C,P$5,'Full Crash Data'!$AN:$AN,"City or Village Highway Agency",'Full Crash Data'!$AX:$AX,"Yes")))))) -> 0 | Q10: =IFERROR(ROUND(P10/P$8,2),0) -> 0 | R10: =IF($B$2="All",SUMIFS('Full Crash Data'!$U:$U,'Full Crash Data'!$C:$C,R$5,'Full Crash Data'!$AX:$AX,"Yes"),IF($B$2="State Highway Agency",SUMIFS('Full Crash Data'!$U:$U,'Full Crash Data'!$C:$C,R$5,'Full Crash Data'!$AN:$AN,"State Highway Agency",'Full Crash Data'!$AX:$AX,"Yes"),IF($B$2="County Highway Agency",SUMIFS('Full Crash Data'!$U:$U,'Full Crash Data'!$C:$C,R$5,'Full Crash Data'!$AN:$AN,"County Highway Agency",'Full Crash Data'!$AX:$AX,"Yes"),IF($B$2="Township Highway Agency",SUMIFS('Full Crash Data'!$U:$U,'Full Crash Data'!$C:$C,R$5,'Full Crash Data'!$AN:$AN,"Township Highway Agency",'Full Crash Data'!$AX:$AX,"Yes"),IF($B$2="City or Village Highway Agency",SUMIFS('Full Crash Data'!$U:$U,'Full Crash Data'!$C:$C,R$5,'Full Crash Data'!$AN:$AN,"City or Village Highway Agency",'Full Crash Data'!$AX:$AX,"Yes")))))) -> 0 | S10: =IFERROR(ROUND(R10/R$8,2),0) -> 0 | T10: =IF($B$2="All",SUMIFS('Full Crash Data'!$U:$U,'Full Crash Data'!$C:$C,T$5,'Full Crash Data'!$AX:$AX,"Yes"),IF($B$2="State Highway Agency",SUMIFS('Full Crash Data'!$U:$U,'Full Crash Data'!$C:$C,T$5,'Full Crash Data'!$AN:$AN,"State Highway Agency",'Full Crash Data'!$AX:$AX,"Yes"),IF($B$2="County Highway Agency",SUMIFS('Full Crash Data'!$U:$U,'Full Crash Data'!$C:$C,T$5,'Full Crash Data'!$AN:$AN,"County Highway Agency",'Full Crash Data'!$AX:$AX,"Yes"),IF($B$2="Township Highway Agency",SUMIFS('Full Crash Data'!$U:$U,'Full Crash Data'!$C:$C,T$5,'Full Crash Data'!$AN:$AN,"Township Highway Agency",'Full Crash Data'!$AX:$AX,"Yes"),IF($B$2="City or Village Highway Agency",SUMIFS('Full Crash Data'!$U:$U,'Full Crash Data'!$C:$C,T$5,'Full Crash Data'!$AN:$AN,"City or Village Highway Agency",'Full Crash Data'!$AX:$AX,"Yes")))))) -> 0 | U10: =IFERROR(ROUND(T10/T$8,2),0) -> 0 | V10: =IF($B$2="All",SUMIFS('Full Crash Data'!$U:$U,'Full Crash Data'!$C:$C,V$5,'Full Crash Data'!$AX:$AX,"Yes"),IF($B$2="State Highway Agency",SUMIFS('Full Crash Data'!$U:$U,'Full Crash Data'!$C:$C,V$5,'Full Crash Data'!$AN:$AN,"State Highway Agency",'Full Crash Data'!$AX:$AX,"Yes"),IF($B$2="County Highway Agency",SUMIFS('Full Crash Data'!$U:$U,'Full Crash Data'!$C:$C,V$5,'Full Crash Data'!$AN:$AN,"County Highway Agency",'Full Crash Data'!$AX:$AX,"Yes"),IF($B$2="Township Highway Agency",SUMIFS('Full Crash Data'!$U:$U,'Full Crash Data'!$C:$C,V$5,'Full Crash Data'!$AN:$AN,"Township Highway Agency",'Full Crash Data'!$AX:$AX,"Yes"),IF($B$2="City or Village Highway Agency",SUMIFS('Full Crash Data'!$U:$U,'Full Crash Data'!$C:$C,V$5,'Full Crash Data'!$AN:$AN,"City or Village Highway Agency",'Full Crash Data'!$AX:$AX,"Yes")))))) -> 0 | W10: =IFERROR(ROUND(V10/V$8,2),0) -> 0 | AE10: 7
A11: Railroad Crossing | B11: =IF($B$2="All",SUMIFS('Full Crash Data'!$U:$U,'Full Crash Data'!$C:$C,B$5,'Full Crash Data'!$G:$G,"Train"),IF($B$2="State Highway Agency",SUMIFS('Full Crash Data'!$U:$U,'Full Crash Data'!$C:$C,B$5,'Full Crash Data'!$AN:$AN,"State Highway Agency",'Full Crash Data'!$G:$G,"Train"),IF($B$2="County Highway Agency",SUMIFS('Full Crash Data'!$U:$U,'Full Crash Data'!$C:$C,B$5,'Full Crash Data'!$AN:$AN,"County Highway Agency",'Full Crash Data'!$G:$G,"Train"),IF($B$2="Township Highway Agency",SUMIFS('Full Crash Data'!$U:$U,'Full Crash Data'!$C:$C,B$5,'Full Crash Data'!$AN:$AN,"Township Highway Agency",'Full Crash Data'!$G:$G,"Train"),IF($B$2="City or Village Highway Agency",SUMIFS('Full Crash Data'!$U:$U,'Full Crash Data'!$C:$C,B$5,'Full Crash Data'!$AN:$AN,"City or Village Highway Agency",'Full Crash Data'!$G:$G,"Train")))))) -> 0 | C11: 0 | D11: =IF($B$2="All",SUMIFS('Full Crash Data'!$U:$U,'Full Crash Data'!$C:$C,D$5,'Full Crash Data'!$G:$G,"Train"),IF($B$2="State Highway Agency",SUMIFS('Full Crash Data'!$U:$U,'Full Crash Data'!$C:$C,D$5,'Full Crash Data'!$AN:$AN,"State Highway Agency",'Full Crash Data'!$G:$G,"Train"),IF($B$2="County Highway Agency",SUMIFS('Full Crash Data'!$U:$U,'Full Crash Data'!$C:$C,D$5,'Full Crash Data'!$AN:$AN,"County Highway Agency",'Full Crash Data'!$G:$G,"Train"),IF($B$2="Township Highway Agency",SUMIFS('Full Crash Data'!$U:$U,'Full Crash Data'!$C:$C,D$5,'Full Crash Data'!$AN:$AN,"Township Highway Agency",'Full Crash Data'!$G:$G,"Train"),IF($B$2="City or Village Highway Agency",SUMIFS('Full Crash Data'!$U:$U,'Full Crash Data'!$C:$C,D$5,'Full Crash Data'!$AN:$AN,"City or Village Highway Agency",'Full Crash Data'!$G:$G,"Train")))))) -> 0 | E11: 0 | F11: =IF($B$2="All",SUMIFS('Full Crash Data'!$U:$U,'Full Crash Data'!$C:$C,F$5,'Full Crash Data'!$G:$G,"Train"),IF($B$2="State Highway Agency",SUMIFS('Full Crash Data'!$U:$U,'Full Crash Data'!$C:$C,F$5,'Full Crash Data'!$AN:$AN,"State Highway Agency",'Full Crash Data'!$G:$G,"Train"),IF($B$2="County Highway Agency",SUMIFS('Full Crash Data'!$U:$U,'Full Crash Data'!$C:$C,F$5,'Full Crash Data'!$AN:$AN,"County Highway Agency",'Full Crash Data'!$G:$G,"Train"),IF($B$2="Township Highway Agency",SUMIFS('Full Crash Data'!$U:$U,'Full Crash Data'!$C:$C,F$5,'Full Crash Data'!$AN:$AN,"Township Highway Agency",'Full Crash Data'!$G:$G,"Train"),IF($B$2="City or Village Highway Agency",SUMIFS('Full Crash Data'!$U:$U,'Full Crash Data'!$C:$C,F$5,'Full Crash Data'!$AN:$AN,"City or Village Highway Agency",'Full Crash Data'!$G:$G,"Train")))))) -> 0 | G11: =IFERROR(ROUND(F11/F$8,2),0) -> 0 | H11: =IF($B$2="All",SUMIFS('Full Crash Data'!$U:$U,'Full Crash Data'!$C:$C,H$5,'Full Crash Data'!$G:$G,"Train"),IF($B$2="State Highway Agency",SUMIFS('Full Crash Data'!$U:$U,'Full Crash Data'!$C:$C,H$5,'Full Crash Data'!$AN:$AN,"State Highway Agency",'Full Crash Data'!$G:$G,"Train"),IF($B$2="County Highway Agency",SUMIFS('Full Crash Data'!$U:$U,'Full Crash Data'!$C:$C,H$5,'Full Crash Data'!$AN:$AN,"County Highway Agency",'Full Crash Data'!$G:$G,"Train"),IF($B$2="Township Highway Agency",SUMIFS('Full Crash Data'!$U:$U,'Full Crash Data'!$C:$C,H$5,'Full Crash Data'!$AN:$AN,"Township Highway Agency",'Full Crash Data'!$G:$G,"Train"),IF($B$2="City or Village Highway Agency",SUMIFS('Full Crash Data'!$U:$U,'Full Crash Data'!$C:$C,H$5,'Full Crash Data'!$AN:$AN,"City or Village Highway Agency",'Full Crash Data'!$G:$G,"Train")))))) -> 0 | I11: =IFERROR(ROUND(H11/H$8,2),0) -> 0 | J11: =IF($B$2="All",SUMIFS('Full Crash Data'!$U:$U,'Full Crash Data'!$C:$C,J$5,'Full Crash Data'!$G:$G,"Train"),IF($B$2="State Highway Agency",SUMIFS('Full Crash Data'!$U:$U,'Full Crash Data'!$C:$C,J$5,'Full Crash Data'!$AN:$AN,"State Highway Agency",'Full Crash Data'!$G:$G,"Train"),IF($B$2="County Highway Agency",SUMIFS('Full Crash Data'!$U:$U,'Full Crash Data'!$C:$C,J$5,'Full Crash Data'!$AN:$AN,"County Highway Agency",'Full Crash Data'!$G:$G,"Train"),IF($B$2="Township Highway Agency",SUMIFS('Full Crash Data'!$U:$U,'Full Crash Data'!$C:$C,J$5,'Full Crash Data'!$AN:$AN,"Township Highway Agency",'Full Crash Data'!$G:$G,"Train"),IF($B$2="City or Village Highway Agency",SUMIFS('Full Crash Data'!$U:$U,'Full Crash Data'!$C:$C,J$5,'Full Crash Data'!$AN:$AN,"City or Village Highway Agency",'Full Crash Data'!$G:$G,"Train")))))) -> 0 | K11: =IFERROR(ROUND(J11/J$8,2),0) -> 0 | L11: =IF($B$2="All",SUMIFS('Full Crash Data'!$U:$U,'Full Crash Data'!$C:$C,L$5,'Full Crash Data'!$G:$G,"Train"),IF($B$2="State Highway Agency",SUMIFS('Full Crash Data'!$U:$U,'Full Crash Data'!$C:$C,L$5,'Full Crash Data'!$AN:$AN,"State Highway Agency",'Full Crash Data'!$G:$G,"Train"),IF($B$2="County Highway Agency",SUMIFS('Full Crash Data'!$U:$U,'Full Crash Data'!$C:$C,L$5,'Full Crash Data'!$AN:$AN,"County Highway Agency",'Full Crash Data'!$G:$G,"Train"),IF($B$2="Township Highway Agency",SUMIFS('Full Crash Data'!$U:$U,'Full Crash Data'!$C:$C,L$5,'Full Crash Data'!$AN:$AN,"Township Highway Agency",'Full Crash Data'!$G:$G,"Train"),IF($B$2="City or Village Highway Agency",SUMIFS('Full Crash Data'!$U:$U,'Full Crash Data'!$C:$C,L$5,'Full Crash Data'!$AN:$AN,"City or Village Highway Agency",'Full Crash Data'!$G:$G,"Train")))))) -> 0 | M11: =IFERROR(ROUND(L11/L$8,2),0) -> 0 | N11: =IF($B$2="All",SUMIFS('Full Crash Data'!$U:$U,'Full Crash Data'!$C:$C,N$5,'Full Crash Data'!$G:$G,"Train"),IF($B$2="State Highway Agency",SUMIFS('Full Crash Data'!$U:$U,'Full Crash Data'!$C:$C,N$5,'Full Crash Data'!$AN:$AN,"State Highway Agency",'Full Crash Data'!$G:$G,"Train"),IF($B$2="County Highway Agency",SUMIFS('Full Crash Data'!$U:$U,'Full Crash Data'!$C:$C,N$5,'Full Crash Data'!$AN:$AN,"County Highway Agency",'Full Crash Data'!$G:$G,"Train"),IF($B$2="Township Highway Agency",SUMIFS('Full Crash Data'!$U:$U,'Full Crash Data'!$C:$C,N$5,'Full Crash Data'!$AN:$AN,"Township Highway Agency",'Full Crash Data'!$G:$G,"Train"),IF($B$2="City or Village Highway Agency",SUMIFS('Full Crash Data'!$U:$U,'Full Crash Data'!$C:$C,N$5,'Full Crash Data'!$AN:$AN,"City or Village Highway Agency",'Full Crash Data'!$G:$G,"Train")))))) -> 0 | O11: =IFERROR(ROUND(N11/N$8,2),0) -> 0 | P11: =IF($B$2="All",SUMIFS('Full Crash Data'!$U:$U,'Full Crash Data'!$C:$C,P$5,'Full Crash Data'!$G:$G,"Train"),IF($B$2="State Highway Agency",SUMIFS('Full Crash Data'!$U:$U,'Full Crash Data'!$C:$C,P$5,'Full Crash Data'!$AN:$AN,"State Highway Agency",'Full Crash Data'!$G:$G,"Train"),IF($B$2="County Highway Agency",SUMIFS('Full Crash Data'!$U:$U,'Full Crash Data'!$C:$C,P$5,'Full Crash Data'!$AN:$AN,"County Highway Agency",'Full Crash Data'!$G:$G,"Train"),IF($B$2="Township Highway Agency",SUMIFS('Full Crash Data'!$U:$U,'Full Crash Data'!$C:$C,P$5,'Full Crash Data'!$AN:$AN,"Township Highway Agency",'Full Crash Data'!$G:$G,"Train"),IF($B$2="City or Village Highway Agency",SUMIFS('Full Crash Data'!$U:$U,'Full Crash Data'!$C:$C,P$5,'Full Crash Data'!$AN:$AN,"City or Village Highway Agency",'Full Crash Data'!$G:$G,"Train")))))) -> 0 | Q11: =IFERROR(ROUND(P11/P$8,2),0) -> 0 | R11: =IF($B$2="All",SUMIFS('Full Crash Data'!$U:$U,'Full Crash Data'!$C:$C,R$5,'Full Crash Data'!$G:$G,"Train"),IF($B$2="State Highway Agency",SUMIFS('Full Crash Data'!$U:$U,'Full Crash Data'!$C:$C,R$5,'Full Crash Data'!$AN:$AN,"State Highway Agency",'Full Crash Data'!$G:$G,"Train"),IF($B$2="County Highway Agency",SUMIFS('Full Crash Data'!$U:$U,'Full Crash Data'!$C:$C,R$5,'Full Crash Data'!$AN:$AN,"County Highway Agency",'Full Crash Data'!$G:$G,"Train"),IF($B$2="Township Highway Agency",SUMIFS('Full Crash Data'!$U:$U,'Full Crash Data'!$C:$C,R$5,'Full Crash Data'!$AN:$AN,"Township Highway Agency",'Full Crash Data'!$G:$G,"Train"),IF($B$2="City or Village Highway Agency",SUMIFS('Full Crash Data'!$U:$U,'Full Crash Data'!$C:$C,R$5,'Full Crash Data'!$AN:$AN,"City or Village Highway Agency",'Full Crash Data'!$G:$G,"Train")))))) -> 0 | S11: =IFERROR(ROUND(R11/R$8,2),0) -> 0 | T11: =IF($B$2="All",SUMIFS('Full Crash Data'!$U:$U,'Full Crash Data'!$C:$C,T$5,'Full Crash Data'!$G:$G,"Train"),IF($B$2="State Highway Agency",SUMIFS('Full Crash Data'!$U:$U,'Full Crash Data'!$C:$C,T$5,'Full Crash Data'!$AN:$AN,"State Highway Agency",'Full Crash Data'!$G:$G,"Train"),IF($B$2="County Highway Agency",SUMIFS('Full Crash Data'!$U:$U,'Full Crash Data'!$C:$C,T$5,'Full Crash Data'!$AN:$AN,"County Highway Agency",'Full Crash Data'!$G:$G,"Train"),IF($B$2="Township Highway Agency",SUMIFS('Full Crash Data'!$U:$U,'Full Crash Data'!$C:$C,T$5,'Full Crash Data'!$AN:$AN,"Township Highway Agency",'Full Crash Data'!$G:$G,"Train"),IF($B$2="City or Village Highway Agency",SUMIFS('Full Crash Data'!$U:$U,'Full Crash Data'!$C:$C,T$5,'Full Crash Data'!$AN:$AN,"City or Village Highway Agency",'Full Crash Data'!$G:$G,"Train")))))) -> 0 | U11: =IFERROR(ROUND(T11/T$8,2),0) -> 0 | V11: =IF($B$2="All",SUMIFS('Full Crash Data'!$U:$U,'Full Crash Data'!$C:$C,V$5,'Full Crash Data'!$G:$G,"Train"),IF($B$2="State Highway Agency",SUMIFS('Full Crash Data'!$U:$U,'Full Crash Data'!$C:$C,V$5,'Full Crash Data'!$AN:$AN,"State Highway Agency",'Full Crash Data'!$G:$G,"Train"),IF($B$2="County Highway Agency",SUMIFS('Full Crash Data'!$U:$U,'Full Crash Data'!$C:$C,V$5,'Full Crash Data'!$AN:$AN,"County Highway Agency",'Full Crash Data'!$G:$G,"Train"),IF($B$2="Township Highway Agency",SUMIFS('Full Crash Data'!$U:$U,'Full Crash Data'!$C:$C,V$5,'Full Crash Data'!$AN:$AN,"Township Highway Agency",'Full Crash Data'!$G:$G,"Train"),IF($B$2="City or Village Highway Agency",SUMIFS('Full Crash Data'!$U:$U,'Full Crash Data'!$C:$C,V$5,'Full Crash Data'!$AN:$AN,"City or Village Highway Agency",'Full Crash Data'!$G:$G,"Train")))))) -> 0 | W11: =IFERROR(ROUND(V11/V$8,2),0) -> 0 | AE11: 10
A12: Alcohol Related Involvement | B12: =IF($B$2="All",SUMIFS('Full Crash Data'!$U:$U,'Full Crash Data'!$C:$C,B$5,'Full Crash Data'!$AY:$AY,"Yes"),IF($B$2="State Highway Agency",SUMIFS('Full Crash Data'!$U:$U,'Full Crash Data'!$C:$C,B$5,'Full Crash Data'!$AN:$AN,"State Highway Agency",'Full Crash Data'!$AY:$AY,"Yes"),IF($B$2="County Highway Agency",SUMIFS('Full Crash Data'!$U:$U,'Full Crash Data'!$C:$C,B$5,'Full Crash Data'!$AN:$AN,"County Highway Agency",'Full Crash Data'!$AY:$AY,"Yes"),IF($B$2="Township Highway Agency",SUMIFS('Full Crash Data'!$U:$U,'Full Crash Data'!$C:$C,B$5,'Full Crash Data'!$AN:$AN,"Township Highway Agency",'Full Crash Data'!$AY:$AY,"Yes"),IF($B$2="City or Village Highway Agency",SUMIFS('Full Crash Data'!$U:$U,'Full Crash Data'!$C:$C,B$5,'Full Crash Data'!$AN:$AN,"City or Village Highway Agency",'Full Crash Data'!$AY:$AY,"Yes")))))) -> 0 | C12: 0 | D12: =IF($B$2="All",SUMIFS('Full Crash Data'!$U:$U,'Full Crash Data'!$C:$C,D$5,'Full Crash Data'!$AY:$AY,"Yes"),IF($B$2="State Highway Agency",SUMIFS('Full Crash Data'!$U:$U,'Full Crash Data'!$C:$C,D$5,'Full Crash Data'!$AN:$AN,"State Highway Agency",'Full Crash Data'!$AY:$AY,"Yes"),IF($B$2="County Highway Agency",SUMIFS('Full Crash Data'!$U:$U,'Full Crash Data'!$C:$C,D$5,'Full Crash Data'!$AN:$AN,"County Highway Agency",'Full Crash Data'!$AY:$AY,"Yes"),IF($B$2="Township Highway Agency",SUMIFS('Full Crash Data'!$U:$U,'Full Crash Data'!$C:$C,D$5,'Full Crash Data'!$AN:$AN,"Township Highway Agency",'Full Crash Data'!$AY:$AY,"Yes"),IF($B$2="City or Village Highway Agency",SUMIFS('Full Crash Data'!$U:$U,'Full Crash Data'!$C:$C,D$5,'Full Crash Data'!$AN:$AN,"City or Village Highway Agency",'Full Crash Data'!$AY:$AY,"Yes")))))) -> 0 | E12: 0 | F12: =IF($B$2="All",SUMIFS('Full Crash Data'!$U:$U,'Full Crash Data'!$C:$C,F$5,'Full Crash Data'!$AY:$AY,"Yes"),IF($B$2="State Highway Agency",SUMIFS('Full Crash Data'!$U:$U,'Full Crash Data'!$C:$C,F$5,'Full Crash Data'!$AN:$AN,"State Highway Agency",'Full Crash Data'!$AY:$AY,"Yes"),IF($B$2="County Highway Agency",SUMIFS('Full Crash Data'!$U:$U,'Full Crash Data'!$C:$C,F$5,'Full Crash Data'!$AN:$AN,"County Highway Agency",'Full Crash Data'!$AY:$AY,"Yes"),IF($B$2="Township Highway Agency",SUMIFS('Full Crash Data'!$U:$U,'Full Crash Data'!$C:$C,F$5,'Full Crash Data'!$AN:$AN,"Township Highway Agency",'Full Crash Data'!$AY:$AY,"Yes"),IF($B$2="City or Village Highway Agency",SUMIFS('Full Crash Data'!$U:$U,'Full Crash Data'!$C:$C,F$5,'Full Crash Data'!$AN:$AN,"City or Village Highway Agency",'Full Crash Data'!$AY:$AY,"Yes")))))) -> 0 | G12: =IFERROR(ROUND(F12/F$8,2),0) -> 0 | H12: =IF($B$2="All",SUMIFS('Full Crash Data'!$U:$U,'Full Crash Data'!$C:$C,H$5,'Full Crash Data'!$AY:$AY,"Yes"),IF($B$2="State Highway Agency",SUMIFS('Full Crash Data'!$U:$U,'Full Crash Data'!$C:$C,H$5,'Full Crash Data'!$AN:$AN,"State Highway Agency",'Full Crash Data'!$AY:$AY,"Yes"),IF($B$2="County Highway Agency",SUMIFS('Full Crash Data'!$U:$U,'Full Crash Data'!$C:$C,H$5,'Full Crash Data'!$AN:$AN,"County Highway Agency",'Full Crash Data'!$AY:$AY,"Yes"),IF($B$2="Township Highway Agency",SUMIFS('Full Crash Data'!$U:$U,'Full Crash Data'!$C:$C,H$5,'Full Crash Data'!$AN:$AN,"Township Highway Agency",'Full Crash Data'!$AY:$AY,"Yes"),IF($B$2="City or Village Highway Agency",SUMIFS('Full Crash Data'!$U:$U,'Full Crash Data'!$C:$C,H$5,'Full Crash Data'!$AN:$AN,"City or Village Highway Agency",'Full Crash Data'!$AY:$AY,"Yes")))))) -> 0 | I12: =IFERROR(ROUND(H12/H$8,2),0) -> 0 | J12: =IF($B$2="All",SUMIFS('Full Crash Data'!$U:$U,'Full Crash Data'!$C:$C,J$5,'Full Crash Data'!$AY:$AY,"Yes"),IF($B$2="State Highway Agency",SUMIFS('Full Crash Data'!$U:$U,'Full Crash Data'!$C:$C,J$5,'Full Crash Data'!$AN:$AN,"State Highway Agency",'Full Crash Data'!$AY:$AY,"Yes"),IF($B$2="County Highway Agency",SUMIFS('Full Crash Data'!$U:$U,'Full Crash Data'!$C:$C,J$5,'Full Crash Data'!$AN:$AN,"County Highway Agency",'Full Crash Data'!$AY:$AY,"Yes"),IF($B$2="Township Highway Agency",SUMIFS('Full Crash Data'!$U:$U,'Full Crash Data'!$C:$C,J$5,'Full Crash Data'!$AN:$AN,"Township Highway Agency",'Full Crash Data'!$AY:$AY,"Yes"),IF($B$2="City or Village Highway Agency",SUMIFS('Full Crash Data'!$U:$U,'Full Crash Data'!$C:$C,J$5,'Full Crash Data'!$AN:$AN,"City or Village Highway Agency",'Full Crash Data'!$AY:$AY,"Yes")))))) -> 0 | K12: =IFERROR(ROUND(J12/J$8,2),0) -> 0 | L12: =IF($B$2="All",SUMIFS('Full Crash Data'!$U:$U,'Full Crash Data'!$C:$C,L$5,'Full Crash Data'!$AY:$AY,"Yes"),IF($B$2="State Highway Agency",SUMIFS('Full Crash Data'!$U:$U,'Full Crash Data'!$C:$C,L$5,'Full Crash Data'!$AN:$AN,"State Highway Agency",'Full Crash Data'!$AY:$AY,"Yes"),IF($B$2="County Highway Agency",SUMIFS('Full Crash Data'!$U:$U,'Full Crash Data'!$C:$C,L$5,'Full Crash Data'!$AN:$AN,"County Highway Agency",'Full Crash Data'!$AY:$AY,"Yes"),IF($B$2="Township Highway Agency",SUMIFS('Full Crash Data'!$U:$U,'Full Crash Data'!$C:$C,L$5,'Full Crash Data'!$AN:$AN,"Township Highway Agency",'Full Crash Data'!$AY:$AY,"Yes"),IF($B$2="City or Village Highway Agency",SUMIFS('Full Crash Data'!$U:$U,'Full Crash Data'!$C:$C,L$5,'Full Crash Data'!$AN:$AN,"City or Village Highway Agency",'Full Crash Data'!$AY:$AY,"Yes")))))) -> 0 | M12: =IFERROR(ROUND(L12/L$8,2),0) -> 0 | N12: =IF($B$2="All",SUMIFS('Full Crash Data'!$U:$U,'Full Crash Data'!$C:$C,N$5,'Full Crash Data'!$AY:$AY,"Yes"),IF($B$2="State Highway Agency",SUMIFS('Full Crash Data'!$U:$U,'Full Crash Data'!$C:$C,N$5,'Full Crash Data'!$AN:$AN,"State Highway Agency",'Full Crash Data'!$AY:$AY,"Yes"),IF($B$2="County Highway Agency",SUMIFS('Full Crash Data'!$U:$U,'Full Crash Data'!$C:$C,N$5,'Full Crash Data'!$AN:$AN,"County Highway Agency",'Full Crash Data'!$AY:$AY,"Yes"),IF($B$2="Township Highway Agency",SUMIFS('Full Crash Data'!$U:$U,'Full Crash Data'!$C:$C,N$5,'Full Crash Data'!$AN:$AN,"Township Highway Agency",'Full Crash Data'!$AY:$AY,"Yes"),IF($B$2="City or Village Highway Agency",SUMIFS('Full Crash Data'!$U:$U,'Full Crash Data'!$C:$C,N$5,'Full Crash Data'!$AN:$AN,"City or Village Highway Agency",'Full Crash Data'!$AY:$AY,"Yes")))))) -> 0 | O12: =IFERROR(ROUND(N12/N$8,2),0) -> 0 | P12: =IF($B$2="All",SUMIFS('Full Crash Data'!$U:$U,'Full Crash Data'!$C:$C,P$5,'Full Crash Data'!$AY:$AY,"Yes"),IF($B$2="State Highway Agency",SUMIFS('Full Crash Data'!$U:$U,'Full Crash Data'!$C:$C,P$5,'Full Crash Data'!$AN:$AN,"State Highway Agency",'Full Crash Data'!$AY:$AY,"Yes"),IF($B$2="County Highway Agency",SUMIFS('Full Crash Data'!$U:$U,'Full Crash Data'!$C:$C,P$5,'Full Crash Data'!$AN:$AN,"County Highway Agency",'Full Crash Data'!$AY:$AY,"Yes"),IF($B$2="Township Highway Agency",SUMIFS('Full Crash Data'!$U:$U,'Full Crash Data'!$C:$C,P$5,'Full Crash Data'!$AN:$AN,"Township Highway Agency",'Full Crash Data'!$AY:$AY,"Yes"),IF($B$2="City or Village Highway Agency",SUMIFS('Full Crash Data'!$U:$U,'Full Crash Data'!$C:$C,P$5,'Full Crash Data'!$AN:$AN,"City or Village Highway Agency",'Full Crash Data'!$AY:$AY,"Yes")))))) -> 0 | Q12: =IFERROR(ROUND(P12/P$8,2),0) -> 0 | R12: =IF($B$2="All",SUMIFS('Full Crash Data'!$U:$U,'Full Crash Data'!$C:$C,R$5,'Full Crash Data'!$AY:$AY,"Yes"),IF($B$2="State Highway Agency",SUMIFS('Full Crash Data'!$U:$U,'Full Crash Data'!$C:$C,R$5,'Full Crash Data'!$AN:$AN,"State Highway Agency",'Full Crash Data'!$AY:$AY,"Yes"),IF($B$2="County Highway Agency",SUMIFS('Full Crash Data'!$U:$U,'Full Crash Data'!$C:$C,R$5,'Full Crash Data'!$AN:$AN,"County Highway Agency",'Full Crash Data'!$AY:$AY,"Yes"),IF($B$2="Township Highway Agency",SUMIFS('Full Crash Data'!$U:$U,'Full Crash Data'!$C:$C,R$5,'Full Crash Data'!$AN:$AN,"Township Highway Agency",'Full Crash Data'!$AY:$AY,"Yes"),IF($B$2="City or Village Highway Agency",SUMIFS('Full Crash Data'!$U:$U,'Full Crash Data'!$C:$C,R$5,'Full Crash Data'!$AN:$AN,"City or Village Highway Agency",'Full Crash Data'!$AY:$AY,"Yes")))))) -> 0 | S12: =IFERROR(ROUND(R12/R$8,2),0) -> 0 | T12: =IF($B$2="All",SUMIFS('Full Crash Data'!$U:$U,'Full Crash Data'!$C:$C,T$5,'Full Crash Data'!$AY:$AY,"Yes"),IF($B$2="State Highway Agency",SUMIFS('Full Crash Data'!$U:$U,'Full Crash Data'!$C:$C,T$5,'Full Crash Data'!$AN:$AN,"State Highway Agency",'Full Crash Data'!$AY:$AY,"Yes"),IF($B$2="County Highway Agency",SUMIFS('Full Crash Data'!$U:$U,'Full Crash Data'!$C:$C,T$5,'Full Crash Data'!$AN:$AN,"County Highway Agency",'Full Crash Data'!$AY:$AY,"Yes"),IF($B$2="Township Highway Agency",SUMIFS('Full Crash Data'!$U:$U,'Full Crash Data'!$C:$C,T$5,'Full Crash Data'!$AN:$AN,"Township Highway Agency",'Full Crash Data'!$AY:$AY,"Yes"),IF($B$2="City or Village Highway Agency",SUMIFS('Full Crash Data'!$U:$U,'Full Crash Data'!$C:$C,T$5,'Full Crash Data'!$AN:$AN,"City or Village Highway Agency",'Full Crash Data'!$AY:$AY,"Yes")))))) -> 0 | U12: =IFERROR(ROUND(T12/T$8,2),0) -> 0 | V12: =IF($B$2="All",SUMIFS('Full Crash Data'!$U:$U,'Full Crash Data'!$C:$C,V$5,'Full Crash Data'!$AY:$AY,"Yes"),IF($B$2="State Highway Agency",SUMIFS('Full Crash Data'!$U:$U,'Full Crash Data'!$C:$C,V$5,'Full Crash Data'!$AN:$AN,"State Highway Agency",'Full Crash Data'!$AY:$AY,"Yes"),IF($B$2="County Highway Agency",SUMIFS('Full Crash Data'!$U:$U,'Full Crash Data'!$C:$C,V$5,'Full Crash Data'!$AN:$AN,"County Highway Agency",'Full Crash Data'!$AY:$AY,"Yes"),IF($B$2="Township Highway Agency",SUMIFS('Full Crash Data'!$U:$U,'Full Crash Data'!$C:$C,V$5,'Full Crash Data'!$AN:$AN,"Township Highway Agency",'Full Crash Data'!$AY:$AY,"Yes"),IF($B$2="City or Village Highway Agency",SUMIFS('Full Crash Data'!$U:$U,'Full Crash Data'!$C:$C,V$5,'Full Crash Data'!$AN:$AN,"City or Village Highway Agency",'Full Crash Data'!$AY:$AY,"Yes")))))) -> 0 | W12: =IFERROR(ROUND(V12/V$8,2),0) -> 0 | AE12: 11
A13: Restraints Not Used Driver/Occupants | B13: =IF($B$2="All",SUMIFS('Full Crash Data'!$U:$U,'Full Crash Data'!$C:$C,B$5,'Full Crash Data'!$Z:$Z,">0"),IF($B$2="State Highway Agency",SUMIFS('Full Crash Data'!$U:$U,'Full Crash Data'!$C:$C,B$5,'Full Crash Data'!$AN:$AN,"State Highway Agency",'Full Crash Data'!$Z:$Z,">0"),IF($B$2="County Highway Agency",SUMIFS('Full Crash Data'!$U:$U,'Full Crash Data'!$C:$C,B$5,'Full Crash Data'!$AN:$AN,"County Highway Agency",'Full Crash Data'!$Z:$Z,">0"),IF($B$2="Township Highway Agency",SUMIFS('Full Crash Data'!$U:$U,'Full Crash Data'!$C:$C,B$5,'Full Crash Data'!$AN:$AN,"Township Highway Agency",'Full Crash Data'!$Z:$Z,">0"),IF($B$2="City or Village Highway Agency",SUMIFS('Full Crash Data'!$U:$U,'Full Crash Data'!$C:$C,B$5,'Full Crash Data'!$AN:$AN,"City or Village Highway Agency",'Full Crash Data'!$Z:$Z,">0")))))) -> 0 | C13: 0 | D13: =IF($B$2="All",SUMIFS('Full Crash Data'!$U:$U,'Full Crash Data'!$C:$C,D$5,'Full Crash Data'!$Z:$Z,">0"),IF($B$2="State Highway Agency",SUMIFS('Full Crash Data'!$U:$U,'Full Crash Data'!$C:$C,D$5,'Full Crash Data'!$AN:$AN,"State Highway Agency",'Full Crash Data'!$Z:$Z,">0"),IF($B$2="County Highway Agency",SUMIFS('Full Crash Data'!$U:$U,'Full Crash Data'!$C:$C,D$5,'Full Crash Data'!$AN:$AN,"County Highway Agency",'Full Crash Data'!$Z:$Z,">0"),IF($B$2="Township Highway Agency",SUMIFS('Full Crash Data'!$U:$U,'Full Crash Data'!$C:$C,D$5,'Full Crash Data'!$AN:$AN,"Township Highway Agency",'Full Crash Data'!$Z:$Z,">0"),IF($B$2="City or Village Highway Agency",SUMIFS('Full Crash Data'!$U:$U,'Full Crash Data'!$C:$C,D$5,'Full Crash Data'!$AN:$AN,"City or Village Highway Agency",'Full Crash Data'!$Z:$Z,">0")))))) -> 0 | E13: 0 | F13: =IF($B$2="All",SUMIFS('Full Crash Data'!$U:$U,'Full Crash Data'!$C:$C,F$5,'Full Crash Data'!$Z:$Z,">0"),IF($B$2="State Highway Agency",SUMIFS('Full Crash Data'!$U:$U,'Full Crash Data'!$C:$C,F$5,'Full Crash Data'!$AN:$AN,"State Highway Agency",'Full Crash Data'!$Z:$Z,">0"),IF($B$2="County Highway Agency",SUMIFS('Full Crash Data'!$U:$U,'Full Crash Data'!$C:$C,F$5,'Full Crash Data'!$AN:$AN,"County Highway Agency",'Full Crash Data'!$Z:$Z,">0"),IF($B$2="Township Highway Agency",SUMIFS('Full Crash Data'!$U:$U,'Full Crash Data'!$C:$C,F$5,'Full Crash Data'!$AN:$AN,"Township Highway Agency",'Full Crash Data'!$Z:$Z,">0"),IF($B$2="City or Village Highway Agency",SUMIFS('Full Crash Data'!$U:$U,'Full Crash Data'!$C:$C,F$5,'Full Crash Data'!$AN:$AN,"City or Village Highway Agency",'Full Crash Data'!$Z:$Z,">0")))))) -> 0 | G13: =IFERROR(ROUND(F13/F$8,2),0) -> 0 | H13: =IF($B$2="All",SUMIFS('Full Crash Data'!$U:$U,'Full Crash Data'!$C:$C,H$5,'Full Crash Data'!$Z:$Z,">0"),IF($B$2="State Highway Agency",SUMIFS('Full Crash Data'!$U:$U,'Full Crash Data'!$C:$C,H$5,'Full Crash Data'!$AN:$AN,"State Highway Agency",'Full Crash Data'!$Z:$Z,">0"),IF($B$2="County Highway Agency",SUMIFS('Full Crash Data'!$U:$U,'Full Crash Data'!$C:$C,H$5,'Full Crash Data'!$AN:$AN,"County Highway Agency",'Full Crash Data'!$Z:$Z,">0"),IF($B$2="Township Highway Agency",SUMIFS('Full Crash Data'!$U:$U,'Full Crash Data'!$C:$C,H$5,'Full Crash Data'!$AN:$AN,"Township Highway Agency",'Full Crash Data'!$Z:$Z,">0"),IF($B$2="City or Village Highway Agency",SUMIFS('Full Crash Data'!$U:$U,'Full Crash Data'!$C:$C,H$5,'Full Crash Data'!$AN:$AN,"City or Village Highway Agency",'Full Crash Data'!$Z:$Z,">0")))))) -> 0 | I13: =IFERROR(ROUND(H13/H$8,2),0) -> 0 | J13: =IF($B$2="All",SUMIFS('Full Crash Data'!$U:$U,'Full Crash Data'!$C:$C,J$5,'Full Crash Data'!$Z:$Z,">0"),IF($B$2="State Highway Agency",SUMIFS('Full Crash Data'!$U:$U,'Full Crash Data'!$C:$C,J$5,'Full Crash Data'!$AN:$AN,"State Highway Agency",'Full Crash Data'!$Z:$Z,">0"),IF($B$2="County Highway Agency",SUMIFS('Full Crash Data'!$U:$U,'Full Crash Data'!$C:$C,J$5,'Full Crash Data'!$AN:$AN,"County Highway Agency",'Full Crash Data'!$Z:$Z,">0"),IF($B$2="Township Highway Agency",SUMIFS('Full Crash Data'!$U:$U,'Full Crash Data'!$C:$C,J$5,'Full Crash Data'!$AN:$AN,"Township Highway Agency",'Full Crash Data'!$Z:$Z,">0"),IF($B$2="City or Village Highway Agency",SUMIFS('Full Crash Data'!$U:$U,'Full Crash Data'!$C:$C,J$5,'Full Crash Data'!$AN:$AN,"City or Village Highway Agency",'Full Crash Data'!$Z:$Z,">0")))))) -> 0 | K13: =IFERROR(ROUND(J13/J$8,2),0) -> 0 | L13: =IF($B$2="All",SUMIFS('Full Crash Data'!$U:$U,'Full Crash Data'!$C:$C,L$5,'Full Crash Data'!$Z:$Z,">0"),IF($B$2="State Highway Agency",SUMIFS('Full Crash Data'!$U:$U,'Full Crash Data'!$C:$C,L$5,'Full Crash Data'!$AN:$AN,"State Highway Agency",'Full Crash Data'!$Z:$Z,">0"),IF($B$2="County Highway Agency",SUMIFS('Full Crash Data'!$U:$U,'Full Crash Data'!$C:$C,L$5,'Full Crash Data'!$AN:$AN,"County Highway Agency",'Full Crash Data'!$Z:$Z,">0"),IF($B$2="Township Highway Agency",SUMIFS('Full Crash Data'!$U:$U,'Full Crash Data'!$C:$C,L$5,'Full Crash Data'!$AN:$AN,"Township Highway Agency",'Full Crash Data'!$Z:$Z,">0"),IF($B$2="City or Village Highway Agency",SUMIFS('Full Crash Data'!$U:$U,'Full Crash Data'!$C:$C,L$5,'Full Crash Data'!$AN:$AN,"City or Village Highway Agency",'Full Crash Data'!$Z:$Z,">0")))))) -> 0 | M13: =IFERROR(ROUND(L13/L$8,2),0) -> 0 | N13: =IF($B$2="All",SUMIFS('Full Crash Data'!$U:$U,'Full Crash Data'!$C:$C,N$5,'Full Crash Data'!$Z:$Z,">0"),IF($B$2="State Highway Agency",SUMIFS('Full Crash Data'!$U:$U,'Full Crash Data'!$C:$C,N$5,'Full Crash Data'!$AN:$AN,"State Highway Agency",'Full Crash Data'!$Z:$Z,">0"),IF($B$2="County Highway Agency",SUMIFS('Full Crash Data'!$U:$U,'Full Crash Data'!$C:$C,N$5,'Full Crash Data'!$AN:$AN,"County Highway Agency",'Full Crash Data'!$Z:$Z,">0"),IF($B$2="Township Highway Agency",SUMIFS('Full Crash Data'!$U:$U,'Full Crash Data'!$C:$C,N$5,'Full Crash Data'!$AN:$AN,"Township Highway Agency",'Full Crash Data'!$Z:$Z,">0"),IF($B$2="City or Village Highway Agency",SUMIFS('Full Crash Data'!$U:$U,'Full Crash Data'!$C:$C,N$5,'Full Crash Data'!$AN:$AN,"City or Village Highway Agency",'Full Crash Data'!$Z:$Z,">0")))))) -> 0 | O13: =IFERROR(ROUND(N13/N$8,2),0) -> 0 | P13: =IF($B$2="All",SUMIFS('Full Crash Data'!$U:$U,'Full Crash Data'!$C:$C,P$5,'Full Crash Data'!$Z:$Z,">0"),IF($B$2="State Highway Agency",SUMIFS('Full Crash Data'!$U:$U,'Full Crash Data'!$C:$C,P$5,'Full Crash Data'!$AN:$AN,"State Highway Agency",'Full Crash Data'!$Z:$Z,">0"),IF($B$2="County Highway Agency",SUMIFS('Full Crash Data'!$U:$U,'Full Crash Data'!$C:$C,P$5,'Full Crash Data'!$AN:$AN,"County Highway Agency",'Full Crash Data'!$Z:$Z,">0"),IF($B$2="Township Highway Agency",SUMIFS('Full Crash Data'!$U:$U,'Full Crash Data'!$C:$C,P$5,'Full Crash Data'!$AN:$AN,"Township Highway Agency",'Full Crash Data'!$Z:$Z,">0"),IF($B$2="City or Village Highway Agency",SUMIFS('Full Crash Data'!$U:$U,'Full Crash Data'!$C:$C,P$5,'Full Crash Data'!$AN:$AN,"City or Village Highway Agency",'Full Crash Data'!$Z:$Z,">0")))))) -> 0 | Q13: =IFERROR(ROUND(P13/P$8,2),0) -> 0 | R13: =IF($B$2="All",SUMIFS('Full Crash Data'!$U:$U,'Full Crash Data'!$C:$C,R$5,'Full Crash Data'!$Z:$Z,">0"),IF($B$2="State Highway Agency",SUMIFS('Full Crash Data'!$U:$U,'Full Crash Data'!$C:$C,R$5,'Full Crash Data'!$AN:$AN,"State Highway Agency",'Full Crash Data'!$Z:$Z,">0"),IF($B$2="County Highway Agency",SUMIFS('Full Crash Data'!$U:$U,'Full Crash Data'!$C:$C,R$5,'Full Crash Data'!$AN:$AN,"County Highway Agency",'Full Crash Data'!$Z:$Z,">0"),IF($B$2="Township Highway Agency",SUMIFS('Full Crash Data'!$U:$U,'Full Crash Data'!$C:$C,R$5,'Full Crash Data'!$AN:$AN,"Township Highway Agency",'Full Crash Data'!$Z:$Z,">0"),IF($B$2="City or Village Highway Agency",SUMIFS('Full Crash Data'!$U:$U,'Full Crash Data'!$C:$C,R$5,'Full Crash Data'!$AN:$AN,"City or Village Highway Agency",'Full Crash Data'!$Z:$Z,">0")))))) -> 0 | S13: =IFERROR(ROUND(R13/R$8,2),0) -> 0 | T13: =IF($B$2="All",SUMIFS('Full Crash Data'!$U:$U,'Full Crash Data'!$C:$C,T$5,'Full Crash Data'!$Z:$Z,">0"),IF($B$2="State Highway Agency",SUMIFS('Full Crash Data'!$U:$U,'Full Crash Data'!$C:$C,T$5,'Full Crash Data'!$AN:$AN,"State Highway Agency",'Full Crash Data'!$Z:$Z,">0"),IF($B$2="County Highway Agency",SUMIFS('Full Crash Data'!$U:$U,'Full Crash Data'!$C:$C,T$5,'Full Crash Data'!$AN:$AN,"County Highway Agency",'Full Crash Data'!$Z:$Z,">0"),IF($B$2="Township Highway Agency",SUMIFS('Full Crash Data'!$U:$U,'Full Crash Data'!$C:$C,T$5,'Full Crash Data'!$AN:$AN,"Township Highway Agency",'Full Crash Data'!$Z:$Z,">0"),IF($B$2="City or Village Highway Agency",SUMIFS('Full Crash Data'!$U:$U,'Full Crash Data'!$C:$C,T$5,'Full Crash Data'!$AN:$AN,"City or Village Highway Agency",'Full Crash Data'!$Z:$Z,">0")))))) -> 0 | U13: =IFERROR(ROUND(T13/T$8,2),0) -> 0 | V13: =IF($B$2="All",SUMIFS('Full Crash Data'!$U:$U,'Full Crash Data'!$C:$C,V$5,'Full Crash Data'!$Z:$Z,">0"),IF($B$2="State Highway Agency",SUMIFS('Full Crash Data'!$U:$U,'Full Crash Data'!$C:$C,V$5,'Full Crash Data'!$AN:$AN,"State Highway Agency",'Full Crash Data'!$Z:$Z,">0"),IF($B$2="County Highway Agency",SUMIFS('Full Crash Data'!$U:$U,'Full Crash Data'!$C:$C,V$5,'Full Crash Data'!$AN:$AN,"County Highway Agency",'Full Crash Data'!$Z:$Z,">0"),IF($B$2="Township Highway Agency",SUMIFS('Full Crash Data'!$U:$U,'Full Crash Data'!$C:$C,V$5,'Full Crash Data'!$AN:$AN,"Township Highway Agency",'Full Crash Data'!$Z:$Z,">0"),IF($B$2="City or Village Highway Agency",SUMIFS('Full Crash Data'!$U:$U,'Full Crash Data'!$C:$C,V$5,'Full Crash Data'!$AN:$AN,"City or Village Highway Agency",'Full Crash Data'!$Z:$Z,">0")))))) -> 0 | W13: =IFERROR(ROUND(V13/V$8,2),0) -> 0 | AE13: 12
